Workbook

Sheet HCP Sheet
A1: Handicap Chart
A2: Base Number | D2: 220
A3: Handicap % | D3: 90
A5: Average | B5: Handicap | D5: Average | E5: Handicap | G5: Average | H5: Handicap | J5: Average | K5: Handicap
A6: =D2 -> 220 | B6: =TRUNC(($D$2-A6)*($D$3/100)*1,0) -> 0 | C6: | | D6: =A55-1 -> 170 | E6: =TRUNC(($D$2-D6)*($D$3/100)*1,0) -> 45 | F6: | | G6: =D55-1 -> 120 | H6: =TRUNC(($D$2-G6)*($D$3/100)*1,0) -> 90 | I6: | | J6: =G55-1 -> 70 | K6: =TRUNC(($D$2-J6)*($D$3/100)*1,0) -> 135
A7: =A6-1 -> 219 | B7: =TRUNC(($D$2-A7)*($D$3/100)*1,0) -> 0 | C7: | | D7: =D6-1 -> 169 | E7: =TRUNC(($D$2-D7)*($D$3/100)*1,0) -> 45 | F7: | | G7: =G6-1 -> 119 | H7: =TRUNC(($D$2-G7)*($D$3/100)*1,0) -> 90 | I7: | | J7: =J6-1 -> 69 | K7: =TRUNC(($D$2-J7)*($D$3/100)*1,0) -> 135
A8: =A7-1 -> 218 | B8: 1 | C8: | | D8: =D7-1 -> 168 | E8: 46 | F8: | | G8: =G7-1 -> 118 | H8: 91 | I8: | | J8: =J7-1 -> 68 | K8: 136
A9: 217 | B9: 2 | C9: | | D9: 167 | E9: 47 | F9: | | G9: 117 | H9: 92 | I9: | | J9: 67 | K9: 137
A10: 216 | B10: 3 | C10: | | D10: 166 | E10: 48 | F10: | | G10: 116 | H10: 93 | I10: | | J10: 66 | K10: 138
A11: 215 | B11: 4 | C11: | | D11: 165 | E11: 49 | F11: | | G11: 115 | H11: 94 | I11: | | J11: 65 | K11: 139
A12: 214 | B12: 5 | C12: | | D12: 164 | E12: 50 | F12: | | G12: 114 | H12: 95 | I12: | | J12: 64 | K12: 140
A13: 213 | B13: 6 | C13: | | D13: 163 | E13: 51 | F13: | | G13: 113 | H13: 96 | I13: | | J13: 63 | K13: 141
A14: 212 | B14: 7 | C14: | | D14: 162 | E14: 52 | F14: | | G14: 112 | H14: 97 | I14: | | J14: 62 | K14: 142
A15: 211 | B15: 8 | C15: | | D15: 161 | E15: 53 | F15: | | G15: 111 | H15: 98 | I15: | | J15: 61 | K15: 143
A16: 210 | B16: 9 | C16: | | D16: 160 | E16: 54 | F16: | | G16: 110 | H16: 99 | I16: | | J16: 60 | K16: 144
A17: 209 | B17: 9 | C17: | | D17: 159 | E17: 54 | F17: | | G17: 109 | H17: 99 | I17: | | J17: 59 | K17: 144
A18: 208 | B18: 10 | C18: | | D18: 158 | E18: 55 | F18: | | G18: 108 | H18: 100 | I18: | | J18: 58 | K18: 145
A19: 207 | B19: 11 | C19: | | D19: 157 | E19: 56 | F19: | | G19: 107 | H19: 101 | I19: | | J19: 57 | K19: 146
A20: 206 | B20: 12 | C20: | | D20: 156 | E20: 57 | F20: | | G20: 106 | H20: 102 | I20: | | J20: 56 | K20: 147
A21: 205 | B21: 13 | C21: | | D21: 155 | E21: 58 | F21: | | G21: 105 | H21: 103 | I21: | | J21: 55 | K21: 148
A22: 204 | B22: 14 | C22: | | D22: 154 | E22: 59 | F22: | | G22: 104 | H22: 104 | I22: | | J22: 54 | K22: 149
A23: 203 | B23: 15 | C23: | | D23: 153 | E23: 60 | F23: | | G23: 103 | H23: 105 | I23: | | J23: 53 | K23: 150
A24: 202 | B24: 16 | C24: | | D24: 152 | E24: 61 | F24: | | G24: 102 | H24: 106 | I24: | | J24: 52 | K24: 151
A25: 201 | B25: 17 | C25: | | D25: 151 | E25: 62 | F25: | | G25: 101 | H25: 107 | I25: | | J25: 51 | K25: 152
A26: 200 | B26: 18 | C26: | | D26: 150 | E26: 63 | F26: | | G26: 100 | H26: 108 | I26: | | J26: 50 | K26: 153
A27: 199 | B27: 18 | C27: | | D27: 149 | E27: 63 | F27: | | G27: 99 | H27: 108 | I27: | | J27: 49 | K27: 153
A28: 198 | B28: 19 | C28: | | D28: 148 | E28: 64 | F28: | | G28: 98 | H28: 109 | I28: | | J28: 48 | K28: 154
A29: 197 | B29: 20 | C29: | | D29: 147 | E29: 65 | F29: | | G29: 97 | H29: 110 | I29: | | J29: 47 | K29: 155
A30: 196 | B30: 21 | C30: | | D30: 146 | E30: 66 | F30: | | G30: 96 | H30: 111 | I30: | | J30: 46 | K30: 156
A31: 195 | B31: 22 | C31: | | D31: 145 | E31: 67 | F31: | | G31: 95 | H31: 112 | I31: | | J31: 45 | K31: 157
A32: 194 | B32: 23 | C32: | | D32: 144 | E32: 68 | F32: | | G32: 94 | H32: 113 | I32: | | J32: 44 | K32: 158
A33: 193 | B33: 24 | C33: | | D33: 143 | E33: 69 | F33: | | G33: 93 | H33: 114 | I33: | | J33: 43 | K33: 159
A34: 192 | B34: 25 | C34: | | D34: 142 | E34: 70 | F34: | | G34: 92 | H34: 115 | I34: | | J34: 42 | K34: 160
A35: 191 | B35: 26 | C35: | | D35: 141 | E35: 71 | F35: | | G35: 91 | H35: 116 | I35: | | J35: 41 | K35: 161
A36: 190 | B36: 27 | C36: | | D36: 140 | E36: 72 | F36: | | G36: 90 | H36: 117 | I36: | | J36: 40 | K36: 162
A37: 189 | B37: 27 | C37: | | D37: 139 | E37: 72 | F37: | | G37: 89 | H37: 117 | I37: | | J37: 39 | K37: 162
A38: 188 | B38: 28 | C38: | | D38: 138 | E38: 73 | F38: | | G38: 88 | H38: 118 | I38: | | J38: 38 | K38: 163
A39: 187 | B39: 29 | C39: | | D39: 137 | E39: 74 | F39: | | G39: 87 | H39: 119 | I39: | | J39: 37 | K39: 164
A40: 186 | B40: 30 | C40: | | D40: 136 | E40: 75 | F40: | | G40: 86 | H40: 120 | I40: | | J40: 36 | K40: 165
A41: 185 | B41: 31 | C41: | | D41: 135 | E41: 76 | F41: | | G41: 85 | H41: 121 | I41: | | J41: 35 | K41: 166
A42: 184 | B42: 32 | C42: | | D42: 134 | E42: 77 | F42: | | G42: 84 | H42: 122 | I42: | | J42: 34 | K42: 167
A43: 183 | B43: 33 | C43: | | D43: 133 | E43: 78 | F43: | | G43: 83 | H43: 123 | I43: | | J43: 33 | K43: 168
A44: 182 | B44: 34 | C44: | | D44: 132 | E44: 79 | F44: | | G44: 82 | H44: 124 | I44: | | J44: 32 | K44: 169
A45: 181 | B45: 35 | C45: | | D45: 131 | E45: 80 | F45: | | G45: 81 | H45: 125 | I45: | | J45: 31 | K45: 170
A46: 180 | B46: 36 | C46: | | D46: 130 | E46: 81 | F46: | | G46: 80 | H46: 126 | I46: | | J46: 30 | K46: 171
A47: 179 | B47: 36 | C47: | | D47: 129 | E47: 81 | F47: | | G47: 79 | H47: 126 | I47: | | J47: 29 | K47: 171
A48: 178 | B48: 37 | C48: | | D48: 128 | E48: 82 | F48: | | G48: 78 | H48: 127 | I48: | | J48: 28 | K48: 172
A49: 177 | B49: 38 | C49: | | D49: 127 | E49: 83 | F49: | | G49: 77 | H49: 128 | I49: | | J49: 27 | K49: 173
A50: 176 | B50: 39 | C50: | | D50: 126 | E50: 84 | F50: | | G50: 76 | H50: 129 | I50: | | J50: 26 | K50: 174
A51: 175 | B51: 40 | C51: | | D51: 125 | E51: 85 | F51: | | G51: 75 | H51: 130 | I51: | | J51: 25 | K51: 175
A52: 174 | B52: 41 | C52: | | D52: 124 | E52: 86 | F52: | | G52: 74 | H52: 131 | I52: | | J52: 24 | K52: 176
A53: 173 | B53: 42 | C53: | | D53: 123 | E53: 87 | F53: | | G53: 73 | H53: 132 | I53: | | J53: 23 | K53: 177
A54: 172 | B54: 43 | C54: | | D54: 122 | E54: 88 | F54: | | G54: 72 | H54: 133 | I54: | | J54: 22 | K54: 178
A55: 171 | B55: 44 | C55: | | D55: 121 | E55: 89 | F55: | | G55: 71 | H55: 134 | I55: | | J55: 21 | K55: 179

Sheet UTL1
B1: Wednesday Fun Fours 2024-25 | H1: CSCUSBC ACHIEVEMENT AWARDS 2024-2025
B3: =NOW() -> 2025-04-15T12:38:01.480 | C3: <--Today's date & time
A5: ============================
A6: 6 over after #games | C6: 12
A7: book average #games | C7: 9
A8: handicap after #games | C8: 9
A9: Merit Awards after #gms | C9: 12
A10: ============================
A11: Handicap base | C11: 220
A12: Handicap % | C12: 90%
A13: ============================
A14: wk No.: | B14: (Put an X in the C column for the current week) | V14: =MAX(C15:E44) -> 30 | W14: =MAX(V15:X44) -> 0
A15: 1 | B15: 2024-09-04 | D15: =IF(TRIM(C15)="X",A15,"") -> 
A16: 2 | B16: 2024-09-11 | D16: =IF(TRIM(C16)="X",A16,"") -> 
A17: 3 | B17: 2024-09-18
A18: 4 | B18: 2024-09-25
A19: 5 | B19: 2024-10-02
A20: 6 | B20: 2024-10-09
A21: 7 | B21: 2024-10-16
A22: 8 | B22: 2024-10-23
A23: 9 | B23: 2024-10-30
A24: 10 | B24: 2024-11-06
A25: 11 | B25: 2024-11-13
A26: 12 | B26: 2024-11-20
A27: 13 | B27: 2024-11-27
A28: 14 | B28: 2024-12-04
A29: 15 | B29: 2024-12-11
A30: 16 | B30: 2024-12-18
A31: 17 | B31: 2025-01-08
A32: 18 | B32: 2025-01-15
A33: 19 | B33: 2025-01-22
A34: 20 | B34: 2025-01-29
A35: 21 | B35: 2025-02-05
A36: 22 | B36: 2025-02-12
A37: 23 | B37: 2025-02-19
A38: 24 | B38: 2025-02-26
A39: 25 | B39: 2025-03-05
A40: 26 | B40: 2025-03-12
A41: 27 | B41: 2025-03-19
A42: 28 | B42: 2025-03-26
A43: 29 | B43: 2025-04-02
A44: 30 | B44: 2025-04-09 | C44: x | D44: 30
A45: 31
A46: 32
A47: 33
A48: 34
A49: 35
A50: 36
A51: 37
A52: 38
A53: 39
A54: 40

Sheet UTL2_PA
C1: Perfect | D1: PA | F1: 6 over | G1: 6 over
B2: Name: | C2: Attendance | D2: status | F2: Average | G2: start Wk
B3: Name must match the sheet name:
A4: 1 | B4: Peter Tran | C4: =IF(COUNT(INDIRECT("'" & $B4 & "'!" & "$B$2"))=1,INDIRECT("'" & $B4 & "'!" & "$J$3"),"") -> NO | D4: =IF(COUNT(INDIRECT("'" & $B4 & "'!" & "$B$2"))=1,INDIRECT("'" & $B4 & "'!" & "$K$3"),"") ->  | F4: =IF(COUNT(INDIRECT("'" & B4 & "'!" & "$S$2"))=1,"YES","") ->  | G4: =IF(COUNT(INDIRECT("'" & $B4 & "'!" & "$S$2"))=1,INDIRECT("'" & B4 & "'!" & "$s$2"),"") -> 
A5: 2 | B5: Phil Tran | C5: =IF(COUNT(INDIRECT("'" & $B5 & "'!" & "$B$2"))=1,INDIRECT("'" & $B5 & "'!" & "$J$3"),"") -> NO | D5: =IF(COUNT(INDIRECT("'" & $B5 & "'!" & "$B$2"))=1,INDIRECT("'" & $B5 & "'!" & "$K$3"),"") ->  | F5: =IF(COUNT(INDIRECT("'" & B5 & "'!" & "$S$2"))=1,"YES","") -> YES | G5: =IF(COUNT(INDIRECT("'" & $B5 & "'!" & "$S$2"))=1,INDIRECT("'" & B5 & "'!" & "$s$2"),"") -> 5
A6: 3 | B6: Tresean Thompkins | C6: =IF(COUNT(INDIRECT("'" & $B6 & "'!" & "$B$2"))=1,INDIRECT("'" & $B6 & "'!" & "$J$3"),"") -> NO | D6: =IF(COUNT(INDIRECT("'" & $B6 & "'!" & "$B$2"))=1,INDIRECT("'" & $B6 & "'!" & "$K$3"),"") ->  | F6: =IF(COUNT(INDIRECT("'" & B6 & "'!" & "$S$2"))=1,"YES","") ->  | G6: =IF(COUNT(INDIRECT("'" & $B6 & "'!" & "$S$2"))=1,INDIRECT("'" & B6 & "'!" & "$s$2"),"") ->  | I6: Edit or Add to the B Column (names) only
A7: 4 | B7: Jenna Perkins | C7: =IF(COUNT(INDIRECT("'" & $B7 & "'!" & "$B$2"))=1,INDIRECT("'" & $B7 & "'!" & "$J$3"),"") -> NO | D7: =IF(COUNT(INDIRECT("'" & $B7 & "'!" & "$B$2"))=1,INDIRECT("'" & $B7 & "'!" & "$K$3"),"") ->  | G7: =IF(COUNT(INDIRECT("'" & $B7 & "'!" & "$S$2"))=1,INDIRECT("'" & B7 & "'!" & "$s$2"),"") ->  | I7: (Names must match the Sheet Name)
A8: 5 | B8: Kyle Kent | C8: =IF(COUNT(INDIRECT("'" & $B8 & "'!" & "$B$2"))=1,INDIRECT("'" & $B8 & "'!" & "$J$3"),"") -> NO | D8: =IF(COUNT(INDIRECT("'" & $B8 & "'!" & "$B$2"))=1,INDIRECT("'" & $B8 & "'!" & "$K$3"),"") ->  | G8: =IF(COUNT(INDIRECT("'" & $B8 & "'!" & "$S$2"))=1,INDIRECT("'" & B8 & "'!" & "$s$2"),"") -> 
A9: 6 | B9: Jasmine Brady | C9: =IF(COUNT(INDIRECT("'" & $B9 & "'!" & "$B$2"))=1,INDIRECT("'" & $B9 & "'!" & "$J$3"),"") -> NO | D9: =IF(COUNT(INDIRECT("'" & $B9 & "'!" & "$B$2"))=1,INDIRECT("'" & $B9 & "'!" & "$K$3"),"") ->  | F9: YES | G9: =IF(COUNT(INDIRECT("'" & $B9 & "'!" & "$S$2"))=1,INDIRECT("'" & B9 & "'!" & "$s$2"),"") -> 17
A10: 7 | B10: Allen Watts | C10: =IF(COUNT(INDIRECT("'" & $B10 & "'!" & "$B$2"))=1,INDIRECT("'" & $B10 & "'!" & "$J$3"),"") -> YES | D10: =IF(COUNT(INDIRECT("'" & $B10 & "'!" & "$B$2"))=1,INDIRECT("'" & $B10 & "'!" & "$K$3"),"") -> Good | G10: =IF(COUNT(INDIRECT("'" & $B10 & "'!" & "$S$2"))=1,INDIRECT("'" & B10 & "'!" & "$s$2"),"") -> 
A11: 8 | B11: Earl King | C11: =IF(COUNT(INDIRECT("'" & $B11 & "'!" & "$B$2"))=1,INDIRECT("'" & $B11 & "'!" & "$J$3"),"") -> YES | D11: =IF(COUNT(INDIRECT("'" & $B11 & "'!" & "$B$2"))=1,INDIRECT("'" & $B11 & "'!" & "$K$3"),"") -> Good | F11: YES | G11: =IF(COUNT(INDIRECT("'" & $B11 & "'!" & "$S$2"))=1,INDIRECT("'" & B11 & "'!" & "$s$2"),"") -> 11
A12: 9 | B12: Tim Brady | C12: =IF(COUNT(INDIRECT("'" & $B12 & "'!" & "$B$2"))=1,INDIRECT("'" & $B12 & "'!" & "$J$3"),"") -> YES | D12: =IF(COUNT(INDIRECT("'" & $B12 & "'!" & "$B$2"))=1,INDIRECT("'" & $B12 & "'!" & "$K$3"),"") -> Good | G12: =IF(COUNT(INDIRECT("'" & $B12 & "'!" & "$S$2"))=1,INDIRECT("'" & B12 & "'!" & "$s$2"),"") -> 
A13: 10 | B13: Tammy Lang | C13: =IF(COUNT(INDIRECT("'" & $B13 & "'!" & "$B$2"))=1,INDIRECT("'" & $B13 & "'!" & "$J$3"),"") -> YES | D13: =IF(COUNT(INDIRECT("'" & $B13 & "'!" & "$B$2"))=1,INDIRECT("'" & $B13 & "'!" & "$K$3"),"") -> Good | G13: =IF(COUNT(INDIRECT("'" & $B13 & "'!" & "$S$2"))=1,INDIRECT("'" & B13 & "'!" & "$s$2"),"") -> 
A14: 11 | B14: Gregor Gonzales | C14: =IF(COUNT(INDIRECT("'" & $B14 & "'!" & "$B$2"))=1,INDIRECT("'" & $B14 & "'!" & "$J$3"),"") -> NO | D14: =IF(COUNT(INDIRECT("'" & $B14 & "'!" & "$B$2"))=1,INDIRECT("'" & $B14 & "'!" & "$K$3"),"") ->  | G14: =IF(COUNT(INDIRECT("'" & $B14 & "'!" & "$S$2"))=1,INDIRECT("'" & B14 & "'!" & "$s$2"),"") -> 
A15: 12 | B15: Greg Gonzales | C15: =IF(COUNT(INDIRECT("'" & $B15 & "'!" & "$B$2"))=1,INDIRECT("'" & $B15 & "'!" & "$J$3"),"") -> NO | D15: =IF(COUNT(INDIRECT("'" & $B15 & "'!" & "$B$2"))=1,INDIRECT("'" & $B15 & "'!" & "$K$3"),"") ->  | G15: =IF(COUNT(INDIRECT("'" & $B15 & "'!" & "$S$2"))=1,INDIRECT("'" & B15 & "'!" & "$s$2"),"") -> 
A16: 13 | B16: Mike Doyel | C16: =IF(COUNT(INDIRECT("'" & $B16 & "'!" & "$B$2"))=1,INDIRECT("'" & $B16 & "'!" & "$J$3"),"") -> YES | D16: =IF(COUNT(INDIRECT("'" & $B16 & "'!" & "$B$2"))=1,INDIRECT("'" & $B16 & "'!" & "$K$3"),"") -> Good | F16: YES | G16: =IF(COUNT(INDIRECT("'" & $B16 & "'!" & "$S$2"))=1,INDIRECT("'" & B16 & "'!" & "$s$2"),"") -> 12
A17: 14 | B17: Brandon Souvannasay | C17: =IF(COUNT(INDIRECT("'" & $B17 & "'!" & "$B$2"))=1,INDIRECT("'" & $B17 & "'!" & "$J$3"),"") -> NO | D17: =IF(COUNT(INDIRECT("'" & $B17 & "'!" & "$B$2"))=1,INDIRECT("'" & $B17 & "'!" & "$K$3"),"") ->  | G17: =IF(COUNT(INDIRECT("'" & $B17 & "'!" & "$S$2"))=1,INDIRECT("'" & B17 & "'!" & "$s$2"),"") -> 
A18: 15 | B18: LaDainian Kuok | C18: =IF(COUNT(INDIRECT("'" & $B18 & "'!" & "$B$2"))=1,INDIRECT("'" & $B18 & "'!" & "$J$3"),"") -> NO | D18: =IF(COUNT(INDIRECT("'" & $B18 & "'!" & "$B$2"))=1,INDIRECT("'" & $B18 & "'!" & "$K$3"),"") ->  | F18: YES | G18: =IF(COUNT(INDIRECT("'" & $B18 & "'!" & "$S$2"))=1,INDIRECT("'" & B18 & "'!" & "$s$2"),"") -> 25
A19: 16 | B19: Marcus Kuok | C19: =IF(COUNT(INDIRECT("'" & $B19 & "'!" & "$B$2"))=1,INDIRECT("'" & $B19 & "'!" & "$J$3"),"") -> NO | D19: =IF(COUNT(INDIRECT("'" & $B19 & "'!" & "$B$2"))=1,INDIRECT("'" & $B19 & "'!" & "$K$3"),"") ->  | G19: =IF(COUNT(INDIRECT("'" & $B19 & "'!" & "$S$2"))=1,INDIRECT("'" & B19 & "'!" & "$s$2"),"") -> 
A20: 17 | B20: Michael Slinsen | C20: =IF(COUNT(INDIRECT("'" & $B20 & "'!" & "$B$2"))=1,INDIRECT("'" & $B20 & "'!" & "$J$3"),"") -> NO | D20: =IF(COUNT(INDIRECT("'" & $B20 & "'!" & "$B$2"))=1,INDIRECT("'" & $B20 & "'!" & "$K$3"),"") ->  | G20: =IF(COUNT(INDIRECT("'" & $B20 & "'!" & "$S$2"))=1,INDIRECT("'" & B20 & "'!" & "$s$2"),"") -> 
A21: 18 | B21: Bailey Nelson | C21: =IF(COUNT(INDIRECT("'" & $B21 & "'!" & "$B$2"))=1,INDIRECT("'" & $B21 & "'!" & "$J$3"),"") -> NO | D21: =IF(COUNT(INDIRECT("'" & $B21 & "'!" & "$B$2"))=1,INDIRECT("'" & $B21 & "'!" & "$K$3"),"") ->  | G21: =IF(COUNT(INDIRECT("'" & $B21 & "'!" & "$S$2"))=1,INDIRECT("'" & B21 & "'!" & "$s$2"),"") -> 
A22: 19 | B22: Jenn McFarlane | C22: =IF(COUNT(INDIRECT("'" & $B22 & "'!" & "$B$2"))=1,INDIRECT("'" & $B22 & "'!" & "$J$3"),"") -> YES | D22: =IF(COUNT(INDIRECT("'" & $B22 & "'!" & "$B$2"))=1,INDIRECT("'" & $B22 & "'!" & "$K$3"),"") -> Good | F22: YES | G22: =IF(COUNT(INDIRECT("'" & $B22 & "'!" & "$S$2"))=1,INDIRECT("'" & B22 & "'!" & "$s$2"),"") -> 8
A23: 20 | B23: James Nelson | C23: =IF(COUNT(INDIRECT("'" & $B23 & "'!" & "$B$2"))=1,INDIRECT("'" & $B23 & "'!" & "$J$3"),"") -> NO | D23: =IF(COUNT(INDIRECT("'" & $B23 & "'!" & "$B$2"))=1,INDIRECT("'" & $B23 & "'!" & "$K$3"),"") ->  | G23: =IF(COUNT(INDIRECT("'" & $B23 & "'!" & "$S$2"))=1,INDIRECT("'" & B23 & "'!" & "$s$2"),"") -> 
A24: 21 | B24: Matt McFarlane | C24: =IF(COUNT(INDIRECT("'" & $B24 & "'!" & "$B$2"))=1,INDIRECT("'" & $B24 & "'!" & "$J$3"),"") -> NO | D24: =IF(COUNT(INDIRECT("'" & $B24 & "'!" & "$B$2"))=1,INDIRECT("'" & $B24 & "'!" & "$K$3"),"") ->  | F24: YES | G24: =IF(COUNT(INDIRECT("'" & $B24 & "'!" & "$S$2"))=1,INDIRECT("'" & B24 & "'!" & "$s$2"),"") -> 19
A25: 22 | B25: Ray Kummer | C25: =IF(COUNT(INDIRECT("'" & $B25 & "'!" & "$B$2"))=1,INDIRECT("'" & $B25 & "'!" & "$J$3"),"") -> NO | D25: =IF(COUNT(INDIRECT("'" & $B25 & "'!" & "$B$2"))=1,INDIRECT("'" & $B25 & "'!" & "$K$3"),"") ->  | G25: =IF(COUNT(INDIRECT("'" & $B25 & "'!" & "$S$2"))=1,INDIRECT("'" & B25 & "'!" & "$s$2"),"") -> 
A26: 23 | B26: Dustin Campana | C26: =IF(COUNT(INDIRECT("'" & $B26 & "'!" & "$B$2"))=1,INDIRECT("'" & $B26 & "'!" & "$J$3"),"") -> NO | D26: =IF(COUNT(INDIRECT("'" & $B26 & "'!" & "$B$2"))=1,INDIRECT("'" & $B26 & "'!" & "$K$3"),"") ->  | F26: YES | G26: =IF(COUNT(INDIRECT("'" & $B26 & "'!" & "$S$2"))=1,INDIRECT("'" & B26 & "'!" & "$s$2"),"") -> 26
A27: 24 | B27: Daniel Torres | C27: =IF(COUNT(INDIRECT("'" & $B27 & "'!" & "$B$2"))=1,INDIRECT("'" & $B27 & "'!" & "$J$3"),"") -> NO | D27: =IF(COUNT(INDIRECT("'" & $B27 & "'!" & "$B$2"))=1,INDIRECT("'" & $B27 & "'!" & "$K$3"),"") ->  | F27: YES | G27: =IF(COUNT(INDIRECT("'" & $B27 & "'!" & "$S$2"))=1,INDIRECT("'" & B27 & "'!" & "$s$2"),"") -> 7
A28: 25 | B28: Tim Sikes | C28: =IF(COUNT(INDIRECT("'" & $B28 & "'!" & "$B$2"))=1,INDIRECT("'" & $B28 & "'!" & "$J$3"),"") -> NO | D28: =IF(COUNT(INDIRECT("'" & $B28 & "'!" & "$B$2"))=1,INDIRECT("'" & $B28 & "'!" & "$K$3"),"") ->  | G28: =IF(COUNT(INDIRECT("'" & $B28 & "'!" & "$S$2"))=1,INDIRECT("'" & B28 & "'!" & "$s$2"),"") -> 
A29: 26 | B29: Josie Bisler | C29: =IF(COUNT(INDIRECT("'" & $B29 & "'!" & "$B$2"))=1,INDIRECT("'" & $B29 & "'!" & "$J$3"),"") -> YES | D29: =IF(COUNT(INDIRECT("'" & $B29 & "'!" & "$B$2"))=1,INDIRECT("'" & $B29 & "'!" & "$K$3"),"") -> Good | G29: =IF(COUNT(INDIRECT("'" & $B29 & "'!" & "$S$2"))=1,INDIRECT("'" & B29 & "'!" & "$s$2"),"") -> 
A30: 27 | B30: John Diricco | C30: =IF(COUNT(INDIRECT("'" & $B30 & "'!" & "$B$2"))=1,INDIRECT("'" & $B30 & "'!" & "$J$3"),"") -> NO | D30: =IF(COUNT(INDIRECT("'" & $B30 & "'!" & "$B$2"))=1,INDIRECT("'" & $B30 & "'!" & "$K$3"),"") ->  | G30: =IF(COUNT(INDIRECT("'" & $B30 & "'!" & "$S$2"))=1,INDIRECT("'" & B30 & "'!" & "$s$2"),"") -> 
A31: 28 | B31: Jenny Carretero | C31: =IF(COUNT(INDIRECT("'" & $B31 & "'!" & "$B$2"))=1,INDIRECT("'" & $B31 & "'!" & "$J$3"),"") -> NO | D31: =IF(COUNT(INDIRECT("'" & $B31 & "'!" & "$B$2"))=1,INDIRECT("'" & $B31 & "'!" & "$K$3"),"") ->  | G31: =IF(COUNT(INDIRECT("'" & $B31 & "'!" & "$S$2"))=1,INDIRECT("'" & B31 & "'!" & "$s$2"),"") -> 
A32: 29 | B32: Ronnie Carretero | C32: =IF(COUNT(INDIRECT("'" & $B32 & "'!" & "$B$2"))=1,INDIRECT("'" & $B32 & "'!" & "$J$3"),"") -> YES | D32: =IF(COUNT(INDIRECT("'" & $B32 & "'!" & "$B$2"))=1,INDIRECT("'" & $B32 & "'!" & "$K$3"),"") -> Good | F32: YES | G32: =IF(COUNT(INDIRECT("'" & $B32 & "'!" & "$S$2"))=1,INDIRECT("'" & B32 & "'!" & "$s$2"),"") -> 14
A33: 30 | B33: Kyle Wilson | C33: =IF(COUNT(INDIRECT("'" & $B33 & "'!" & "$B$2"))=1,INDIRECT("'" & $B33 & "'!" & "$J$3"),"") -> NO | D33: =IF(COUNT(INDIRECT("'" & $B33 & "'!" & "$B$2"))=1,INDIRECT("'" & $B33 & "'!" & "$K$3"),"") ->  | G33: =IF(COUNT(INDIRECT("'" & $B33 & "'!" & "$S$2"))=1,INDIRECT("'" & B33 & "'!" & "$s$2"),"") -> 
A34: 31 | B34: John Orcutt | C34: =IF(COUNT(INDIRECT("'" & $B34 & "'!" & "$B$2"))=1,INDIRECT("'" & $B34 & "'!" & "$J$3"),"") -> YES | D34: =IF(COUNT(INDIRECT("'" & $B34 & "'!" & "$B$2"))=1,INDIRECT("'" & $B34 & "'!" & "$K$3"),"") -> Good | G34: =IF(COUNT(INDIRECT("'" & $B34 & "'!" & "$S$2"))=1,INDIRECT("'" & B34 & "'!" & "$s$2"),"") -> 
A35: 32 | B35: Morgan Thomas | C35: =IF(COUNT(INDIRECT("'" & $B35 & "'!" & "$B$2"))=1,INDIRECT("'" & $B35 & "'!" & "$J$3"),"") -> NO | D35: =IF(COUNT(INDIRECT("'" & $B35 & "'!" & "$B$2"))=1,INDIRECT("'" & $B35 & "'!" & "$K$3"),"") ->  | G35: =IF(COUNT(INDIRECT("'" & $B35 & "'!" & "$S$2"))=1,INDIRECT("'" & B35 & "'!" & "$s$2"),"") -> 
A36: 33 | B36: Mike Schirman | C36: =IF(COUNT(INDIRECT("'" & $B36 & "'!" & "$B$2"))=1,INDIRECT("'" & $B36 & "'!" & "$J$3"),"") -> NO | D36: =IF(COUNT(INDIRECT("'" & $B36 & "'!" & "$B$2"))=1,INDIRECT("'" & $B36 & "'!" & "$K$3"),"") ->  | F36: YES | G36: =IF(COUNT(INDIRECT("'" & $B36 & "'!" & "$S$2"))=1,INDIRECT("'" & B36 & "'!" & "$s$2"),"") -> 26
A37: 34 | B37: Will Exelby | C37: =IF(COUNT(INDIRECT("'" & $B37 & "'!" & "$B$2"))=1,INDIRECT("'" & $B37 & "'!" & "$J$3"),"") -> NO | D37: =IF(COUNT(INDIRECT("'" & $B37 & "'!" & "$B$2"))=1,INDIRECT("'" & $B37 & "'!" & "$K$3"),"") ->  | G37: =IF(COUNT(INDIRECT("'" & $B37 & "'!" & "$S$2"))=1,INDIRECT("'" & B37 & "'!" & "$s$2"),"") -> 
A38: 35 | B38: Ken Hanover | C38: =IF(COUNT(INDIRECT("'" & $B38 & "'!" & "$B$2"))=1,INDIRECT("'" & $B38 & "'!" & "$J$3"),"") -> NO | D38: =IF(COUNT(INDIRECT("'" & $B38 & "'!" & "$B$2"))=1,INDIRECT("'" & $B38 & "'!" & "$K$3"),"") ->  | F38: YES | G38: =IF(COUNT(INDIRECT("'" & $B38 & "'!" & "$S$2"))=1,INDIRECT("'" & B38 & "'!" & "$s$2"),"") -> 18
A39: 36 | B39: Mat Hanover | C39: =IF(COUNT(INDIRECT("'" & $B39 & "'!" & "$B$2"))=1,INDIRECT("'" & $B39 & "'!" & "$J$3"),"") -> NO | D39: =IF(COUNT(INDIRECT("'" & $B39 & "'!" & "$B$2"))=1,INDIRECT("'" & $B39 & "'!" & "$K$3"),"") ->  | G39: =IF(COUNT(INDIRECT("'" & $B39 & "'!" & "$S$2"))=1,INDIRECT("'" & B39 & "'!" & "$s$2"),"") -> 
A40: 37 | B40: Dom Mata | C40: =IF(COUNT(INDIRECT("'" & $B40 & "'!" & "$B$2"))=1,INDIRECT("'" & $B40 & "'!" & "$J$3"),"") -> NO | D40: =IF(COUNT(INDIRECT("'" & $B40 & "'!" & "$B$2"))=1,INDIRECT("'" & $B40 & "'!" & "$K$3"),"") ->  | F40: YES | G40: =IF(COUNT(INDIRECT("'" & $B40 & "'!" & "$S$2"))=1,INDIRECT("'" & B40 & "'!" & "$s$2"),"") -> 10
A41: 38 | B41: Tom Woodard | C41: =IF(COUNT(INDIRECT("'" & $B41 & "'!" & "$B$2"))=1,INDIRECT("'" & $B41 & "'!" & "$J$3"),"") -> NO | D41: =IF(COUNT(INDIRECT("'" & $B41 & "'!" & "$B$2"))=1,INDIRECT("'" & $B41 & "'!" & "$K$3"),"") ->  | F41: YES | G41: =IF(COUNT(INDIRECT("'" & $B41 & "'!" & "$S$2"))=1,INDIRECT("'" & B41 & "'!" & "$s$2"),"") -> 27
A42: 39 | B42: Patty Green | C42: =IF(COUNT(INDIRECT("'" & $B42 & "'!" & "$B$2"))=1,INDIRECT("'" & $B42 & "'!" & "$J$3"),"") -> NO | D42: =IF(COUNT(INDIRECT("'" & $B42 & "'!" & "$B$2"))=1,INDIRECT("'" & $B42 & "'!" & "$K$3"),"") ->  | G42: =IF(COUNT(INDIRECT("'" & $B42 & "'!" & "$S$2"))=1,INDIRECT("'" & B42 & "'!" & "$s$2"),"") -> 
A43: 40 | B43: Ron Plasse | C43: =IF(COUNT(INDIRECT("'" & $B43 & "'!" & "$B$2"))=1,INDIRECT("'" & $B43 & "'!" & "$J$3"),"") -> NO | D43: =IF(COUNT(INDIRECT("'" & $B43 & "'!" & "$B$2"))=1,INDIRECT("'" & $B43 & "'!" & "$K$3"),"") ->  | F43: YES | G43: =IF(COUNT(INDIRECT("'" & $B43 & "'!" & "$S$2"))=1,INDIRECT("'" & B43 & "'!" & "$s$2"),"") -> 6
A44: 41 | B44: Dick Harkey | C44: =IF(COUNT(INDIRECT("'" & $B44 & "'!" & "$B$2"))=1,INDIRECT("'" & $B44 & "'!" & "$J$3"),"") -> NO | D44: =IF(COUNT(INDIRECT("'" & $B44 & "'!" & "$B$2"))=1,INDIRECT("'" & $B44 & "'!" & "$K$3"),"") ->  | G44: =IF(COUNT(INDIRECT("'" & $B44 & "'!" & "$S$2"))=1,INDIRECT("'" & B44 & "'!" & "$s$2"),"") -> 
A45: 42 | B45: Carole Huygen | C45: =IF(COUNT(INDIRECT("'" & $B45 & "'!" & "$B$2"))=1,INDIRECT("'" & $B45 & "'!" & "$J$3"),"") -> NO | D45: =IF(COUNT(INDIRECT("'" & $B45 & "'!" & "$B$2"))=1,INDIRECT("'" & $B45 & "'!" & "$K$3"),"") ->  | G45: =IF(COUNT(INDIRECT("'" & $B45 & "'!" & "$S$2"))=1,INDIRECT("'" & B45 & "'!" & "$s$2"),"") -> 
A46: 43 | B46: Jan Askew | C46: =IF(COUNT(INDIRECT("'" & $B46 & "'!" & "$B$2"))=1,INDIRECT("'" & $B46 & "'!" & "$J$3"),"") -> NO | D46: =IF(COUNT(INDIRECT("'" & $B46 & "'!" & "$B$2"))=1,INDIRECT("'" & $B46 & "'!" & "$K$3"),"") ->  | G46: =IF(COUNT(INDIRECT("'" & $B46 & "'!" & "$S$2"))=1,INDIRECT("'" & B46 & "'!" & "$s$2"),"") -> 
A47: 44 | B47: Cindy McElrath | C47: =IF(COUNT(INDIRECT("'" & $B47 & "'!" & "$B$2"))=1,INDIRECT("'" & $B47 & "'!" & "$J$3"),"") -> NO | D47: =IF(COUNT(INDIRECT("'" & $B47 & "'!" & "$B$2"))=1,INDIRECT("'" & $B47 & "'!" & "$K$3"),"") ->  | G47: =IF(COUNT(INDIRECT("'" & $B47 & "'!" & "$S$2"))=1,INDIRECT("'" & B47 & "'!" & "$s$2"),"") -> 
A48: 45 | B48: Matt Clark | C48: =IF(COUNT(INDIRECT("'" & $B48 & "'!" & "$B$2"))=1,INDIRECT("'" & $B48 & "'!" & "$J$3"),"") -> NO | D48: =IF(COUNT(INDIRECT("'" & $B48 & "'!" & "$B$2"))=1,INDIRECT("'" & $B48 & "'!" & "$K$3"),"") ->  | G48: =IF(COUNT(INDIRECT("'" & $B48 & "'!" & "$S$2"))=1,INDIRECT("'" & B48 & "'!" & "$s$2"),"") -> 
A49: 46 | B49: Sara Nerius | C49: =IF(COUNT(INDIRECT("'" & $B49 & "'!" & "$B$2"))=1,INDIRECT("'" & $B49 & "'!" & "$J$3"),"") -> NO | D49: =IF(COUNT(INDIRECT("'" & $B49 & "'!" & "$B$2"))=1,INDIRECT("'" & $B49 & "'!" & "$K$3"),"") ->  | G49: =IF(COUNT(INDIRECT("'" & $B49 & "'!" & "$S$2"))=1,INDIRECT("'" & B49 & "'!" & "$s$2"),"") -> 
A50: 47 | B50: Tammy Kummer | C50: =IF(COUNT(INDIRECT("'" & $B50 & "'!" & "$B$2"))=1,INDIRECT("'" & $B50 & "'!" & "$J$3"),"") -> NO | D50: =IF(COUNT(INDIRECT("'" & $B50 & "'!" & "$B$2"))=1,INDIRECT("'" & $B50 & "'!" & "$K$3"),"") ->  | G50: =IF(COUNT(INDIRECT("'" & $B50 & "'!" & "$S$2"))=1,INDIRECT("'" & B50 & "'!" & "$s$2"),"") -> 
A51: 48 | B51: Brian Wibben | C51: =IF(COUNT(INDIRECT("'" & $B51 & "'!" & "$B$2"))=1,INDIRECT("'" & $B51 & "'!" & "$J$3"),"") -> NO | D51: =IF(COUNT(INDIRECT("'" & $B51 & "'!" & "$B$2"))=1,INDIRECT("'" & $B51 & "'!" & "$K$3"),"") ->  | G51: =IF(COUNT(INDIRECT("'" & $B51 & "'!" & "$S$2"))=1,INDIRECT("'" & B51 & "'!" & "$s$2"),"") -> 
A52: 49 | B52: Tyler Hunt | C52: =IF(COUNT(INDIRECT("'" & $B52 & "'!" & "$B$2"))=1,INDIRECT("'" & $B52 & "'!" & "$J$3"),"") -> NO | D52: =IF(COUNT(INDIRECT("'" & $B52 & "'!" & "$B$2"))=1,INDIRECT("'" & $B52 & "'!" & "$K$3"),"") ->  | G52: =IF(COUNT(INDIRECT("'" & $B52 & "'!" & "$S$2"))=1,INDIRECT("'" & B52 & "'!" & "$s$2"),"") -> 
A53: 50 | B53: Kaliq Cooper | C53: =IF(COUNT(INDIRECT("'" & $B53 & "'!" & "$B$2"))=1,INDIRECT("'" & $B53 & "'!" & "$J$3"),"") -> NO | D53: =IF(COUNT(INDIRECT("'" & $B53 & "'!" & "$B$2"))=1,INDIRECT("'" & $B53 & "'!" & "$K$3"),"") ->  | G53: =IF(COUNT(INDIRECT("'" & $B53 & "'!" & "$S$2"))=1,INDIRECT("'" & B53 & "'!" & "$s$2"),"") -> 
A54: 51 | B54: Victor Carreno | C54: =IF(COUNT(INDIRECT("'" & $B54 & "'!" & "$B$2"))=1,INDIRECT("'" & $B54 & "'!" & "$J$3"),"") -> NO | D54: =IF(COUNT(INDIRECT("'" & $B54 & "'!" & "$B$2"))=1,INDIRECT("'" & $B54 & "'!" & "$K$3"),"") ->  | G54: =IF(COUNT(INDIRECT("'" & $B54 & "'!" & "$S$2"))=1,INDIRECT("'" & B54 & "'!" & "$s$2"),"") -> 
A55: 52 | B55: Alan Hernandez | C55: =IF(COUNT(INDIRECT("'" & $B55 & "'!" & "$B$2"))=1,INDIRECT("'" & $B55 & "'!" & "$J$3"),"") -> NO | D55: =IF(COUNT(INDIRECT("'" & $B55 & "'!" & "$B$2"))=1,INDIRECT("'" & $B55 & "'!" & "$K$3"),"") ->  | G55: =IF(COUNT(INDIRECT("'" & $B55 & "'!" & "$S$2"))=1,INDIRECT("'" & B55 & "'!" & "$s$2"),"") -> 
A56: 53 | B56: Carlos Mayfield | C56: =IF(COUNT(INDIRECT("'" & $B56 & "'!" & "$B$2"))=1,INDIRECT("'" & $B56 & "'!" & "$J$3"),"") -> NO | D56: =IF(COUNT(INDIRECT("'" & $B56 & "'!" & "$B$2"))=1,INDIRECT("'" & $B56 & "'!" & "$K$3"),"") ->  | G56: =IF(COUNT(INDIRECT("'" & $B56 & "'!" & "$S$2"))=1,INDIRECT("'" & B56 & "'!" & "$s$2"),"") -> 
A57: 54 | B57: Dorian Hahs | C57: =IF(COUNT(INDIRECT("'" & $B57 & "'!" & "$B$2"))=1,INDIRECT("'" & $B57 & "'!" & "$J$3"),"") -> NO | D57: =IF(COUNT(INDIRECT("'" & $B57 & "'!" & "$B$2"))=1,INDIRECT("'" & $B57 & "'!" & "$K$3"),"") ->  | G57: =IF(COUNT(INDIRECT("'" & $B57 & "'!" & "$S$2"))=1,INDIRECT("'" & B57 & "'!" & "$s$2"),"") -> 
A58: 55 | B58: Devi Sharma | C58: =IF(COUNT(INDIRECT("'" & $B58 & "'!" & "$B$2"))=1,INDIRECT("'" & $B58 & "'!" & "$J$3"),"") -> NO | D58: =IF(COUNT(INDIRECT("'" & $B58 & "'!" & "$B$2"))=1,INDIRECT("'" & $B58 & "'!" & "$K$3"),"") ->  | G58: =IF(COUNT(INDIRECT("'" & $B58 & "'!" & "$S$2"))=1,INDIRECT("'" & B58 & "'!" & "$s$2"),"") -> 
A59: 56 | B59: Susan Gabler | C59: =IF(COUNT(INDIRECT("'" & $B59 & "'!" & "$B$2"))=1,INDIRECT("'" & $B59 & "'!" & "$J$3"),"") -> NO | D59: =IF(COUNT(INDIRECT("'" & $B59 & "'!" & "$B$2"))=1,INDIRECT("'" & $B59 & "'!" & "$K$3"),"") ->  | G59: =IF(COUNT(INDIRECT("'" & $B59 & "'!" & "$S$2"))=1,INDIRECT("'" & B59 & "'!" & "$s$2"),"") -> 
A60: 57 | B60: Amy West | C60: =IF(COUNT(INDIRECT("'" & $B60 & "'!" & "$B$2"))=1,INDIRECT("'" & $B60 & "'!" & "$J$3"),"") -> NO | D60: =IF(COUNT(INDIRECT("'" & $B60 & "'!" & "$B$2"))=1,INDIRECT("'" & $B60 & "'!" & "$K$3"),"") ->  | F60: YES | G60: =IF(COUNT(INDIRECT("'" & $B60 & "'!" & "$S$2"))=1,INDIRECT("'" & B60 & "'!" & "$s$2"),"") -> 8
A61: 58 | B61: Ginny Ruhl | C61: =IF(COUNT(INDIRECT("'" & $B61 & "'!" & "$B$2"))=1,INDIRECT("'" & $B61 & "'!" & "$J$3"),"") -> NO | D61: =IF(COUNT(INDIRECT("'" & $B61 & "'!" & "$B$2"))=1,INDIRECT("'" & $B61 & "'!" & "$K$3"),"") ->  | F61: YES | G61: =IF(COUNT(INDIRECT("'" & $B61 & "'!" & "$S$2"))=1,INDIRECT("'" & B61 & "'!" & "$s$2"),"") -> 28
A62: 59 | B62: Alisha Gregg | C62: =IF(COUNT(INDIRECT("'" & $B62 & "'!" & "$B$2"))=1,INDIRECT("'" & $B62 & "'!" & "$J$3"),"") -> NO | D62: =IF(COUNT(INDIRECT("'" & $B62 & "'!" & "$B$2"))=1,INDIRECT("'" & $B62 & "'!" & "$K$3"),"") ->  | G62: =IF(COUNT(INDIRECT("'" & $B62 & "'!" & "$S$2"))=1,INDIRECT("'" & B62 & "'!" & "$s$2"),"") -> 
A63: 60 | B63: Amanda Jones | C63: =IF(COUNT(INDIRECT("'" & $B63 & "'!" & "$B$2"))=1,INDIRECT("'" & $B63 & "'!" & "$J$3"),"") -> NO | D63: =IF(COUNT(INDIRECT("'" & $B63 & "'!" & "$B$2"))=1,INDIRECT("'" & $B63 & "'!" & "$K$3"),"") ->  | G63: =IF(COUNT(INDIRECT("'" & $B63 & "'!" & "$S$2"))=1,INDIRECT("'" & B63 & "'!" & "$s$2"),"") -> 
A64: 61 | B64: Kyle Martin | C64: =IF(COUNT(INDIRECT("'" & $B64 & "'!" & "$B$2"))=1,INDIRECT("'" & $B64 & "'!" & "$J$3"),"") -> YES | D64: =IF(COUNT(INDIRECT("'" & $B64 & "'!" & "$B$2"))=1,INDIRECT("'" & $B64 & "'!" & "$K$3"),"") -> Good | G64: =IF(COUNT(INDIRECT("'" & $B64 & "'!" & "$S$2"))=1,INDIRECT("'" & B64 & "'!" & "$s$2"),"") -> 
A65: 62 | B65: Daniel Peake | C65: =IF(COUNT(INDIRECT("'" & $B65 & "'!" & "$B$2"))=1,INDIRECT("'" & $B65 & "'!" & "$J$3"),"") -> NO | D65: =IF(COUNT(INDIRECT("'" & $B65 & "'!" & "$B$2"))=1,INDIRECT("'" & $B65 & "'!" & "$K$3"),"") ->  | G65: =IF(COUNT(INDIRECT("'" & $B65 & "'!" & "$S$2"))=1,INDIRECT("'" & B65 & "'!" & "$s$2"),"") -> 
A66: 63 | B66: Joey Rodrigueez | C66: =IF(COUNT(INDIRECT("'" & $B66 & "'!" & "$B$2"))=1,INDIRECT("'" & $B66 & "'!" & "$J$3"),"") -> NO | D66: =IF(COUNT(INDIRECT("'" & $B66 & "'!" & "$B$2"))=1,INDIRECT("'" & $B66 & "'!" & "$K$3"),"") ->  | G66: =IF(COUNT(INDIRECT("'" & $B66 & "'!" & "$S$2"))=1,INDIRECT("'" & B66 & "'!" & "$s$2"),"") -> 
A67: 64 | B67: Bryce Johnson | C67: =IF(COUNT(INDIRECT("'" & $B67 & "'!" & "$B$2"))=1,INDIRECT("'" & $B67 & "'!" & "$J$3"),"") -> NO | D67: =IF(COUNT(INDIRECT("'" & $B67 & "'!" & "$B$2"))=1,INDIRECT("'" & $B67 & "'!" & "$K$3"),"") ->  | G67: =IF(COUNT(INDIRECT("'" & $B67 & "'!" & "$S$2"))=1,INDIRECT("'" & B67 & "'!" & "$s$2"),"") -> 
A68: 65 | B68: Mike Humphry | C68: =IF(COUNT(INDIRECT("'" & $B68 & "'!" & "$B$2"))=1,INDIRECT("'" & $B68 & "'!" & "$J$3"),"") -> NO | D68: =IF(COUNT(INDIRECT("'" & $B68 & "'!" & "$B$2"))=1,INDIRECT("'" & $B68 & "'!" & "$K$3"),"") ->  | G68: =IF(COUNT(INDIRECT("'" & $B68 & "'!" & "$S$2"))=1,INDIRECT("'" & B68 & "'!" & "$s$2"),"") -> 
A69: 66 | B69: Michael Humphry | C69: =IF(COUNT(INDIRECT("'" & $B69 & "'!" & "$B$2"))=1,INDIRECT("'" & $B69 & "'!" & "$J$3"),"") -> NO | D69: =IF(COUNT(INDIRECT("'" & $B69 & "'!" & "$B$2"))=1,INDIRECT("'" & $B69 & "'!" & "$K$3"),"") ->  | G69: =IF(COUNT(INDIRECT("'" & $B69 & "'!" & "$S$2"))=1,INDIRECT("'" & B69 & "'!" & "$s$2"),"") -> 
A70: 67 | B70: Russ Perkins | C70: =IF(COUNT(INDIRECT("'" & $B70 & "'!" & "$B$2"))=1,INDIRECT("'" & $B70 & "'!" & "$J$3"),"") -> NO | D70: =IF(COUNT(INDIRECT("'" & $B70 & "'!" & "$B$2"))=1,INDIRECT("'" & $B70 & "'!" & "$K$3"),"") ->  | F70: =IF(COUNT(INDIRECT("'" & B70 & "'!" & "$S$2"))=1,"YES","") ->  | G70: =IF(COUNT(INDIRECT("'" & $B70 & "'!" & "$S$2"))=1,INDIRECT("'" & B70 & "'!" & "$s$2"),"") -> 
A71: 68 | C71: =IF(COUNT(INDIRECT("'" & $B71 & "'!" & "$B$2"))=1,INDIRECT("'" & $B71 & "'!" & "$J$3"),"") ->  | D71: =IF(COUNT(INDIRECT("'" & $B71 & "'!" & "$B$2"))=1,INDIRECT("'" & $B71 & "'!" & "$K$3"),"") ->  | G71: =IF(COUNT(INDIRECT("'" & $B71 & "'!" & "$S$2"))=1,INDIRECT("'" & B71 & "'!" & "$s$2"),"") -> 
A72: 69 | C72: =IF(COUNT(INDIRECT("'" & $B72 & "'!" & "$B$2"))=1,INDIRECT("'" & $B72 & "'!" & "$J$3"),"") ->  | D72: =IF(COUNT(INDIRECT("'" & $B72 & "'!" & "$B$2"))=1,INDIRECT("'" & $B72 & "'!" & "$K$3"),"") ->  | G72: =IF(COUNT(INDIRECT("'" & $B72 & "'!" & "$S$2"))=1,INDIRECT("'" & B72 & "'!" & "$s$2"),"") -> 
A73: 70 | C73: =IF(COUNT(INDIRECT("'" & $B73 & "'!" & "$B$2"))=1,INDIRECT("'" & $B73 & "'!" & "$J$3"),"") ->  | D73: =IF(COUNT(INDIRECT("'" & $B73 & "'!" & "$B$2"))=1,INDIRECT("'" & $B73 & "'!" & "$K$3"),"") ->  | G73: =IF(COUNT(INDIRECT("'" & $B73 & "'!" & "$S$2"))=1,INDIRECT("'" & B73 & "'!" & "$s$2"),"") -> 
C74: =COUNTIF(C4:C73,"YES") -> 10 | F74: =COUNTIF(F4:F73,"YES") -> 17

Sheet UTL2_MA
B1: Edit or Add names only in the UTL2_PA sheet
B2: Merit Awards-->: | C2: 125 G | D2: 150 G | E2: 175 G | F2: 200 G | G2: 225 G | H2: 250 G | I2: 275 G | J2: 75 OG | K2: 300 S | L2: 400 S | M2: 500 S | N2: 600 S | O2: 700 S | P2: 140 OS
B3: Name: | C3: week # | D3: week # | E3: week # | F3: week # | G3: week # | H3: week # | I3: week # | J3: week # | K3: week # | L3: week # | M3: week # | N3: week # | O3: week # | P3: week #
B4: Name must match the sheet name: | Q4: Add other awards below
A5: 1 | B5: =IF(UTL2_PA!$B4=0,"",UTL2_PA!$B4) -> Peter Tran | C5: =IF(COUNT(INDIRECT("'" & $B5 & "'!" & "$B$2"))=1,INDIRECT("'" & $B5 & "'!" & "$C$73"),"") ->  | D5: =IF(COUNT(INDIRECT("'" & $B5 & "'!" & "$B$2"))=1,INDIRECT("'" & $B5 & "'!" & "$D$73"),"") ->  | E5: =IF(COUNT(INDIRECT("'" & $B5 & "'!" & "$B$2"))=1,INDIRECT("'" & $B5 & "'!" & "$E$73"),"") ->  | F5: =IF(COUNT(INDIRECT("'" & $B5 & "'!" & "$B$2"))=1,INDIRECT("'" & $B5 & "'!" & "$F$73"),"") ->  | G5: =IF(COUNT(INDIRECT("'" & $B5 & "'!" & "$B$2"))=1,INDIRECT("'" & $B5 & "'!" & "$G$73"),"") ->  | H5: =IF(COUNT(INDIRECT("'" & $B5 & "'!" & "$B$2"))=1,INDIRECT("'" & $B5 & "'!" & "$I$73"),"") ->  | I5: =IF(COUNT(INDIRECT("'" & $B5 & "'!" & "$B$2"))=1,INDIRECT("'" & $B5 & "'!" & "$J$73"),"") ->  | J5: =IF(COUNT(INDIRECT("'" & $B5 & "'!" & "$B$2"))=1,INDIRECT("'" & $B5 & "'!" & "$K$73"),"") ->  | K5: =IF(COUNT(INDIRECT("'" & $B5 & "'!" & "$B$2"))=1,INDIRECT("'" & $B5 & "'!" & "$M$73"),"") ->  | L5: =IF(COUNT(INDIRECT("'" & $B5 & "'!" & "$B$2"))=1,INDIRECT("'" & $B5 & "'!" & "$N$73"),"") ->  | M5: =IF(COUNT(INDIRECT("'" & $B5 & "'!" & "$B$2"))=1,INDIRECT("'" & $B5 & "'!" & "$O$73"),"") ->  | N5: =IF(COUNT(INDIRECT("'" & $B5 & "'!" & "$B$2"))=1,INDIRECT("'" & $B5 & "'!" & "$R$73"),"") ->  | O5: =IF(COUNT(INDIRECT("'" & $B5 & "'!" & "$B$2"))=1,INDIRECT("'" & $B5 & "'!" & "$S$73"),"") ->  | P5: =IF(COUNT(INDIRECT("'" & $B5 & "'!" & "$B$2"))=1,INDIRECT("'" & $B5 & "'!" & "$T$73"),"") ->  | Q5: e.g. All Spare game
A6: 2 | B6: =IF(UTL2_PA!$B5=0,"",UTL2_PA!$B5) -> Phil Tran | C6: =IF(COUNT(INDIRECT("'" & $B6 & "'!" & "$B$2"))=1,INDIRECT("'" & $B6 & "'!" & "$C$73"),"") ->  | D6: =IF(COUNT(INDIRECT("'" & $B6 & "'!" & "$B$2"))=1,INDIRECT("'" & $B6 & "'!" & "$D$73"),"") ->  | E6: =IF(COUNT(INDIRECT("'" & $B6 & "'!" & "$B$2"))=1,INDIRECT("'" & $B6 & "'!" & "$E$73"),"") -> 5 | F6: =IF(COUNT(INDIRECT("'" & $B6 & "'!" & "$S$2"))=1,INDIRECT("'" & B6 & "'!" & "$s$2"),"") -> 5 | G6: =IF(COUNT(INDIRECT("'" & $B6 & "'!" & "$B$2"))=1,INDIRECT("'" & $B6 & "'!" & "$G$73"),"") ->  | H6: =IF(COUNT(INDIRECT("'" & $B6 & "'!" & "$B$2"))=1,INDIRECT("'" & $B6 & "'!" & "$I$73"),"") ->  | I6: =IF(COUNT(INDIRECT("'" & $B6 & "'!" & "$B$2"))=1,INDIRECT("'" & $B6 & "'!" & "$J$73"),"") ->  | J6: =IF(COUNT(INDIRECT("'" & $B6 & "'!" & "$B$2"))=1,INDIRECT("'" & $B6 & "'!" & "$K$73"),"") -> 13 | K6: =IF(COUNT(INDIRECT("'" & $B6 & "'!" & "$B$2"))=1,INDIRECT("'" & $B6 & "'!" & "$M$73"),"") ->  | L6: =IF(COUNT(INDIRECT("'" & $B6 & "'!" & "$B$2"))=1,INDIRECT("'" & $B6 & "'!" & "$N$73"),"") ->  | M6: =IF(COUNT(INDIRECT("'" & $B6 & "'!" & "$B$2"))=1,INDIRECT("'" & $B6 & "'!" & "$O$73"),"") -> 5 | N6: =IF(COUNT(INDIRECT("'" & $B6 & "'!" & "$B$2"))=1,INDIRECT("'" & $B6 & "'!" & "$R$73"),"") -> 27 | O6: =IF(COUNT(INDIRECT("'" & $B6 & "'!" & "$B$2"))=1,INDIRECT("'" & $B6 & "'!" & "$S$73"),"") ->  | P6: =IF(COUNT(INDIRECT("'" & $B6 & "'!" & "$B$2"))=1,INDIRECT("'" & $B6 & "'!" & "$T$73"),"") -> 5 | Q6: e.g. Dutch 200 game
A7: 3 | B7: =IF(UTL2_PA!$B7=0,"",UTL2_PA!$B7) -> Jenna Perkins | C7: =IF(COUNT(INDIRECT("'" & $B7 & "'!" & "$B$2"))=1,INDIRECT("'" & $B7 & "'!" & "$C$73"),"") ->  | D7: =IF(COUNT(INDIRECT("'" & $B7 & "'!" & "$B$2"))=1,INDIRECT("'" & $B7 & "'!" & "$D$73"),"") ->  | E7: =IF(COUNT(INDIRECT("'" & $B7 & "'!" & "$B$2"))=1,INDIRECT("'" & $B7 & "'!" & "$E$73"),"") ->  | F7: =IF(COUNT(INDIRECT("'" & $B7 & "'!" & "$S$2"))=1,INDIRECT("'" & B7 & "'!" & "$s$2"),"") ->  | G7: =IF(COUNT(INDIRECT("'" & $B7 & "'!" & "$B$2"))=1,INDIRECT("'" & $B7 & "'!" & "$G$73"),"") ->  | H7: =IF(COUNT(INDIRECT("'" & $B7 & "'!" & "$B$2"))=1,INDIRECT("'" & $B7 & "'!" & "$I$73"),"") ->  | I7: =IF(COUNT(INDIRECT("'" & $B7 & "'!" & "$B$2"))=1,INDIRECT("'" & $B7 & "'!" & "$J$73"),"") ->  | J7: =IF(COUNT(INDIRECT("'" & $B7 & "'!" & "$B$2"))=1,INDIRECT("'" & $B7 & "'!" & "$K$73"),"") ->  | K7: =IF(COUNT(INDIRECT("'" & $B7 & "'!" & "$B$2"))=1,INDIRECT("'" & $B7 & "'!" & "$M$73"),"") ->  | L7: =IF(COUNT(INDIRECT("'" & $B7 & "'!" & "$B$2"))=1,INDIRECT("'" & $B7 & "'!" & "$N$73"),"") ->  | M7: =IF(COUNT(INDIRECT("'" & $B7 & "'!" & "$B$2"))=1,INDIRECT("'" & $B7 & "'!" & "$O$73"),"") ->  | N7: =IF(COUNT(INDIRECT("'" & $B7 & "'!" & "$B$2"))=1,INDIRECT("'" & $B7 & "'!" & "$R$73"),"") ->  | O7: =IF(COUNT(INDIRECT("'" & $B7 & "'!" & "$B$2"))=1,INDIRECT("'" & $B7 & "'!" & "$S$73"),"") ->  | P7: =IF(COUNT(INDIRECT("'" & $B7 & "'!" & "$B$2"))=1,INDIRECT("'" & $B7 & "'!" & "$T$73"),"") -> 
A8: 4 | B8: =IF(UTL2_PA!$B8=0,"",UTL2_PA!$B8) -> Kyle Kent | C8: =IF(COUNT(INDIRECT("'" & $B8 & "'!" & "$B$2"))=1,INDIRECT("'" & $B8 & "'!" & "$C$73"),"") ->  | D8: =IF(COUNT(INDIRECT("'" & $B8 & "'!" & "$B$2"))=1,INDIRECT("'" & $B8 & "'!" & "$D$73"),"") ->  | E8: =IF(COUNT(INDIRECT("'" & $B8 & "'!" & "$B$2"))=1,INDIRECT("'" & $B8 & "'!" & "$E$73"),"") ->  | F8: =IF(COUNT(INDIRECT("'" & $B8 & "'!" & "$S$2"))=1,INDIRECT("'" & B8 & "'!" & "$s$2"),"") ->  | G8: =IF(COUNT(INDIRECT("'" & $B8 & "'!" & "$B$2"))=1,INDIRECT("'" & $B8 & "'!" & "$G$73"),"") -> 11 | H8: =IF(COUNT(INDIRECT("'" & $B8 & "'!" & "$B$2"))=1,INDIRECT("'" & $B8 & "'!" & "$I$73"),"") ->  | I8: =IF(COUNT(INDIRECT("'" & $B8 & "'!" & "$B$2"))=1,INDIRECT("'" & $B8 & "'!" & "$J$73"),"") ->  | J8: =IF(COUNT(INDIRECT("'" & $B8 & "'!" & "$B$2"))=1,INDIRECT("'" & $B8 & "'!" & "$K$73"),"") ->  | K8: =IF(COUNT(INDIRECT("'" & $B8 & "'!" & "$B$2"))=1,INDIRECT("'" & $B8 & "'!" & "$M$73"),"") ->  | L8: =IF(COUNT(INDIRECT("'" & $B8 & "'!" & "$B$2"))=1,INDIRECT("'" & $B8 & "'!" & "$N$73"),"") ->  | M8: =IF(COUNT(INDIRECT("'" & $B8 & "'!" & "$B$2"))=1,INDIRECT("'" & $B8 & "'!" & "$O$73"),"") ->  | N8: =IF(COUNT(INDIRECT("'" & $B8 & "'!" & "$B$2"))=1,INDIRECT("'" & $B8 & "'!" & "$R$73"),"") ->  | O8: =IF(COUNT(INDIRECT("'" & $B8 & "'!" & "$B$2"))=1,INDIRECT("'" & $B8 & "'!" & "$S$73"),"") ->  | P8: =IF(COUNT(INDIRECT("'" & $B8 & "'!" & "$B$2"))=1,INDIRECT("'" & $B8 & "'!" & "$T$73"),"") -> 
A9: 5 | B9: =IF(UTL2_PA!$B9=0,"",UTL2_PA!$B9) -> Jasmine Brady | C9: =IF(COUNT(INDIRECT("'" & $B9 & "'!" & "$B$2"))=1,INDIRECT("'" & $B9 & "'!" & "$C$73"),"") ->  | D9: =IF(COUNT(INDIRECT("'" & $B9 & "'!" & "$B$2"))=1,INDIRECT("'" & $B9 & "'!" & "$D$73"),"") ->  | E9: =IF(COUNT(INDIRECT("'" & $B9 & "'!" & "$B$2"))=1,INDIRECT("'" & $B9 & "'!" & "$E$73"),"") ->  | F9: =IF(COUNT(INDIRECT("'" & $B9 & "'!" & "$S$2"))=1,INDIRECT("'" & B9 & "'!" & "$s$2"),"") -> 17 | G9: =IF(COUNT(INDIRECT("'" & $B9 & "'!" & "$B$2"))=1,INDIRECT("'" & $B9 & "'!" & "$G$73"),"") ->  | H9: =IF(COUNT(INDIRECT("'" & $B9 & "'!" & "$B$2"))=1,INDIRECT("'" & $B9 & "'!" & "$I$73"),"") ->  | I9: =IF(COUNT(INDIRECT("'" & $B9 & "'!" & "$B$2"))=1,INDIRECT("'" & $B9 & "'!" & "$J$73"),"") ->  | J9: =IF(COUNT(INDIRECT("'" & $B9 & "'!" & "$B$2"))=1,INDIRECT("'" & $B9 & "'!" & "$K$73"),"") ->  | K9: =IF(COUNT(INDIRECT("'" & $B9 & "'!" & "$B$2"))=1,INDIRECT("'" & $B9 & "'!" & "$M$73"),"") ->  | L9: =IF(COUNT(INDIRECT("'" & $B9 & "'!" & "$B$2"))=1,INDIRECT("'" & $B9 & "'!" & "$N$73"),"") ->  | M9: =IF(COUNT(INDIRECT("'" & $B9 & "'!" & "$B$2"))=1,INDIRECT("'" & $B9 & "'!" & "$O$73"),"") ->  | N9: =IF(COUNT(INDIRECT("'" & $B9 & "'!" & "$B$2"))=1,INDIRECT("'" & $B9 & "'!" & "$R$73"),"") ->  | O9: =IF(COUNT(INDIRECT("'" & $B9 & "'!" & "$B$2"))=1,INDIRECT("'" & $B9 & "'!" & "$S$73"),"") ->  | P9: =IF(COUNT(INDIRECT("'" & $B9 & "'!" & "$B$2"))=1,INDIRECT("'" & $B9 & "'!" & "$T$73"),"") -> 
A10: 6 | B10: =IF(UTL2_PA!$B10=0,"",UTL2_PA!$B10) -> Allen Watts | C10: =IF(COUNT(INDIRECT("'" & $B10 & "'!" & "$B$2"))=1,INDIRECT("'" & $B10 & "'!" & "$C$73"),"") ->  | D10: =IF(COUNT(INDIRECT("'" & $B10 & "'!" & "$B$2"))=1,INDIRECT("'" & $B10 & "'!" & "$D$73"),"") -> 10 | E10: =IF(COUNT(INDIRECT("'" & $B10 & "'!" & "$B$2"))=1,INDIRECT("'" & $B10 & "'!" & "$E$73"),"") -> 30 | F10: =IF(COUNT(INDIRECT("'" & $B10 & "'!" & "$S$2"))=1,INDIRECT("'" & B10 & "'!" & "$s$2"),"") ->  | G10: =IF(COUNT(INDIRECT("'" & $B10 & "'!" & "$B$2"))=1,INDIRECT("'" & $B10 & "'!" & "$G$73"),"") ->  | H10: =IF(COUNT(INDIRECT("'" & $B10 & "'!" & "$B$2"))=1,INDIRECT("'" & $B10 & "'!" & "$I$73"),"") ->  | I10: =IF(COUNT(INDIRECT("'" & $B10 & "'!" & "$B$2"))=1,INDIRECT("'" & $B10 & "'!" & "$J$73"),"") ->  | J10: =IF(COUNT(INDIRECT("'" & $B10 & "'!" & "$B$2"))=1,INDIRECT("'" & $B10 & "'!" & "$K$73"),"") -> 27 | K10: =IF(COUNT(INDIRECT("'" & $B10 & "'!" & "$B$2"))=1,INDIRECT("'" & $B10 & "'!" & "$M$73"),"") ->  | L10: =IF(COUNT(INDIRECT("'" & $B10 & "'!" & "$B$2"))=1,INDIRECT("'" & $B10 & "'!" & "$N$73"),"") ->  | M10: =IF(COUNT(INDIRECT("'" & $B10 & "'!" & "$B$2"))=1,INDIRECT("'" & $B10 & "'!" & "$O$73"),"") -> 27 | N10: =IF(COUNT(INDIRECT("'" & $B10 & "'!" & "$B$2"))=1,INDIRECT("'" & $B10 & "'!" & "$R$73"),"") ->  | O10: =IF(COUNT(INDIRECT("'" & $B10 & "'!" & "$B$2"))=1,INDIRECT("'" & $B10 & "'!" & "$S$73"),"") ->  | P10: =IF(COUNT(INDIRECT("'" & $B10 & "'!" & "$B$2"))=1,INDIRECT("'" & $B10 & "'!" & "$T$73"),"") -> 27
A11: 7 | B11: =IF(UTL2_PA!$B11=0,"",UTL2_PA!$B11) -> Earl King | C11: =IF(COUNT(INDIRECT("'" & $B11 & "'!" & "$B$2"))=1,INDIRECT("'" & $B11 & "'!" & "$C$73"),"") ->  | D11: =IF(COUNT(INDIRECT("'" & $B11 & "'!" & "$B$2"))=1,INDIRECT("'" & $B11 & "'!" & "$D$73"),"") ->  | E11: =IF(COUNT(INDIRECT("'" & $B11 & "'!" & "$B$2"))=1,INDIRECT("'" & $B11 & "'!" & "$E$73"),"") -> 9 | F11: =IF(COUNT(INDIRECT("'" & $B11 & "'!" & "$S$2"))=1,INDIRECT("'" & B11 & "'!" & "$s$2"),"") -> 11 | G11: =IF(COUNT(INDIRECT("'" & $B11 & "'!" & "$B$2"))=1,INDIRECT("'" & $B11 & "'!" & "$G$73"),"") ->  | H11: =IF(COUNT(INDIRECT("'" & $B11 & "'!" & "$B$2"))=1,INDIRECT("'" & $B11 & "'!" & "$I$73"),"") ->  | I11: =IF(COUNT(INDIRECT("'" & $B11 & "'!" & "$B$2"))=1,INDIRECT("'" & $B11 & "'!" & "$J$73"),"") ->  | J11: =IF(COUNT(INDIRECT("'" & $B11 & "'!" & "$B$2"))=1,INDIRECT("'" & $B11 & "'!" & "$K$73"),"") ->  | K11: =IF(COUNT(INDIRECT("'" & $B11 & "'!" & "$B$2"))=1,INDIRECT("'" & $B11 & "'!" & "$M$73"),"") ->  | L11: =IF(COUNT(INDIRECT("'" & $B11 & "'!" & "$B$2"))=1,INDIRECT("'" & $B11 & "'!" & "$N$73"),"") ->  | M11: =IF(COUNT(INDIRECT("'" & $B11 & "'!" & "$B$2"))=1,INDIRECT("'" & $B11 & "'!" & "$O$73"),"") -> 21 | N11: =IF(COUNT(INDIRECT("'" & $B11 & "'!" & "$B$2"))=1,INDIRECT("'" & $B11 & "'!" & "$R$73"),"") ->  | O11: =IF(COUNT(INDIRECT("'" & $B11 & "'!" & "$B$2"))=1,INDIRECT("'" & $B11 & "'!" & "$S$73"),"") ->  | P11: =IF(COUNT(INDIRECT("'" & $B11 & "'!" & "$B$2"))=1,INDIRECT("'" & $B11 & "'!" & "$T$73"),"") -> 
A12: 8 | B12: =IF(UTL2_PA!$B12=0,"",UTL2_PA!$B12) -> Tim Brady | C12: =IF(COUNT(INDIRECT("'" & $B12 & "'!" & "$B$2"))=1,INDIRECT("'" & $B12 & "'!" & "$C$73"),"") ->  | D12: =IF(COUNT(INDIRECT("'" & $B12 & "'!" & "$B$2"))=1,INDIRECT("'" & $B12 & "'!" & "$D$73"),"") ->  | E12: =IF(COUNT(INDIRECT("'" & $B12 & "'!" & "$B$2"))=1,INDIRECT("'" & $B12 & "'!" & "$E$73"),"") ->  | F12: =IF(COUNT(INDIRECT("'" & $B12 & "'!" & "$S$2"))=1,INDIRECT("'" & B12 & "'!" & "$s$2"),"") ->  | G12: =IF(COUNT(INDIRECT("'" & $B12 & "'!" & "$B$2"))=1,INDIRECT("'" & $B12 & "'!" & "$G$73"),"") -> 5 | H12: =IF(COUNT(INDIRECT("'" & $B12 & "'!" & "$B$2"))=1,INDIRECT("'" & $B12 & "'!" & "$I$73"),"") -> 13 | I12: =IF(COUNT(INDIRECT("'" & $B12 & "'!" & "$B$2"))=1,INDIRECT("'" & $B12 & "'!" & "$J$73"),"") ->  | J12: =IF(COUNT(INDIRECT("'" & $B12 & "'!" & "$B$2"))=1,INDIRECT("'" & $B12 & "'!" & "$K$73"),"") -> 13 | K12: =IF(COUNT(INDIRECT("'" & $B12 & "'!" & "$B$2"))=1,INDIRECT("'" & $B12 & "'!" & "$M$73"),"") ->  | L12: =IF(COUNT(INDIRECT("'" & $B12 & "'!" & "$B$2"))=1,INDIRECT("'" & $B12 & "'!" & "$N$73"),"") ->  | M12: =IF(COUNT(INDIRECT("'" & $B12 & "'!" & "$B$2"))=1,INDIRECT("'" & $B12 & "'!" & "$O$73"),"") ->  | N12: =IF(COUNT(INDIRECT("'" & $B12 & "'!" & "$B$2"))=1,INDIRECT("'" & $B12 & "'!" & "$R$73"),"") ->  | O12: =IF(COUNT(INDIRECT("'" & $B12 & "'!" & "$B$2"))=1,INDIRECT("'" & $B12 & "'!" & "$S$73"),"") ->  | P12: =IF(COUNT(INDIRECT("'" & $B12 & "'!" & "$B$2"))=1,INDIRECT("'" & $B12 & "'!" & "$T$73"),"") -> 
A13: 9 | B13: =IF(UTL2_PA!$B13=0,"",UTL2_PA!$B13) -> Tammy Lang | C13: =IF(COUNT(INDIRECT("'" & $B13 & "'!" & "$B$2"))=1,INDIRECT("'" & $B13 & "'!" & "$C$73"),"") ->  | D13: =IF(COUNT(INDIRECT("'" & $B13 & "'!" & "$B$2"))=1,INDIRECT("'" & $B13 & "'!" & "$D$73"),"") ->  | E13: =IF(COUNT(INDIRECT("'" & $B13 & "'!" & "$B$2"))=1,INDIRECT("'" & $B13 & "'!" & "$E$73"),"") -> 11 | F13: =IF(COUNT(INDIRECT("'" & $B13 & "'!" & "$S$2"))=1,INDIRECT("'" & B13 & "'!" & "$s$2"),"") ->  | G13: =IF(COUNT(INDIRECT("'" & $B13 & "'!" & "$B$2"))=1,INDIRECT("'" & $B13 & "'!" & "$G$73"),"") ->  | H13: =IF(COUNT(INDIRECT("'" & $B13 & "'!" & "$B$2"))=1,INDIRECT("'" & $B13 & "'!" & "$I$73"),"") ->  | I13: =IF(COUNT(INDIRECT("'" & $B13 & "'!" & "$B$2"))=1,INDIRECT("'" & $B13 & "'!" & "$J$73"),"") ->  | J13: =IF(COUNT(INDIRECT("'" & $B13 & "'!" & "$B$2"))=1,INDIRECT("'" & $B13 & "'!" & "$K$73"),"") -> 5 | K13: =IF(COUNT(INDIRECT("'" & $B13 & "'!" & "$B$2"))=1,INDIRECT("'" & $B13 & "'!" & "$M$73"),"") ->  | L13: =IF(COUNT(INDIRECT("'" & $B13 & "'!" & "$B$2"))=1,INDIRECT("'" & $B13 & "'!" & "$N$73"),"") ->  | M13: =IF(COUNT(INDIRECT("'" & $B13 & "'!" & "$B$2"))=1,INDIRECT("'" & $B13 & "'!" & "$O$73"),"") ->  | N13: =IF(COUNT(INDIRECT("'" & $B13 & "'!" & "$B$2"))=1,INDIRECT("'" & $B13 & "'!" & "$R$73"),"") ->  | O13: =IF(COUNT(INDIRECT("'" & $B13 & "'!" & "$B$2"))=1,INDIRECT("'" & $B13 & "'!" & "$S$73"),"") ->  | P13: =IF(COUNT(INDIRECT("'" & $B13 & "'!" & "$B$2"))=1,INDIRECT("'" & $B13 & "'!" & "$T$73"),"") -> 
A14: 10 | B14: =IF(UTL2_PA!$B14=0,"",UTL2_PA!$B14) -> Gregor Gonzales | C14: =IF(COUNT(INDIRECT("'" & $B14 & "'!" & "$B$2"))=1,INDIRECT("'" & $B14 & "'!" & "$C$73"),"") ->  | D14: =IF(COUNT(INDIRECT("'" & $B14 & "'!" & "$B$2"))=1,INDIRECT("'" & $B14 & "'!" & "$D$73"),"") ->  | E14: =IF(COUNT(INDIRECT("'" & $B14 & "'!" & "$B$2"))=1,INDIRECT("'" & $B14 & "'!" & "$E$73"),"") -> 7 | F14: =IF(COUNT(INDIRECT("'" & $B14 & "'!" & "$S$2"))=1,INDIRECT("'" & B14 & "'!" & "$s$2"),"") ->  | G14: =IF(COUNT(INDIRECT("'" & $B14 & "'!" & "$B$2"))=1,INDIRECT("'" & $B14 & "'!" & "$G$73"),"") ->  | H14: =IF(COUNT(INDIRECT("'" & $B14 & "'!" & "$B$2"))=1,INDIRECT("'" & $B14 & "'!" & "$I$73"),"") ->  | I14: =IF(COUNT(INDIRECT("'" & $B14 & "'!" & "$B$2"))=1,INDIRECT("'" & $B14 & "'!" & "$J$73"),"") ->  | J14: =IF(COUNT(INDIRECT("'" & $B14 & "'!" & "$B$2"))=1,INDIRECT("'" & $B14 & "'!" & "$K$73"),"") ->  | K14: =IF(COUNT(INDIRECT("'" & $B14 & "'!" & "$B$2"))=1,INDIRECT("'" & $B14 & "'!" & "$M$73"),"") ->  | L14: =IF(COUNT(INDIRECT("'" & $B14 & "'!" & "$B$2"))=1,INDIRECT("'" & $B14 & "'!" & "$N$73"),"") ->  | M14: =IF(COUNT(INDIRECT("'" & $B14 & "'!" & "$B$2"))=1,INDIRECT("'" & $B14 & "'!" & "$O$73"),"") ->  | N14: =IF(COUNT(INDIRECT("'" & $B14 & "'!" & "$B$2"))=1,INDIRECT("'" & $B14 & "'!" & "$R$73"),"") ->  | O14: =IF(COUNT(INDIRECT("'" & $B14 & "'!" & "$B$2"))=1,INDIRECT("'" & $B14 & "'!" & "$S$73"),"") ->  | P14: =IF(COUNT(INDIRECT("'" & $B14 & "'!" & "$B$2"))=1,INDIRECT("'" & $B14 & "'!" & "$T$73"),"") -> 
A15: 11 | B15: =IF(UTL2_PA!$B15=0,"",UTL2_PA!$B15) -> Greg Gonzales | C15: =IF(COUNT(INDIRECT("'" & $B15 & "'!" & "$B$2"))=1,INDIRECT("'" & $B15 & "'!" & "$C$73"),"") ->  | D15: =IF(COUNT(INDIRECT("'" & $B15 & "'!" & "$B$2"))=1,INDIRECT("'" & $B15 & "'!" & "$D$73"),"") ->  | E15: =IF(COUNT(INDIRECT("'" & $B15 & "'!" & "$B$2"))=1,INDIRECT("'" & $B15 & "'!" & "$E$73"),"") ->  | F15: =IF(COUNT(INDIRECT("'" & $B15 & "'!" & "$S$2"))=1,INDIRECT("'" & B15 & "'!" & "$s$2"),"") ->  | G15: =IF(COUNT(INDIRECT("'" & $B15 & "'!" & "$B$2"))=1,INDIRECT("'" & $B15 & "'!" & "$G$73"),"") -> 9 | H15: =IF(COUNT(INDIRECT("'" & $B15 & "'!" & "$B$2"))=1,INDIRECT("'" & $B15 & "'!" & "$I$73"),"") ->  | I15: =IF(COUNT(INDIRECT("'" & $B15 & "'!" & "$B$2"))=1,INDIRECT("'" & $B15 & "'!" & "$J$73"),"") -> 11 | J15: =IF(COUNT(INDIRECT("'" & $B15 & "'!" & "$B$2"))=1,INDIRECT("'" & $B15 & "'!" & "$K$73"),"") -> 11 | K15: =IF(COUNT(INDIRECT("'" & $B15 & "'!" & "$B$2"))=1,INDIRECT("'" & $B15 & "'!" & "$M$73"),"") ->  | L15: =IF(COUNT(INDIRECT("'" & $B15 & "'!" & "$B$2"))=1,INDIRECT("'" & $B15 & "'!" & "$N$73"),"") ->  | M15: =IF(COUNT(INDIRECT("'" & $B15 & "'!" & "$B$2"))=1,INDIRECT("'" & $B15 & "'!" & "$O$73"),"") ->  | N15: =IF(COUNT(INDIRECT("'" & $B15 & "'!" & "$B$2"))=1,INDIRECT("'" & $B15 & "'!" & "$R$73"),"") ->  | O15: =IF(COUNT(INDIRECT("'" & $B15 & "'!" & "$B$2"))=1,INDIRECT("'" & $B15 & "'!" & "$S$73"),"") ->  | P15: =IF(COUNT(INDIRECT("'" & $B15 & "'!" & "$B$2"))=1,INDIRECT("'" & $B15 & "'!" & "$T$73"),"") -> 
A16: 12 | B16: =IF(UTL2_PA!$B16=0,"",UTL2_PA!$B16) -> Mike Doyel | C16: =IF(COUNT(INDIRECT("'" & $B16 & "'!" & "$B$2"))=1,INDIRECT("'" & $B16 & "'!" & "$C$73"),"") ->  | D16: =IF(COUNT(INDIRECT("'" & $B16 & "'!" & "$B$2"))=1,INDIRECT("'" & $B16 & "'!" & "$D$73"),"") ->  | E16: =IF(COUNT(INDIRECT("'" & $B16 & "'!" & "$B$2"))=1,INDIRECT("'" & $B16 & "'!" & "$E$73"),"") ->  | F16: =IF(COUNT(INDIRECT("'" & $B16 & "'!" & "$S$2"))=1,INDIRECT("'" & B16 & "'!" & "$s$2"),"") -> 12 | G16: =IF(COUNT(INDIRECT("'" & $B16 & "'!" & "$B$2"))=1,INDIRECT("'" & $B16 & "'!" & "$G$73"),"") ->  | H16: =IF(COUNT(INDIRECT("'" & $B16 & "'!" & "$B$2"))=1,INDIRECT("'" & $B16 & "'!" & "$I$73"),"") ->  | I16: =IF(COUNT(INDIRECT("'" & $B16 & "'!" & "$B$2"))=1,INDIRECT("'" & $B16 & "'!" & "$J$73"),"") ->  | J16: =IF(COUNT(INDIRECT("'" & $B16 & "'!" & "$B$2"))=1,INDIRECT("'" & $B16 & "'!" & "$K$73"),"") ->  | K16: =IF(COUNT(INDIRECT("'" & $B16 & "'!" & "$B$2"))=1,INDIRECT("'" & $B16 & "'!" & "$M$73"),"") ->  | L16: =IF(COUNT(INDIRECT("'" & $B16 & "'!" & "$B$2"))=1,INDIRECT("'" & $B16 & "'!" & "$N$73"),"") ->  | M16: =IF(COUNT(INDIRECT("'" & $B16 & "'!" & "$B$2"))=1,INDIRECT("'" & $B16 & "'!" & "$O$73"),"") ->  | N16: =IF(COUNT(INDIRECT("'" & $B16 & "'!" & "$B$2"))=1,INDIRECT("'" & $B16 & "'!" & "$R$73"),"") ->  | O16: =IF(COUNT(INDIRECT("'" & $B16 & "'!" & "$B$2"))=1,INDIRECT("'" & $B16 & "'!" & "$S$73"),"") ->  | P16: =IF(COUNT(INDIRECT("'" & $B16 & "'!" & "$B$2"))=1,INDIRECT("'" & $B16 & "'!" & "$T$73"),"") -> 
A17: 13 | B17: =IF(UTL2_PA!$B17=0,"",UTL2_PA!$B17) -> Brandon Souvannasay | C17: =IF(COUNT(INDIRECT("'" & $B17 & "'!" & "$B$2"))=1,INDIRECT("'" & $B17 & "'!" & "$C$73"),"") ->  | D17: =IF(COUNT(INDIRECT("'" & $B17 & "'!" & "$B$2"))=1,INDIRECT("'" & $B17 & "'!" & "$D$73"),"") ->  | E17: =IF(COUNT(INDIRECT("'" & $B17 & "'!" & "$B$2"))=1,INDIRECT("'" & $B17 & "'!" & "$E$73"),"") ->  | F17: =IF(COUNT(INDIRECT("'" & $B17 & "'!" & "$S$2"))=1,INDIRECT("'" & B17 & "'!" & "$s$2"),"") ->  | G17: =IF(COUNT(INDIRECT("'" & $B17 & "'!" & "$B$2"))=1,INDIRECT("'" & $B17 & "'!" & "$G$73"),"") ->  | H17: =IF(COUNT(INDIRECT("'" & $B17 & "'!" & "$B$2"))=1,INDIRECT("'" & $B17 & "'!" & "$I$73"),"") ->  | I17: =IF(COUNT(INDIRECT("'" & $B17 & "'!" & "$B$2"))=1,INDIRECT("'" & $B17 & "'!" & "$J$73"),"") ->  | J17: =IF(COUNT(INDIRECT("'" & $B17 & "'!" & "$B$2"))=1,INDIRECT("'" & $B17 & "'!" & "$K$73"),"") ->  | K17: =IF(COUNT(INDIRECT("'" & $B17 & "'!" & "$B$2"))=1,INDIRECT("'" & $B17 & "'!" & "$M$73"),"") ->  | L17: =IF(COUNT(INDIRECT("'" & $B17 & "'!" & "$B$2"))=1,INDIRECT("'" & $B17 & "'!" & "$N$73"),"") ->  | M17: =IF(COUNT(INDIRECT("'" & $B17 & "'!" & "$B$2"))=1,INDIRECT("'" & $B17 & "'!" & "$O$73"),"") ->  | N17: =IF(COUNT(INDIRECT("'" & $B17 & "'!" & "$B$2"))=1,INDIRECT("'" & $B17 & "'!" & "$R$73"),"") ->  | O17: =IF(COUNT(INDIRECT("'" & $B17 & "'!" & "$B$2"))=1,INDIRECT("'" & $B17 & "'!" & "$S$73"),"") ->  | P17: =IF(COUNT(INDIRECT("'" & $B17 & "'!" & "$B$2"))=1,INDIRECT("'" & $B17 & "'!" & "$T$73"),"") -> 
A18: 14 | B18: =IF(UTL2_PA!$B18=0,"",UTL2_PA!$B18) -> LaDainian Kuok | C18: =IF(COUNT(INDIRECT("'" & $B18 & "'!" & "$B$2"))=1,INDIRECT("'" & $B18 & "'!" & "$C$73"),"") ->  | D18: =IF(COUNT(INDIRECT("'" & $B18 & "'!" & "$B$2"))=1,INDIRECT("'" & $B18 & "'!" & "$D$73"),"") ->  | E18: =IF(COUNT(INDIRECT("'" & $B18 & "'!" & "$B$2"))=1,INDIRECT("'" & $B18 & "'!" & "$E$73"),"") ->  | F18: =IF(COUNT(INDIRECT("'" & $B18 & "'!" & "$S$2"))=1,INDIRECT("'" & B18 & "'!" & "$s$2"),"") -> 25 | G18: =IF(COUNT(INDIRECT("'" & $B18 & "'!" & "$B$2"))=1,INDIRECT("'" & $B18 & "'!" & "$G$73"),"") -> 19 | H18: =IF(COUNT(INDIRECT("'" & $B18 & "'!" & "$B$2"))=1,INDIRECT("'" & $B18 & "'!" & "$I$73"),"") -> 26 | I18: =IF(COUNT(INDIRECT("'" & $B18 & "'!" & "$B$2"))=1,INDIRECT("'" & $B18 & "'!" & "$J$73"),"") ->  | J18: =IF(COUNT(INDIRECT("'" & $B18 & "'!" & "$B$2"))=1,INDIRECT("'" & $B18 & "'!" & "$K$73"),"") -> 26 | K18: =IF(COUNT(INDIRECT("'" & $B18 & "'!" & "$B$2"))=1,INDIRECT("'" & $B18 & "'!" & "$M$73"),"") ->  | L18: =IF(COUNT(INDIRECT("'" & $B18 & "'!" & "$B$2"))=1,INDIRECT("'" & $B18 & "'!" & "$N$73"),"") ->  | M18: =IF(COUNT(INDIRECT("'" & $B18 & "'!" & "$B$2"))=1,INDIRECT("'" & $B18 & "'!" & "$O$73"),"") ->  | N18: =IF(COUNT(INDIRECT("'" & $B18 & "'!" & "$B$2"))=1,INDIRECT("'" & $B18 & "'!" & "$R$73"),"") ->  | O18: =IF(COUNT(INDIRECT("'" & $B18 & "'!" & "$B$2"))=1,INDIRECT("'" & $B18 & "'!" & "$S$73"),"") ->  | P18: =IF(COUNT(INDIRECT("'" & $B18 & "'!" & "$B$2"))=1,INDIRECT("'" & $B18 & "'!" & "$T$73"),"") -> 
A19: 15 | B19: =IF(UTL2_PA!$B19=0,"",UTL2_PA!$B19) -> Marcus Kuok | C19: =IF(COUNT(INDIRECT("'" & $B19 & "'!" & "$B$2"))=1,INDIRECT("'" & $B19 & "'!" & "$C$73"),"") ->  | D19: =IF(COUNT(INDIRECT("'" & $B19 & "'!" & "$B$2"))=1,INDIRECT("'" & $B19 & "'!" & "$D$73"),"") ->  | E19: =IF(COUNT(INDIRECT("'" & $B19 & "'!" & "$B$2"))=1,INDIRECT("'" & $B19 & "'!" & "$E$73"),"") ->  | F19: =IF(COUNT(INDIRECT("'" & $B19 & "'!" & "$S$2"))=1,INDIRECT("'" & B19 & "'!" & "$s$2"),"") ->  | G19: =IF(COUNT(INDIRECT("'" & $B19 & "'!" & "$B$2"))=1,INDIRECT("'" & $B19 & "'!" & "$G$73"),"") -> 6 | H19: =IF(COUNT(INDIRECT("'" & $B19 & "'!" & "$B$2"))=1,INDIRECT("'" & $B19 & "'!" & "$I$73"),"") -> 17 | I19: =IF(COUNT(INDIRECT("'" & $B19 & "'!" & "$B$2"))=1,INDIRECT("'" & $B19 & "'!" & "$J$73"),"") -> 15 | J19: =IF(COUNT(INDIRECT("'" & $B19 & "'!" & "$B$2"))=1,INDIRECT("'" & $B19 & "'!" & "$K$73"),"") -> 15 | K19: =IF(COUNT(INDIRECT("'" & $B19 & "'!" & "$B$2"))=1,INDIRECT("'" & $B19 & "'!" & "$M$73"),"") ->  | L19: =IF(COUNT(INDIRECT("'" & $B19 & "'!" & "$B$2"))=1,INDIRECT("'" & $B19 & "'!" & "$N$73"),"") ->  | M19: =IF(COUNT(INDIRECT("'" & $B19 & "'!" & "$B$2"))=1,INDIRECT("'" & $B19 & "'!" & "$O$73"),"") ->  | N19: =IF(COUNT(INDIRECT("'" & $B19 & "'!" & "$B$2"))=1,INDIRECT("'" & $B19 & "'!" & "$R$73"),"") ->  | O19: =IF(COUNT(INDIRECT("'" & $B19 & "'!" & "$B$2"))=1,INDIRECT("'" & $B19 & "'!" & "$S$73"),"") ->  | P19: =IF(COUNT(INDIRECT("'" & $B19 & "'!" & "$B$2"))=1,INDIRECT("'" & $B19 & "'!" & "$T$73"),"") -> 
A20: 16 | B20: =IF(UTL2_PA!$B20=0,"",UTL2_PA!$B20) -> Michael Slinsen | C20: =IF(COUNT(INDIRECT("'" & $B20 & "'!" & "$B$2"))=1,INDIRECT("'" & $B20 & "'!" & "$C$73"),"") ->  | D20: =IF(COUNT(INDIRECT("'" & $B20 & "'!" & "$B$2"))=1,INDIRECT("'" & $B20 & "'!" & "$D$73"),"") ->  | E20: =IF(COUNT(INDIRECT("'" & $B20 & "'!" & "$B$2"))=1,INDIRECT("'" & $B20 & "'!" & "$E$73"),"") -> 5 | F20: =IF(COUNT(INDIRECT("'" & $B20 & "'!" & "$S$2"))=1,INDIRECT("'" & B20 & "'!" & "$s$2"),"") ->  | G20: =IF(COUNT(INDIRECT("'" & $B20 & "'!" & "$B$2"))=1,INDIRECT("'" & $B20 & "'!" & "$G$73"),"") -> 29 | H20: =IF(COUNT(INDIRECT("'" & $B20 & "'!" & "$B$2"))=1,INDIRECT("'" & $B20 & "'!" & "$I$73"),"") ->  | I20: =IF(COUNT(INDIRECT("'" & $B20 & "'!" & "$B$2"))=1,INDIRECT("'" & $B20 & "'!" & "$J$73"),"") ->  | J20: =IF(COUNT(INDIRECT("'" & $B20 & "'!" & "$B$2"))=1,INDIRECT("'" & $B20 & "'!" & "$K$73"),"") -> 29 | K20: =IF(COUNT(INDIRECT("'" & $B20 & "'!" & "$B$2"))=1,INDIRECT("'" & $B20 & "'!" & "$M$73"),"") ->  | L20: =IF(COUNT(INDIRECT("'" & $B20 & "'!" & "$B$2"))=1,INDIRECT("'" & $B20 & "'!" & "$N$73"),"") ->  | M20: =IF(COUNT(INDIRECT("'" & $B20 & "'!" & "$B$2"))=1,INDIRECT("'" & $B20 & "'!" & "$O$73"),"") ->  | N20: =IF(COUNT(INDIRECT("'" & $B20 & "'!" & "$B$2"))=1,INDIRECT("'" & $B20 & "'!" & "$R$73"),"") ->  | O20: =IF(COUNT(INDIRECT("'" & $B20 & "'!" & "$B$2"))=1,INDIRECT("'" & $B20 & "'!" & "$S$73"),"") ->  | P20: =IF(COUNT(INDIRECT("'" & $B20 & "'!" & "$B$2"))=1,INDIRECT("'" & $B20 & "'!" & "$T$73"),"") -> 
A21: 17 | B21: =IF(UTL2_PA!$B21=0,"",UTL2_PA!$B21) -> Bailey Nelson | C21: =IF(COUNT(INDIRECT("'" & $B21 & "'!" & "$B$2"))=1,INDIRECT("'" & $B21 & "'!" & "$C$73"),"") ->  | D21: =IF(COUNT(INDIRECT("'" & $B21 & "'!" & "$B$2"))=1,INDIRECT("'" & $B21 & "'!" & "$D$73"),"") -> 9 | E21: =IF(COUNT(INDIRECT("'" & $B21 & "'!" & "$B$2"))=1,INDIRECT("'" & $B21 & "'!" & "$E$73"),"") -> 18 | F21: =IF(COUNT(INDIRECT("'" & $B21 & "'!" & "$S$2"))=1,INDIRECT("'" & B21 & "'!" & "$s$2"),"") ->  | G21: =IF(COUNT(INDIRECT("'" & $B21 & "'!" & "$B$2"))=1,INDIRECT("'" & $B21 & "'!" & "$G$73"),"") ->  | H21: =IF(COUNT(INDIRECT("'" & $B21 & "'!" & "$B$2"))=1,INDIRECT("'" & $B21 & "'!" & "$I$73"),"") ->  | I21: =IF(COUNT(INDIRECT("'" & $B21 & "'!" & "$B$2"))=1,INDIRECT("'" & $B21 & "'!" & "$J$73"),"") ->  | J21: =IF(COUNT(INDIRECT("'" & $B21 & "'!" & "$B$2"))=1,INDIRECT("'" & $B21 & "'!" & "$K$73"),"") ->  | K21: =IF(COUNT(INDIRECT("'" & $B21 & "'!" & "$B$2"))=1,INDIRECT("'" & $B21 & "'!" & "$M$73"),"") ->  | L21: =IF(COUNT(INDIRECT("'" & $B21 & "'!" & "$B$2"))=1,INDIRECT("'" & $B21 & "'!" & "$N$73"),"") -> 17 | M21: =IF(COUNT(INDIRECT("'" & $B21 & "'!" & "$B$2"))=1,INDIRECT("'" & $B21 & "'!" & "$O$73"),"") ->  | N21: =IF(COUNT(INDIRECT("'" & $B21 & "'!" & "$B$2"))=1,INDIRECT("'" & $B21 & "'!" & "$R$73"),"") ->  | O21: =IF(COUNT(INDIRECT("'" & $B21 & "'!" & "$B$2"))=1,INDIRECT("'" & $B21 & "'!" & "$S$73"),"") ->  | P21: =IF(COUNT(INDIRECT("'" & $B21 & "'!" & "$B$2"))=1,INDIRECT("'" & $B21 & "'!" & "$T$73"),"") -> 
A22: 18 | B22: =IF(UTL2_PA!$B22=0,"",UTL2_PA!$B22) -> Jenn McFarlane | C22: =IF(COUNT(INDIRECT("'" & $B22 & "'!" & "$B$2"))=1,INDIRECT("'" & $B22 & "'!" & "$C$73"),"") ->  | D22: =IF(COUNT(INDIRECT("'" & $B22 & "'!" & "$B$2"))=1,INDIRECT("'" & $B22 & "'!" & "$D$73"),"") ->  | E22: =IF(COUNT(INDIRECT("'" & $B22 & "'!" & "$B$2"))=1,INDIRECT("'" & $B22 & "'!" & "$E$73"),"") -> 9 | F22: =IF(COUNT(INDIRECT("'" & $B22 & "'!" & "$S$2"))=1,INDIRECT("'" & B22 & "'!" & "$s$2"),"") -> 8 | G22: =IF(COUNT(INDIRECT("'" & $B22 & "'!" & "$B$2"))=1,INDIRECT("'" & $B22 & "'!" & "$G$73"),"") ->  | H22: =IF(COUNT(INDIRECT("'" & $B22 & "'!" & "$B$2"))=1,INDIRECT("'" & $B22 & "'!" & "$I$73"),"") ->  | I22: =IF(COUNT(INDIRECT("'" & $B22 & "'!" & "$B$2"))=1,INDIRECT("'" & $B22 & "'!" & "$J$73"),"") ->  | J22: =IF(COUNT(INDIRECT("'" & $B22 & "'!" & "$B$2"))=1,INDIRECT("'" & $B22 & "'!" & "$K$73"),"") ->  | K22: =IF(COUNT(INDIRECT("'" & $B22 & "'!" & "$B$2"))=1,INDIRECT("'" & $B22 & "'!" & "$M$73"),"") ->  | L22: =IF(COUNT(INDIRECT("'" & $B22 & "'!" & "$B$2"))=1,INDIRECT("'" & $B22 & "'!" & "$N$73"),"") ->  | M22: =IF(COUNT(INDIRECT("'" & $B22 & "'!" & "$B$2"))=1,INDIRECT("'" & $B22 & "'!" & "$O$73"),"") -> 10 | N22: =IF(COUNT(INDIRECT("'" & $B22 & "'!" & "$B$2"))=1,INDIRECT("'" & $B22 & "'!" & "$R$73"),"") ->  | O22: =IF(COUNT(INDIRECT("'" & $B22 & "'!" & "$B$2"))=1,INDIRECT("'" & $B22 & "'!" & "$S$73"),"") ->  | P22: =IF(COUNT(INDIRECT("'" & $B22 & "'!" & "$B$2"))=1,INDIRECT("'" & $B22 & "'!" & "$T$73"),"") -> 
A23: 19 | B23: =IF(UTL2_PA!$B23=0,"",UTL2_PA!$B23) -> James Nelson | C23: =IF(COUNT(INDIRECT("'" & $B23 & "'!" & "$B$2"))=1,INDIRECT("'" & $B23 & "'!" & "$C$73"),"") ->  | D23: =IF(COUNT(INDIRECT("'" & $B23 & "'!" & "$B$2"))=1,INDIRECT("'" & $B23 & "'!" & "$D$73"),"") ->  | E23: =IF(COUNT(INDIRECT("'" & $B23 & "'!" & "$B$2"))=1,INDIRECT("'" & $B23 & "'!" & "$E$73"),"") ->  | F23: =IF(COUNT(INDIRECT("'" & $B23 & "'!" & "$S$2"))=1,INDIRECT("'" & B23 & "'!" & "$s$2"),"") ->  | G23: =IF(COUNT(INDIRECT("'" & $B23 & "'!" & "$B$2"))=1,INDIRECT("'" & $B23 & "'!" & "$G$73"),"") -> 28 | H23: =IF(COUNT(INDIRECT("'" & $B23 & "'!" & "$B$2"))=1,INDIRECT("'" & $B23 & "'!" & "$I$73"),"") ->  | I23: =IF(COUNT(INDIRECT("'" & $B23 & "'!" & "$B$2"))=1,INDIRECT("'" & $B23 & "'!" & "$J$73"),"") ->  | J23: =IF(COUNT(INDIRECT("'" & $B23 & "'!" & "$B$2"))=1,INDIRECT("'" & $B23 & "'!" & "$K$73"),"") -> 28 | K23: =IF(COUNT(INDIRECT("'" & $B23 & "'!" & "$B$2"))=1,INDIRECT("'" & $B23 & "'!" & "$M$73"),"") ->  | L23: =IF(COUNT(INDIRECT("'" & $B23 & "'!" & "$B$2"))=1,INDIRECT("'" & $B23 & "'!" & "$N$73"),"") ->  | M23: =IF(COUNT(INDIRECT("'" & $B23 & "'!" & "$B$2"))=1,INDIRECT("'" & $B23 & "'!" & "$O$73"),"") -> 10 | N23: =IF(COUNT(INDIRECT("'" & $B23 & "'!" & "$B$2"))=1,INDIRECT("'" & $B23 & "'!" & "$R$73"),"") ->  | O23: =IF(COUNT(INDIRECT("'" & $B23 & "'!" & "$B$2"))=1,INDIRECT("'" & $B23 & "'!" & "$S$73"),"") ->  | P23: =IF(COUNT(INDIRECT("'" & $B23 & "'!" & "$B$2"))=1,INDIRECT("'" & $B23 & "'!" & "$T$73"),"") -> 
A24: 20 | B24: =IF(UTL2_PA!$B24=0,"",UTL2_PA!$B24) -> Matt McFarlane | C24: =IF(COUNT(INDIRECT("'" & $B24 & "'!" & "$B$2"))=1,INDIRECT("'" & $B24 & "'!" & "$C$73"),"") ->  | D24: =IF(COUNT(INDIRECT("'" & $B24 & "'!" & "$B$2"))=1,INDIRECT("'" & $B24 & "'!" & "$D$73"),"") ->  | E24: =IF(COUNT(INDIRECT("'" & $B24 & "'!" & "$B$2"))=1,INDIRECT("'" & $B24 & "'!" & "$E$73"),"") ->  | F24: =IF(COUNT(INDIRECT("'" & $B24 & "'!" & "$S$2"))=1,INDIRECT("'" & B24 & "'!" & "$s$2"),"") -> 19 | G24: =IF(COUNT(INDIRECT("'" & $B24 & "'!" & "$B$2"))=1,INDIRECT("'" & $B24 & "'!" & "$G$73"),"") -> 5 | H24: =IF(COUNT(INDIRECT("'" & $B24 & "'!" & "$B$2"))=1,INDIRECT("'" & $B24 & "'!" & "$I$73"),"") -> 12 | I24: =IF(COUNT(INDIRECT("'" & $B24 & "'!" & "$B$2"))=1,INDIRECT("'" & $B24 & "'!" & "$J$73"),"") -> 19 | J24: =IF(COUNT(INDIRECT("'" & $B24 & "'!" & "$B$2"))=1,INDIRECT("'" & $B24 & "'!" & "$K$73"),"") -> 19 | K24: =IF(COUNT(INDIRECT("'" & $B24 & "'!" & "$B$2"))=1,INDIRECT("'" & $B24 & "'!" & "$M$73"),"") ->  | L24: =IF(COUNT(INDIRECT("'" & $B24 & "'!" & "$B$2"))=1,INDIRECT("'" & $B24 & "'!" & "$N$73"),"") ->  | M24: =IF(COUNT(INDIRECT("'" & $B24 & "'!" & "$B$2"))=1,INDIRECT("'" & $B24 & "'!" & "$O$73"),"") ->  | N24: =IF(COUNT(INDIRECT("'" & $B24 & "'!" & "$B$2"))=1,INDIRECT("'" & $B24 & "'!" & "$R$73"),"") ->  | O24: =IF(COUNT(INDIRECT("'" & $B24 & "'!" & "$B$2"))=1,INDIRECT("'" & $B24 & "'!" & "$S$73"),"") -> 24 | P24: =IF(COUNT(INDIRECT("'" & $B24 & "'!" & "$B$2"))=1,INDIRECT("'" & $B24 & "'!" & "$T$73"),"") -> 
A25: 21 | B25: =IF(UTL2_PA!$B25=0,"",UTL2_PA!$B25) -> Ray Kummer | C25: =IF(COUNT(INDIRECT("'" & $B25 & "'!" & "$B$2"))=1,INDIRECT("'" & $B25 & "'!" & "$C$73"),"") ->  | D25: =IF(COUNT(INDIRECT("'" & $B25 & "'!" & "$B$2"))=1,INDIRECT("'" & $B25 & "'!" & "$D$73"),"") ->  | E25: =IF(COUNT(INDIRECT("'" & $B25 & "'!" & "$B$2"))=1,INDIRECT("'" & $B25 & "'!" & "$E$73"),"") -> 7 | F25: =IF(COUNT(INDIRECT("'" & $B25 & "'!" & "$S$2"))=1,INDIRECT("'" & B25 & "'!" & "$s$2"),"") ->  | G25: =IF(COUNT(INDIRECT("'" & $B25 & "'!" & "$B$2"))=1,INDIRECT("'" & $B25 & "'!" & "$G$73"),"") ->  | H25: =IF(COUNT(INDIRECT("'" & $B25 & "'!" & "$B$2"))=1,INDIRECT("'" & $B25 & "'!" & "$I$73"),"") ->  | I25: =IF(COUNT(INDIRECT("'" & $B25 & "'!" & "$B$2"))=1,INDIRECT("'" & $B25 & "'!" & "$J$73"),"") ->  | J25: =IF(COUNT(INDIRECT("'" & $B25 & "'!" & "$B$2"))=1,INDIRECT("'" & $B25 & "'!" & "$K$73"),"") ->  | K25: =IF(COUNT(INDIRECT("'" & $B25 & "'!" & "$B$2"))=1,INDIRECT("'" & $B25 & "'!" & "$M$73"),"") ->  | L25: =IF(COUNT(INDIRECT("'" & $B25 & "'!" & "$B$2"))=1,INDIRECT("'" & $B25 & "'!" & "$N$73"),"") ->  | M25: =IF(COUNT(INDIRECT("'" & $B25 & "'!" & "$B$2"))=1,INDIRECT("'" & $B25 & "'!" & "$O$73"),"") -> 13 | N25: =IF(COUNT(INDIRECT("'" & $B25 & "'!" & "$B$2"))=1,INDIRECT("'" & $B25 & "'!" & "$R$73"),"") ->  | O25: =IF(COUNT(INDIRECT("'" & $B25 & "'!" & "$B$2"))=1,INDIRECT("'" & $B25 & "'!" & "$S$73"),"") ->  | P25: =IF(COUNT(INDIRECT("'" & $B25 & "'!" & "$B$2"))=1,INDIRECT("'" & $B25 & "'!" & "$T$73"),"") -> 
A26: 22 | B26: =IF(UTL2_PA!$B26=0,"",UTL2_PA!$B26) -> Dustin Campana | C26: =IF(COUNT(INDIRECT("'" & $B26 & "'!" & "$B$2"))=1,INDIRECT("'" & $B26 & "'!" & "$C$73"),"") ->  | D26: =IF(COUNT(INDIRECT("'" & $B26 & "'!" & "$B$2"))=1,INDIRECT("'" & $B26 & "'!" & "$D$73"),"") ->  | E26: =IF(COUNT(INDIRECT("'" & $B26 & "'!" & "$B$2"))=1,INDIRECT("'" & $B26 & "'!" & "$E$73"),"") ->  | F26: =IF(COUNT(INDIRECT("'" & $B26 & "'!" & "$S$2"))=1,INDIRECT("'" & B26 & "'!" & "$s$2"),"") -> 26 | G26: =IF(COUNT(INDIRECT("'" & $B26 & "'!" & "$B$2"))=1,INDIRECT("'" & $B26 & "'!" & "$G$73"),"") -> 8 | H26: =IF(COUNT(INDIRECT("'" & $B26 & "'!" & "$B$2"))=1,INDIRECT("'" & $B26 & "'!" & "$I$73"),"") -> 27 | I26: =IF(COUNT(INDIRECT("'" & $B26 & "'!" & "$B$2"))=1,INDIRECT("'" & $B26 & "'!" & "$J$73"),"") ->  | J26: =IF(COUNT(INDIRECT("'" & $B26 & "'!" & "$B$2"))=1,INDIRECT("'" & $B26 & "'!" & "$K$73"),"") -> 8 | K26: =IF(COUNT(INDIRECT("'" & $B26 & "'!" & "$B$2"))=1,INDIRECT("'" & $B26 & "'!" & "$M$73"),"") ->  | L26: =IF(COUNT(INDIRECT("'" & $B26 & "'!" & "$B$2"))=1,INDIRECT("'" & $B26 & "'!" & "$N$73"),"") ->  | M26: =IF(COUNT(INDIRECT("'" & $B26 & "'!" & "$B$2"))=1,INDIRECT("'" & $B26 & "'!" & "$O$73"),"") ->  | N26: =IF(COUNT(INDIRECT("'" & $B26 & "'!" & "$B$2"))=1,INDIRECT("'" & $B26 & "'!" & "$R$73"),"") -> 8 | O26: =IF(COUNT(INDIRECT("'" & $B26 & "'!" & "$B$2"))=1,INDIRECT("'" & $B26 & "'!" & "$S$73"),"") ->  | P26: =IF(COUNT(INDIRECT("'" & $B26 & "'!" & "$B$2"))=1,INDIRECT("'" & $B26 & "'!" & "$T$73"),"") -> 27
A27: 23 | B27: =IF(UTL2_PA!$B27=0,"",UTL2_PA!$B27) -> Daniel Torres | C27: =IF(COUNT(INDIRECT("'" & $B27 & "'!" & "$B$2"))=1,INDIRECT("'" & $B27 & "'!" & "$C$73"),"") ->  | D27: =IF(COUNT(INDIRECT("'" & $B27 & "'!" & "$B$2"))=1,INDIRECT("'" & $B27 & "'!" & "$D$73"),"") ->  | E27: =IF(COUNT(INDIRECT("'" & $B27 & "'!" & "$B$2"))=1,INDIRECT("'" & $B27 & "'!" & "$E$73"),"") ->  | F27: =IF(COUNT(INDIRECT("'" & $B27 & "'!" & "$S$2"))=1,INDIRECT("'" & B27 & "'!" & "$s$2"),"") -> 7 | G27: =IF(COUNT(INDIRECT("'" & $B27 & "'!" & "$B$2"))=1,INDIRECT("'" & $B27 & "'!" & "$G$73"),"") -> 11 | H27: =IF(COUNT(INDIRECT("'" & $B27 & "'!" & "$B$2"))=1,INDIRECT("'" & $B27 & "'!" & "$I$73"),"") ->  | I27: =IF(COUNT(INDIRECT("'" & $B27 & "'!" & "$B$2"))=1,INDIRECT("'" & $B27 & "'!" & "$J$73"),"") ->  | J27: =IF(COUNT(INDIRECT("'" & $B27 & "'!" & "$B$2"))=1,INDIRECT("'" & $B27 & "'!" & "$K$73"),"") -> 11 | K27: =IF(COUNT(INDIRECT("'" & $B27 & "'!" & "$B$2"))=1,INDIRECT("'" & $B27 & "'!" & "$M$73"),"") ->  | L27: =IF(COUNT(INDIRECT("'" & $B27 & "'!" & "$B$2"))=1,INDIRECT("'" & $B27 & "'!" & "$N$73"),"") ->  | M27: =IF(COUNT(INDIRECT("'" & $B27 & "'!" & "$B$2"))=1,INDIRECT("'" & $B27 & "'!" & "$O$73"),"") ->  | N27: =IF(COUNT(INDIRECT("'" & $B27 & "'!" & "$B$2"))=1,INDIRECT("'" & $B27 & "'!" & "$R$73"),"") ->  | O27: =IF(COUNT(INDIRECT("'" & $B27 & "'!" & "$B$2"))=1,INDIRECT("'" & $B27 & "'!" & "$S$73"),"") ->  | P27: =IF(COUNT(INDIRECT("'" & $B27 & "'!" & "$B$2"))=1,INDIRECT("'" & $B27 & "'!" & "$T$73"),"") -> 
A28: 24 | B28: =IF(UTL2_PA!$B28=0,"",UTL2_PA!$B28) -> Tim Sikes | C28: =IF(COUNT(INDIRECT("'" & $B28 & "'!" & "$B$2"))=1,INDIRECT("'" & $B28 & "'!" & "$C$73"),"") ->  | D28: =IF(COUNT(INDIRECT("'" & $B28 & "'!" & "$B$2"))=1,INDIRECT("'" & $B28 & "'!" & "$D$73"),"") ->  | E28: =IF(COUNT(INDIRECT("'" & $B28 & "'!" & "$B$2"))=1,INDIRECT("'" & $B28 & "'!" & "$E$73"),"") ->  | F28: =IF(COUNT(INDIRECT("'" & $B28 & "'!" & "$S$2"))=1,INDIRECT("'" & B28 & "'!" & "$s$2"),"") ->  | G28: =IF(COUNT(INDIRECT("'" & $B28 & "'!" & "$B$2"))=1,INDIRECT("'" & $B28 & "'!" & "$G$73"),"") -> 9 | H28: =IF(COUNT(INDIRECT("'" & $B28 & "'!" & "$B$2"))=1,INDIRECT("'" & $B28 & "'!" & "$I$73"),"") ->  | I28: =IF(COUNT(INDIRECT("'" & $B28 & "'!" & "$B$2"))=1,INDIRECT("'" & $B28 & "'!" & "$J$73"),"") ->  | J28: =IF(COUNT(INDIRECT("'" & $B28 & "'!" & "$B$2"))=1,INDIRECT("'" & $B28 & "'!" & "$K$73"),"") ->  | K28: =IF(COUNT(INDIRECT("'" & $B28 & "'!" & "$B$2"))=1,INDIRECT("'" & $B28 & "'!" & "$M$73"),"") ->  | L28: =IF(COUNT(INDIRECT("'" & $B28 & "'!" & "$B$2"))=1,INDIRECT("'" & $B28 & "'!" & "$N$73"),"") ->  | M28: =IF(COUNT(INDIRECT("'" & $B28 & "'!" & "$B$2"))=1,INDIRECT("'" & $B28 & "'!" & "$O$73"),"") ->  | N28: =IF(COUNT(INDIRECT("'" & $B28 & "'!" & "$B$2"))=1,INDIRECT("'" & $B28 & "'!" & "$R$73"),"") ->  | O28: =IF(COUNT(INDIRECT("'" & $B28 & "'!" & "$B$2"))=1,INDIRECT("'" & $B28 & "'!" & "$S$73"),"") ->  | P28: =IF(COUNT(INDIRECT("'" & $B28 & "'!" & "$B$2"))=1,INDIRECT("'" & $B28 & "'!" & "$T$73"),"") -> 
A29: 25 | B29: =IF(UTL2_PA!$B29=0,"",UTL2_PA!$B29) -> Josie Bisler | C29: =IF(COUNT(INDIRECT("'" & $B29 & "'!" & "$B$2"))=1,INDIRECT("'" & $B29 & "'!" & "$C$73"),"") ->  | D29: =IF(COUNT(INDIRECT("'" & $B29 & "'!" & "$B$2"))=1,INDIRECT("'" & $B29 & "'!" & "$D$73"),"") ->  | E29: =IF(COUNT(INDIRECT("'" & $B29 & "'!" & "$B$2"))=1,INDIRECT("'" & $B29 & "'!" & "$E$73"),"") -> 30 | F29: =IF(COUNT(INDIRECT("'" & $B29 & "'!" & "$S$2"))=1,INDIRECT("'" & B29 & "'!" & "$s$2"),"") ->  | G29: =IF(COUNT(INDIRECT("'" & $B29 & "'!" & "$B$2"))=1,INDIRECT("'" & $B29 & "'!" & "$G$73"),"") ->  | H29: =IF(COUNT(INDIRECT("'" & $B29 & "'!" & "$B$2"))=1,INDIRECT("'" & $B29 & "'!" & "$I$73"),"") ->  | I29: =IF(COUNT(INDIRECT("'" & $B29 & "'!" & "$B$2"))=1,INDIRECT("'" & $B29 & "'!" & "$J$73"),"") ->  | J29: =IF(COUNT(INDIRECT("'" & $B29 & "'!" & "$B$2"))=1,INDIRECT("'" & $B29 & "'!" & "$K$73"),"") ->  | K29: =IF(COUNT(INDIRECT("'" & $B29 & "'!" & "$B$2"))=1,INDIRECT("'" & $B29 & "'!" & "$M$73"),"") ->  | L29: =IF(COUNT(INDIRECT("'" & $B29 & "'!" & "$B$2"))=1,INDIRECT("'" & $B29 & "'!" & "$N$73"),"") ->  | M29: =IF(COUNT(INDIRECT("'" & $B29 & "'!" & "$B$2"))=1,INDIRECT("'" & $B29 & "'!" & "$O$73"),"") ->  | N29: =IF(COUNT(INDIRECT("'" & $B29 & "'!" & "$B$2"))=1,INDIRECT("'" & $B29 & "'!" & "$R$73"),"") ->  | O29: =IF(COUNT(INDIRECT("'" & $B29 & "'!" & "$B$2"))=1,INDIRECT("'" & $B29 & "'!" & "$S$73"),"") ->  | P29: =IF(COUNT(INDIRECT("'" & $B29 & "'!" & "$B$2"))=1,INDIRECT("'" & $B29 & "'!" & "$T$73"),"") -> 
A30: 26 | B30: =IF(UTL2_PA!$B30=0,"",UTL2_PA!$B30) -> John Diricco | C30: =IF(COUNT(INDIRECT("'" & $B30 & "'!" & "$B$2"))=1,INDIRECT("'" & $B30 & "'!" & "$C$73"),"") ->  | D30: =IF(COUNT(INDIRECT("'" & $B30 & "'!" & "$B$2"))=1,INDIRECT("'" & $B30 & "'!" & "$D$73"),"") ->  | E30: =IF(COUNT(INDIRECT("'" & $B30 & "'!" & "$B$2"))=1,INDIRECT("'" & $B30 & "'!" & "$E$73"),"") -> 7 | F30: =IF(COUNT(INDIRECT("'" & $B30 & "'!" & "$S$2"))=1,INDIRECT("'" & B30 & "'!" & "$s$2"),"") ->  | G30: =IF(COUNT(INDIRECT("'" & $B30 & "'!" & "$B$2"))=1,INDIRECT("'" & $B30 & "'!" & "$G$73"),"") ->  | H30: =IF(COUNT(INDIRECT("'" & $B30 & "'!" & "$B$2"))=1,INDIRECT("'" & $B30 & "'!" & "$I$73"),"") ->  | I30: =IF(COUNT(INDIRECT("'" & $B30 & "'!" & "$B$2"))=1,INDIRECT("'" & $B30 & "'!" & "$J$73"),"") ->  | J30: =IF(COUNT(INDIRECT("'" & $B30 & "'!" & "$B$2"))=1,INDIRECT("'" & $B30 & "'!" & "$K$73"),"") ->  | K30: =IF(COUNT(INDIRECT("'" & $B30 & "'!" & "$B$2"))=1,INDIRECT("'" & $B30 & "'!" & "$M$73"),"") ->  | L30: =IF(COUNT(INDIRECT("'" & $B30 & "'!" & "$B$2"))=1,INDIRECT("'" & $B30 & "'!" & "$N$73"),"") ->  | M30: =IF(COUNT(INDIRECT("'" & $B30 & "'!" & "$B$2"))=1,INDIRECT("'" & $B30 & "'!" & "$O$73"),"") ->  | N30: =IF(COUNT(INDIRECT("'" & $B30 & "'!" & "$B$2"))=1,INDIRECT("'" & $B30 & "'!" & "$R$73"),"") ->  | O30: =IF(COUNT(INDIRECT("'" & $B30 & "'!" & "$B$2"))=1,INDIRECT("'" & $B30 & "'!" & "$S$73"),"") ->  | P30: =IF(COUNT(INDIRECT("'" & $B30 & "'!" & "$B$2"))=1,INDIRECT("'" & $B30 & "'!" & "$T$73"),"") -> 
A31: 27 | B31: =IF(UTL2_PA!$B31=0,"",UTL2_PA!$B31) -> Jenny Carretero | C31: =IF(COUNT(INDIRECT("'" & $B31 & "'!" & "$B$2"))=1,INDIRECT("'" & $B31 & "'!" & "$C$73"),"") ->  | D31: =IF(COUNT(INDIRECT("'" & $B31 & "'!" & "$B$2"))=1,INDIRECT("'" & $B31 & "'!" & "$D$73"),"") ->  | E31: =IF(COUNT(INDIRECT("'" & $B31 & "'!" & "$B$2"))=1,INDIRECT("'" & $B31 & "'!" & "$E$73"),"") -> 10 | F31: =IF(COUNT(INDIRECT("'" & $B31 & "'!" & "$S$2"))=1,INDIRECT("'" & B31 & "'!" & "$s$2"),"") ->  | G31: =IF(COUNT(INDIRECT("'" & $B31 & "'!" & "$B$2"))=1,INDIRECT("'" & $B31 & "'!" & "$G$73"),"") ->  | H31: =IF(COUNT(INDIRECT("'" & $B31 & "'!" & "$B$2"))=1,INDIRECT("'" & $B31 & "'!" & "$I$73"),"") ->  | I31: =IF(COUNT(INDIRECT("'" & $B31 & "'!" & "$B$2"))=1,INDIRECT("'" & $B31 & "'!" & "$J$73"),"") ->  | J31: =IF(COUNT(INDIRECT("'" & $B31 & "'!" & "$B$2"))=1,INDIRECT("'" & $B31 & "'!" & "$K$73"),"") ->  | K31: =IF(COUNT(INDIRECT("'" & $B31 & "'!" & "$B$2"))=1,INDIRECT("'" & $B31 & "'!" & "$M$73"),"") ->  | L31: =IF(COUNT(INDIRECT("'" & $B31 & "'!" & "$B$2"))=1,INDIRECT("'" & $B31 & "'!" & "$N$73"),"") ->  | M31: =IF(COUNT(INDIRECT("'" & $B31 & "'!" & "$B$2"))=1,INDIRECT("'" & $B31 & "'!" & "$O$73"),"") ->  | N31: =IF(COUNT(INDIRECT("'" & $B31 & "'!" & "$B$2"))=1,INDIRECT("'" & $B31 & "'!" & "$R$73"),"") ->  | O31: =IF(COUNT(INDIRECT("'" & $B31 & "'!" & "$B$2"))=1,INDIRECT("'" & $B31 & "'!" & "$S$73"),"") ->  | P31: =IF(COUNT(INDIRECT("'" & $B31 & "'!" & "$B$2"))=1,INDIRECT("'" & $B31 & "'!" & "$T$73"),"") -> 
A32: 28 | B32: =IF(UTL2_PA!$B32=0,"",UTL2_PA!$B32) -> Ronnie Carretero | C32: =IF(COUNT(INDIRECT("'" & $B32 & "'!" & "$B$2"))=1,INDIRECT("'" & $B32 & "'!" & "$C$73"),"") ->  | D32: =IF(COUNT(INDIRECT("'" & $B32 & "'!" & "$B$2"))=1,INDIRECT("'" & $B32 & "'!" & "$D$73"),"") ->  | E32: =IF(COUNT(INDIRECT("'" & $B32 & "'!" & "$B$2"))=1,INDIRECT("'" & $B32 & "'!" & "$E$73"),"") ->  | F32: =IF(COUNT(INDIRECT("'" & $B32 & "'!" & "$S$2"))=1,INDIRECT("'" & B32 & "'!" & "$s$2"),"") -> 14 | G32: =IF(COUNT(INDIRECT("'" & $B32 & "'!" & "$B$2"))=1,INDIRECT("'" & $B32 & "'!" & "$G$73"),"") ->  | H32: =IF(COUNT(INDIRECT("'" & $B32 & "'!" & "$B$2"))=1,INDIRECT("'" & $B32 & "'!" & "$I$73"),"") ->  | I32: =IF(COUNT(INDIRECT("'" & $B32 & "'!" & "$B$2"))=1,INDIRECT("'" & $B32 & "'!" & "$J$73"),"") ->  | J32: =IF(COUNT(INDIRECT("'" & $B32 & "'!" & "$B$2"))=1,INDIRECT("'" & $B32 & "'!" & "$K$73"),"") ->  | K32: =IF(COUNT(INDIRECT("'" & $B32 & "'!" & "$B$2"))=1,INDIRECT("'" & $B32 & "'!" & "$M$73"),"") ->  | L32: =IF(COUNT(INDIRECT("'" & $B32 & "'!" & "$B$2"))=1,INDIRECT("'" & $B32 & "'!" & "$N$73"),"") ->  | M32: =IF(COUNT(INDIRECT("'" & $B32 & "'!" & "$B$2"))=1,INDIRECT("'" & $B32 & "'!" & "$O$73"),"") ->  | N32: =IF(COUNT(INDIRECT("'" & $B32 & "'!" & "$B$2"))=1,INDIRECT("'" & $B32 & "'!" & "$R$73"),"") -> 14 | O32: =IF(COUNT(INDIRECT("'" & $B32 & "'!" & "$B$2"))=1,INDIRECT("'" & $B32 & "'!" & "$S$73"),"") ->  | P32: =IF(COUNT(INDIRECT("'" & $B32 & "'!" & "$B$2"))=1,INDIRECT("'" & $B32 & "'!" & "$T$73"),"") -> 
A33: 29 | B33: =IF(UTL2_PA!$B33=0,"",UTL2_PA!$B33) -> Kyle Wilson | C33: =IF(COUNT(INDIRECT("'" & $B33 & "'!" & "$B$2"))=1,INDIRECT("'" & $B33 & "'!" & "$C$73"),"") ->  | D33: =IF(COUNT(INDIRECT("'" & $B33 & "'!" & "$B$2"))=1,INDIRECT("'" & $B33 & "'!" & "$D$73"),"") ->  | E33: =IF(COUNT(INDIRECT("'" & $B33 & "'!" & "$B$2"))=1,INDIRECT("'" & $B33 & "'!" & "$E$73"),"") -> 8 | F33: =IF(COUNT(INDIRECT("'" & $B33 & "'!" & "$S$2"))=1,INDIRECT("'" & B33 & "'!" & "$s$2"),"") ->  | G33: =IF(COUNT(INDIRECT("'" & $B33 & "'!" & "$B$2"))=1,INDIRECT("'" & $B33 & "'!" & "$G$73"),"") ->  | H33: =IF(COUNT(INDIRECT("'" & $B33 & "'!" & "$B$2"))=1,INDIRECT("'" & $B33 & "'!" & "$I$73"),"") ->  | I33: =IF(COUNT(INDIRECT("'" & $B33 & "'!" & "$B$2"))=1,INDIRECT("'" & $B33 & "'!" & "$J$73"),"") ->  | J33: =IF(COUNT(INDIRECT("'" & $B33 & "'!" & "$B$2"))=1,INDIRECT("'" & $B33 & "'!" & "$K$73"),"") -> 12 | K33: =IF(COUNT(INDIRECT("'" & $B33 & "'!" & "$B$2"))=1,INDIRECT("'" & $B33 & "'!" & "$M$73"),"") ->  | L33: =IF(COUNT(INDIRECT("'" & $B33 & "'!" & "$B$2"))=1,INDIRECT("'" & $B33 & "'!" & "$N$73"),"") ->  | M33: =IF(COUNT(INDIRECT("'" & $B33 & "'!" & "$B$2"))=1,INDIRECT("'" & $B33 & "'!" & "$O$73"),"") -> 8 | N33: =IF(COUNT(INDIRECT("'" & $B33 & "'!" & "$B$2"))=1,INDIRECT("'" & $B33 & "'!" & "$R$73"),"") ->  | O33: =IF(COUNT(INDIRECT("'" & $B33 & "'!" & "$B$2"))=1,INDIRECT("'" & $B33 & "'!" & "$S$73"),"") ->  | P33: =IF(COUNT(INDIRECT("'" & $B33 & "'!" & "$B$2"))=1,INDIRECT("'" & $B33 & "'!" & "$T$73"),"") -> 8
A34: 30 | B34: =IF(UTL2_PA!$B34=0,"",UTL2_PA!$B34) -> John Orcutt | C34: =IF(COUNT(INDIRECT("'" & $B34 & "'!" & "$B$2"))=1,INDIRECT("'" & $B34 & "'!" & "$C$73"),"") ->  | D34: =IF(COUNT(INDIRECT("'" & $B34 & "'!" & "$B$2"))=1,INDIRECT("'" & $B34 & "'!" & "$D$73"),"") ->  | E34: =IF(COUNT(INDIRECT("'" & $B34 & "'!" & "$B$2"))=1,INDIRECT("'" & $B34 & "'!" & "$E$73"),"") ->  | F34: =IF(COUNT(INDIRECT("'" & $B34 & "'!" & "$S$2"))=1,INDIRECT("'" & B34 & "'!" & "$s$2"),"") ->  | G34: =IF(COUNT(INDIRECT("'" & $B34 & "'!" & "$B$2"))=1,INDIRECT("'" & $B34 & "'!" & "$G$73"),"") ->  | H34: =IF(COUNT(INDIRECT("'" & $B34 & "'!" & "$B$2"))=1,INDIRECT("'" & $B34 & "'!" & "$I$73"),"") ->  | I34: =IF(COUNT(INDIRECT("'" & $B34 & "'!" & "$B$2"))=1,INDIRECT("'" & $B34 & "'!" & "$J$73"),"") ->  | J34: =IF(COUNT(INDIRECT("'" & $B34 & "'!" & "$B$2"))=1,INDIRECT("'" & $B34 & "'!" & "$K$73"),"") ->  | K34: =IF(COUNT(INDIRECT("'" & $B34 & "'!" & "$B$2"))=1,INDIRECT("'" & $B34 & "'!" & "$M$73"),"") ->  | L34: =IF(COUNT(INDIRECT("'" & $B34 & "'!" & "$B$2"))=1,INDIRECT("'" & $B34 & "'!" & "$N$73"),"") ->  | M34: =IF(COUNT(INDIRECT("'" & $B34 & "'!" & "$B$2"))=1,INDIRECT("'" & $B34 & "'!" & "$O$73"),"") -> 10 | N34: =IF(COUNT(INDIRECT("'" & $B34 & "'!" & "$B$2"))=1,INDIRECT("'" & $B34 & "'!" & "$R$73"),"") ->  | O34: =IF(COUNT(INDIRECT("'" & $B34 & "'!" & "$B$2"))=1,INDIRECT("'" & $B34 & "'!" & "$S$73"),"") ->  | P34: =IF(COUNT(INDIRECT("'" & $B34 & "'!" & "$B$2"))=1,INDIRECT("'" & $B34 & "'!" & "$T$73"),"") -> 
A35: 31 | B35: =IF(UTL2_PA!$B35=0,"",UTL2_PA!$B35) -> Morgan Thomas | C35: =IF(COUNT(INDIRECT("'" & $B35 & "'!" & "$B$2"))=1,INDIRECT("'" & $B35 & "'!" & "$C$73"),"") ->  | D35: =IF(COUNT(INDIRECT("'" & $B35 & "'!" & "$B$2"))=1,INDIRECT("'" & $B35 & "'!" & "$D$73"),"") ->  | E35: =IF(COUNT(INDIRECT("'" & $B35 & "'!" & "$B$2"))=1,INDIRECT("'" & $B35 & "'!" & "$E$73"),"") ->  | F35: =IF(COUNT(INDIRECT("'" & $B35 & "'!" & "$S$2"))=1,INDIRECT("'" & B35 & "'!" & "$s$2"),"") ->  | G35: =IF(COUNT(INDIRECT("'" & $B35 & "'!" & "$B$2"))=1,INDIRECT("'" & $B35 & "'!" & "$G$73"),"") ->  | H35: =IF(COUNT(INDIRECT("'" & $B35 & "'!" & "$B$2"))=1,INDIRECT("'" & $B35 & "'!" & "$I$73"),"") ->  | I35: =IF(COUNT(INDIRECT("'" & $B35 & "'!" & "$B$2"))=1,INDIRECT("'" & $B35 & "'!" & "$J$73"),"") ->  | J35: =IF(COUNT(INDIRECT("'" & $B35 & "'!" & "$B$2"))=1,INDIRECT("'" & $B35 & "'!" & "$K$73"),"") ->  | K35: =IF(COUNT(INDIRECT("'" & $B35 & "'!" & "$B$2"))=1,INDIRECT("'" & $B35 & "'!" & "$M$73"),"") ->  | L35: =IF(COUNT(INDIRECT("'" & $B35 & "'!" & "$B$2"))=1,INDIRECT("'" & $B35 & "'!" & "$N$73"),"") ->  | M35: =IF(COUNT(INDIRECT("'" & $B35 & "'!" & "$B$2"))=1,INDIRECT("'" & $B35 & "'!" & "$O$73"),"") ->  | N35: =IF(COUNT(INDIRECT("'" & $B35 & "'!" & "$B$2"))=1,INDIRECT("'" & $B35 & "'!" & "$R$73"),"") ->  | O35: =IF(COUNT(INDIRECT("'" & $B35 & "'!" & "$B$2"))=1,INDIRECT("'" & $B35 & "'!" & "$S$73"),"") ->  | P35: =IF(COUNT(INDIRECT("'" & $B35 & "'!" & "$B$2"))=1,INDIRECT("'" & $B35 & "'!" & "$T$73"),"") -> 
A36: 32 | B36: =IF(UTL2_PA!$B36=0,"",UTL2_PA!$B36) -> Mike Schirman | C36: =IF(COUNT(INDIRECT("'" & $B36 & "'!" & "$B$2"))=1,INDIRECT("'" & $B36 & "'!" & "$C$73"),"") ->  | D36: =IF(COUNT(INDIRECT("'" & $B36 & "'!" & "$B$2"))=1,INDIRECT("'" & $B36 & "'!" & "$D$73"),"") ->  | E36: =IF(COUNT(INDIRECT("'" & $B36 & "'!" & "$B$2"))=1,INDIRECT("'" & $B36 & "'!" & "$E$73"),"") ->  | F36: =IF(COUNT(INDIRECT("'" & $B36 & "'!" & "$S$2"))=1,INDIRECT("'" & B36 & "'!" & "$s$2"),"") -> 26 | G36: =IF(COUNT(INDIRECT("'" & $B36 & "'!" & "$B$2"))=1,INDIRECT("'" & $B36 & "'!" & "$G$73"),"") ->  | H36: =IF(COUNT(INDIRECT("'" & $B36 & "'!" & "$B$2"))=1,INDIRECT("'" & $B36 & "'!" & "$I$73"),"") ->  | I36: =IF(COUNT(INDIRECT("'" & $B36 & "'!" & "$B$2"))=1,INDIRECT("'" & $B36 & "'!" & "$J$73"),"") ->  | J36: =IF(COUNT(INDIRECT("'" & $B36 & "'!" & "$B$2"))=1,INDIRECT("'" & $B36 & "'!" & "$K$73"),"") ->  | K36: =IF(COUNT(INDIRECT("'" & $B36 & "'!" & "$B$2"))=1,INDIRECT("'" & $B36 & "'!" & "$M$73"),"") ->  | L36: =IF(COUNT(INDIRECT("'" & $B36 & "'!" & "$B$2"))=1,INDIRECT("'" & $B36 & "'!" & "$N$73"),"") ->  | M36: =IF(COUNT(INDIRECT("'" & $B36 & "'!" & "$B$2"))=1,INDIRECT("'" & $B36 & "'!" & "$O$73"),"") ->  | N36: =IF(COUNT(INDIRECT("'" & $B36 & "'!" & "$B$2"))=1,INDIRECT("'" & $B36 & "'!" & "$R$73"),"") -> 27 | O36: =IF(COUNT(INDIRECT("'" & $B36 & "'!" & "$B$2"))=1,INDIRECT("'" & $B36 & "'!" & "$S$73"),"") ->  | P36: =IF(COUNT(INDIRECT("'" & $B36 & "'!" & "$B$2"))=1,INDIRECT("'" & $B36 & "'!" & "$T$73"),"") -> 
A37: 33 | B37: =IF(UTL2_PA!$B37=0,"",UTL2_PA!$B37) -> Will Exelby | C37: =IF(COUNT(INDIRECT("'" & $B37 & "'!" & "$B$2"))=1,INDIRECT("'" & $B37 & "'!" & "$C$73"),"") ->  | D37: =IF(COUNT(INDIRECT("'" & $B37 & "'!" & "$B$2"))=1,INDIRECT("'" & $B37 & "'!" & "$D$73"),"") ->  | E37: =IF(COUNT(INDIRECT("'" & $B37 & "'!" & "$B$2"))=1,INDIRECT("'" & $B37 & "'!" & "$E$73"),"") ->  | F37: =IF(COUNT(INDIRECT("'" & $B37 & "'!" & "$S$2"))=1,INDIRECT("'" & B37 & "'!" & "$s$2"),"") ->  | G37: =IF(COUNT(INDIRECT("'" & $B37 & "'!" & "$B$2"))=1,INDIRECT("'" & $B37 & "'!" & "$G$73"),"") ->  | H37: =IF(COUNT(INDIRECT("'" & $B37 & "'!" & "$B$2"))=1,INDIRECT("'" & $B37 & "'!" & "$I$73"),"") ->  | I37: =IF(COUNT(INDIRECT("'" & $B37 & "'!" & "$B$2"))=1,INDIRECT("'" & $B37 & "'!" & "$J$73"),"") ->  | J37: =IF(COUNT(INDIRECT("'" & $B37 & "'!" & "$B$2"))=1,INDIRECT("'" & $B37 & "'!" & "$K$73"),"") ->  | K37: =IF(COUNT(INDIRECT("'" & $B37 & "'!" & "$B$2"))=1,INDIRECT("'" & $B37 & "'!" & "$M$73"),"") ->  | L37: =IF(COUNT(INDIRECT("'" & $B37 & "'!" & "$B$2"))=1,INDIRECT("'" & $B37 & "'!" & "$N$73"),"") ->  | M37: =IF(COUNT(INDIRECT("'" & $B37 & "'!" & "$B$2"))=1,INDIRECT("'" & $B37 & "'!" & "$O$73"),"") ->  | N37: =IF(COUNT(INDIRECT("'" & $B37 & "'!" & "$B$2"))=1,INDIRECT("'" & $B37 & "'!" & "$R$73"),"") ->  | O37: =IF(COUNT(INDIRECT("'" & $B37 & "'!" & "$B$2"))=1,INDIRECT("'" & $B37 & "'!" & "$S$73"),"") ->  | P37: =IF(COUNT(INDIRECT("'" & $B37 & "'!" & "$B$2"))=1,INDIRECT("'" & $B37 & "'!" & "$T$73"),"") -> 
A38: 34 | B38: =IF(UTL2_PA!$B38=0,"",UTL2_PA!$B38) -> Ken Hanover | C38: =IF(COUNT(INDIRECT("'" & $B38 & "'!" & "$B$2"))=1,INDIRECT("'" & $B38 & "'!" & "$C$73"),"") ->  | D38: =IF(COUNT(INDIRECT("'" & $B38 & "'!" & "$B$2"))=1,INDIRECT("'" & $B38 & "'!" & "$D$73"),"") ->  | E38: =IF(COUNT(INDIRECT("'" & $B38 & "'!" & "$B$2"))=1,INDIRECT("'" & $B38 & "'!" & "$E$73"),"") ->  | F38: =IF(COUNT(INDIRECT("'" & $B38 & "'!" & "$S$2"))=1,INDIRECT("'" & B38 & "'!" & "$s$2"),"") -> 18 | G38: =IF(COUNT(INDIRECT("'" & $B38 & "'!" & "$B$2"))=1,INDIRECT("'" & $B38 & "'!" & "$G$73"),"") -> 13 | H38: =IF(COUNT(INDIRECT("'" & $B38 & "'!" & "$B$2"))=1,INDIRECT("'" & $B38 & "'!" & "$I$73"),"") ->  | I38: =IF(COUNT(INDIRECT("'" & $B38 & "'!" & "$B$2"))=1,INDIRECT("'" & $B38 & "'!" & "$J$73"),"") ->  | J38: =IF(COUNT(INDIRECT("'" & $B38 & "'!" & "$B$2"))=1,INDIRECT("'" & $B38 & "'!" & "$K$73"),"") -> 18 | K38: =IF(COUNT(INDIRECT("'" & $B38 & "'!" & "$B$2"))=1,INDIRECT("'" & $B38 & "'!" & "$M$73"),"") ->  | L38: =IF(COUNT(INDIRECT("'" & $B38 & "'!" & "$B$2"))=1,INDIRECT("'" & $B38 & "'!" & "$N$73"),"") ->  | M38: =IF(COUNT(INDIRECT("'" & $B38 & "'!" & "$B$2"))=1,INDIRECT("'" & $B38 & "'!" & "$O$73"),"") ->  | N38: =IF(COUNT(INDIRECT("'" & $B38 & "'!" & "$B$2"))=1,INDIRECT("'" & $B38 & "'!" & "$R$73"),"") -> 18 | O38: =IF(COUNT(INDIRECT("'" & $B38 & "'!" & "$B$2"))=1,INDIRECT("'" & $B38 & "'!" & "$S$73"),"") ->  | P38: =IF(COUNT(INDIRECT("'" & $B38 & "'!" & "$B$2"))=1,INDIRECT("'" & $B38 & "'!" & "$T$73"),"") -> 
A39: 35 | B39: =IF(UTL2_PA!$B39=0,"",UTL2_PA!$B39) -> Mat Hanover | C39: =IF(COUNT(INDIRECT("'" & $B39 & "'!" & "$B$2"))=1,INDIRECT("'" & $B39 & "'!" & "$C$73"),"") ->  | D39: =IF(COUNT(INDIRECT("'" & $B39 & "'!" & "$B$2"))=1,INDIRECT("'" & $B39 & "'!" & "$D$73"),"") ->  | E39: =IF(COUNT(INDIRECT("'" & $B39 & "'!" & "$B$2"))=1,INDIRECT("'" & $B39 & "'!" & "$E$73"),"") ->  | F39: =IF(COUNT(INDIRECT("'" & $B39 & "'!" & "$S$2"))=1,INDIRECT("'" & B39 & "'!" & "$s$2"),"") ->  | G39: =IF(COUNT(INDIRECT("'" & $B39 & "'!" & "$B$2"))=1,INDIRECT("'" & $B39 & "'!" & "$G$73"),"") ->  | H39: =IF(COUNT(INDIRECT("'" & $B39 & "'!" & "$B$2"))=1,INDIRECT("'" & $B39 & "'!" & "$I$73"),"") ->  | I39: =IF(COUNT(INDIRECT("'" & $B39 & "'!" & "$B$2"))=1,INDIRECT("'" & $B39 & "'!" & "$J$73"),"") ->  | J39: =IF(COUNT(INDIRECT("'" & $B39 & "'!" & "$B$2"))=1,INDIRECT("'" & $B39 & "'!" & "$K$73"),"") ->  | K39: =IF(COUNT(INDIRECT("'" & $B39 & "'!" & "$B$2"))=1,INDIRECT("'" & $B39 & "'!" & "$M$73"),"") ->  | L39: =IF(COUNT(INDIRECT("'" & $B39 & "'!" & "$B$2"))=1,INDIRECT("'" & $B39 & "'!" & "$N$73"),"") ->  | M39: =IF(COUNT(INDIRECT("'" & $B39 & "'!" & "$B$2"))=1,INDIRECT("'" & $B39 & "'!" & "$O$73"),"") ->  | N39: =IF(COUNT(INDIRECT("'" & $B39 & "'!" & "$B$2"))=1,INDIRECT("'" & $B39 & "'!" & "$R$73"),"") ->  | O39: =IF(COUNT(INDIRECT("'" & $B39 & "'!" & "$B$2"))=1,INDIRECT("'" & $B39 & "'!" & "$S$73"),"") ->  | P39: =IF(COUNT(INDIRECT("'" & $B39 & "'!" & "$B$2"))=1,INDIRECT("'" & $B39 & "'!" & "$T$73"),"") -> 
A40: 36 | B40: =IF(UTL2_PA!$B40=0,"",UTL2_PA!$B40) -> Dom Mata | C40: =IF(COUNT(INDIRECT("'" & $B40 & "'!" & "$B$2"))=1,INDIRECT("'" & $B40 & "'!" & "$C$73"),"") ->  | D40: =IF(COUNT(INDIRECT("'" & $B40 & "'!" & "$B$2"))=1,INDIRECT("'" & $B40 & "'!" & "$D$73"),"") ->  | E40: =IF(COUNT(INDIRECT("'" & $B40 & "'!" & "$B$2"))=1,INDIRECT("'" & $B40 & "'!" & "$E$73"),"") -> 7 | F40: =IF(COUNT(INDIRECT("'" & $B40 & "'!" & "$S$2"))=1,INDIRECT("'" & B40 & "'!" & "$s$2"),"") -> 10 | G40: =IF(COUNT(INDIRECT("'" & $B40 & "'!" & "$B$2"))=1,INDIRECT("'" & $B40 & "'!" & "$G$73"),"") ->  | H40: =IF(COUNT(INDIRECT("'" & $B40 & "'!" & "$B$2"))=1,INDIRECT("'" & $B40 & "'!" & "$I$73"),"") ->  | I40: =IF(COUNT(INDIRECT("'" & $B40 & "'!" & "$B$2"))=1,INDIRECT("'" & $B40 & "'!" & "$J$73"),"") ->  | J40: =IF(COUNT(INDIRECT("'" & $B40 & "'!" & "$B$2"))=1,INDIRECT("'" & $B40 & "'!" & "$K$73"),"") ->  | K40: =IF(COUNT(INDIRECT("'" & $B40 & "'!" & "$B$2"))=1,INDIRECT("'" & $B40 & "'!" & "$M$73"),"") ->  | L40: =IF(COUNT(INDIRECT("'" & $B40 & "'!" & "$B$2"))=1,INDIRECT("'" & $B40 & "'!" & "$N$73"),"") ->  | M40: =IF(COUNT(INDIRECT("'" & $B40 & "'!" & "$B$2"))=1,INDIRECT("'" & $B40 & "'!" & "$O$73"),"") -> 7 | N40: =IF(COUNT(INDIRECT("'" & $B40 & "'!" & "$B$2"))=1,INDIRECT("'" & $B40 & "'!" & "$R$73"),"") ->  | O40: =IF(COUNT(INDIRECT("'" & $B40 & "'!" & "$B$2"))=1,INDIRECT("'" & $B40 & "'!" & "$S$73"),"") ->  | P40: =IF(COUNT(INDIRECT("'" & $B40 & "'!" & "$B$2"))=1,INDIRECT("'" & $B40 & "'!" & "$T$73"),"") -> 
A41: 37 | B41: =IF(UTL2_PA!$B41=0,"",UTL2_PA!$B41) -> Tom Woodard | C41: =IF(COUNT(INDIRECT("'" & $B41 & "'!" & "$B$2"))=1,INDIRECT("'" & $B41 & "'!" & "$C$73"),"") ->  | D41: =IF(COUNT(INDIRECT("'" & $B41 & "'!" & "$B$2"))=1,INDIRECT("'" & $B41 & "'!" & "$D$73"),"") -> 9 | E41: =IF(COUNT(INDIRECT("'" & $B41 & "'!" & "$B$2"))=1,INDIRECT("'" & $B41 & "'!" & "$E$73"),"") ->  | F41: =IF(COUNT(INDIRECT("'" & $B41 & "'!" & "$S$2"))=1,INDIRECT("'" & B41 & "'!" & "$s$2"),"") -> 27 | G41: =IF(COUNT(INDIRECT("'" & $B41 & "'!" & "$B$2"))=1,INDIRECT("'" & $B41 & "'!" & "$G$73"),"") ->  | H41: =IF(COUNT(INDIRECT("'" & $B41 & "'!" & "$B$2"))=1,INDIRECT("'" & $B41 & "'!" & "$I$73"),"") ->  | I41: =IF(COUNT(INDIRECT("'" & $B41 & "'!" & "$B$2"))=1,INDIRECT("'" & $B41 & "'!" & "$J$73"),"") ->  | J41: =IF(COUNT(INDIRECT("'" & $B41 & "'!" & "$B$2"))=1,INDIRECT("'" & $B41 & "'!" & "$K$73"),"") ->  | K41: =IF(COUNT(INDIRECT("'" & $B41 & "'!" & "$B$2"))=1,INDIRECT("'" & $B41 & "'!" & "$M$73"),"") ->  | L41: =IF(COUNT(INDIRECT("'" & $B41 & "'!" & "$B$2"))=1,INDIRECT("'" & $B41 & "'!" & "$N$73"),"") ->  | M41: =IF(COUNT(INDIRECT("'" & $B41 & "'!" & "$B$2"))=1,INDIRECT("'" & $B41 & "'!" & "$O$73"),"") ->  | N41: =IF(COUNT(INDIRECT("'" & $B41 & "'!" & "$B$2"))=1,INDIRECT("'" & $B41 & "'!" & "$R$73"),"") ->  | O41: =IF(COUNT(INDIRECT("'" & $B41 & "'!" & "$B$2"))=1,INDIRECT("'" & $B41 & "'!" & "$S$73"),"") ->  | P41: =IF(COUNT(INDIRECT("'" & $B41 & "'!" & "$B$2"))=1,INDIRECT("'" & $B41 & "'!" & "$T$73"),"") -> 
A42: 38 | B42: =IF(UTL2_PA!$B42=0,"",UTL2_PA!$B42) -> Patty Green | C42: =IF(COUNT(INDIRECT("'" & $B42 & "'!" & "$B$2"))=1,INDIRECT("'" & $B42 & "'!" & "$C$73"),"") ->  | D42: =IF(COUNT(INDIRECT("'" & $B42 & "'!" & "$B$2"))=1,INDIRECT("'" & $B42 & "'!" & "$D$73"),"") ->  | E42: =IF(COUNT(INDIRECT("'" & $B42 & "'!" & "$B$2"))=1,INDIRECT("'" & $B42 & "'!" & "$E$73"),"") ->  | F42: =IF(COUNT(INDIRECT("'" & $B42 & "'!" & "$S$2"))=1,INDIRECT("'" & B42 & "'!" & "$s$2"),"") ->  | G42: =IF(COUNT(INDIRECT("'" & $B42 & "'!" & "$B$2"))=1,INDIRECT("'" & $B42 & "'!" & "$G$73"),"") ->  | H42: =IF(COUNT(INDIRECT("'" & $B42 & "'!" & "$B$2"))=1,INDIRECT("'" & $B42 & "'!" & "$I$73"),"") ->  | I42: =IF(COUNT(INDIRECT("'" & $B42 & "'!" & "$B$2"))=1,INDIRECT("'" & $B42 & "'!" & "$J$73"),"") ->  | J42: =IF(COUNT(INDIRECT("'" & $B42 & "'!" & "$B$2"))=1,INDIRECT("'" & $B42 & "'!" & "$K$73"),"") ->  | K42: =IF(COUNT(INDIRECT("'" & $B42 & "'!" & "$B$2"))=1,INDIRECT("'" & $B42 & "'!" & "$M$73"),"") ->  | L42: =IF(COUNT(INDIRECT("'" & $B42 & "'!" & "$B$2"))=1,INDIRECT("'" & $B42 & "'!" & "$N$73"),"") ->  | M42: =IF(COUNT(INDIRECT("'" & $B42 & "'!" & "$B$2"))=1,INDIRECT("'" & $B42 & "'!" & "$O$73"),"") ->  | N42: =IF(COUNT(INDIRECT("'" & $B42 & "'!" & "$B$2"))=1,INDIRECT("'" & $B42 & "'!" & "$R$73"),"") ->  | O42: =IF(COUNT(INDIRECT("'" & $B42 & "'!" & "$B$2"))=1,INDIRECT("'" & $B42 & "'!" & "$S$73"),"") ->  | P42: =IF(COUNT(INDIRECT("'" & $B42 & "'!" & "$B$2"))=1,INDIRECT("'" & $B42 & "'!" & "$T$73"),"") -> 
A43: 39 | B43: =IF(UTL2_PA!$B43=0,"",UTL2_PA!$B43) -> Ron Plasse | C43: =IF(COUNT(INDIRECT("'" & $B43 & "'!" & "$B$2"))=1,INDIRECT("'" & $B43 & "'!" & "$C$73"),"") ->  | D43: =IF(COUNT(INDIRECT("'" & $B43 & "'!" & "$B$2"))=1,INDIRECT("'" & $B43 & "'!" & "$D$73"),"") ->  | E43: =IF(COUNT(INDIRECT("'" & $B43 & "'!" & "$B$2"))=1,INDIRECT("'" & $B43 & "'!" & "$E$73"),"") ->  | F43: =IF(COUNT(INDIRECT("'" & $B43 & "'!" & "$S$2"))=1,INDIRECT("'" & B43 & "'!" & "$s$2"),"") -> 6 | G43: =IF(COUNT(INDIRECT("'" & $B43 & "'!" & "$B$2"))=1,INDIRECT("'" & $B43 & "'!" & "$G$73"),"") ->  | H43: =IF(COUNT(INDIRECT("'" & $B43 & "'!" & "$B$2"))=1,INDIRECT("'" & $B43 & "'!" & "$I$73"),"") ->  | I43: =IF(COUNT(INDIRECT("'" & $B43 & "'!" & "$B$2"))=1,INDIRECT("'" & $B43 & "'!" & "$J$73"),"") ->  | J43: =IF(COUNT(INDIRECT("'" & $B43 & "'!" & "$B$2"))=1,INDIRECT("'" & $B43 & "'!" & "$K$73"),"") ->  | K43: =IF(COUNT(INDIRECT("'" & $B43 & "'!" & "$B$2"))=1,INDIRECT("'" & $B43 & "'!" & "$M$73"),"") ->  | L43: =IF(COUNT(INDIRECT("'" & $B43 & "'!" & "$B$2"))=1,INDIRECT("'" & $B43 & "'!" & "$N$73"),"") ->  | M43: =IF(COUNT(INDIRECT("'" & $B43 & "'!" & "$B$2"))=1,INDIRECT("'" & $B43 & "'!" & "$O$73"),"") ->  | N43: =IF(COUNT(INDIRECT("'" & $B43 & "'!" & "$B$2"))=1,INDIRECT("'" & $B43 & "'!" & "$R$73"),"") ->  | O43: =IF(COUNT(INDIRECT("'" & $B43 & "'!" & "$B$2"))=1,INDIRECT("'" & $B43 & "'!" & "$S$73"),"") ->  | P43: =IF(COUNT(INDIRECT("'" & $B43 & "'!" & "$B$2"))=1,INDIRECT("'" & $B43 & "'!" & "$T$73"),"") -> 
A44: 40 | B44: =IF(UTL2_PA!$B44=0,"",UTL2_PA!$B44) -> Dick Harkey | C44: =IF(COUNT(INDIRECT("'" & $B44 & "'!" & "$B$2"))=1,INDIRECT("'" & $B44 & "'!" & "$C$73"),"") ->  | D44: =IF(COUNT(INDIRECT("'" & $B44 & "'!" & "$B$2"))=1,INDIRECT("'" & $B44 & "'!" & "$D$73"),"") ->  | E44: =IF(COUNT(INDIRECT("'" & $B44 & "'!" & "$B$2"))=1,INDIRECT("'" & $B44 & "'!" & "$E$73"),"") ->  | F44: =IF(COUNT(INDIRECT("'" & $B44 & "'!" & "$S$2"))=1,INDIRECT("'" & B44 & "'!" & "$s$2"),"") ->  | G44: =IF(COUNT(INDIRECT("'" & $B44 & "'!" & "$B$2"))=1,INDIRECT("'" & $B44 & "'!" & "$G$73"),"") ->  | H44: =IF(COUNT(INDIRECT("'" & $B44 & "'!" & "$B$2"))=1,INDIRECT("'" & $B44 & "'!" & "$I$73"),"") ->  | I44: =IF(COUNT(INDIRECT("'" & $B44 & "'!" & "$B$2"))=1,INDIRECT("'" & $B44 & "'!" & "$J$73"),"") ->  | J44: =IF(COUNT(INDIRECT("'" & $B44 & "'!" & "$B$2"))=1,INDIRECT("'" & $B44 & "'!" & "$K$73"),"") ->  | K44: =IF(COUNT(INDIRECT("'" & $B44 & "'!" & "$B$2"))=1,INDIRECT("'" & $B44 & "'!" & "$M$73"),"") ->  | L44: =IF(COUNT(INDIRECT("'" & $B44 & "'!" & "$B$2"))=1,INDIRECT("'" & $B44 & "'!" & "$N$73"),"") ->  | M44: =IF(COUNT(INDIRECT("'" & $B44 & "'!" & "$B$2"))=1,INDIRECT("'" & $B44 & "'!" & "$O$73"),"") ->  | N44: =IF(COUNT(INDIRECT("'" & $B44 & "'!" & "$B$2"))=1,INDIRECT("'" & $B44 & "'!" & "$R$73"),"") ->  | O44: =IF(COUNT(INDIRECT("'" & $B44 & "'!" & "$B$2"))=1,INDIRECT("'" & $B44 & "'!" & "$S$73"),"") ->  | P44: =IF(COUNT(INDIRECT("'" & $B44 & "'!" & "$B$2"))=1,INDIRECT("'" & $B44 & "'!" & "$T$73"),"") -> 
A45: 41 | B45: =IF(UTL2_PA!$B45=0,"",UTL2_PA!$B45) -> Carole Huygen | C45: =IF(COUNT(INDIRECT("'" & $B45 & "'!" & "$B$2"))=1,INDIRECT("'" & $B45 & "'!" & "$C$73"),"") ->  | D45: =IF(COUNT(INDIRECT("'" & $B45 & "'!" & "$B$2"))=1,INDIRECT("'" & $B45 & "'!" & "$D$73"),"") ->  | E45: =IF(COUNT(INDIRECT("'" & $B45 & "'!" & "$B$2"))=1,INDIRECT("'" & $B45 & "'!" & "$E$73"),"") -> 15 | F45: =IF(COUNT(INDIRECT("'" & $B45 & "'!" & "$S$2"))=1,INDIRECT("'" & B45 & "'!" & "$s$2"),"") ->  | G45: =IF(COUNT(INDIRECT("'" & $B45 & "'!" & "$B$2"))=1,INDIRECT("'" & $B45 & "'!" & "$G$73"),"") ->  | H45: =IF(COUNT(INDIRECT("'" & $B45 & "'!" & "$B$2"))=1,INDIRECT("'" & $B45 & "'!" & "$I$73"),"") ->  | I45: =IF(COUNT(INDIRECT("'" & $B45 & "'!" & "$B$2"))=1,INDIRECT("'" & $B45 & "'!" & "$J$73"),"") ->  | J45: =IF(COUNT(INDIRECT("'" & $B45 & "'!" & "$B$2"))=1,INDIRECT("'" & $B45 & "'!" & "$K$73"),"") ->  | K45: =IF(COUNT(INDIRECT("'" & $B45 & "'!" & "$B$2"))=1,INDIRECT("'" & $B45 & "'!" & "$M$73"),"") ->  | L45: =IF(COUNT(INDIRECT("'" & $B45 & "'!" & "$B$2"))=1,INDIRECT("'" & $B45 & "'!" & "$N$73"),"") ->  | M45: =IF(COUNT(INDIRECT("'" & $B45 & "'!" & "$B$2"))=1,INDIRECT("'" & $B45 & "'!" & "$O$73"),"") ->  | N45: =IF(COUNT(INDIRECT("'" & $B45 & "'!" & "$B$2"))=1,INDIRECT("'" & $B45 & "'!" & "$R$73"),"") ->  | O45: =IF(COUNT(INDIRECT("'" & $B45 & "'!" & "$B$2"))=1,INDIRECT("'" & $B45 & "'!" & "$S$73"),"") ->  | P45: =IF(COUNT(INDIRECT("'" & $B45 & "'!" & "$B$2"))=1,INDIRECT("'" & $B45 & "'!" & "$T$73"),"") -> 
A46: 42 | B46: =IF(UTL2_PA!$B46=0,"",UTL2_PA!$B46) -> Jan Askew | C46: =IF(COUNT(INDIRECT("'" & $B46 & "'!" & "$B$2"))=1,INDIRECT("'" & $B46 & "'!" & "$C$73"),"") ->  | D46: =IF(COUNT(INDIRECT("'" & $B46 & "'!" & "$B$2"))=1,INDIRECT("'" & $B46 & "'!" & "$D$73"),"") -> 11 | E46: =IF(COUNT(INDIRECT("'" & $B46 & "'!" & "$B$2"))=1,INDIRECT("'" & $B46 & "'!" & "$E$73"),"") ->  | F46: =IF(COUNT(INDIRECT("'" & $B46 & "'!" & "$S$2"))=1,INDIRECT("'" & B46 & "'!" & "$s$2"),"") ->  | G46: =IF(COUNT(INDIRECT("'" & $B46 & "'!" & "$B$2"))=1,INDIRECT("'" & $B46 & "'!" & "$G$73"),"") ->  | H46: =IF(COUNT(INDIRECT("'" & $B46 & "'!" & "$B$2"))=1,INDIRECT("'" & $B46 & "'!" & "$I$73"),"") ->  | I46: =IF(COUNT(INDIRECT("'" & $B46 & "'!" & "$B$2"))=1,INDIRECT("'" & $B46 & "'!" & "$J$73"),"") ->  | J46: =IF(COUNT(INDIRECT("'" & $B46 & "'!" & "$B$2"))=1,INDIRECT("'" & $B46 & "'!" & "$K$73"),"") ->  | K46: =IF(COUNT(INDIRECT("'" & $B46 & "'!" & "$B$2"))=1,INDIRECT("'" & $B46 & "'!" & "$M$73"),"") ->  | L46: =IF(COUNT(INDIRECT("'" & $B46 & "'!" & "$B$2"))=1,INDIRECT("'" & $B46 & "'!" & "$N$73"),"") -> 19 | M46: =IF(COUNT(INDIRECT("'" & $B46 & "'!" & "$B$2"))=1,INDIRECT("'" & $B46 & "'!" & "$O$73"),"") ->  | N46: =IF(COUNT(INDIRECT("'" & $B46 & "'!" & "$B$2"))=1,INDIRECT("'" & $B46 & "'!" & "$R$73"),"") ->  | O46: =IF(COUNT(INDIRECT("'" & $B46 & "'!" & "$B$2"))=1,INDIRECT("'" & $B46 & "'!" & "$S$73"),"") ->  | P46: =IF(COUNT(INDIRECT("'" & $B46 & "'!" & "$B$2"))=1,INDIRECT("'" & $B46 & "'!" & "$T$73"),"") -> 
A47: 43 | B47: =IF(UTL2_PA!$B47=0,"",UTL2_PA!$B47) -> Cindy McElrath | C47: =IF(COUNT(INDIRECT("'" & $B47 & "'!" & "$B$2"))=1,INDIRECT("'" & $B47 & "'!" & "$C$73"),"") ->  | D47: =IF(COUNT(INDIRECT("'" & $B47 & "'!" & "$B$2"))=1,INDIRECT("'" & $B47 & "'!" & "$D$73"),"") ->  | E47: =IF(COUNT(INDIRECT("'" & $B47 & "'!" & "$B$2"))=1,INDIRECT("'" & $B47 & "'!" & "$E$73"),"") ->  | F47: =IF(COUNT(INDIRECT("'" & $B47 & "'!" & "$S$2"))=1,INDIRECT("'" & B47 & "'!" & "$s$2"),"") ->  | G47: =IF(COUNT(INDIRECT("'" & $B47 & "'!" & "$B$2"))=1,INDIRECT("'" & $B47 & "'!" & "$G$73"),"") -> 8 | H47: =IF(COUNT(INDIRECT("'" & $B47 & "'!" & "$B$2"))=1,INDIRECT("'" & $B47 & "'!" & "$I$73"),"") ->  | I47: =IF(COUNT(INDIRECT("'" & $B47 & "'!" & "$B$2"))=1,INDIRECT("'" & $B47 & "'!" & "$J$73"),"") ->  | J47: =IF(COUNT(INDIRECT("'" & $B47 & "'!" & "$B$2"))=1,INDIRECT("'" & $B47 & "'!" & "$K$73"),"") -> 8 | K47: =IF(COUNT(INDIRECT("'" & $B47 & "'!" & "$B$2"))=1,INDIRECT("'" & $B47 & "'!" & "$M$73"),"") ->  | L47: =IF(COUNT(INDIRECT("'" & $B47 & "'!" & "$B$2"))=1,INDIRECT("'" & $B47 & "'!" & "$N$73"),"") ->  | M47: =IF(COUNT(INDIRECT("'" & $B47 & "'!" & "$B$2"))=1,INDIRECT("'" & $B47 & "'!" & "$O$73"),"") ->  | N47: =IF(COUNT(INDIRECT("'" & $B47 & "'!" & "$B$2"))=1,INDIRECT("'" & $B47 & "'!" & "$R$73"),"") ->  | O47: =IF(COUNT(INDIRECT("'" & $B47 & "'!" & "$B$2"))=1,INDIRECT("'" & $B47 & "'!" & "$S$73"),"") ->  | P47: =IF(COUNT(INDIRECT("'" & $B47 & "'!" & "$B$2"))=1,INDIRECT("'" & $B47 & "'!" & "$T$73"),"") -> 
A48: 44 | B48: =IF(UTL2_PA!$B48=0,"",UTL2_PA!$B48) -> Matt Clark | C48: =IF(COUNT(INDIRECT("'" & $B48 & "'!" & "$B$2"))=1,INDIRECT("'" & $B48 & "'!" & "$C$73"),"") ->  | D48: =IF(COUNT(INDIRECT("'" & $B48 & "'!" & "$B$2"))=1,INDIRECT("'" & $B48 & "'!" & "$D$73"),"") ->  | E48: =IF(COUNT(INDIRECT("'" & $B48 & "'!" & "$B$2"))=1,INDIRECT("'" & $B48 & "'!" & "$E$73"),"") ->  | F48: =IF(COUNT(INDIRECT("'" & $B48 & "'!" & "$S$2"))=1,INDIRECT("'" & B48 & "'!" & "$s$2"),"") ->  | G48: =IF(COUNT(INDIRECT("'" & $B48 & "'!" & "$B$2"))=1,INDIRECT("'" & $B48 & "'!" & "$G$73"),"") -> 21 | H48: =IF(COUNT(INDIRECT("'" & $B48 & "'!" & "$B$2"))=1,INDIRECT("'" & $B48 & "'!" & "$I$73"),"") -> 14 | I48: =IF(COUNT(INDIRECT("'" & $B48 & "'!" & "$B$2"))=1,INDIRECT("'" & $B48 & "'!" & "$J$73"),"") ->  | J48: =IF(COUNT(INDIRECT("'" & $B48 & "'!" & "$B$2"))=1,INDIRECT("'" & $B48 & "'!" & "$K$73"),"") -> 14 | K48: =IF(COUNT(INDIRECT("'" & $B48 & "'!" & "$B$2"))=1,INDIRECT("'" & $B48 & "'!" & "$M$73"),"") ->  | L48: =IF(COUNT(INDIRECT("'" & $B48 & "'!" & "$B$2"))=1,INDIRECT("'" & $B48 & "'!" & "$N$73"),"") ->  | M48: =IF(COUNT(INDIRECT("'" & $B48 & "'!" & "$B$2"))=1,INDIRECT("'" & $B48 & "'!" & "$O$73"),"") ->  | N48: =IF(COUNT(INDIRECT("'" & $B48 & "'!" & "$B$2"))=1,INDIRECT("'" & $B48 & "'!" & "$R$73"),"") -> 8 | O48: =IF(COUNT(INDIRECT("'" & $B48 & "'!" & "$B$2"))=1,INDIRECT("'" & $B48 & "'!" & "$S$73"),"") ->  | P48: =IF(COUNT(INDIRECT("'" & $B48 & "'!" & "$B$2"))=1,INDIRECT("'" & $B48 & "'!" & "$T$73"),"") -> 
A49: 45 | B49: =IF(UTL2_PA!$B49=0,"",UTL2_PA!$B49) -> Sara Nerius | C49: =IF(COUNT(INDIRECT("'" & $B49 & "'!" & "$B$2"))=1,INDIRECT("'" & $B49 & "'!" & "$C$73"),"") ->  | D49: =IF(COUNT(INDIRECT("'" & $B49 & "'!" & "$B$2"))=1,INDIRECT("'" & $B49 & "'!" & "$D$73"),"") ->  | E49: =IF(COUNT(INDIRECT("'" & $B49 & "'!" & "$B$2"))=1,INDIRECT("'" & $B49 & "'!" & "$E$73"),"") -> 10 | F49: =IF(COUNT(INDIRECT("'" & $B49 & "'!" & "$S$2"))=1,INDIRECT("'" & B49 & "'!" & "$s$2"),"") ->  | G49: =IF(COUNT(INDIRECT("'" & $B49 & "'!" & "$B$2"))=1,INDIRECT("'" & $B49 & "'!" & "$G$73"),"") ->  | H49: =IF(COUNT(INDIRECT("'" & $B49 & "'!" & "$B$2"))=1,INDIRECT("'" & $B49 & "'!" & "$I$73"),"") ->  | I49: =IF(COUNT(INDIRECT("'" & $B49 & "'!" & "$B$2"))=1,INDIRECT("'" & $B49 & "'!" & "$J$73"),"") ->  | J49: =IF(COUNT(INDIRECT("'" & $B49 & "'!" & "$B$2"))=1,INDIRECT("'" & $B49 & "'!" & "$K$73"),"") ->  | K49: =IF(COUNT(INDIRECT("'" & $B49 & "'!" & "$B$2"))=1,INDIRECT("'" & $B49 & "'!" & "$M$73"),"") ->  | L49: =IF(COUNT(INDIRECT("'" & $B49 & "'!" & "$B$2"))=1,INDIRECT("'" & $B49 & "'!" & "$N$73"),"") ->  | M49: =IF(COUNT(INDIRECT("'" & $B49 & "'!" & "$B$2"))=1,INDIRECT("'" & $B49 & "'!" & "$O$73"),"") -> 10 | N49: =IF(COUNT(INDIRECT("'" & $B49 & "'!" & "$B$2"))=1,INDIRECT("'" & $B49 & "'!" & "$R$73"),"") ->  | O49: =IF(COUNT(INDIRECT("'" & $B49 & "'!" & "$B$2"))=1,INDIRECT("'" & $B49 & "'!" & "$S$73"),"") ->  | P49: =IF(COUNT(INDIRECT("'" & $B49 & "'!" & "$B$2"))=1,INDIRECT("'" & $B49 & "'!" & "$T$73"),"") -> 
A50: 46 | B50: =IF(UTL2_PA!$B50=0,"",UTL2_PA!$B50) -> Tammy Kummer | C50: =IF(COUNT(INDIRECT("'" & $B50 & "'!" & "$B$2"))=1,INDIRECT("'" & $B50 & "'!" & "$C$73"),"") ->  | D50: =IF(COUNT(INDIRECT("'" & $B50 & "'!" & "$B$2"))=1,INDIRECT("'" & $B50 & "'!" & "$D$73"),"") ->  | E50: =IF(COUNT(INDIRECT("'" & $B50 & "'!" & "$B$2"))=1,INDIRECT("'" & $B50 & "'!" & "$E$73"),"") ->  | F50: =IF(COUNT(INDIRECT("'" & $B50 & "'!" & "$S$2"))=1,INDIRECT("'" & B50 & "'!" & "$s$2"),"") ->  | G50: =IF(COUNT(INDIRECT("'" & $B50 & "'!" & "$B$2"))=1,INDIRECT("'" & $B50 & "'!" & "$G$73"),"") ->  | H50: =IF(COUNT(INDIRECT("'" & $B50 & "'!" & "$B$2"))=1,INDIRECT("'" & $B50 & "'!" & "$I$73"),"") ->  | I50: =IF(COUNT(INDIRECT("'" & $B50 & "'!" & "$B$2"))=1,INDIRECT("'" & $B50 & "'!" & "$J$73"),"") ->  | J50: =IF(COUNT(INDIRECT("'" & $B50 & "'!" & "$B$2"))=1,INDIRECT("'" & $B50 & "'!" & "$K$73"),"") ->  | K50: =IF(COUNT(INDIRECT("'" & $B50 & "'!" & "$B$2"))=1,INDIRECT("'" & $B50 & "'!" & "$M$73"),"") ->  | L50: =IF(COUNT(INDIRECT("'" & $B50 & "'!" & "$B$2"))=1,INDIRECT("'" & $B50 & "'!" & "$N$73"),"") ->  | M50: =IF(COUNT(INDIRECT("'" & $B50 & "'!" & "$B$2"))=1,INDIRECT("'" & $B50 & "'!" & "$O$73"),"") ->  | N50: =IF(COUNT(INDIRECT("'" & $B50 & "'!" & "$B$2"))=1,INDIRECT("'" & $B50 & "'!" & "$R$73"),"") ->  | O50: =IF(COUNT(INDIRECT("'" & $B50 & "'!" & "$B$2"))=1,INDIRECT("'" & $B50 & "'!" & "$S$73"),"") ->  | P50: =IF(COUNT(INDIRECT("'" & $B50 & "'!" & "$B$2"))=1,INDIRECT("'" & $B50 & "'!" & "$T$73"),"") -> 
A51: 47 | B51: =IF(UTL2_PA!$B51=0,"",UTL2_PA!$B51) -> Brian Wibben | C51: =IF(COUNT(INDIRECT("'" & $B51 & "'!" & "$B$2"))=1,INDIRECT("'" & $B51 & "'!" & "$C$73"),"") ->  | D51: =IF(COUNT(INDIRECT("'" & $B51 & "'!" & "$B$2"))=1,INDIRECT("'" & $B51 & "'!" & "$D$73"),"") ->  | E51: =IF(COUNT(INDIRECT("'" & $B51 & "'!" & "$B$2"))=1,INDIRECT("'" & $B51 & "'!" & "$E$73"),"") ->  | F51: =IF(COUNT(INDIRECT("'" & $B51 & "'!" & "$S$2"))=1,INDIRECT("'" & B51 & "'!" & "$s$2"),"") ->  | G51: =IF(COUNT(INDIRECT("'" & $B51 & "'!" & "$B$2"))=1,INDIRECT("'" & $B51 & "'!" & "$G$73"),"") -> 11 | H51: =IF(COUNT(INDIRECT("'" & $B51 & "'!" & "$B$2"))=1,INDIRECT("'" & $B51 & "'!" & "$I$73"),"") ->  | I51: =IF(COUNT(INDIRECT("'" & $B51 & "'!" & "$B$2"))=1,INDIRECT("'" & $B51 & "'!" & "$J$73"),"") ->  | J51: =IF(COUNT(INDIRECT("'" & $B51 & "'!" & "$B$2"))=1,INDIRECT("'" & $B51 & "'!" & "$K$73"),"") ->  | K51: =IF(COUNT(INDIRECT("'" & $B51 & "'!" & "$B$2"))=1,INDIRECT("'" & $B51 & "'!" & "$M$73"),"") ->  | L51: =IF(COUNT(INDIRECT("'" & $B51 & "'!" & "$B$2"))=1,INDIRECT("'" & $B51 & "'!" & "$N$73"),"") ->  | M51: =IF(COUNT(INDIRECT("'" & $B51 & "'!" & "$B$2"))=1,INDIRECT("'" & $B51 & "'!" & "$O$73"),"") ->  | N51: =IF(COUNT(INDIRECT("'" & $B51 & "'!" & "$B$2"))=1,INDIRECT("'" & $B51 & "'!" & "$R$73"),"") ->  | O51: =IF(COUNT(INDIRECT("'" & $B51 & "'!" & "$B$2"))=1,INDIRECT("'" & $B51 & "'!" & "$S$73"),"") ->  | P51: =IF(COUNT(INDIRECT("'" & $B51 & "'!" & "$B$2"))=1,INDIRECT("'" & $B51 & "'!" & "$T$73"),"") -> 
A52: 48 | B52: =IF(UTL2_PA!$B52=0,"",UTL2_PA!$B52) -> Tyler Hunt | C52: =IF(COUNT(INDIRECT("'" & $B52 & "'!" & "$B$2"))=1,INDIRECT("'" & $B52 & "'!" & "$C$73"),"") ->  | D52: =IF(COUNT(INDIRECT("'" & $B52 & "'!" & "$B$2"))=1,INDIRECT("'" & $B52 & "'!" & "$D$73"),"") ->  | E52: =IF(COUNT(INDIRECT("'" & $B52 & "'!" & "$B$2"))=1,INDIRECT("'" & $B52 & "'!" & "$E$73"),"") ->  | F52: =IF(COUNT(INDIRECT("'" & $B52 & "'!" & "$S$2"))=1,INDIRECT("'" & B52 & "'!" & "$s$2"),"") ->  | G52: =IF(COUNT(INDIRECT("'" & $B52 & "'!" & "$B$2"))=1,INDIRECT("'" & $B52 & "'!" & "$G$73"),"") -> 16 | H52: =IF(COUNT(INDIRECT("'" & $B52 & "'!" & "$B$2"))=1,INDIRECT("'" & $B52 & "'!" & "$I$73"),"") ->  | I52: =IF(COUNT(INDIRECT("'" & $B52 & "'!" & "$B$2"))=1,INDIRECT("'" & $B52 & "'!" & "$J$73"),"") -> 25 | J52: =IF(COUNT(INDIRECT("'" & $B52 & "'!" & "$B$2"))=1,INDIRECT("'" & $B52 & "'!" & "$K$73"),"") -> 25 | K52: =IF(COUNT(INDIRECT("'" & $B52 & "'!" & "$B$2"))=1,INDIRECT("'" & $B52 & "'!" & "$M$73"),"") ->  | L52: =IF(COUNT(INDIRECT("'" & $B52 & "'!" & "$B$2"))=1,INDIRECT("'" & $B52 & "'!" & "$N$73"),"") ->  | M52: =IF(COUNT(INDIRECT("'" & $B52 & "'!" & "$B$2"))=1,INDIRECT("'" & $B52 & "'!" & "$O$73"),"") ->  | N52: =IF(COUNT(INDIRECT("'" & $B52 & "'!" & "$B$2"))=1,INDIRECT("'" & $B52 & "'!" & "$R$73"),"") ->  | O52: =IF(COUNT(INDIRECT("'" & $B52 & "'!" & "$B$2"))=1,INDIRECT("'" & $B52 & "'!" & "$S$73"),"") ->  | P52: =IF(COUNT(INDIRECT("'" & $B52 & "'!" & "$B$2"))=1,INDIRECT("'" & $B52 & "'!" & "$T$73"),"") -> 
A53: 49 | B53: =IF(UTL2_PA!$B53=0,"",UTL2_PA!$B53) -> Kaliq Cooper | C53: =IF(COUNT(INDIRECT("'" & $B53 & "'!" & "$B$2"))=1,INDIRECT("'" & $B53 & "'!" & "$C$73"),"") ->  | D53: =IF(COUNT(INDIRECT("'" & $B53 & "'!" & "$B$2"))=1,INDIRECT("'" & $B53 & "'!" & "$D$73"),"") ->  | E53: =IF(COUNT(INDIRECT("'" & $B53 & "'!" & "$B$2"))=1,INDIRECT("'" & $B53 & "'!" & "$E$73"),"") -> 19 | F53: =IF(COUNT(INDIRECT("'" & $B53 & "'!" & "$S$2"))=1,INDIRECT("'" & B53 & "'!" & "$s$2"),"") ->  | G53: =IF(COUNT(INDIRECT("'" & $B53 & "'!" & "$B$2"))=1,INDIRECT("'" & $B53 & "'!" & "$G$73"),"") ->  | H53: =IF(COUNT(INDIRECT("'" & $B53 & "'!" & "$B$2"))=1,INDIRECT("'" & $B53 & "'!" & "$I$73"),"") ->  | I53: =IF(COUNT(INDIRECT("'" & $B53 & "'!" & "$B$2"))=1,INDIRECT("'" & $B53 & "'!" & "$J$73"),"") ->  | J53: =IF(COUNT(INDIRECT("'" & $B53 & "'!" & "$B$2"))=1,INDIRECT("'" & $B53 & "'!" & "$K$73"),"") ->  | K53: =IF(COUNT(INDIRECT("'" & $B53 & "'!" & "$B$2"))=1,INDIRECT("'" & $B53 & "'!" & "$M$73"),"") ->  | L53: =IF(COUNT(INDIRECT("'" & $B53 & "'!" & "$B$2"))=1,INDIRECT("'" & $B53 & "'!" & "$N$73"),"") ->  | M53: =IF(COUNT(INDIRECT("'" & $B53 & "'!" & "$B$2"))=1,INDIRECT("'" & $B53 & "'!" & "$O$73"),"") ->  | N53: =IF(COUNT(INDIRECT("'" & $B53 & "'!" & "$B$2"))=1,INDIRECT("'" & $B53 & "'!" & "$R$73"),"") ->  | O53: =IF(COUNT(INDIRECT("'" & $B53 & "'!" & "$B$2"))=1,INDIRECT("'" & $B53 & "'!" & "$S$73"),"") ->  | P53: =IF(COUNT(INDIRECT("'" & $B53 & "'!" & "$B$2"))=1,INDIRECT("'" & $B53 & "'!" & "$T$73"),"") -> 
A54: 50 | B54: =IF(UTL2_PA!$B54=0,"",UTL2_PA!$B54) -> Victor Carreno | C54: =IF(COUNT(INDIRECT("'" & $B54 & "'!" & "$B$2"))=1,INDIRECT("'" & $B54 & "'!" & "$C$73"),"") ->  | D54: =IF(COUNT(INDIRECT("'" & $B54 & "'!" & "$B$2"))=1,INDIRECT("'" & $B54 & "'!" & "$D$73"),"") ->  | E54: =IF(COUNT(INDIRECT("'" & $B54 & "'!" & "$B$2"))=1,INDIRECT("'" & $B54 & "'!" & "$E$73"),"") ->  | F54: =IF(COUNT(INDIRECT("'" & $B54 & "'!" & "$S$2"))=1,INDIRECT("'" & B54 & "'!" & "$s$2"),"") ->  | G54: =IF(COUNT(INDIRECT("'" & $B54 & "'!" & "$B$2"))=1,INDIRECT("'" & $B54 & "'!" & "$G$73"),"") ->  | H54: =IF(COUNT(INDIRECT("'" & $B54 & "'!" & "$B$2"))=1,INDIRECT("'" & $B54 & "'!" & "$I$73"),"") ->  | I54: =IF(COUNT(INDIRECT("'" & $B54 & "'!" & "$B$2"))=1,INDIRECT("'" & $B54 & "'!" & "$J$73"),"") ->  | J54: =IF(COUNT(INDIRECT("'" & $B54 & "'!" & "$B$2"))=1,INDIRECT("'" & $B54 & "'!" & "$K$73"),"") ->  | K54: =IF(COUNT(INDIRECT("'" & $B54 & "'!" & "$B$2"))=1,INDIRECT("'" & $B54 & "'!" & "$M$73"),"") ->  | L54: =IF(COUNT(INDIRECT("'" & $B54 & "'!" & "$B$2"))=1,INDIRECT("'" & $B54 & "'!" & "$N$73"),"") ->  | M54: =IF(COUNT(INDIRECT("'" & $B54 & "'!" & "$B$2"))=1,INDIRECT("'" & $B54 & "'!" & "$O$73"),"") ->  | N54: =IF(COUNT(INDIRECT("'" & $B54 & "'!" & "$B$2"))=1,INDIRECT("'" & $B54 & "'!" & "$R$73"),"") ->  | O54: =IF(COUNT(INDIRECT("'" & $B54 & "'!" & "$B$2"))=1,INDIRECT("'" & $B54 & "'!" & "$S$73"),"") ->  | P54: =IF(COUNT(INDIRECT("'" & $B54 & "'!" & "$B$2"))=1,INDIRECT("'" & $B54 & "'!" & "$T$73"),"") -> 
A55: 51 | B55: =IF(UTL2_PA!$B55=0,"",UTL2_PA!$B55) -> Alan Hernandez | C55: =IF(COUNT(INDIRECT("'" & $B55 & "'!" & "$B$2"))=1,INDIRECT("'" & $B55 & "'!" & "$C$73"),"") ->  | D55: =IF(COUNT(INDIRECT("'" & $B55 & "'!" & "$B$2"))=1,INDIRECT("'" & $B55 & "'!" & "$D$73"),"") ->  | E55: =IF(COUNT(INDIRECT("'" & $B55 & "'!" & "$B$2"))=1,INDIRECT("'" & $B55 & "'!" & "$E$73"),"") ->  | F55: =IF(COUNT(INDIRECT("'" & $B55 & "'!" & "$S$2"))=1,INDIRECT("'" & B55 & "'!" & "$s$2"),"") ->  | G55: =IF(COUNT(INDIRECT("'" & $B55 & "'!" & "$B$2"))=1,INDIRECT("'" & $B55 & "'!" & "$G$73"),"") -> 6 | H55: =IF(COUNT(INDIRECT("'" & $B55 & "'!" & "$B$2"))=1,INDIRECT("'" & $B55 & "'!" & "$I$73"),"") -> 24 | I55: =IF(COUNT(INDIRECT("'" & $B55 & "'!" & "$B$2"))=1,INDIRECT("'" & $B55 & "'!" & "$J$73"),"") ->  | J55: =IF(COUNT(INDIRECT("'" & $B55 & "'!" & "$B$2"))=1,INDIRECT("'" & $B55 & "'!" & "$K$73"),"") ->  | K55: =IF(COUNT(INDIRECT("'" & $B55 & "'!" & "$B$2"))=1,INDIRECT("'" & $B55 & "'!" & "$M$73"),"") ->  | L55: =IF(COUNT(INDIRECT("'" & $B55 & "'!" & "$B$2"))=1,INDIRECT("'" & $B55 & "'!" & "$N$73"),"") ->  | M55: =IF(COUNT(INDIRECT("'" & $B55 & "'!" & "$B$2"))=1,INDIRECT("'" & $B55 & "'!" & "$O$73"),"") ->  | N55: =IF(COUNT(INDIRECT("'" & $B55 & "'!" & "$B$2"))=1,INDIRECT("'" & $B55 & "'!" & "$R$73"),"") ->  | O55: =IF(COUNT(INDIRECT("'" & $B55 & "'!" & "$B$2"))=1,INDIRECT("'" & $B55 & "'!" & "$S$73"),"") ->  | P55: =IF(COUNT(INDIRECT("'" & $B55 & "'!" & "$B$2"))=1,INDIRECT("'" & $B55 & "'!" & "$T$73"),"") -> 
A56: 52 | B56: =IF(UTL2_PA!$B56=0,"",UTL2_PA!$B56) -> Carlos Mayfield | C56: =IF(COUNT(INDIRECT("'" & $B56 & "'!" & "$B$2"))=1,INDIRECT("'" & $B56 & "'!" & "$C$73"),"") ->  | D56: =IF(COUNT(INDIRECT("'" & $B56 & "'!" & "$B$2"))=1,INDIRECT("'" & $B56 & "'!" & "$D$73"),"") ->  | E56: =IF(COUNT(INDIRECT("'" & $B56 & "'!" & "$B$2"))=1,INDIRECT("'" & $B56 & "'!" & "$E$73"),"") ->  | F56: =IF(COUNT(INDIRECT("'" & $B56 & "'!" & "$S$2"))=1,INDIRECT("'" & B56 & "'!" & "$s$2"),"") ->  | G56: =IF(COUNT(INDIRECT("'" & $B56 & "'!" & "$B$2"))=1,INDIRECT("'" & $B56 & "'!" & "$G$73"),"") ->  | H56: =IF(COUNT(INDIRECT("'" & $B56 & "'!" & "$B$2"))=1,INDIRECT("'" & $B56 & "'!" & "$I$73"),"") ->  | I56: =IF(COUNT(INDIRECT("'" & $B56 & "'!" & "$B$2"))=1,INDIRECT("'" & $B56 & "'!" & "$J$73"),"") ->  | J56: =IF(COUNT(INDIRECT("'" & $B56 & "'!" & "$B$2"))=1,INDIRECT("'" & $B56 & "'!" & "$K$73"),"") ->  | K56: =IF(COUNT(INDIRECT("'" & $B56 & "'!" & "$B$2"))=1,INDIRECT("'" & $B56 & "'!" & "$M$73"),"") ->  | L56: =IF(COUNT(INDIRECT("'" & $B56 & "'!" & "$B$2"))=1,INDIRECT("'" & $B56 & "'!" & "$N$73"),"") ->  | M56: =IF(COUNT(INDIRECT("'" & $B56 & "'!" & "$B$2"))=1,INDIRECT("'" & $B56 & "'!" & "$O$73"),"") -> 13 | N56: =IF(COUNT(INDIRECT("'" & $B56 & "'!" & "$B$2"))=1,INDIRECT("'" & $B56 & "'!" & "$R$73"),"") ->  | O56: =IF(COUNT(INDIRECT("'" & $B56 & "'!" & "$B$2"))=1,INDIRECT("'" & $B56 & "'!" & "$S$73"),"") ->  | P56: =IF(COUNT(INDIRECT("'" & $B56 & "'!" & "$B$2"))=1,INDIRECT("'" & $B56 & "'!" & "$T$73"),"") -> 
A57: 53 | B57: =IF(UTL2_PA!$B57=0,"",UTL2_PA!$B57) -> Dorian Hahs | C57: =IF(COUNT(INDIRECT("'" & $B57 & "'!" & "$B$2"))=1,INDIRECT("'" & $B57 & "'!" & "$C$73"),"") ->  | D57: =IF(COUNT(INDIRECT("'" & $B57 & "'!" & "$B$2"))=1,INDIRECT("'" & $B57 & "'!" & "$D$73"),"") ->  | E57: =IF(COUNT(INDIRECT("'" & $B57 & "'!" & "$B$2"))=1,INDIRECT("'" & $B57 & "'!" & "$E$73"),"") ->  | F57: =IF(COUNT(INDIRECT("'" & $B57 & "'!" & "$S$2"))=1,INDIRECT("'" & B57 & "'!" & "$s$2"),"") ->  | G57: =IF(COUNT(INDIRECT("'" & $B57 & "'!" & "$B$2"))=1,INDIRECT("'" & $B57 & "'!" & "$G$73"),"") ->  | H57: =IF(COUNT(INDIRECT("'" & $B57 & "'!" & "$B$2"))=1,INDIRECT("'" & $B57 & "'!" & "$I$73"),"") -> 17 | I57: =IF(COUNT(INDIRECT("'" & $B57 & "'!" & "$B$2"))=1,INDIRECT("'" & $B57 & "'!" & "$J$73"),"") ->  | J57: =IF(COUNT(INDIRECT("'" & $B57 & "'!" & "$B$2"))=1,INDIRECT("'" & $B57 & "'!" & "$K$73"),"") ->  | K57: =IF(COUNT(INDIRECT("'" & $B57 & "'!" & "$B$2"))=1,INDIRECT("'" & $B57 & "'!" & "$M$73"),"") ->  | L57: =IF(COUNT(INDIRECT("'" & $B57 & "'!" & "$B$2"))=1,INDIRECT("'" & $B57 & "'!" & "$N$73"),"") ->  | M57: =IF(COUNT(INDIRECT("'" & $B57 & "'!" & "$B$2"))=1,INDIRECT("'" & $B57 & "'!" & "$O$73"),"") ->  | N57: =IF(COUNT(INDIRECT("'" & $B57 & "'!" & "$B$2"))=1,INDIRECT("'" & $B57 & "'!" & "$R$73"),"") ->  | O57: =IF(COUNT(INDIRECT("'" & $B57 & "'!" & "$B$2"))=1,INDIRECT("'" & $B57 & "'!" & "$S$73"),"") -> 17 | P57: =IF(COUNT(INDIRECT("'" & $B57 & "'!" & "$B$2"))=1,INDIRECT("'" & $B57 & "'!" & "$T$73"),"") -> 
A58: 54 | B58: =IF(UTL2_PA!$B58=0,"",UTL2_PA!$B58) -> Devi Sharma | C58: =IF(COUNT(INDIRECT("'" & $B58 & "'!" & "$B$2"))=1,INDIRECT("'" & $B58 & "'!" & "$C$73"),"") ->  | D58: =IF(COUNT(INDIRECT("'" & $B58 & "'!" & "$B$2"))=1,INDIRECT("'" & $B58 & "'!" & "$D$73"),"") ->  | E58: =IF(COUNT(INDIRECT("'" & $B58 & "'!" & "$B$2"))=1,INDIRECT("'" & $B58 & "'!" & "$E$73"),"") ->  | F58: =IF(COUNT(INDIRECT("'" & $B58 & "'!" & "$S$2"))=1,INDIRECT("'" & B58 & "'!" & "$s$2"),"") ->  | G58: =IF(COUNT(INDIRECT("'" & $B58 & "'!" & "$B$2"))=1,INDIRECT("'" & $B58 & "'!" & "$G$73"),"") ->  | H58: =IF(COUNT(INDIRECT("'" & $B58 & "'!" & "$B$2"))=1,INDIRECT("'" & $B58 & "'!" & "$I$73"),"") ->  | I58: =IF(COUNT(INDIRECT("'" & $B58 & "'!" & "$B$2"))=1,INDIRECT("'" & $B58 & "'!" & "$J$73"),"") ->  | J58: =IF(COUNT(INDIRECT("'" & $B58 & "'!" & "$B$2"))=1,INDIRECT("'" & $B58 & "'!" & "$K$73"),"") ->  | K58: =IF(COUNT(INDIRECT("'" & $B58 & "'!" & "$B$2"))=1,INDIRECT("'" & $B58 & "'!" & "$M$73"),"") ->  | L58: =IF(COUNT(INDIRECT("'" & $B58 & "'!" & "$B$2"))=1,INDIRECT("'" & $B58 & "'!" & "$N$73"),"") ->  | M58: =IF(COUNT(INDIRECT("'" & $B58 & "'!" & "$B$2"))=1,INDIRECT("'" & $B58 & "'!" & "$O$73"),"") ->  | N58: =IF(COUNT(INDIRECT("'" & $B58 & "'!" & "$B$2"))=1,INDIRECT("'" & $B58 & "'!" & "$R$73"),"") ->  | O58: =IF(COUNT(INDIRECT("'" & $B58 & "'!" & "$B$2"))=1,INDIRECT("'" & $B58 & "'!" & "$S$73"),"") ->  | P58: =IF(COUNT(INDIRECT("'" & $B58 & "'!" & "$B$2"))=1,INDIRECT("'" & $B58 & "'!" & "$T$73"),"") -> 
A59: 55 | B59: =IF(UTL2_PA!$B59=0,"",UTL2_PA!$B59) -> Susan Gabler | C59: =IF(COUNT(INDIRECT("'" & $B59 & "'!" & "$B$2"))=1,INDIRECT("'" & $B59 & "'!" & "$C$73"),"") ->  | D59: =IF(COUNT(INDIRECT("'" & $B59 & "'!" & "$B$2"))=1,INDIRECT("'" & $B59 & "'!" & "$D$73"),"") -> 8 | E59: =IF(COUNT(INDIRECT("'" & $B59 & "'!" & "$B$2"))=1,INDIRECT("'" & $B59 & "'!" & "$E$73"),"") ->  | F59: =IF(COUNT(INDIRECT("'" & $B59 & "'!" & "$S$2"))=1,INDIRECT("'" & B59 & "'!" & "$s$2"),"") ->  | G59: =IF(COUNT(INDIRECT("'" & $B59 & "'!" & "$B$2"))=1,INDIRECT("'" & $B59 & "'!" & "$G$73"),"") ->  | H59: =IF(COUNT(INDIRECT("'" & $B59 & "'!" & "$B$2"))=1,INDIRECT("'" & $B59 & "'!" & "$I$73"),"") ->  | I59: =IF(COUNT(INDIRECT("'" & $B59 & "'!" & "$B$2"))=1,INDIRECT("'" & $B59 & "'!" & "$J$73"),"") ->  | J59: =IF(COUNT(INDIRECT("'" & $B59 & "'!" & "$B$2"))=1,INDIRECT("'" & $B59 & "'!" & "$K$73"),"") ->  | K59: =IF(COUNT(INDIRECT("'" & $B59 & "'!" & "$B$2"))=1,INDIRECT("'" & $B59 & "'!" & "$M$73"),"") ->  | L59: =IF(COUNT(INDIRECT("'" & $B59 & "'!" & "$B$2"))=1,INDIRECT("'" & $B59 & "'!" & "$N$73"),"") ->  | M59: =IF(COUNT(INDIRECT("'" & $B59 & "'!" & "$B$2"))=1,INDIRECT("'" & $B59 & "'!" & "$O$73"),"") ->  | N59: =IF(COUNT(INDIRECT("'" & $B59 & "'!" & "$B$2"))=1,INDIRECT("'" & $B59 & "'!" & "$R$73"),"") ->  | O59: =IF(COUNT(INDIRECT("'" & $B59 & "'!" & "$B$2"))=1,INDIRECT("'" & $B59 & "'!" & "$S$73"),"") ->  | P59: =IF(COUNT(INDIRECT("'" & $B59 & "'!" & "$B$2"))=1,INDIRECT("'" & $B59 & "'!" & "$T$73"),"") -> 
A60: 56 | B60: =IF(UTL2_PA!$B60=0,"",UTL2_PA!$B60) -> Amy West | C60: =IF(COUNT(INDIRECT("'" & $B60 & "'!" & "$B$2"))=1,INDIRECT("'" & $B60 & "'!" & "$C$73"),"") ->  | D60: =IF(COUNT(INDIRECT("'" & $B60 & "'!" & "$B$2"))=1,INDIRECT("'" & $B60 & "'!" & "$D$73"),"") ->  | E60: =IF(COUNT(INDIRECT("'" & $B60 & "'!" & "$B$2"))=1,INDIRECT("'" & $B60 & "'!" & "$E$73"),"") -> 9 | F60: =IF(COUNT(INDIRECT("'" & $B60 & "'!" & "$S$2"))=1,INDIRECT("'" & B60 & "'!" & "$s$2"),"") -> 8 | G60: =IF(COUNT(INDIRECT("'" & $B60 & "'!" & "$B$2"))=1,INDIRECT("'" & $B60 & "'!" & "$G$73"),"") ->  | H60: =IF(COUNT(INDIRECT("'" & $B60 & "'!" & "$B$2"))=1,INDIRECT("'" & $B60 & "'!" & "$I$73"),"") ->  | I60: =IF(COUNT(INDIRECT("'" & $B60 & "'!" & "$B$2"))=1,INDIRECT("'" & $B60 & "'!" & "$J$73"),"") ->  | J60: =IF(COUNT(INDIRECT("'" & $B60 & "'!" & "$B$2"))=1,INDIRECT("'" & $B60 & "'!" & "$K$73"),"") ->  | K60: =IF(COUNT(INDIRECT("'" & $B60 & "'!" & "$B$2"))=1,INDIRECT("'" & $B60 & "'!" & "$M$73"),"") ->  | L60: =IF(COUNT(INDIRECT("'" & $B60 & "'!" & "$B$2"))=1,INDIRECT("'" & $B60 & "'!" & "$N$73"),"") ->  | M60: =IF(COUNT(INDIRECT("'" & $B60 & "'!" & "$B$2"))=1,INDIRECT("'" & $B60 & "'!" & "$O$73"),"") -> 9 | N60: =IF(COUNT(INDIRECT("'" & $B60 & "'!" & "$B$2"))=1,INDIRECT("'" & $B60 & "'!" & "$R$73"),"") ->  | O60: =IF(COUNT(INDIRECT("'" & $B60 & "'!" & "$B$2"))=1,INDIRECT("'" & $B60 & "'!" & "$S$73"),"") ->  | P60: =IF(COUNT(INDIRECT("'" & $B60 & "'!" & "$B$2"))=1,INDIRECT("'" & $B60 & "'!" & "$T$73"),"") -> 
A61: 57 | B61: =IF(UTL2_PA!$B61=0,"",UTL2_PA!$B61) -> Ginny Ruhl | C61: =IF(COUNT(INDIRECT("'" & $B61 & "'!" & "$B$2"))=1,INDIRECT("'" & $B61 & "'!" & "$C$73"),"") ->  | D61: =IF(COUNT(INDIRECT("'" & $B61 & "'!" & "$B$2"))=1,INDIRECT("'" & $B61 & "'!" & "$D$73"),"") ->  | E61: =IF(COUNT(INDIRECT("'" & $B61 & "'!" & "$B$2"))=1,INDIRECT("'" & $B61 & "'!" & "$E$73"),"") -> 22 | F61: =IF(COUNT(INDIRECT("'" & $B61 & "'!" & "$S$2"))=1,INDIRECT("'" & B61 & "'!" & "$s$2"),"") -> 28 | G61: =IF(COUNT(INDIRECT("'" & $B61 & "'!" & "$B$2"))=1,INDIRECT("'" & $B61 & "'!" & "$G$73"),"") ->  | H61: =IF(COUNT(INDIRECT("'" & $B61 & "'!" & "$B$2"))=1,INDIRECT("'" & $B61 & "'!" & "$I$73"),"") ->  | I61: =IF(COUNT(INDIRECT("'" & $B61 & "'!" & "$B$2"))=1,INDIRECT("'" & $B61 & "'!" & "$J$73"),"") ->  | J61: =IF(COUNT(INDIRECT("'" & $B61 & "'!" & "$B$2"))=1,INDIRECT("'" & $B61 & "'!" & "$K$73"),"") ->  | K61: =IF(COUNT(INDIRECT("'" & $B61 & "'!" & "$B$2"))=1,INDIRECT("'" & $B61 & "'!" & "$M$73"),"") ->  | L61: =IF(COUNT(INDIRECT("'" & $B61 & "'!" & "$B$2"))=1,INDIRECT("'" & $B61 & "'!" & "$N$73"),"") ->  | M61: =IF(COUNT(INDIRECT("'" & $B61 & "'!" & "$B$2"))=1,INDIRECT("'" & $B61 & "'!" & "$O$73"),"") -> 22 | N61: =IF(COUNT(INDIRECT("'" & $B61 & "'!" & "$B$2"))=1,INDIRECT("'" & $B61 & "'!" & "$R$73"),"") ->  | O61: =IF(COUNT(INDIRECT("'" & $B61 & "'!" & "$B$2"))=1,INDIRECT("'" & $B61 & "'!" & "$S$73"),"") ->  | P61: =IF(COUNT(INDIRECT("'" & $B61 & "'!" & "$B$2"))=1,INDIRECT("'" & $B61 & "'!" & "$T$73"),"") -> 
A62: 58 | B62: =IF(UTL2_PA!$B62=0,"",UTL2_PA!$B62) -> Alisha Gregg | C62: =IF(COUNT(INDIRECT("'" & $B62 & "'!" & "$B$2"))=1,INDIRECT("'" & $B62 & "'!" & "$C$73"),"") ->  | D62: =IF(COUNT(INDIRECT("'" & $B62 & "'!" & "$B$2"))=1,INDIRECT("'" & $B62 & "'!" & "$D$73"),"") -> 20 | E62: =IF(COUNT(INDIRECT("'" & $B62 & "'!" & "$B$2"))=1,INDIRECT("'" & $B62 & "'!" & "$E$73"),"") ->  | F62: =IF(COUNT(INDIRECT("'" & $B62 & "'!" & "$S$2"))=1,INDIRECT("'" & B62 & "'!" & "$s$2"),"") ->  | G62: =IF(COUNT(INDIRECT("'" & $B62 & "'!" & "$B$2"))=1,INDIRECT("'" & $B62 & "'!" & "$G$73"),"") ->  | H62: =IF(COUNT(INDIRECT("'" & $B62 & "'!" & "$B$2"))=1,INDIRECT("'" & $B62 & "'!" & "$I$73"),"") ->  | I62: =IF(COUNT(INDIRECT("'" & $B62 & "'!" & "$B$2"))=1,INDIRECT("'" & $B62 & "'!" & "$J$73"),"") ->  | J62: =IF(COUNT(INDIRECT("'" & $B62 & "'!" & "$B$2"))=1,INDIRECT("'" & $B62 & "'!" & "$K$73"),"") ->  | K62: =IF(COUNT(INDIRECT("'" & $B62 & "'!" & "$B$2"))=1,INDIRECT("'" & $B62 & "'!" & "$M$73"),"") ->  | L62: =IF(COUNT(INDIRECT("'" & $B62 & "'!" & "$B$2"))=1,INDIRECT("'" & $B62 & "'!" & "$N$73"),"") ->  | M62: =IF(COUNT(INDIRECT("'" & $B62 & "'!" & "$B$2"))=1,INDIRECT("'" & $B62 & "'!" & "$O$73"),"") ->  | N62: =IF(COUNT(INDIRECT("'" & $B62 & "'!" & "$B$2"))=1,INDIRECT("'" & $B62 & "'!" & "$R$73"),"") ->  | O62: =IF(COUNT(INDIRECT("'" & $B62 & "'!" & "$B$2"))=1,INDIRECT("'" & $B62 & "'!" & "$S$73"),"") ->  | P62: =IF(COUNT(INDIRECT("'" & $B62 & "'!" & "$B$2"))=1,INDIRECT("'" & $B62 & "'!" & "$T$73"),"") -> 
A63: 59 | B63: =IF(UTL2_PA!$B63=0,"",UTL2_PA!$B63) -> Amanda Jones | C63: =IF(COUNT(INDIRECT("'" & $B63 & "'!" & "$B$2"))=1,INDIRECT("'" & $B63 & "'!" & "$C$73"),"") ->  | D63: =IF(COUNT(INDIRECT("'" & $B63 & "'!" & "$B$2"))=1,INDIRECT("'" & $B63 & "'!" & "$D$73"),"") ->  | E63: =IF(COUNT(INDIRECT("'" & $B63 & "'!" & "$B$2"))=1,INDIRECT("'" & $B63 & "'!" & "$E$73"),"") -> 7 | F63: =IF(COUNT(INDIRECT("'" & $B63 & "'!" & "$S$2"))=1,INDIRECT("'" & B63 & "'!" & "$s$2"),"") ->  | G63: =IF(COUNT(INDIRECT("'" & $B63 & "'!" & "$B$2"))=1,INDIRECT("'" & $B63 & "'!" & "$G$73"),"") ->  | H63: =IF(COUNT(INDIRECT("'" & $B63 & "'!" & "$B$2"))=1,INDIRECT("'" & $B63 & "'!" & "$I$73"),"") ->  | I63: =IF(COUNT(INDIRECT("'" & $B63 & "'!" & "$B$2"))=1,INDIRECT("'" & $B63 & "'!" & "$J$73"),"") ->  | J63: =IF(COUNT(INDIRECT("'" & $B63 & "'!" & "$B$2"))=1,INDIRECT("'" & $B63 & "'!" & "$K$73"),"") ->  | K63: =IF(COUNT(INDIRECT("'" & $B63 & "'!" & "$B$2"))=1,INDIRECT("'" & $B63 & "'!" & "$M$73"),"") ->  | L63: =IF(COUNT(INDIRECT("'" & $B63 & "'!" & "$B$2"))=1,INDIRECT("'" & $B63 & "'!" & "$N$73"),"") ->  | M63: =IF(COUNT(INDIRECT("'" & $B63 & "'!" & "$B$2"))=1,INDIRECT("'" & $B63 & "'!" & "$O$73"),"") ->  | N63: =IF(COUNT(INDIRECT("'" & $B63 & "'!" & "$B$2"))=1,INDIRECT("'" & $B63 & "'!" & "$R$73"),"") ->  | O63: =IF(COUNT(INDIRECT("'" & $B63 & "'!" & "$B$2"))=1,INDIRECT("'" & $B63 & "'!" & "$S$73"),"") ->  | P63: =IF(COUNT(INDIRECT("'" & $B63 & "'!" & "$B$2"))=1,INDIRECT("'" & $B63 & "'!" & "$T$73"),"") -> 
A64: 60 | B64: =IF(UTL2_PA!$B64=0,"",UTL2_PA!$B64) -> Kyle Martin | C64: =IF(COUNT(INDIRECT("'" & $B64 & "'!" & "$B$2"))=1,INDIRECT("'" & $B64 & "'!" & "$C$73"),"") ->  | D64: =IF(COUNT(INDIRECT("'" & $B64 & "'!" & "$B$2"))=1,INDIRECT("'" & $B64 & "'!" & "$D$73"),"") ->  | E64: =IF(COUNT(INDIRECT("'" & $B64 & "'!" & "$B$2"))=1,INDIRECT("'" & $B64 & "'!" & "$E$73"),"") ->  | F64: =IF(COUNT(INDIRECT("'" & $B64 & "'!" & "$S$2"))=1,INDIRECT("'" & B64 & "'!" & "$s$2"),"") ->  | G64: =IF(COUNT(INDIRECT("'" & $B64 & "'!" & "$B$2"))=1,INDIRECT("'" & $B64 & "'!" & "$G$73"),"") ->  | H64: =IF(COUNT(INDIRECT("'" & $B64 & "'!" & "$B$2"))=1,INDIRECT("'" & $B64 & "'!" & "$I$73"),"") ->  | I64: =IF(COUNT(INDIRECT("'" & $B64 & "'!" & "$B$2"))=1,INDIRECT("'" & $B64 & "'!" & "$J$73"),"") ->  | J64: =IF(COUNT(INDIRECT("'" & $B64 & "'!" & "$B$2"))=1,INDIRECT("'" & $B64 & "'!" & "$K$73"),"") ->  | K64: =IF(COUNT(INDIRECT("'" & $B64 & "'!" & "$B$2"))=1,INDIRECT("'" & $B64 & "'!" & "$M$73"),"") ->  | L64: =IF(COUNT(INDIRECT("'" & $B64 & "'!" & "$B$2"))=1,INDIRECT("'" & $B64 & "'!" & "$N$73"),"") ->  | M64: =IF(COUNT(INDIRECT("'" & $B64 & "'!" & "$B$2"))=1,INDIRECT("'" & $B64 & "'!" & "$O$73"),"") ->  | N64: =IF(COUNT(INDIRECT("'" & $B64 & "'!" & "$B$2"))=1,INDIRECT("'" & $B64 & "'!" & "$R$73"),"") ->  | O64: =IF(COUNT(INDIRECT("'" & $B64 & "'!" & "$B$2"))=1,INDIRECT("'" & $B64 & "'!" & "$S$73"),"") ->  | P64: =IF(COUNT(INDIRECT("'" & $B64 & "'!" & "$B$2"))=1,INDIRECT("'" & $B64 & "'!" & "$T$73"),"") -> 
A65: 61 | B65: =IF(UTL2_PA!#REF!=0,"",UTL2_PA!#REF!) ->  | C65: =IF(COUNT(INDIRECT("'" & $B65 & "'!" & "$B$2"))=1,INDIRECT("'" & $B65 & "'!" & "$C$73"),"") ->  | D65: =IF(COUNT(INDIRECT("'" & $B65 & "'!" & "$B$2"))=1,INDIRECT("'" & $B65 & "'!" & "$D$73"),"") ->  | E65: =IF(COUNT(INDIRECT("'" & $B65 & "'!" & "$B$2"))=1,INDIRECT("'" & $B65 & "'!" & "$E$73"),"") ->  | F65: =IF(COUNT(INDIRECT("'" & $B65 & "'!" & "$S$2"))=1,INDIRECT("'" & B65 & "'!" & "$s$2"),"") ->  | G65: =IF(COUNT(INDIRECT("'" & $B65 & "'!" & "$B$2"))=1,INDIRECT("'" & $B65 & "'!" & "$G$73"),"") ->  | H65: =IF(COUNT(INDIRECT("'" & $B65 & "'!" & "$B$2"))=1,INDIRECT("'" & $B65 & "'!" & "$I$73"),"") ->  | I65: =IF(COUNT(INDIRECT("'" & $B65 & "'!" & "$B$2"))=1,INDIRECT("'" & $B65 & "'!" & "$J$73"),"") ->  | J65: =IF(COUNT(INDIRECT("'" & $B65 & "'!" & "$B$2"))=1,INDIRECT("'" & $B65 & "'!" & "$K$73"),"") ->  | K65: =IF(COUNT(INDIRECT("'" & $B65 & "'!" & "$B$2"))=1,INDIRECT("'" & $B65 & "'!" & "$M$73"),"") ->  | L65: =IF(COUNT(INDIRECT("'" & $B65 & "'!" & "$B$2"))=1,INDIRECT("'" & $B65 & "'!" & "$N$73"),"") ->  | M65: =IF(COUNT(INDIRECT("'" & $B65 & "'!" & "$B$2"))=1,INDIRECT("'" & $B65 & "'!" & "$O$73"),"") ->  | N65: =IF(COUNT(INDIRECT("'" & $B65 & "'!" & "$B$2"))=1,INDIRECT("'" & $B65 & "'!" & "$R$73"),"") ->  | O65: =IF(COUNT(INDIRECT("'" & $B65 & "'!" & "$B$2"))=1,INDIRECT("'" & $B65 & "'!" & "$S$73"),"") ->  | P65: =IF(COUNT(INDIRECT("'" & $B65 & "'!" & "$B$2"))=1,INDIRECT("'" & $B65 & "'!" & "$T$73"),"") -> 
A66: 62 | B66: =IF(UTL2_PA!$B65=0,"",UTL2_PA!$B65) -> Daniel Peake | C66: =IF(COUNT(INDIRECT("'" & $B66 & "'!" & "$B$2"))=1,INDIRECT("'" & $B66 & "'!" & "$C$73"),"") ->  | D66: =IF(COUNT(INDIRECT("'" & $B66 & "'!" & "$B$2"))=1,INDIRECT("'" & $B66 & "'!" & "$D$73"),"") ->  | E66: =IF(COUNT(INDIRECT("'" & $B66 & "'!" & "$B$2"))=1,INDIRECT("'" & $B66 & "'!" & "$E$73"),"") ->  | F66: =IF(COUNT(INDIRECT("'" & $B66 & "'!" & "$S$2"))=1,INDIRECT("'" & B66 & "'!" & "$s$2"),"") ->  | G66: =IF(COUNT(INDIRECT("'" & $B66 & "'!" & "$B$2"))=1,INDIRECT("'" & $B66 & "'!" & "$G$73"),"") -> 8 | H66: =IF(COUNT(INDIRECT("'" & $B66 & "'!" & "$B$2"))=1,INDIRECT("'" & $B66 & "'!" & "$I$73"),"") ->  | I66: =IF(COUNT(INDIRECT("'" & $B66 & "'!" & "$B$2"))=1,INDIRECT("'" & $B66 & "'!" & "$J$73"),"") ->  | J66: =IF(COUNT(INDIRECT("'" & $B66 & "'!" & "$B$2"))=1,INDIRECT("'" & $B66 & "'!" & "$K$73"),"") ->  | K66: =IF(COUNT(INDIRECT("'" & $B66 & "'!" & "$B$2"))=1,INDIRECT("'" & $B66 & "'!" & "$M$73"),"") ->  | L66: =IF(COUNT(INDIRECT("'" & $B66 & "'!" & "$B$2"))=1,INDIRECT("'" & $B66 & "'!" & "$N$73"),"") ->  | M66: =IF(COUNT(INDIRECT("'" & $B66 & "'!" & "$B$2"))=1,INDIRECT("'" & $B66 & "'!" & "$O$73"),"") ->  | N66: =IF(COUNT(INDIRECT("'" & $B66 & "'!" & "$B$2"))=1,INDIRECT("'" & $B66 & "'!" & "$R$73"),"") ->  | O66: =IF(COUNT(INDIRECT("'" & $B66 & "'!" & "$B$2"))=1,INDIRECT("'" & $B66 & "'!" & "$S$73"),"") ->  | P66: =IF(COUNT(INDIRECT("'" & $B66 & "'!" & "$B$2"))=1,INDIRECT("'" & $B66 & "'!" & "$T$73"),"") -> 
A67: 63 | B67: =IF(UTL2_PA!$B66=0,"",UTL2_PA!$B66) -> Joey Rodrigueez | C67: =IF(COUNT(INDIRECT("'" & $B67 & "'!" & "$B$2"))=1,INDIRECT("'" & $B67 & "'!" & "$C$73"),"") ->  | D67: =IF(COUNT(INDIRECT("'" & $B67 & "'!" & "$B$2"))=1,INDIRECT("'" & $B67 & "'!" & "$D$73"),"") ->  | E67: =IF(COUNT(INDIRECT("'" & $B67 & "'!" & "$B$2"))=1,INDIRECT("'" & $B67 & "'!" & "$E$73"),"") -> 25 | F67: =IF(COUNT(INDIRECT("'" & $B67 & "'!" & "$S$2"))=1,INDIRECT("'" & B67 & "'!" & "$s$2"),"") ->  | G67: =IF(COUNT(INDIRECT("'" & $B67 & "'!" & "$B$2"))=1,INDIRECT("'" & $B67 & "'!" & "$G$73"),"") ->  | H67: =IF(COUNT(INDIRECT("'" & $B67 & "'!" & "$B$2"))=1,INDIRECT("'" & $B67 & "'!" & "$I$73"),"") ->  | I67: =IF(COUNT(INDIRECT("'" & $B67 & "'!" & "$B$2"))=1,INDIRECT("'" & $B67 & "'!" & "$J$73"),"") ->  | J67: =IF(COUNT(INDIRECT("'" & $B67 & "'!" & "$B$2"))=1,INDIRECT("'" & $B67 & "'!" & "$K$73"),"") ->  | K67: =IF(COUNT(INDIRECT("'" & $B67 & "'!" & "$B$2"))=1,INDIRECT("'" & $B67 & "'!" & "$M$73"),"") ->  | L67: =IF(COUNT(INDIRECT("'" & $B67 & "'!" & "$B$2"))=1,INDIRECT("'" & $B67 & "'!" & "$N$73"),"") ->  | M67: =IF(COUNT(INDIRECT("'" & $B67 & "'!" & "$B$2"))=1,INDIRECT("'" & $B67 & "'!" & "$O$73"),"") ->  | N67: =IF(COUNT(INDIRECT("'" & $B67 & "'!" & "$B$2"))=1,INDIRECT("'" & $B67 & "'!" & "$R$73"),"") ->  | O67: =IF(COUNT(INDIRECT("'" & $B67 & "'!" & "$B$2"))=1,INDIRECT("'" & $B67 & "'!" & "$S$73"),"") ->  | P67: =IF(COUNT(INDIRECT("'" & $B67 & "'!" & "$B$2"))=1,INDIRECT("'" & $B67 & "'!" & "$T$73"),"") -> 
A68: 64 | B68: =IF(UTL2_PA!$B67=0,"",UTL2_PA!$B67) -> Bryce Johnson | C68: =IF(COUNT(INDIRECT("'" & $B68 & "'!" & "$B$2"))=1,INDIRECT("'" & $B68 & "'!" & "$C$73"),"") ->  | D68: =IF(COUNT(INDIRECT("'" & $B68 & "'!" & "$B$2"))=1,INDIRECT("'" & $B68 & "'!" & "$D$73"),"") ->  | E68: =IF(COUNT(INDIRECT("'" & $B68 & "'!" & "$B$2"))=1,INDIRECT("'" & $B68 & "'!" & "$E$73"),"") ->  | F68: =IF(COUNT(INDIRECT("'" & $B68 & "'!" & "$S$2"))=1,INDIRECT("'" & B68 & "'!" & "$s$2"),"") ->  | G68: =IF(COUNT(INDIRECT("'" & $B68 & "'!" & "$B$2"))=1,INDIRECT("'" & $B68 & "'!" & "$G$73"),"") ->  | H68: =IF(COUNT(INDIRECT("'" & $B68 & "'!" & "$B$2"))=1,INDIRECT("'" & $B68 & "'!" & "$I$73"),"") ->  | I68: =IF(COUNT(INDIRECT("'" & $B68 & "'!" & "$B$2"))=1,INDIRECT("'" & $B68 & "'!" & "$J$73"),"") ->  | J68: =IF(COUNT(INDIRECT("'" & $B68 & "'!" & "$B$2"))=1,INDIRECT("'" & $B68 & "'!" & "$K$73"),"") ->  | K68: =IF(COUNT(INDIRECT("'" & $B68 & "'!" & "$B$2"))=1,INDIRECT("'" & $B68 & "'!" & "$M$73"),"") ->  | L68: =IF(COUNT(INDIRECT("'" & $B68 & "'!" & "$B$2"))=1,INDIRECT("'" & $B68 & "'!" & "$N$73"),"") ->  | M68: =IF(COUNT(INDIRECT("'" & $B68 & "'!" & "$B$2"))=1,INDIRECT("'" & $B68 & "'!" & "$O$73"),"") ->  | N68: =IF(COUNT(INDIRECT("'" & $B68 & "'!" & "$B$2"))=1,INDIRECT("'" & $B68 & "'!" & "$R$73"),"") ->  | O68: =IF(COUNT(INDIRECT("'" & $B68 & "'!" & "$B$2"))=1,INDIRECT("'" & $B68 & "'!" & "$S$73"),"") ->  | P68: =IF(COUNT(INDIRECT("'" & $B68 & "'!" & "$B$2"))=1,INDIRECT("'" & $B68 & "'!" & "$T$73"),"") -> 
A69: 65 | B69: =IF(UTL2_PA!$B68=0,"",UTL2_PA!$B68) -> Mike Humphry | C69: =IF(COUNT(INDIRECT("'" & $B69 & "'!" & "$B$2"))=1,INDIRECT("'" & $B69 & "'!" & "$C$73"),"") ->  | D69: =IF(COUNT(INDIRECT("'" & $B69 & "'!" & "$B$2"))=1,INDIRECT("'" & $B69 & "'!" & "$D$73"),"") ->  | E69: =IF(COUNT(INDIRECT("'" & $B69 & "'!" & "$B$2"))=1,INDIRECT("'" & $B69 & "'!" & "$E$73"),"") ->  | F69: =IF(COUNT(INDIRECT("'" & $B69 & "'!" & "$S$2"))=1,INDIRECT("'" & B69 & "'!" & "$s$2"),"") ->  | G69: =IF(COUNT(INDIRECT("'" & $B69 & "'!" & "$B$2"))=1,INDIRECT("'" & $B69 & "'!" & "$G$73"),"") ->  | H69: =IF(COUNT(INDIRECT("'" & $B69 & "'!" & "$B$2"))=1,INDIRECT("'" & $B69 & "'!" & "$I$73"),"") ->  | I69: =IF(COUNT(INDIRECT("'" & $B69 & "'!" & "$B$2"))=1,INDIRECT("'" & $B69 & "'!" & "$J$73"),"") ->  | J69: =IF(COUNT(INDIRECT("'" & $B69 & "'!" & "$B$2"))=1,INDIRECT("'" & $B69 & "'!" & "$K$73"),"") ->  | K69: =IF(COUNT(INDIRECT("'" & $B69 & "'!" & "$B$2"))=1,INDIRECT("'" & $B69 & "'!" & "$M$73"),"") ->  | L69: =IF(COUNT(INDIRECT("'" & $B69 & "'!" & "$B$2"))=1,INDIRECT("'" & $B69 & "'!" & "$N$73"),"") ->  | M69: =IF(COUNT(INDIRECT("'" & $B69 & "'!" & "$B$2"))=1,INDIRECT("'" & $B69 & "'!" & "$O$73"),"") ->  | N69: =IF(COUNT(INDIRECT("'" & $B69 & "'!" & "$B$2"))=1,INDIRECT("'" & $B69 & "'!" & "$R$73"),"") ->  | O69: =IF(COUNT(INDIRECT("'" & $B69 & "'!" & "$B$2"))=1,INDIRECT("'" & $B69 & "'!" & "$S$73"),"") ->  | P69: =IF(COUNT(INDIRECT("'" & $B69 & "'!" & "$B$2"))=1,INDIRECT("'" & $B69 & "'!" & "$T$73"),"") -> 
A70: 66 | B70: =IF(UTL2_PA!$B69=0,"",UTL2_PA!$B69) -> Michael Humphry | C70: =IF(COUNT(INDIRECT("'" & $B70 & "'!" & "$B$2"))=1,INDIRECT("'" & $B70 & "'!" & "$C$73"),"") ->  | D70: =IF(COUNT(INDIRECT("'" & $B70 & "'!" & "$B$2"))=1,INDIRECT("'" & $B70 & "'!" & "$D$73"),"") ->  | E70: =IF(COUNT(INDIRECT("'" & $B70 & "'!" & "$B$2"))=1,INDIRECT("'" & $B70 & "'!" & "$E$73"),"") ->  | F70: =IF(COUNT(INDIRECT("'" & $B70 & "'!" & "$S$2"))=1,INDIRECT("'" & B70 & "'!" & "$s$2"),"") ->  | G70: =IF(COUNT(INDIRECT("'" & $B70 & "'!" & "$B$2"))=1,INDIRECT("'" & $B70 & "'!" & "$G$73"),"") -> 30 | H70: =IF(COUNT(INDIRECT("'" & $B70 & "'!" & "$B$2"))=1,INDIRECT("'" & $B70 & "'!" & "$I$73"),"") ->  | I70: =IF(COUNT(INDIRECT("'" & $B70 & "'!" & "$B$2"))=1,INDIRECT("'" & $B70 & "'!" & "$J$73"),"") ->  | J70: =IF(COUNT(INDIRECT("'" & $B70 & "'!" & "$B$2"))=1,INDIRECT("'" & $B70 & "'!" & "$K$73"),"") ->  | K70: =IF(COUNT(INDIRECT("'" & $B70 & "'!" & "$B$2"))=1,INDIRECT("'" & $B70 & "'!" & "$M$73"),"") ->  | L70: =IF(COUNT(INDIRECT("'" & $B70 & "'!" & "$B$2"))=1,INDIRECT("'" & $B70 & "'!" & "$N$73"),"") ->  | M70: =IF(COUNT(INDIRECT("'" & $B70 & "'!" & "$B$2"))=1,INDIRECT("'" & $B70 & "'!" & "$O$73"),"") ->  | N70: =IF(COUNT(INDIRECT("'" & $B70 & "'!" & "$B$2"))=1,INDIRECT("'" & $B70 & "'!" & "$R$73"),"") ->  | O70: =IF(COUNT(INDIRECT("'" & $B70 & "'!" & "$B$2"))=1,INDIRECT("'" & $B70 & "'!" & "$S$73"),"") ->  | P70: =IF(COUNT(INDIRECT("'" & $B70 & "'!" & "$B$2"))=1,INDIRECT("'" & $B70 & "'!" & "$T$73"),"") -> 
A71: 67 | B71: =IF(UTL2_PA!$B70=0,"",UTL2_PA!$B70) -> Russ Perkins | C71: =IF(COUNT(INDIRECT("'" & $B71 & "'!" & "$B$2"))=1,INDIRECT("'" & $B71 & "'!" & "$C$73"),"") ->  | D71: =IF(COUNT(INDIRECT("'" & $B71 & "'!" & "$B$2"))=1,INDIRECT("'" & $B71 & "'!" & "$D$73"),"") ->  | E71: =IF(COUNT(INDIRECT("'" & $B71 & "'!" & "$B$2"))=1,INDIRECT("'" & $B71 & "'!" & "$E$73"),"") ->  | F71: =IF(COUNT(INDIRECT("'" & $B71 & "'!" & "$S$2"))=1,INDIRECT("'" & B71 & "'!" & "$s$2"),"") ->  | G71: =IF(COUNT(INDIRECT("'" & $B71 & "'!" & "$B$2"))=1,INDIRECT("'" & $B71 & "'!" & "$G$73"),"") -> 25 | H71: =IF(COUNT(INDIRECT("'" & $B71 & "'!" & "$B$2"))=1,INDIRECT("'" & $B71 & "'!" & "$I$73"),"") -> 25 | I71: =IF(COUNT(INDIRECT("'" & $B71 & "'!" & "$B$2"))=1,INDIRECT("'" & $B71 & "'!" & "$J$73"),"") ->  | J71: =IF(COUNT(INDIRECT("'" & $B71 & "'!" & "$B$2"))=1,INDIRECT("'" & $B71 & "'!" & "$K$73"),"") ->  | K71: =IF(COUNT(INDIRECT("'" & $B71 & "'!" & "$B$2"))=1,INDIRECT("'" & $B71 & "'!" & "$M$73"),"") ->  | L71: =IF(COUNT(INDIRECT("'" & $B71 & "'!" & "$B$2"))=1,INDIRECT("'" & $B71 & "'!" & "$N$73"),"") ->  | M71: =IF(COUNT(INDIRECT("'" & $B71 & "'!" & "$B$2"))=1,INDIRECT("'" & $B71 & "'!" & "$O$73"),"") ->  | N71: =IF(COUNT(INDIRECT("'" & $B71 & "'!" & "$B$2"))=1,INDIRECT("'" & $B71 & "'!" & "$R$73"),"") ->  | O71: =IF(COUNT(INDIRECT("'" & $B71 & "'!" & "$B$2"))=1,INDIRECT("'" & $B71 & "'!" & "$S$73"),"") -> 25 | P71: =IF(COUNT(INDIRECT("'" & $B71 & "'!" & "$B$2"))=1,INDIRECT("'" & $B71 & "'!" & "$T$73"),"") -> 25
A72: 68 | B72: =IF(UTL2_PA!$B71=0,"",UTL2_PA!$B71) ->  | C72: =IF(COUNT(INDIRECT("'" & $B72 & "'!" & "$B$2"))=1,INDIRECT("'" & $B72 & "'!" & "$C$73"),"") ->  | D72: =IF(COUNT(INDIRECT("'" & $B72 & "'!" & "$B$2"))=1,INDIRECT("'" & $B72 & "'!" & "$D$73"),"") ->  | E72: =IF(COUNT(INDIRECT("'" & $B72 & "'!" & "$B$2"))=1,INDIRECT("'" & $B72 & "'!" & "$E$73"),"") ->  | F72: =IF(COUNT(INDIRECT("'" & $B72 & "'!" & "$S$2"))=1,INDIRECT("'" & B72 & "'!" & "$s$2"),"") ->  | G72: =IF(COUNT(INDIRECT("'" & $B72 & "'!" & "$B$2"))=1,INDIRECT("'" & $B72 & "'!" & "$G$73"),"") ->  | H72: =IF(COUNT(INDIRECT("'" & $B72 & "'!" & "$B$2"))=1,INDIRECT("'" & $B72 & "'!" & "$I$73"),"") ->  | I72: =IF(COUNT(INDIRECT("'" & $B72 & "'!" & "$B$2"))=1,INDIRECT("'" & $B72 & "'!" & "$J$73"),"") ->  | J72: =IF(COUNT(INDIRECT("'" & $B72 & "'!" & "$B$2"))=1,INDIRECT("'" & $B72 & "'!" & "$K$73"),"") ->  | K72: =IF(COUNT(INDIRECT("'" & $B72 & "'!" & "$B$2"))=1,INDIRECT("'" & $B72 & "'!" & "$M$73"),"") ->  | L72: =IF(COUNT(INDIRECT("'" & $B72 & "'!" & "$B$2"))=1,INDIRECT("'" & $B72 & "'!" & "$N$73"),"") ->  | M72: =IF(COUNT(INDIRECT("'" & $B72 & "'!" & "$B$2"))=1,INDIRECT("'" & $B72 & "'!" & "$O$73"),"") ->  | N72: =IF(COUNT(INDIRECT("'" & $B72 & "'!" & "$B$2"))=1,INDIRECT("'" & $B72 & "'!" & "$R$73"),"") ->  | O72: =IF(COUNT(INDIRECT("'" & $B72 & "'!" & "$B$2"))=1,INDIRECT("'" & $B72 & "'!" & "$S$73"),"") ->  | P72: =IF(COUNT(INDIRECT("'" & $B72 & "'!" & "$B$2"))=1,INDIRECT("'" & $B72 & "'!" & "$T$73"),"") -> 
A73: 69 | B73: =IF(UTL2_PA!$B72=0,"",UTL2_PA!$B72) ->  | C73: =IF(COUNT(INDIRECT("'" & $B73 & "'!" & "$B$2"))=1,INDIRECT("'" & $B73 & "'!" & "$C$73"),"") ->  | D73: =IF(COUNT(INDIRECT("'" & $B73 & "'!" & "$B$2"))=1,INDIRECT("'" & $B73 & "'!" & "$D$73"),"") ->  | E73: =IF(COUNT(INDIRECT("'" & $B73 & "'!" & "$B$2"))=1,INDIRECT("'" & $B73 & "'!" & "$E$73"),"") ->  | F73: =IF(COUNT(INDIRECT("'" & $B73 & "'!" & "$S$2"))=1,INDIRECT("'" & B73 & "'!" & "$s$2"),"") ->  | G73: =IF(COUNT(INDIRECT("'" & $B73 & "'!" & "$B$2"))=1,INDIRECT("'" & $B73 & "'!" & "$G$73"),"") ->  | H73: =IF(COUNT(INDIRECT("'" & $B73 & "'!" & "$B$2"))=1,INDIRECT("'" & $B73 & "'!" & "$I$73"),"") ->  | I73: =IF(COUNT(INDIRECT("'" & $B73 & "'!" & "$B$2"))=1,INDIRECT("'" & $B73 & "'!" & "$J$73"),"") ->  | J73: =IF(COUNT(INDIRECT("'" & $B73 & "'!" & "$B$2"))=1,INDIRECT("'" & $B73 & "'!" & "$K$73"),"") ->  | K73: =IF(COUNT(INDIRECT("'" & $B73 & "'!" & "$B$2"))=1,INDIRECT("'" & $B73 & "'!" & "$M$73"),"") ->  | L73: =IF(COUNT(INDIRECT("'" & $B73 & "'!" & "$B$2"))=1,INDIRECT("'" & $B73 & "'!" & "$N$73"),"") ->  | M73: =IF(COUNT(INDIRECT("'" & $B73 & "'!" & "$B$2"))=1,INDIRECT("'" & $B73 & "'!" & "$O$73"),"") ->  | N73: =IF(COUNT(INDIRECT("'" & $B73 & "'!" & "$B$2"))=1,INDIRECT("'" & $B73 & "'!" & "$R$73"),"") ->  | O73: =IF(COUNT(INDIRECT("'" & $B73 & "'!" & "$B$2"))=1,INDIRECT("'" & $B73 & "'!" & "$S$73"),"") ->  | P73: =IF(COUNT(INDIRECT("'" & $B73 & "'!" & "$B$2"))=1,INDIRECT("'" & $B73 & "'!" & "$T$73"),"") -> 
A74: 70 | B74: =IF(UTL2_PA!$B73=0,"",UTL2_PA!$B73) ->  | C74: =IF(COUNT(INDIRECT("'" & $B74 & "'!" & "$B$2"))=1,INDIRECT("'" & $B74 & "'!" & "$C$73"),"") ->  | D74: =IF(COUNT(INDIRECT("'" & $B74 & "'!" & "$B$2"))=1,INDIRECT("'" & $B74 & "'!" & "$D$73"),"") ->  | E74: =IF(COUNT(INDIRECT("'" & $B74 & "'!" & "$B$2"))=1,INDIRECT("'" & $B74 & "'!" & "$E$73"),"") ->  | F74: =IF(COUNT(INDIRECT("'" & $B74 & "'!" & "$S$2"))=1,INDIRECT("'" & B74 & "'!" & "$s$2"),"") ->  | G74: =IF(COUNT(INDIRECT("'" & $B74 & "'!" & "$B$2"))=1,INDIRECT("'" & $B74 & "'!" & "$G$73"),"") ->  | H74: =IF(COUNT(INDIRECT("'" & $B74 & "'!" & "$B$2"))=1,INDIRECT("'" & $B74 & "'!" & "$I$73"),"") ->  | I74: =IF(COUNT(INDIRECT("'" & $B74 & "'!" & "$B$2"))=1,INDIRECT("'" & $B74 & "'!" & "$J$73"),"") ->  | J74: =IF(COUNT(INDIRECT("'" & $B74 & "'!" & "$B$2"))=1,INDIRECT("'" & $B74 & "'!" & "$K$73"),"") ->  | K74: =IF(COUNT(INDIRECT("'" & $B74 & "'!" & "$B$2"))=1,INDIRECT("'" & $B74 & "'!" & "$M$73"),"") ->  | L74: =IF(COUNT(INDIRECT("'" & $B74 & "'!" & "$B$2"))=1,INDIRECT("'" & $B74 & "'!" & "$N$73"),"") ->  | M74: =IF(COUNT(INDIRECT("'" & $B74 & "'!" & "$B$2"))=1,INDIRECT("'" & $B74 & "'!" & "$O$73"),"") ->  | N74: =IF(COUNT(INDIRECT("'" & $B74 & "'!" & "$B$2"))=1,INDIRECT("'" & $B74 & "'!" & "$R$73"),"") ->  | O74: =IF(COUNT(INDIRECT("'" & $B74 & "'!" & "$B$2"))=1,INDIRECT("'" & $B74 & "'!" & "$S$73"),"") ->  | P74: =IF(COUNT(INDIRECT("'" & $B74 & "'!" & "$B$2"))=1,INDIRECT("'" & $B74 & "'!" & "$T$73"),"") -> 
A75: 71 | B75: =IF(UTL2_PA!#REF!=0,"",UTL2_PA!#REF!) ->  | C75: =IF(COUNT(INDIRECT("'" & $B75 & "'!" & "$B$2"))=1,INDIRECT("'" & $B75 & "'!" & "$C$73"),"") ->  | D75: =IF(COUNT(INDIRECT("'" & $B75 & "'!" & "$B$2"))=1,INDIRECT("'" & $B75 & "'!" & "$D$73"),"") ->  | E75: =IF(COUNT(INDIRECT("'" & $B75 & "'!" & "$B$2"))=1,INDIRECT("'" & $B75 & "'!" & "$E$73"),"") ->  | F75: =IF(COUNT(INDIRECT("'" & $B75 & "'!" & "$S$2"))=1,INDIRECT("'" & B75 & "'!" & "$s$2"),"") ->  | G75: =IF(COUNT(INDIRECT("'" & $B75 & "'!" & "$B$2"))=1,INDIRECT("'" & $B75 & "'!" & "$G$73"),"") ->  | H75: =IF(COUNT(INDIRECT("'" & $B75 & "'!" & "$B$2"))=1,INDIRECT("'" & $B75 & "'!" & "$I$73"),"") ->  | I75: =IF(COUNT(INDIRECT("'" & $B75 & "'!" & "$B$2"))=1,INDIRECT("'" & $B75 & "'!" & "$J$73"),"") ->  | J75: =IF(COUNT(INDIRECT("'" & $B75 & "'!" & "$B$2"))=1,INDIRECT("'" & $B75 & "'!" & "$K$73"),"") ->  | K75: =IF(COUNT(INDIRECT("'" & $B75 & "'!" & "$B$2"))=1,INDIRECT("'" & $B75 & "'!" & "$M$73"),"") ->  | L75: =IF(COUNT(INDIRECT("'" & $B75 & "'!" & "$B$2"))=1,INDIRECT("'" & $B75 & "'!" & "$N$73"),"") ->  | M75: =IF(COUNT(INDIRECT("'" & $B75 & "'!" & "$B$2"))=1,INDIRECT("'" & $B75 & "'!" & "$O$73"),"") ->  | N75: =IF(COUNT(INDIRECT("'" & $B75 & "'!" & "$B$2"))=1,INDIRECT("'" & $B75 & "'!" & "$R$73"),"") ->  | O75: =IF(COUNT(INDIRECT("'" & $B75 & "'!" & "$B$2"))=1,INDIRECT("'" & $B75 & "'!" & "$S$73"),"") ->  | P75: =IF(COUNT(INDIRECT("'" & $B75 & "'!" & "$B$2"))=1,INDIRECT("'" & $B75 & "'!" & "$T$73"),"") -> 
A76: 72 | B76: =IF(UTL2_PA!#REF!=0,"",UTL2_PA!#REF!) ->  | C76: =IF(COUNT(INDIRECT("'" & $B76 & "'!" & "$B$2"))=1,INDIRECT("'" & $B76 & "'!" & "$C$73"),"") ->  | D76: =IF(COUNT(INDIRECT("'" & $B76 & "'!" & "$B$2"))=1,INDIRECT("'" & $B76 & "'!" & "$D$73"),"") ->  | E76: =IF(COUNT(INDIRECT("'" & $B76 & "'!" & "$B$2"))=1,INDIRECT("'" & $B76 & "'!" & "$E$73"),"") ->  | F76: =IF(COUNT(INDIRECT("'" & $B76 & "'!" & "$S$2"))=1,INDIRECT("'" & B76 & "'!" & "$s$2"),"") ->  | G76: =IF(COUNT(INDIRECT("'" & $B76 & "'!" & "$B$2"))=1,INDIRECT("'" & $B76 & "'!" & "$G$73"),"") ->  | H76: =IF(COUNT(INDIRECT("'" & $B76 & "'!" & "$B$2"))=1,INDIRECT("'" & $B76 & "'!" & "$I$73"),"") ->  | I76: =IF(COUNT(INDIRECT("'" & $B76 & "'!" & "$B$2"))=1,INDIRECT("'" & $B76 & "'!" & "$J$73"),"") ->  | J76: =IF(COUNT(INDIRECT("'" & $B76 & "'!" & "$B$2"))=1,INDIRECT("'" & $B76 & "'!" & "$K$73"),"") ->  | K76: =IF(COUNT(INDIRECT("'" & $B76 & "'!" & "$B$2"))=1,INDIRECT("'" & $B76 & "'!" & "$M$73"),"") ->  | L76: =IF(COUNT(INDIRECT("'" & $B76 & "'!" & "$B$2"))=1,INDIRECT("'" & $B76 & "'!" & "$N$73"),"") ->  | M76: =IF(COUNT(INDIRECT("'" & $B76 & "'!" & "$B$2"))=1,INDIRECT("'" & $B76 & "'!" & "$O$73"),"") ->  | N76: =IF(COUNT(INDIRECT("'" & $B76 & "'!" & "$B$2"))=1,INDIRECT("'" & $B76 & "'!" & "$R$73"),"") ->  | O76: =IF(COUNT(INDIRECT("'" & $B76 & "'!" & "$B$2"))=1,INDIRECT("'" & $B76 & "'!" & "$S$73"),"") ->  | P76: =IF(COUNT(INDIRECT("'" & $B76 & "'!" & "$B$2"))=1,INDIRECT("'" & $B76 & "'!" & "$T$73"),"") -> 
A77: 73 | B77: =IF(UTL2_PA!#REF!=0,"",UTL2_PA!#REF!) ->  | C77: =IF(COUNT(INDIRECT("'" & $B77 & "'!" & "$B$2"))=1,INDIRECT("'" & $B77 & "'!" & "$C$73"),"") ->  | D77: =IF(COUNT(INDIRECT("'" & $B77 & "'!" & "$B$2"))=1,INDIRECT("'" & $B77 & "'!" & "$D$73"),"") ->  | E77: =IF(COUNT(INDIRECT("'" & $B77 & "'!" & "$B$2"))=1,INDIRECT("'" & $B77 & "'!" & "$E$73"),"") ->  | F77: =IF(COUNT(INDIRECT("'" & $B77 & "'!" & "$S$2"))=1,INDIRECT("'" & B77 & "'!" & "$s$2"),"") ->  | G77: =IF(COUNT(INDIRECT("'" & $B77 & "'!" & "$B$2"))=1,INDIRECT("'" & $B77 & "'!" & "$G$73"),"") ->  | H77: =IF(COUNT(INDIRECT("'" & $B77 & "'!" & "$B$2"))=1,INDIRECT("'" & $B77 & "'!" & "$I$73"),"") ->  | I77: =IF(COUNT(INDIRECT("'" & $B77 & "'!" & "$B$2"))=1,INDIRECT("'" & $B77 & "'!" & "$J$73"),"") ->  | J77: =IF(COUNT(INDIRECT("'" & $B77 & "'!" & "$B$2"))=1,INDIRECT("'" & $B77 & "'!" & "$K$73"),"") ->  | K77: =IF(COUNT(INDIRECT("'" & $B77 & "'!" & "$B$2"))=1,INDIRECT("'" & $B77 & "'!" & "$M$73"),"") ->  | L77: =IF(COUNT(INDIRECT("'" & $B77 & "'!" & "$B$2"))=1,INDIRECT("'" & $B77 & "'!" & "$N$73"),"") ->  | M77: =IF(COUNT(INDIRECT("'" & $B77 & "'!" & "$B$2"))=1,INDIRECT("'" & $B77 & "'!" & "$O$73"),"") ->  | N77: =IF(COUNT(INDIRECT("'" & $B77 & "'!" & "$B$2"))=1,INDIRECT("'" & $B77 & "'!" & "$R$73"),"") ->  | O77: =IF(COUNT(INDIRECT("'" & $B77 & "'!" & "$B$2"))=1,INDIRECT("'" & $B77 & "'!" & "$S$73"),"") ->  | P77: =IF(COUNT(INDIRECT("'" & $B77 & "'!" & "$B$2"))=1,INDIRECT("'" & $B77 & "'!" & "$T$73"),"") -> 
A78: 74 | B78: =IF(UTL2_PA!#REF!=0,"",UTL2_PA!#REF!) ->  | C78: =IF(COUNT(INDIRECT("'" & $B78 & "'!" & "$B$2"))=1,INDIRECT("'" & $B78 & "'!" & "$C$73"),"") ->  | D78: =IF(COUNT(INDIRECT("'" & $B78 & "'!" & "$B$2"))=1,INDIRECT("'" & $B78 & "'!" & "$D$73"),"") ->  | E78: =IF(COUNT(INDIRECT("'" & $B78 & "'!" & "$B$2"))=1,INDIRECT("'" & $B78 & "'!" & "$E$73"),"") ->  | F78: =IF(COUNT(INDIRECT("'" & $B78 & "'!" & "$S$2"))=1,INDIRECT("'" & B78 & "'!" & "$s$2"),"") ->  | G78: =IF(COUNT(INDIRECT("'" & $B78 & "'!" & "$B$2"))=1,INDIRECT("'" & $B78 & "'!" & "$G$73"),"") ->  | H78: =IF(COUNT(INDIRECT("'" & $B78 & "'!" & "$B$2"))=1,INDIRECT("'" & $B78 & "'!" & "$I$73"),"") ->  | I78: =IF(COUNT(INDIRECT("'" & $B78 & "'!" & "$B$2"))=1,INDIRECT("'" & $B78 & "'!" & "$J$73"),"") ->  | J78: =IF(COUNT(INDIRECT("'" & $B78 & "'!" & "$B$2"))=1,INDIRECT("'" & $B78 & "'!" & "$K$73"),"") ->  | K78: =IF(COUNT(INDIRECT("'" & $B78 & "'!" & "$B$2"))=1,INDIRECT("'" & $B78 & "'!" & "$M$73"),"") ->  | L78: =IF(COUNT(INDIRECT("'" & $B78 & "'!" & "$B$2"))=1,INDIRECT("'" & $B78 & "'!" & "$N$73"),"") ->  | M78: =IF(COUNT(INDIRECT("'" & $B78 & "'!" & "$B$2"))=1,INDIRECT("'" & $B78 & "'!" & "$O$73"),"") ->  | N78: =IF(COUNT(INDIRECT("'" & $B78 & "'!" & "$B$2"))=1,INDIRECT("'" & $B78 & "'!" & "$R$73"),"") ->  | O78: =IF(COUNT(INDIRECT("'" & $B78 & "'!" & "$B$2"))=1,INDIRECT("'" & $B78 & "'!" & "$S$73"),"") ->  | P78: =IF(COUNT(INDIRECT("'" & $B78 & "'!" & "$B$2"))=1,INDIRECT("'" & $B78 & "'!" & "$T$73"),"") -> 
A79: 75 | B79: =IF(UTL2_PA!#REF!=0,"",UTL2_PA!#REF!) ->  | C79: =IF(COUNT(INDIRECT("'" & $B79 & "'!" & "$B$2"))=1,INDIRECT("'" & $B79 & "'!" & "$C$73"),"") ->  | D79: =IF(COUNT(INDIRECT("'" & $B79 & "'!" & "$B$2"))=1,INDIRECT("'" & $B79 & "'!" & "$D$73"),"") ->  | E79: =IF(COUNT(INDIRECT("'" & $B79 & "'!" & "$B$2"))=1,INDIRECT("'" & $B79 & "'!" & "$E$73"),"") ->  | F79: =IF(COUNT(INDIRECT("'" & $B79 & "'!" & "$S$2"))=1,INDIRECT("'" & B79 & "'!" & "$s$2"),"") ->  | G79: =IF(COUNT(INDIRECT("'" & $B79 & "'!" & "$B$2"))=1,INDIRECT("'" & $B79 & "'!" & "$G$73"),"") ->  | H79: =IF(COUNT(INDIRECT("'" & $B79 & "'!" & "$B$2"))=1,INDIRECT("'" & $B79 & "'!" & "$I$73"),"") ->  | I79: =IF(COUNT(INDIRECT("'" & $B79 & "'!" & "$B$2"))=1,INDIRECT("'" & $B79 & "'!" & "$J$73"),"") ->  | J79: =IF(COUNT(INDIRECT("'" & $B79 & "'!" & "$B$2"))=1,INDIRECT("'" & $B79 & "'!" & "$K$73"),"") ->  | K79: =IF(COUNT(INDIRECT("'" & $B79 & "'!" & "$B$2"))=1,INDIRECT("'" & $B79 & "'!" & "$M$73"),"") ->  | L79: =IF(COUNT(INDIRECT("'" & $B79 & "'!" & "$B$2"))=1,INDIRECT("'" & $B79 & "'!" & "$N$73"),"") ->  | M79: =IF(COUNT(INDIRECT("'" & $B79 & "'!" & "$B$2"))=1,INDIRECT("'" & $B79 & "'!" & "$O$73"),"") ->  | N79: =IF(COUNT(INDIRECT("'" & $B79 & "'!" & "$B$2"))=1,INDIRECT("'" & $B79 & "'!" & "$R$73"),"") ->  | O79: =IF(COUNT(INDIRECT("'" & $B79 & "'!" & "$B$2"))=1,INDIRECT("'" & $B79 & "'!" & "$S$73"),"") ->  | P79: =IF(COUNT(INDIRECT("'" & $B79 & "'!" & "$B$2"))=1,INDIRECT("'" & $B79 & "'!" & "$T$73"),"") -> 
A80: 76 | B80: =IF(UTL2_PA!#REF!=0,"",UTL2_PA!#REF!) ->  | C80: =IF(COUNT(INDIRECT("'" & $B80 & "'!" & "$B$2"))=1,INDIRECT("'" & $B80 & "'!" & "$C$73"),"") ->  | D80: =IF(COUNT(INDIRECT("'" & $B80 & "'!" & "$B$2"))=1,INDIRECT("'" & $B80 & "'!" & "$D$73"),"") ->  | E80: =IF(COUNT(INDIRECT("'" & $B80 & "'!" & "$B$2"))=1,INDIRECT("'" & $B80 & "'!" & "$E$73"),"") ->  | F80: =IF(COUNT(INDIRECT("'" & $B80 & "'!" & "$S$2"))=1,INDIRECT("'" & B80 & "'!" & "$s$2"),"") ->  | G80: =IF(COUNT(INDIRECT("'" & $B80 & "'!" & "$B$2"))=1,INDIRECT("'" & $B80 & "'!" & "$G$73"),"") ->  | H80: =IF(COUNT(INDIRECT("'" & $B80 & "'!" & "$B$2"))=1,INDIRECT("'" & $B80 & "'!" & "$I$73"),"") ->  | I80: =IF(COUNT(INDIRECT("'" & $B80 & "'!" & "$B$2"))=1,INDIRECT("'" & $B80 & "'!" & "$J$73"),"") ->  | J80: =IF(COUNT(INDIRECT("'" & $B80 & "'!" & "$B$2"))=1,INDIRECT("'" & $B80 & "'!" & "$K$73"),"") ->  | K80: =IF(COUNT(INDIRECT("'" & $B80 & "'!" & "$B$2"))=1,INDIRECT("'" & $B80 & "'!" & "$M$73"),"") ->  | L80: =IF(COUNT(INDIRECT("'" & $B80 & "'!" & "$B$2"))=1,INDIRECT("'" & $B80 & "'!" & "$N$73"),"") ->  | M80: =IF(COUNT(INDIRECT("'" & $B80 & "'!" & "$B$2"))=1,INDIRECT("'" & $B80 & "'!" & "$O$73"),"") ->  | N80: =IF(COUNT(INDIRECT("'" & $B80 & "'!" & "$B$2"))=1,INDIRECT("'" & $B80 & "'!" & "$R$73"),"") ->  | O80: =IF(COUNT(INDIRECT("'" & $B80 & "'!" & "$B$2"))=1,INDIRECT("'" & $B80 & "'!" & "$S$73"),"") ->  | P80: =IF(COUNT(INDIRECT("'" & $B80 & "'!" & "$B$2"))=1,INDIRECT("'" & $B80 & "'!" & "$T$73"),"") -> 
A81: 77 | B81: =IF(UTL2_PA!#REF!=0,"",UTL2_PA!#REF!) ->  | C81: =IF(COUNT(INDIRECT("'" & $B81 & "'!" & "$B$2"))=1,INDIRECT("'" & $B81 & "'!" & "$C$73"),"") ->  | D81: =IF(COUNT(INDIRECT("'" & $B81 & "'!" & "$B$2"))=1,INDIRECT("'" & $B81 & "'!" & "$D$73"),"") ->  | E81: =IF(COUNT(INDIRECT("'" & $B81 & "'!" & "$B$2"))=1,INDIRECT("'" & $B81 & "'!" & "$E$73"),"") ->  | F81: =IF(COUNT(INDIRECT("'" & $B81 & "'!" & "$S$2"))=1,INDIRECT("'" & B81 & "'!" & "$s$2"),"") ->  | G81: =IF(COUNT(INDIRECT("'" & $B81 & "'!" & "$B$2"))=1,INDIRECT("'" & $B81 & "'!" & "$G$73"),"") ->  | H81: =IF(COUNT(INDIRECT("'" & $B81 & "'!" & "$B$2"))=1,INDIRECT("'" & $B81 & "'!" & "$I$73"),"") ->  | I81: =IF(COUNT(INDIRECT("'" & $B81 & "'!" & "$B$2"))=1,INDIRECT("'" & $B81 & "'!" & "$J$73"),"") ->  | J81: =IF(COUNT(INDIRECT("'" & $B81 & "'!" & "$B$2"))=1,INDIRECT("'" & $B81 & "'!" & "$K$73"),"") ->  | K81: =IF(COUNT(INDIRECT("'" & $B81 & "'!" & "$B$2"))=1,INDIRECT("'" & $B81 & "'!" & "$M$73"),"") ->  | L81: =IF(COUNT(INDIRECT("'" & $B81 & "'!" & "$B$2"))=1,INDIRECT("'" & $B81 & "'!" & "$N$73"),"") ->  | M81: =IF(COUNT(INDIRECT("'" & $B81 & "'!" & "$B$2"))=1,INDIRECT("'" & $B81 & "'!" & "$O$73"),"") ->  | N81: =IF(COUNT(INDIRECT("'" & $B81 & "'!" & "$B$2"))=1,INDIRECT("'" & $B81 & "'!" & "$R$73"),"") ->  | O81: =IF(COUNT(INDIRECT("'" & $B81 & "'!" & "$B$2"))=1,INDIRECT("'" & $B81 & "'!" & "$S$73"),"") ->  | P81: =IF(COUNT(INDIRECT("'" & $B81 & "'!" & "$B$2"))=1,INDIRECT("'" & $B81 & "'!" & "$T$73"),"") -> 
A82: 78 | B82: =IF(UTL2_PA!#REF!=0,"",UTL2_PA!#REF!) ->  | C82: =IF(COUNT(INDIRECT("'" & $B82 & "'!" & "$B$2"))=1,INDIRECT("'" & $B82 & "'!" & "$C$73"),"") ->  | D82: =IF(COUNT(INDIRECT("'" & $B82 & "'!" & "$B$2"))=1,INDIRECT("'" & $B82 & "'!" & "$D$73"),"") ->  | E82: =IF(COUNT(INDIRECT("'" & $B82 & "'!" & "$B$2"))=1,INDIRECT("'" & $B82 & "'!" & "$E$73"),"") ->  | F82: =IF(COUNT(INDIRECT("'" & $B82 & "'!" & "$S$2"))=1,INDIRECT("'" & B82 & "'!" & "$s$2"),"") ->  | G82: =IF(COUNT(INDIRECT("'" & $B82 & "'!" & "$B$2"))=1,INDIRECT("'" & $B82 & "'!" & "$G$73"),"") ->  | H82: =IF(COUNT(INDIRECT("'" & $B82 & "'!" & "$B$2"))=1,INDIRECT("'" & $B82 & "'!" & "$I$73"),"") ->  | I82: =IF(COUNT(INDIRECT("'" & $B82 & "'!" & "$B$2"))=1,INDIRECT("'" & $B82 & "'!" & "$J$73"),"") ->  | J82: =IF(COUNT(INDIRECT("'" & $B82 & "'!" & "$B$2"))=1,INDIRECT("'" & $B82 & "'!" & "$K$73"),"") ->  | K82: =IF(COUNT(INDIRECT("'" & $B82 & "'!" & "$B$2"))=1,INDIRECT("'" & $B82 & "'!" & "$M$73"),"") ->  | L82: =IF(COUNT(INDIRECT("'" & $B82 & "'!" & "$B$2"))=1,INDIRECT("'" & $B82 & "'!" & "$N$73"),"") ->  | M82: =IF(COUNT(INDIRECT("'" & $B82 & "'!" & "$B$2"))=1,INDIRECT("'" & $B82 & "'!" & "$O$73"),"") ->  | N82: =IF(COUNT(INDIRECT("'" & $B82 & "'!" & "$B$2"))=1,INDIRECT("'" & $B82 & "'!" & "$R$73"),"") ->  | O82: =IF(COUNT(INDIRECT("'" & $B82 & "'!" & "$B$2"))=1,INDIRECT("'" & $B82 & "'!" & "$S$73"),"") ->  | P82: =IF(COUNT(INDIRECT("'" & $B82 & "'!" & "$B$2"))=1,INDIRECT("'" & $B82 & "'!" & "$T$73"),"") -> 
A83: 79 | B83: =IF(UTL2_PA!#REF!=0,"",UTL2_PA!#REF!) ->  | C83: =IF(COUNT(INDIRECT("'" & $B83 & "'!" & "$B$2"))=1,INDIRECT("'" & $B83 & "'!" & "$C$73"),"") ->  | D83: =IF(COUNT(INDIRECT("'" & $B83 & "'!" & "$B$2"))=1,INDIRECT("'" & $B83 & "'!" & "$D$73"),"") ->  | E83: =IF(COUNT(INDIRECT("'" & $B83 & "'!" & "$B$2"))=1,INDIRECT("'" & $B83 & "'!" & "$E$73"),"") ->  | F83: =IF(COUNT(INDIRECT("'" & $B83 & "'!" & "$S$2"))=1,INDIRECT("'" & B83 & "'!" & "$s$2"),"") ->  | G83: =IF(COUNT(INDIRECT("'" & $B83 & "'!" & "$B$2"))=1,INDIRECT("'" & $B83 & "'!" & "$G$73"),"") ->  | H83: =IF(COUNT(INDIRECT("'" & $B83 & "'!" & "$B$2"))=1,INDIRECT("'" & $B83 & "'!" & "$I$73"),"") ->  | I83: =IF(COUNT(INDIRECT("'" & $B83 & "'!" & "$B$2"))=1,INDIRECT("'" & $B83 & "'!" & "$J$73"),"") ->  | J83: =IF(COUNT(INDIRECT("'" & $B83 & "'!" & "$B$2"))=1,INDIRECT("'" & $B83 & "'!" & "$K$73"),"") ->  | K83: =IF(COUNT(INDIRECT("'" & $B83 & "'!" & "$B$2"))=1,INDIRECT("'" & $B83 & "'!" & "$M$73"),"") ->  | L83: =IF(COUNT(INDIRECT("'" & $B83 & "'!" & "$B$2"))=1,INDIRECT("'" & $B83 & "'!" & "$N$73"),"") ->  | M83: =IF(COUNT(INDIRECT("'" & $B83 & "'!" & "$B$2"))=1,INDIRECT("'" & $B83 & "'!" & "$O$73"),"") ->  | N83: =IF(COUNT(INDIRECT("'" & $B83 & "'!" & "$B$2"))=1,INDIRECT("'" & $B83 & "'!" & "$R$73"),"") ->  | O83: =IF(COUNT(INDIRECT("'" & $B83 & "'!" & "$B$2"))=1,INDIRECT("'" & $B83 & "'!" & "$S$73"),"") ->  | P83: =IF(COUNT(INDIRECT("'" & $B83 & "'!" & "$B$2"))=1,INDIRECT("'" & $B83 & "'!" & "$T$73"),"") -> 
A84: 80 | B84: =IF(UTL2_PA!#REF!=0,"",UTL2_PA!#REF!) ->  | C84: =IF(COUNT(INDIRECT("'" & $B84 & "'!" & "$B$2"))=1,INDIRECT("'" & $B84 & "'!" & "$C$73"),"") ->  | D84: =IF(COUNT(INDIRECT("'" & $B84 & "'!" & "$B$2"))=1,INDIRECT("'" & $B84 & "'!" & "$D$73"),"") ->  | E84: =IF(COUNT(INDIRECT("'" & $B84 & "'!" & "$B$2"))=1,INDIRECT("'" & $B84 & "'!" & "$E$73"),"") ->  | F84: =IF(COUNT(INDIRECT("'" & $B84 & "'!" & "$S$2"))=1,INDIRECT("'" & B84 & "'!" & "$s$2"),"") ->  | G84: =IF(COUNT(INDIRECT("'" & $B84 & "'!" & "$B$2"))=1,INDIRECT("'" & $B84 & "'!" & "$G$73"),"") ->  | H84: =IF(COUNT(INDIRECT("'" & $B84 & "'!" & "$B$2"))=1,INDIRECT("'" & $B84 & "'!" & "$I$73"),"") ->  | I84: =IF(COUNT(INDIRECT("'" & $B84 & "'!" & "$B$2"))=1,INDIRECT("'" & $B84 & "'!" & "$J$73"),"") ->  | J84: =IF(COUNT(INDIRECT("'" & $B84 & "'!" & "$B$2"))=1,INDIRECT("'" & $B84 & "'!" & "$K$73"),"") ->  | K84: =IF(COUNT(INDIRECT("'" & $B84 & "'!" & "$B$2"))=1,INDIRECT("'" & $B84 & "'!" & "$M$73"),"") ->  | L84: =IF(COUNT(INDIRECT("'" & $B84 & "'!" & "$B$2"))=1,INDIRECT("'" & $B84 & "'!" & "$N$73"),"") ->  | M84: =IF(COUNT(INDIRECT("'" & $B84 & "'!" & "$B$2"))=1,INDIRECT("'" & $B84 & "'!" & "$O$73"),"") ->  | N84: =IF(COUNT(INDIRECT("'" & $B84 & "'!" & "$B$2"))=1,INDIRECT("'" & $B84 & "'!" & "$R$73"),"") ->  | O84: =IF(COUNT(INDIRECT("'" & $B84 & "'!" & "$B$2"))=1,INDIRECT("'" & $B84 & "'!" & "$S$73"),"") ->  | P84: =IF(COUNT(INDIRECT("'" & $B84 & "'!" & "$B$2"))=1,INDIRECT("'" & $B84 & "'!" & "$T$73"),"") -> 
B85: Number of bowlers-> | C85: =COUNT(C5:C84) -> 0 | D85: =COUNT(D5:D84) -> 6 | E85: 21 | F85: 17 | G85: 20 | H85: 9 | I85: 4 | J85: 17 | K85: 0 | L85: 2 | M85: 13 | N85: 6 | O85: 3 | P85: 5

Sheet UTLMA
C1: Games | G1: Series
C2: upper | D2: average | G2: average | H2: upper
B3: Award | C3: limit | D3: or less | F3: Award | G3: or less | H3: Limit
B4: 125 | C4: 150 | D4: 100 | F4: 300 | G4: 85 | H4: 400
B5: 150 | C5: 175 | D5: 120 | F5: 400 | G5: 115 | H5: 500
B6: 175 | C6: 200 | D6: 140 | F6: 500 | G6: 145 | H6: 600
B7: 200 | C7: 225 | D7: 165 | F7: 600 | G7: 170 | H7: 700
B8: 225 | C8: 250 | D8: 190 | F8: 700 | G8: 300 | H8: 800
B9: 250 | C9: 275 | D9: 215
B10: 275 | C10: 300 | D10: 300 | F10: 140 | G10: <over ser
B11: 75 | C11: <Over avg
B13: other awards
B14: 11-in-a-row
B15: Dutch 200
B16: All spare Game
B17: Big 4 split
B18: 1-7 split

Sheet blank
F1: =Title1 -> Wednesday Fun Fours 2024-25
A2: wk# | B2: =MAX(Z7:Z36) -> 0 | O2: 6 Over week: | S2: =IF(MIN(AA7:AA36)<1,"",MIN(AA7:AA36)) ->  | AB2: Note:
A3: Name: | G3: Perfect Attendance: | J3: =_xlfn.IFS(MAX(PA)>B2,"NO",SUM(Q7:Q36)=B2,"YES",SUM(Q7:Q36)<>B2,"NO") -> NO | K3: =_xlfn.IFS(MAX(PA)>B2,"",AND(SUM(Q7:Q36)<30,SUM(Q7:Q36)=B2),"So Far",SUM(Q7:Q36)=30,"Good",SUM(Q7:Q36)<>B2,"") ->  | AB3: For Games scores, Copy/Paste; Don't cut/paste games
A4: Bk Avg: | W4: Hi.series> | X4: =MAX(I7:I36) -> 0
C5: bk or | D5: old | I5: wky | J5: wky | K5: Hcp | L5: hcp | O5: new | P5: start | R5: high | S5: high | T5: high hcp | U5: high hcp | W5: hi.game> | X5: =MAX(E7:G36) -> 0 | AB5: Only write/input in the rectangled areas
A6: wk no. | C6: old avg | D6: hdcp | E6: -1- | F6: -2- | G6: -3- | I6: total | J6: avg | K6: total | L6: t2 hc | M6: Pins | N6: Gms | O6: avg | P6: week | Q6: startB | R6: series | S6: game | T6: series | U6: game | W6: h.hcp.g> | X6: =MAX(W7:Y36) -> 0 | Z6: wk#
A7: 1 | B7: =Date1 -> 2024-09-04 | C7: =_xlfn.IFS(Q7<>1,"",AND($B$4>=1,COUNT($E$7:G7)<=bkng),$B$4,P7=1,TRUNC(AVERAGE(E7:G7),0),COUNT($Q$7:Q7)=2,TRUNC(AVERAGE($E6:G$7),0),COUNT($Q$7:Q7)>=3,TRUNC(AVERAGE($E6:G$7),0)) ->  | D7: =_xlfn.IFS(Q7<>1,"",Q7=1,TRUNC((HCPB-C7)*HCPPC)) ->  | I7: =IF(Q7=1,SUM(E7:G7),"") ->  | J7: =IF(Q7=1,TRUNC(AVERAGE(E7:G7),0),"") ->  | K7: =_xlfn.IFS(Q7<>1,"",Q7=1,I7+(3*D7)) ->  | L7: =_xlfn.IFS(Q7<>1,"",COUNT($E$7:G7)<=hcpng,"",COUNT($E$7:G7)>=hcpng,K7) ->  | M7: =_xlfn.IFS(Q7=1,SUM($E$7:G7),Q7<>1,"") ->  | N7: =_xlfn.IFS(Q7=1,COUNT($E$7:G7),Q7<>1,"") ->  | O7: =IF(Q7=1,ROUND(AVERAGE($E$7:G7),2),"") ->  | P7: =_xlfn.IFS(Q7<>1,"",SUM($Q$7:Q7)=1,1,SUM($Q$7:Q7)<>1,"") ->  | Q7: =IF(MAX(E7:G7)<1,"",1) ->  | R7: =IF(I7=$X$4,I7,"") ->  | S7: =_xlfn.IFS(E7=$X$5,E7,F7=$X$5,F7,G7=$X$5,G7,$A$7=1,"") -> 0 | T7: =IF(L7=MAX($L$7:$L$36),L7,"") ->  | U7: =_xlfn.IFS(W7=$X$6,W7,X7=$X$6,X7,Y7=$X$6,Y7,$A$7=1,"") ->  | W7: =_xlfn.IFS(AND(Q7=1,COUNT($E$7:G7)>hcpng),E7+D7,$A$7=1," ") ->  | X7: =_xlfn.IFS(AND(Q7=1,COUNT($E$7:G7)>hcpng),F7+D7,$A$7=1," ") ->  | Y7: =_xlfn.IFS(AND(Q7=1,COUNT($E$7:G7)>hcpng),G7+D7,$A$7=1," ") ->  | Z7: =IF(Q7=1,A7,0) -> 0 | AA7: =_xlfn.IFS(COUNTIFS(H7,"#",H6,"#"),A6,COUNTIFS(H7,2,H6,"#"),A6,$A$7=1,"") ->  | AB7: Edit page Title; on the UTL1 sheet
A8: 2 | B8: 2024-09-11 | C8: =_xlfn.IFS(Q8<>1,"",AND($B$4>=1,COUNT($E$7:G8)<=bkng),$B$4,P8=1,TRUNC(AVERAGE(E8:G8),0),COUNT($Q$7:Q8)=2,TRUNC(AVERAGE($E7:G$7),0),COUNT($Q$7:Q8)>=3,TRUNC(AVERAGE($E7:G$7),0)) ->  | D8: =_xlfn.IFS(Q8<>1,"",Q8=1,TRUNC((HCPB-C8)*HCPPC)) ->  | H8: =_xlfn.IFS(COUNT(E8:G8)<1,"",AND(E8>C8,F8>C8,G8>C8,COUNT($E$7:G8)>sixng),"#",AND(E8>C7,F8>C7,G8>C7,COUNT($E$7:G8)>sixng,COUNTIF(H7,"#")=1),"2",$A$7=1,"") ->  | I8: =IF(Q8=1,SUM(E8:G8),"") ->  | J8: =IF(Q8=1,TRUNC(AVERAGE(E8:G8),0),"") ->  | K8: =_xlfn.IFS(Q8<>1,"",Q8=1,I8+(3*D8)) ->  | L8: =_xlfn.IFS(Q8<>1,"",COUNT($E$7:G8)<=hcpng,"",COUNT($E$7:G8)>=hcpng,K8) ->  | M8: =_xlfn.IFS(Q8=1,SUM($E$7:G8),Q8<>1,"") ->  | N8: =_xlfn.IFS(Q8=1,COUNT($E$7:G8),Q8<>1,"") ->  | O8: =IF(Q8=1,ROUND(AVERAGE($E$7:G8),2),"") ->  | P8: =_xlfn.IFS(Q8<>1,"",SUM($Q$7:Q8)=1,1,SUM($Q$7:Q8)<>1,"") ->  | Q8: =IF(MAX(E8:G8)<1,"",1) ->  | R8: =IF(I8=$X$4,I8,"") ->  | S8: =_xlfn.IFS(E8=$X$5,E8,F8=$X$5,F8,G8=$X$5,G8,$A$7=1,"") -> 0 | T8: =IF(L8=MAX($L$7:$L$36),L8,"") ->  | U8: =_xlfn.IFS(W8=$X$6,W8,X8=$X$6,X8,Y8=$X$6,Y8,$A$7=1,"") ->  | W8: =_xlfn.IFS(AND(Q8=1,COUNT($E$7:G8)>hcpng),E8+D8,$A$7=1," ") ->  | X8: =_xlfn.IFS(AND(Q8=1,COUNT($E$7:G8)>hcpng),F8+D8,$A$7=1," ") ->  | Y8: =_xlfn.IFS(AND(Q8=1,COUNT($E$7:G8)>hcpng),G8+D8,$A$7=1," ") ->  | Z8: 0 | AA8: =_xlfn.IFS(COUNTIFS(H8,"#",H7,"#"),A7,COUNTIFS(H8,2,H7,"#"),A7,$A$7=1,"") ->  | AB8: Edit Achievement Title date; on the UTL1 sheet
A9: 3 | B9: 2024-09-18 | C9: =_xlfn.IFS(Q9<>1,"",AND($B$4>=1,COUNT($E$7:G9)<=bkng),$B$4,P9=1,TRUNC(AVERAGE(E9:G9),0),COUNT($Q$7:Q9)=2,TRUNC(AVERAGE($E$7:G8),0),COUNT($Q$7:Q9)>=3,TRUNC(AVERAGE($E$7:G8),0)) ->  | D9: =_xlfn.IFS(Q9<>1,"",Q9=1,TRUNC((HCPB-C9)*HCPPC)) ->  | H9: =_xlfn.IFS(COUNT(E9:G9)<1,"",AND(E9>C9,F9>C9,G9>C9,COUNT($E$7:G9)>sixng),"#",AND(E9>C8,F9>C8,G9>C8,COUNT($E$7:G9)>sixng,COUNTIF(H8,"#")=1),"2",$A$7=1,"") ->  | K9: =_xlfn.IFS(Q9<>1,"",Q9=1,I9+(3*D9)) ->  | L9: =_xlfn.IFS(Q9<>1,"",COUNT($E$7:G9)<=hcpng,"",COUNT($E$7:G9)>=hcpng,K9) ->  | M9: =_xlfn.IFS(Q9=1,SUM($E$7:G9),Q9<>1,"") ->  | N9: =_xlfn.IFS(Q9=1,COUNT($E$7:G9),Q9<>1,"") ->  | O9: =IF(Q9=1,ROUND(AVERAGE($E$7:G9),2),"") ->  | P9: =_xlfn.IFS(Q9<>1,"",SUM($Q$7:Q9)=1,1,SUM($Q$7:Q9)<>1,"") ->  | Q9: =IF(MAX(E9:G9)<1,"",1) ->  | S9: =_xlfn.IFS(E9=$X$5,E9,F9=$X$5,F9,G9=$X$5,G9,$A$7=1,"") -> 0 | U9: =_xlfn.IFS(W9=$X$6,W9,X9=$X$6,X9,Y9=$X$6,Y9,$A$7=1,"") ->  | W9: =_xlfn.IFS(AND(Q9=1,COUNT($E$7:G9)>hcpng),E9+D9,$A$7=1," ") ->  | X9: =_xlfn.IFS(AND(Q9=1,COUNT($E$7:G9)>hcpng),F9+D9,$A$7=1," ") ->  | Y9: =_xlfn.IFS(AND(Q9=1,COUNT($E$7:G9)>hcpng),G9+D9,$A$7=1," ") ->  | Z9: 0 | AA9: =_xlfn.IFS(COUNTIFS(H9,"#",H8,"#"),A8,COUNTIFS(H9,2,H8,"#"),A8,$A$7=1,"") ->  | AB9: Make sure the current week is selected on the UTL1 sheet
A10: 4 | B10: 2024-09-25 | C10: =_xlfn.IFS(Q10<>1,"",AND($B$4>=1,COUNT($E$7:G10)<=bkng),$B$4,P10=1,TRUNC(AVERAGE(E10:G10),0),COUNT($Q$7:Q10)=2,TRUNC(AVERAGE($E$7:G9),0),COUNT($Q$7:Q10)>=3,TRUNC(AVERAGE($E$7:G9),0)) ->  | D10: =_xlfn.IFS(Q10<>1,"",Q10=1,TRUNC((HCPB-C10)*HCPPC)) ->  | H10: =_xlfn.IFS(COUNT(E10:G10)<1,"",AND(E10>C10,F10>C10,G10>C10,COUNT($E$7:G10)>sixng),"#",AND(E10>C9,F10>C9,G10>C9,COUNT($E$7:G10)>sixng,COUNTIF(H9,"#")=1),"2",$A$7=1,"") ->  | K10: =_xlfn.IFS(Q10<>1,"",Q10=1,I10+(3*D10)) ->  | L10: =_xlfn.IFS(Q10<>1,"",COUNT($E$7:G10)<=hcpng,"",COUNT($E$7:G10)>=hcpng,K10) ->  | M10: =_xlfn.IFS(Q10=1,SUM($E$7:G10),Q10<>1,"") ->  | N10: =_xlfn.IFS(Q10=1,COUNT($E$7:G10),Q10<>1,"") ->  | O10: =IF(Q10=1,ROUND(AVERAGE($E$7:G10),2),"") ->  | P10: =_xlfn.IFS(Q10<>1,"",SUM($Q$7:Q10)=1,1,SUM($Q$7:Q10)<>1,"") ->  | Q10: =IF(MAX(E10:G10)<1,"",1) ->  | S10: =_xlfn.IFS(E10=$X$5,E10,F10=$X$5,F10,G10=$X$5,G10,$A$7=1,"") -> 0 | U10: =_xlfn.IFS(W10=$X$6,W10,X10=$X$6,X10,Y10=$X$6,Y10,$A$7=1,"") ->  | W10: =_xlfn.IFS(AND(Q10=1,COUNT($E$7:G10)>hcpng),E10+D10,$A$7=1," ") ->  | X10: =_xlfn.IFS(AND(Q10=1,COUNT($E$7:G10)>hcpng),F10+D10,$A$7=1," ") ->  | Y10: =_xlfn.IFS(AND(Q10=1,COUNT($E$7:G10)>hcpng),G10+D10,$A$7=1," ") ->  | Z10: 0 | AA10: =_xlfn.IFS(COUNTIFS(H10,"#",H9,"#"),A9,COUNTIFS(H10,2,H9,"#"),A9,$A$7=1,"") -> 
A11: 5 | B11: 2024-10-02 | C11: =_xlfn.IFS(Q11<>1,"",AND($B$4>=1,COUNT($E$7:G11)<=bkng),$B$4,P11=1,TRUNC(AVERAGE(E11:G11),0),COUNT($Q$7:Q11)=2,TRUNC(AVERAGE($E$7:G10),0),COUNT($Q$7:Q11)>=3,TRUNC(AVERAGE($E$7:G10),0)) ->  | D11: =_xlfn.IFS(Q11<>1,"",Q11=1,TRUNC((HCPB-C11)*HCPPC)) ->  | H11: =_xlfn.IFS(COUNT(E11:G11)<1,"",AND(E11>C11,F11>C11,G11>C11,COUNT($E$7:G11)>sixng),"#",AND(E11>C10,F11>C10,G11>C10,COUNT($E$7:G11)>sixng,COUNTIF(H10,"#")=1),"2",$A$7=1,"") ->  | K11: =_xlfn.IFS(Q11<>1,"",Q11=1,I11+(3*D11)) ->  | L11: =_xlfn.IFS(Q11<>1,"",COUNT($E$7:G11)<=hcpng,"",COUNT($E$7:G11)>=hcpng,K11) ->  | M11: =_xlfn.IFS(Q11=1,SUM($E$7:G11),Q11<>1,"") ->  | N11: =_xlfn.IFS(Q11=1,COUNT($E$7:G11),Q11<>1,"") ->  | O11: =IF(Q11=1,ROUND(AVERAGE($E$7:G11),2),"") ->  | P11: =_xlfn.IFS(Q11<>1,"",SUM($Q$7:Q11)=1,1,SUM($Q$7:Q11)<>1,"") ->  | S11: =_xlfn.IFS(E11=$X$5,E11,F11=$X$5,F11,G11=$X$5,G11,$A$7=1,"") -> 0 | U11: =_xlfn.IFS(W11=$X$6,W11,X11=$X$6,X11,Y11=$X$6,Y11,$A$7=1,"") ->  | W11: =_xlfn.IFS(AND(Q11=1,COUNT($E$7:G11)>hcpng),E11+D11,$A$7=1," ") ->  | X11: =_xlfn.IFS(AND(Q11=1,COUNT($E$7:G11)>hcpng),F11+D11,$A$7=1," ") ->  | Y11: =_xlfn.IFS(AND(Q11=1,COUNT($E$7:G11)>hcpng),G11+D11,$A$7=1," ") ->  | Z11: 0 | AA11: =_xlfn.IFS(COUNTIFS(H11,"#",H10,"#"),A10,COUNTIFS(H11,2,H10,"#"),A10,$A$7=1,"") ->  | AB11: Define the following items using the UTL1 sheet:
A12: 6 | B12: 2024-10-09 | C12: =_xlfn.IFS(Q12<>1,"",AND($B$4>=1,COUNT($E$7:G12)<=bkng),$B$4,P12=1,TRUNC(AVERAGE(E12:G12),0),COUNT($Q$7:Q12)=2,TRUNC(AVERAGE($E$7:G11),0),COUNT($Q$7:Q12)>=3,TRUNC(AVERAGE($E$7:G11),0)) ->  | D12: =_xlfn.IFS(Q12<>1,"",Q12=1,TRUNC((HCPB-C12)*HCPPC)) ->  | H12: =_xlfn.IFS(COUNT(E12:G12)<1,"",AND(E12>C12,F12>C12,G12>C12,COUNT($E$7:G12)>sixng),"#",AND(E12>C11,F12>C11,G12>C11,COUNT($E$7:G12)>sixng,COUNTIF(H11,"#")=1),"2",$A$7=1,"") ->  | K12: =_xlfn.IFS(Q12<>1,"",Q12=1,I12+(3*D12)) ->  | L12: =_xlfn.IFS(Q12<>1,"",COUNT($E$7:G12)<=hcpng,"",COUNT($E$7:G12)>=hcpng,K12) ->  | M12: =_xlfn.IFS(Q12=1,SUM($E$7:G12),Q12<>1,"") ->  | N12: =_xlfn.IFS(Q12=1,COUNT($E$7:G12),Q12<>1,"") ->  | O12: =IF(Q12=1,ROUND(AVERAGE($E$7:G12),2),"") ->  | P12: =_xlfn.IFS(Q12<>1,"",SUM($Q$7:Q12)=1,1,SUM($Q$7:Q12)<>1,"") ->  | S12: =_xlfn.IFS(E12=$X$5,E12,F12=$X$5,F12,G12=$X$5,G12,$A$7=1,"") -> 0 | U12: =_xlfn.IFS(W12=$X$6,W12,X12=$X$6,X12,Y12=$X$6,Y12,$A$7=1,"") ->  | W12: =_xlfn.IFS(AND(Q12=1,COUNT($E$7:G12)>hcpng),E12+D12,$A$7=1," ") ->  | X12: =_xlfn.IFS(AND(Q12=1,COUNT($E$7:G12)>hcpng),F12+D12,$A$7=1," ") ->  | Y12: =_xlfn.IFS(AND(Q12=1,COUNT($E$7:G12)>hcpng),G12+D12,$A$7=1," ") ->  | Z12: 0 | AA12: =_xlfn.IFS(COUNTIFS(H12,"#",H11,"#"),A11,COUNTIFS(H12,2,H11,"#"),A11,$A$7=1,"") ->  | AB12: 6 over after number of games
A13: 7 | B13: 2024-10-16 | C13: =_xlfn.IFS(Q13<>1,"",AND($B$4>=1,COUNT($E$7:G13)<=bkng),$B$4,P13=1,TRUNC(AVERAGE(E13:G13),0),COUNT($Q$7:Q13)=2,TRUNC(AVERAGE($E$7:G12),0),COUNT($Q$7:Q13)>=3,TRUNC(AVERAGE($E$7:G12),0)) ->  | D13: =_xlfn.IFS(Q13<>1,"",Q13=1,TRUNC((HCPB-C13)*HCPPC)) ->  | H13: =_xlfn.IFS(COUNT(E13:G13)<1,"",AND(E13>C13,F13>C13,G13>C13,COUNT($E$7:G13)>sixng),"#",AND(E13>C12,F13>C12,G13>C12,COUNT($E$7:G13)>sixng,COUNTIF(H12,"#")=1),"2",$A$7=1,"") ->  | K13: =_xlfn.IFS(Q13<>1,"",Q13=1,I13+(3*D13)) ->  | L13: =_xlfn.IFS(Q13<>1,"",COUNT($E$7:G13)<=hcpng,"",COUNT($E$7:G13)>=hcpng,K13) ->  | M13: =_xlfn.IFS(Q13=1,SUM($E$7:G13),Q13<>1,"") ->  | N13: =_xlfn.IFS(Q13=1,COUNT($E$7:G13),Q13<>1,"") ->  | O13: =IF(Q13=1,ROUND(AVERAGE($E$7:G13),2),"") ->  | P13: =_xlfn.IFS(Q13<>1,"",SUM($Q$7:Q13)=1,1,SUM($Q$7:Q13)<>1,"") ->  | S13: =_xlfn.IFS(E13=$X$5,E13,F13=$X$5,F13,G13=$X$5,G13,$A$7=1,"") -> 0 | U13: =_xlfn.IFS(W13=$X$6,W13,X13=$X$6,X13,Y13=$X$6,Y13,$A$7=1,"") ->  | W13: =_xlfn.IFS(AND(Q13=1,COUNT($E$7:G13)>hcpng),E13+D13,$A$7=1," ") ->  | X13: =_xlfn.IFS(AND(Q13=1,COUNT($E$7:G13)>hcpng),F13+D13,$A$7=1," ") ->  | Y13: =_xlfn.IFS(AND(Q13=1,COUNT($E$7:G13)>hcpng),G13+D13,$A$7=1," ") ->  | Z13: 0 | AA13: =_xlfn.IFS(COUNTIFS(H13,"#",H12,"#"),A12,COUNTIFS(H13,2,H12,"#"),A12,$A$7=1,"") ->  | AB13: book average number of games
A14: 8 | B14: 2024-10-23 | C14: =_xlfn.IFS(Q14<>1,"",AND($B$4>=1,COUNT($E$7:G14)<=bkng),$B$4,P14=1,TRUNC(AVERAGE(E14:G14),0),COUNT($Q$7:Q14)=2,TRUNC(AVERAGE($E$7:G13),0),COUNT($Q$7:Q14)>=3,TRUNC(AVERAGE($E$7:G13),0)) ->  | D14: =_xlfn.IFS(Q14<>1,"",Q14=1,TRUNC((HCPB-C14)*HCPPC)) ->  | H14: =_xlfn.IFS(COUNT(E14:G14)<1,"",AND(E14>C14,F14>C14,G14>C14,COUNT($E$7:G14)>sixng),"#",AND(E14>C13,F14>C13,G14>C13,COUNT($E$7:G14)>sixng,COUNTIF(H13,"#")=1),"2",$A$7=1,"") ->  | K14: =_xlfn.IFS(Q14<>1,"",Q14=1,I14+(3*D14)) ->  | L14: =_xlfn.IFS(Q14<>1,"",COUNT($E$7:G14)<=hcpng,"",COUNT($E$7:G14)>=hcpng,K14) ->  | M14: =_xlfn.IFS(Q14=1,SUM($E$7:G14),Q14<>1,"") ->  | N14: =_xlfn.IFS(Q14=1,COUNT($E$7:G14),Q14<>1,"") ->  | O14: =IF(Q14=1,ROUND(AVERAGE($E$7:G14),2),"") ->  | P14: =_xlfn.IFS(Q14<>1,"",SUM($Q$7:Q14)=1,1,SUM($Q$7:Q14)<>1,"") ->  | S14: =_xlfn.IFS(E14=$X$5,E14,F14=$X$5,F14,G14=$X$5,G14,$A$7=1,"") -> 0 | U14: =_xlfn.IFS(W14=$X$6,W14,X14=$X$6,X14,Y14=$X$6,Y14,$A$7=1,"") ->  | W14: =_xlfn.IFS(AND(Q14=1,COUNT($E$7:G14)>hcpng),E14+D14,$A$7=1," ") ->  | X14: =_xlfn.IFS(AND(Q14=1,COUNT($E$7:G14)>hcpng),F14+D14,$A$7=1," ") ->  | Y14: =_xlfn.IFS(AND(Q14=1,COUNT($E$7:G14)>hcpng),G14+D14,$A$7=1," ") ->  | Z14: 0 | AA14: =_xlfn.IFS(COUNTIFS(H14,"#",H13,"#"),A13,COUNTIFS(H14,2,H13,"#"),A13,$A$7=1,"") ->  | AB14: handicap after number of games
A15: 9 | B15: 2024-10-30 | C15: =_xlfn.IFS(Q15<>1,"",AND($B$4>=1,COUNT($E$7:G15)<=bkng),$B$4,P15=1,TRUNC(AVERAGE(E15:G15),0),COUNT($Q$7:Q15)=2,TRUNC(AVERAGE($E$7:G14),0),COUNT($Q$7:Q15)>=3,TRUNC(AVERAGE($E$7:G14),0)) ->  | D15: =_xlfn.IFS(Q15<>1,"",Q15=1,TRUNC((HCPB-C15)*HCPPC)) ->  | H15: =_xlfn.IFS(COUNT(E15:G15)<1,"",AND(E15>C15,F15>C15,G15>C15,COUNT($E$7:G15)>sixng),"#",AND(E15>C14,F15>C14,G15>C14,COUNT($E$7:G15)>sixng,COUNTIF(H14,"#")=1),"2",$A$7=1,"") ->  | K15: =_xlfn.IFS(Q15<>1,"",Q15=1,I15+(3*D15)) ->  | L15: =_xlfn.IFS(Q15<>1,"",COUNT($E$7:G15)<=hcpng,"",COUNT($E$7:G15)>=hcpng,K15) ->  | M15: =_xlfn.IFS(Q15=1,SUM($E$7:G15),Q15<>1,"") ->  | N15: =_xlfn.IFS(Q15=1,COUNT($E$7:G15),Q15<>1,"") ->  | O15: =IF(Q15=1,ROUND(AVERAGE($E$7:G15),2),"") ->  | P15: =_xlfn.IFS(Q15<>1,"",SUM($Q$7:Q15)=1,1,SUM($Q$7:Q15)<>1,"") ->  | S15: =_xlfn.IFS(E15=$X$5,E15,F15=$X$5,F15,G15=$X$5,G15,$A$7=1,"") -> 0 | U15: =_xlfn.IFS(W15=$X$6,W15,X15=$X$6,X15,Y15=$X$6,Y15,$A$7=1,"") ->  | W15: =_xlfn.IFS(AND(Q15=1,COUNT($E$7:G15)>hcpng),E15+D15,$A$7=1," ") ->  | X15: =_xlfn.IFS(AND(Q15=1,COUNT($E$7:G15)>hcpng),F15+D15,$A$7=1," ") ->  | Y15: =_xlfn.IFS(AND(Q15=1,COUNT($E$7:G15)>hcpng),G15+D15,$A$7=1," ") ->  | Z15: 0 | AA15: =_xlfn.IFS(COUNTIFS(H15,"#",H14,"#"),A14,COUNTIFS(H15,2,H14,"#"),A14,$A$7=1,"") ->  | AB15: Merit Awards based on avg. after number of games
A16: 10 | B16: 2024-11-06 | C16: =_xlfn.IFS(Q16<>1,"",AND($B$4>=1,COUNT($E$7:G16)<=bkng),$B$4,P16=1,TRUNC(AVERAGE(E16:G16),0),COUNT($Q$7:Q16)=2,TRUNC(AVERAGE($E$7:G15),0),COUNT($Q$7:Q16)>=3,TRUNC(AVERAGE($E$7:G15),0)) ->  | D16: =_xlfn.IFS(Q16<>1,"",Q16=1,TRUNC((HCPB-C16)*HCPPC)) ->  | H16: =_xlfn.IFS(COUNT(E16:G16)<1,"",AND(E16>C16,F16>C16,G16>C16,COUNT($E$7:G16)>sixng),"#",AND(E16>C15,F16>C15,G16>C15,COUNT($E$7:G16)>sixng,COUNTIF(H15,"#")=1),"2",$A$7=1,"") ->  | K16: =_xlfn.IFS(Q16<>1,"",Q16=1,I16+(3*D16)) ->  | L16: =_xlfn.IFS(Q16<>1,"",COUNT($E$7:G16)<=hcpng,"",COUNT($E$7:G16)>=hcpng,K16) ->  | M16: =_xlfn.IFS(Q16=1,SUM($E$7:G16),Q16<>1,"") ->  | N16: =_xlfn.IFS(Q16=1,COUNT($E$7:G16),Q16<>1,"") ->  | O16: =IF(Q16=1,ROUND(AVERAGE($E$7:G16),2),"") ->  | P16: =_xlfn.IFS(Q16<>1,"",SUM($Q$7:Q16)=1,1,SUM($Q$7:Q16)<>1,"") ->  | S16: =_xlfn.IFS(E16=$X$5,E16,F16=$X$5,F16,G16=$X$5,G16,$A$7=1,"") -> 0 | U16: =_xlfn.IFS(W16=$X$6,W16,X16=$X$6,X16,Y16=$X$6,Y16,$A$7=1,"") ->  | W16: =_xlfn.IFS(AND(Q16=1,COUNT($E$7:G16)>hcpng),E16+D16,$A$7=1," ") ->  | X16: =_xlfn.IFS(AND(Q16=1,COUNT($E$7:G16)>hcpng),F16+D16,$A$7=1," ") ->  | Y16: =_xlfn.IFS(AND(Q16=1,COUNT($E$7:G16)>hcpng),G16+D16,$A$7=1," ") ->  | Z16: 0 | AA16: =_xlfn.IFS(COUNTIFS(H16,"#",H15,"#"),A15,COUNTIFS(H16,2,H15,"#"),A15,$A$7=1,"") -> 
A17: 11 | B17: 2024-11-13 | C17: =_xlfn.IFS(Q17<>1,"",AND($B$4>=1,COUNT($E$7:G17)<=bkng),$B$4,P17=1,TRUNC(AVERAGE(E17:G17),0),COUNT($Q$7:Q17)=2,TRUNC(AVERAGE($E$7:G16),0),COUNT($Q$7:Q17)>=3,TRUNC(AVERAGE($E$7:G16),0)) ->  | D17: =_xlfn.IFS(Q17<>1,"",Q17=1,TRUNC((HCPB-C17)*HCPPC)) ->  | H17: =_xlfn.IFS(COUNT(E17:G17)<1,"",AND(E17>C17,F17>C17,G17>C17,COUNT($E$7:G17)>sixng),"#",AND(E17>C16,F17>C16,G17>C16,COUNT($E$7:G17)>sixng,COUNTIF(H16,"#")=1),"2",$A$7=1,"") ->  | K17: =_xlfn.IFS(Q17<>1,"",Q17=1,I17+(3*D17)) ->  | L17: =_xlfn.IFS(Q17<>1,"",COUNT($E$7:G17)<=hcpng,"",COUNT($E$7:G17)>=hcpng,K17) ->  | M17: =_xlfn.IFS(Q17=1,SUM($E$7:G17),Q17<>1,"") ->  | N17: =_xlfn.IFS(Q17=1,COUNT($E$7:G17),Q17<>1,"") ->  | O17: =IF(Q17=1,ROUND(AVERAGE($E$7:G17),2),"") ->  | P17: =_xlfn.IFS(Q17<>1,"",SUM($Q$7:Q17)=1,1,SUM($Q$7:Q17)<>1,"") ->  | S17: =_xlfn.IFS(E17=$X$5,E17,F17=$X$5,F17,G17=$X$5,G17,$A$7=1,"") -> 0 | U17: =_xlfn.IFS(W17=$X$6,W17,X17=$X$6,X17,Y17=$X$6,Y17,$A$7=1,"") ->  | W17: =_xlfn.IFS(AND(Q17=1,COUNT($E$7:G17)>hcpng),E17+D17,$A$7=1," ") ->  | X17: =_xlfn.IFS(AND(Q17=1,COUNT($E$7:G17)>hcpng),F17+D17,$A$7=1," ") ->  | Y17: =_xlfn.IFS(AND(Q17=1,COUNT($E$7:G17)>hcpng),G17+D17,$A$7=1," ") ->  | Z17: 0 | AA17: =_xlfn.IFS(COUNTIFS(H17,"#",H16,"#"),A16,COUNTIFS(H17,2,H16,"#"),A16,$A$7=1,"") ->  | AB17: Handicap base
A18: 12 | B18: 2024-11-20 | C18: =_xlfn.IFS(Q18<>1,"",AND($B$4>=1,COUNT($E$7:G18)<=bkng),$B$4,P18=1,TRUNC(AVERAGE(E18:G18),0),COUNT($Q$7:Q18)=2,TRUNC(AVERAGE($E$7:G17),0),COUNT($Q$7:Q18)>=3,TRUNC(AVERAGE($E$7:G17),0)) ->  | D18: =_xlfn.IFS(Q18<>1,"",Q18=1,TRUNC((HCPB-C18)*HCPPC)) ->  | H18: =_xlfn.IFS(COUNT(E18:G18)<1,"",AND(E18>C18,F18>C18,G18>C18,COUNT($E$7:G18)>sixng),"#",AND(E18>C17,F18>C17,G18>C17,COUNT($E$7:G18)>sixng,COUNTIF(H17,"#")=1),"2",$A$7=1,"") ->  | K18: =_xlfn.IFS(Q18<>1,"",Q18=1,I18+(3*D18)) ->  | L18: =_xlfn.IFS(Q18<>1,"",COUNT($E$7:G18)<=hcpng,"",COUNT($E$7:G18)>=hcpng,K18) ->  | M18: =_xlfn.IFS(Q18=1,SUM($E$7:G18),Q18<>1,"") ->  | N18: =_xlfn.IFS(Q18=1,COUNT($E$7:G18),Q18<>1,"") ->  | O18: =IF(Q18=1,ROUND(AVERAGE($E$7:G18),2),"") ->  | P18: =_xlfn.IFS(Q18<>1,"",SUM($Q$7:Q18)=1,1,SUM($Q$7:Q18)<>1,"") ->  | S18: =_xlfn.IFS(E18=$X$5,E18,F18=$X$5,F18,G18=$X$5,G18,$A$7=1,"") -> 0 | U18: =_xlfn.IFS(W18=$X$6,W18,X18=$X$6,X18,Y18=$X$6,Y18,$A$7=1,"") ->  | W18: =_xlfn.IFS(AND(Q18=1,COUNT($E$7:G18)>hcpng),E18+D18,$A$7=1," ") ->  | X18: =_xlfn.IFS(AND(Q18=1,COUNT($E$7:G18)>hcpng),F18+D18,$A$7=1," ") ->  | Y18: =_xlfn.IFS(AND(Q18=1,COUNT($E$7:G18)>hcpng),G18+D18,$A$7=1," ") ->  | Z18: 0 | AA18: =_xlfn.IFS(COUNTIFS(H18,"#",H17,"#"),A17,COUNTIFS(H18,2,H17,"#"),A17,$A$7=1,"") ->  | AB18: Handicap %
A19: 13 | B19: 2024-11-27 | C19: =_xlfn.IFS(Q19<>1,"",AND($B$4>=1,COUNT($E$7:G19)<=bkng),$B$4,P19=1,TRUNC(AVERAGE(E19:G19),0),COUNT($Q$7:Q19)=2,TRUNC(AVERAGE($E$7:G18),0),COUNT($Q$7:Q19)>=3,TRUNC(AVERAGE($E$7:G18),0)) ->  | D19: =_xlfn.IFS(Q19<>1,"",Q19=1,TRUNC((HCPB-C19)*HCPPC)) ->  | H19: =_xlfn.IFS(COUNT(E19:G19)<1,"",AND(E19>C19,F19>C19,G19>C19,COUNT($E$7:G19)>sixng),"#",AND(E19>C18,F19>C18,G19>C18,COUNT($E$7:G19)>sixng,COUNTIF(H18,"#")=1),"2",$A$7=1,"") ->  | K19: =_xlfn.IFS(Q19<>1,"",Q19=1,I19+(3*D19)) ->  | L19: =_xlfn.IFS(Q19<>1,"",COUNT($E$7:G19)<=hcpng,"",COUNT($E$7:G19)>=hcpng,K19) ->  | M19: =_xlfn.IFS(Q19=1,SUM($E$7:G19),Q19<>1,"") ->  | N19: =_xlfn.IFS(Q19=1,COUNT($E$7:G19),Q19<>1,"") ->  | O19: =IF(Q19=1,ROUND(AVERAGE($E$7:G19),2),"") ->  | P19: =_xlfn.IFS(Q19<>1,"",SUM($Q$7:Q19)=1,1,SUM($Q$7:Q19)<>1,"") ->  | S19: =_xlfn.IFS(E19=$X$5,E19,F19=$X$5,F19,G19=$X$5,G19,$A$7=1,"") -> 0 | U19: =_xlfn.IFS(W19=$X$6,W19,X19=$X$6,X19,Y19=$X$6,Y19,$A$7=1,"") ->  | W19: =_xlfn.IFS(AND(Q19=1,COUNT($E$7:G19)>hcpng),E19+D19,$A$7=1," ") ->  | X19: =_xlfn.IFS(AND(Q19=1,COUNT($E$7:G19)>hcpng),F19+D19,$A$7=1," ") ->  | Y19: =_xlfn.IFS(AND(Q19=1,COUNT($E$7:G19)>hcpng),G19+D19,$A$7=1," ") ->  | Z19: 0 | AA19: =_xlfn.IFS(COUNTIFS(H19,"#",H18,"#"),A18,COUNTIFS(H19,2,H18,"#"),A18,$A$7=1,"") -> 
A20: 14 | B20: 2024-12-04 | C20: =_xlfn.IFS(Q20<>1,"",AND($B$4>=1,COUNT($E$7:G20)<=bkng),$B$4,P20=1,TRUNC(AVERAGE(E20:G20),0),COUNT($Q$7:Q20)=2,TRUNC(AVERAGE($E$7:G19),0),COUNT($Q$7:Q20)>=3,TRUNC(AVERAGE($E$7:G19),0)) ->  | D20: =_xlfn.IFS(Q20<>1,"",Q20=1,TRUNC((HCPB-C20)*HCPPC)) ->  | H20: =_xlfn.IFS(COUNT(E20:G20)<1,"",AND(E20>C20,F20>C20,G20>C20,COUNT($E$7:G20)>sixng),"#",AND(E20>C19,F20>C19,G20>C19,COUNT($E$7:G20)>sixng,COUNTIF(H19,"#")=1),"2",$A$7=1,"") ->  | K20: =_xlfn.IFS(Q20<>1,"",Q20=1,I20+(3*D20)) ->  | L20: =_xlfn.IFS(Q20<>1,"",COUNT($E$7:G20)<=hcpng,"",COUNT($E$7:G20)>=hcpng,K20) ->  | M20: =_xlfn.IFS(Q20=1,SUM($E$7:G20),Q20<>1,"") ->  | N20: =_xlfn.IFS(Q20=1,COUNT($E$7:G20),Q20<>1,"") ->  | O20: =IF(Q20=1,ROUND(AVERAGE($E$7:G20),2),"") ->  | P20: =_xlfn.IFS(Q20<>1,"",SUM($Q$7:Q20)=1,1,SUM($Q$7:Q20)<>1,"") ->  | S20: =_xlfn.IFS(E20=$X$5,E20,F20=$X$5,F20,G20=$X$5,G20,$A$7=1,"") -> 0 | U20: =_xlfn.IFS(W20=$X$6,W20,X20=$X$6,X20,Y20=$X$6,Y20,$A$7=1,"") ->  | W20: =_xlfn.IFS(AND(Q20=1,COUNT($E$7:G20)>hcpng),E20+D20,$A$7=1," ") ->  | X20: =_xlfn.IFS(AND(Q20=1,COUNT($E$7:G20)>hcpng),F20+D20,$A$7=1," ") ->  | Y20: =_xlfn.IFS(AND(Q20=1,COUNT($E$7:G20)>hcpng),G20+D20,$A$7=1," ") ->  | Z20: 0 | AA20: =_xlfn.IFS(COUNTIFS(H20,"#",H19,"#"),A19,COUNTIFS(H20,2,H19,"#"),A19,$A$7=1,"") ->  | AB20: Define the USBC Merit awards items using the UTLMA sheet:
A21: 15 | B21: 2024-12-11 | C21: =_xlfn.IFS(Q21<>1,"",AND($B$4>=1,COUNT($E$7:G21)<=bkng),$B$4,P21=1,TRUNC(AVERAGE(E21:G21),0),COUNT($Q$7:Q21)=2,TRUNC(AVERAGE($E$7:G20),0),COUNT($Q$7:Q21)>=3,TRUNC(AVERAGE($E$7:G20),0)) ->  | D21: =_xlfn.IFS(Q21<>1,"",Q21=1,TRUNC((HCPB-C21)*HCPPC)) ->  | H21: =_xlfn.IFS(COUNT(E21:G21)<1,"",AND(E21>C21,F21>C21,G21>C21,COUNT($E$7:G21)>sixng),"#",AND(E21>C20,F21>C20,G21>C20,COUNT($E$7:G21)>sixng,COUNTIF(H20,"#")=1),"2",$A$7=1,"") ->  | K21: =_xlfn.IFS(Q21<>1,"",Q21=1,I21+(3*D21)) ->  | L21: =_xlfn.IFS(Q21<>1,"",COUNT($E$7:G21)<=hcpng,"",COUNT($E$7:G21)>=hcpng,K21) ->  | M21: =_xlfn.IFS(Q21=1,SUM($E$7:G21),Q21<>1,"") ->  | N21: =_xlfn.IFS(Q21=1,COUNT($E$7:G21),Q21<>1,"") ->  | O21: =IF(Q21=1,ROUND(AVERAGE($E$7:G21),2),"") ->  | P21: =_xlfn.IFS(Q21<>1,"",SUM($Q$7:Q21)=1,1,SUM($Q$7:Q21)<>1,"") ->  | S21: =_xlfn.IFS(E21=$X$5,E21,F21=$X$5,F21,G21=$X$5,G21,$A$7=1,"") -> 0 | U21: =_xlfn.IFS(W21=$X$6,W21,X21=$X$6,X21,Y21=$X$6,Y21,$A$7=1,"") ->  | W21: =_xlfn.IFS(AND(Q21=1,COUNT($E$7:G21)>hcpng),E21+D21,$A$7=1," ") ->  | X21: =_xlfn.IFS(AND(Q21=1,COUNT($E$7:G21)>hcpng),F21+D21,$A$7=1," ") ->  | Y21: =_xlfn.IFS(AND(Q21=1,COUNT($E$7:G21)>hcpng),G21+D21,$A$7=1," ") ->  | Z21: 0 | AA21: =_xlfn.IFS(COUNTIFS(H21,"#",H20,"#"),A20,COUNTIFS(H21,2,H20,"#"),A20,$A$7=1,"") -> 
A22: 16 | B22: 2024-12-18 | C22: =_xlfn.IFS(Q22<>1,"",AND($B$4>=1,COUNT($E$7:G22)<=bkng),$B$4,P22=1,TRUNC(AVERAGE(E22:G22),0),COUNT($Q$7:Q22)=2,TRUNC(AVERAGE($E$7:G21),0),COUNT($Q$7:Q22)>=3,TRUNC(AVERAGE($E$7:G21),0)) ->  | D22: =_xlfn.IFS(Q22<>1,"",Q22=1,TRUNC((HCPB-C22)*HCPPC)) ->  | H22: =_xlfn.IFS(COUNT(E22:G22)<1,"",AND(E22>C22,F22>C22,G22>C22,COUNT($E$7:G22)>sixng),"#",AND(E22>C21,F22>C21,G22>C21,COUNT($E$7:G22)>sixng,COUNTIF(H21,"#")=1),"2",$A$7=1,"") ->  | K22: =_xlfn.IFS(Q22<>1,"",Q22=1,I22+(3*D22)) ->  | L22: =_xlfn.IFS(Q22<>1,"",COUNT($E$7:G22)<=hcpng,"",COUNT($E$7:G22)>=hcpng,K22) ->  | M22: =_xlfn.IFS(Q22=1,SUM($E$7:G22),Q22<>1,"") ->  | N22: =_xlfn.IFS(Q22=1,COUNT($E$7:G22),Q22<>1,"") ->  | O22: =IF(Q22=1,ROUND(AVERAGE($E$7:G22),2),"") ->  | P22: =_xlfn.IFS(Q22<>1,"",SUM($Q$7:Q22)=1,1,SUM($Q$7:Q22)<>1,"") ->  | S22: =_xlfn.IFS(E22=$X$5,E22,F22=$X$5,F22,G22=$X$5,G22,$A$7=1,"") -> 0 | U22: =_xlfn.IFS(W22=$X$6,W22,X22=$X$6,X22,Y22=$X$6,Y22,$A$7=1,"") ->  | W22: =_xlfn.IFS(AND(Q22=1,COUNT($E$7:G22)>hcpng),E22+D22,$A$7=1," ") ->  | X22: =_xlfn.IFS(AND(Q22=1,COUNT($E$7:G22)>hcpng),F22+D22,$A$7=1," ") ->  | Y22: =_xlfn.IFS(AND(Q22=1,COUNT($E$7:G22)>hcpng),G22+D22,$A$7=1," ") ->  | Z22: 0 | AA22: =_xlfn.IFS(COUNTIFS(H22,"#",H21,"#"),A21,COUNTIFS(H22,2,H21,"#"),A21,$A$7=1,"") ->  | AB22: To add new bowlers right click on "Blank" sheet select "move or copy", "(move to end)"
A23: 17 | B23: 2025-01-08 | C23: =_xlfn.IFS(Q23<>1,"",AND($B$4>=1,COUNT($E$7:G23)<=bkng),$B$4,P23=1,TRUNC(AVERAGE(E23:G23),0),COUNT($Q$7:Q23)=2,TRUNC(AVERAGE($E$7:G22),0),COUNT($Q$7:Q23)>=3,TRUNC(AVERAGE($E$7:G22),0)) ->  | D23: =_xlfn.IFS(Q23<>1,"",Q23=1,TRUNC((HCPB-C23)*HCPPC)) ->  | H23: =_xlfn.IFS(COUNT(E23:G23)<1,"",AND(E23>C23,F23>C23,G23>C23,COUNT($E$7:G23)>sixng),"#",AND(E23>C22,F23>C22,G23>C22,COUNT($E$7:G23)>sixng,COUNTIF(H22,"#")=1),"2",$A$7=1,"") ->  | K23: =_xlfn.IFS(Q23<>1,"",Q23=1,I23+(3*D23)) ->  | L23: =_xlfn.IFS(Q23<>1,"",COUNT($E$7:G23)<=hcpng,"",COUNT($E$7:G23)>=hcpng,K23) ->  | M23: =_xlfn.IFS(Q23=1,SUM($E$7:G23),Q23<>1,"") ->  | N23: =_xlfn.IFS(Q23=1,COUNT($E$7:G23),Q23<>1,"") ->  | O23: =IF(Q23=1,ROUND(AVERAGE($E$7:G23),2),"") ->  | P23: =_xlfn.IFS(Q23<>1,"",SUM($Q$7:Q23)=1,1,SUM($Q$7:Q23)<>1,"") ->  | S23: =_xlfn.IFS(E23=$X$5,E23,F23=$X$5,F23,G23=$X$5,G23,$A$7=1,"") -> 0 | U23: =_xlfn.IFS(W23=$X$6,W23,X23=$X$6,X23,Y23=$X$6,Y23,$A$7=1,"") ->  | W23: =_xlfn.IFS(AND(Q23=1,COUNT($E$7:G23)>hcpng),E23+D23,$A$7=1," ") ->  | X23: =_xlfn.IFS(AND(Q23=1,COUNT($E$7:G23)>hcpng),F23+D23,$A$7=1," ") ->  | Y23: =_xlfn.IFS(AND(Q23=1,COUNT($E$7:G23)>hcpng),G23+D23,$A$7=1," ") ->  | Z23: 0 | AA23: =_xlfn.IFS(COUNTIFS(H23,"#",H22,"#"),A22,COUNTIFS(H23,2,H22,"#"),A22,$A$7=1,"") ->  | AB23: and "check create a copy". Note: you can click and hold to move a sheet left or right.
A24: 18 | B24: 2025-01-15 | C24: =_xlfn.IFS(Q24<>1,"",AND($B$4>=1,COUNT($E$7:G24)<=bkng),$B$4,P24=1,TRUNC(AVERAGE(E24:G24),0),COUNT($Q$7:Q24)=2,TRUNC(AVERAGE($E$7:G23),0),COUNT($Q$7:Q24)>=3,TRUNC(AVERAGE($E$7:G23),0)) ->  | D24: =_xlfn.IFS(Q24<>1,"",Q24=1,TRUNC((HCPB-C24)*HCPPC)) ->  | H24: =_xlfn.IFS(COUNT(E24:G24)<1,"",AND(E24>C24,F24>C24,G24>C24,COUNT($E$7:G24)>sixng),"#",AND(E24>C23,F24>C23,G24>C23,COUNT($E$7:G24)>sixng,COUNTIF(H23,"#")=1),"2",$A$7=1,"") ->  | K24: =_xlfn.IFS(Q24<>1,"",Q24=1,I24+(3*D24)) ->  | L24: =_xlfn.IFS(Q24<>1,"",COUNT($E$7:G24)<=hcpng,"",COUNT($E$7:G24)>=hcpng,K24) ->  | M24: =_xlfn.IFS(Q24=1,SUM($E$7:G24),Q24<>1,"") ->  | N24: =_xlfn.IFS(Q24=1,COUNT($E$7:G24),Q24<>1,"") ->  | O24: =IF(Q24=1,ROUND(AVERAGE($E$7:G24),2),"") ->  | P24: =_xlfn.IFS(Q24<>1,"",SUM($Q$7:Q24)=1,1,SUM($Q$7:Q24)<>1,"") ->  | S24: =_xlfn.IFS(E24=$X$5,E24,F24=$X$5,F24,G24=$X$5,G24,$A$7=1,"") -> 0 | U24: =_xlfn.IFS(W24=$X$6,W24,X24=$X$6,X24,Y24=$X$6,Y24,$A$7=1,"") ->  | W24: =_xlfn.IFS(AND(Q24=1,COUNT($E$7:G24)>hcpng),E24+D24,$A$7=1," ") ->  | X24: =_xlfn.IFS(AND(Q24=1,COUNT($E$7:G24)>hcpng),F24+D24,$A$7=1," ") ->  | Y24: =_xlfn.IFS(AND(Q24=1,COUNT($E$7:G24)>hcpng),G24+D24,$A$7=1," ") ->  | Z24: 0 | AA24: =_xlfn.IFS(COUNTIFS(H24,"#",H23,"#"),A23,COUNTIFS(H24,2,H23,"#"),A23,$A$7=1,"") ->  | AB24: Rename the "Blank (x)" sheet name to the bowler's name you want
A25: 19 | B25: 2025-01-22 | C25: =_xlfn.IFS(Q25<>1,"",AND($B$4>=1,COUNT($E$7:G25)<=bkng),$B$4,P25=1,TRUNC(AVERAGE(E25:G25),0),COUNT($Q$7:Q25)=2,TRUNC(AVERAGE($E$7:G24),0),COUNT($Q$7:Q25)>=3,TRUNC(AVERAGE($E$7:G24),0)) ->  | D25: =_xlfn.IFS(Q25<>1,"",Q25=1,TRUNC((HCPB-C25)*HCPPC)) ->  | H25: =_xlfn.IFS(COUNT(E25:G25)<1,"",AND(E25>C25,F25>C25,G25>C25,COUNT($E$7:G25)>sixng),"#",AND(E25>C24,F25>C24,G25>C24,COUNT($E$7:G25)>sixng,COUNTIF(H24,"#")=1),"2",$A$7=1,"") ->  | K25: =_xlfn.IFS(Q25<>1,"",Q25=1,I25+(3*D25)) ->  | L25: =_xlfn.IFS(Q25<>1,"",COUNT($E$7:G25)<=hcpng,"",COUNT($E$7:G25)>=hcpng,K25) ->  | M25: =_xlfn.IFS(Q25=1,SUM($E$7:G25),Q25<>1,"") ->  | N25: =_xlfn.IFS(Q25=1,COUNT($E$7:G25),Q25<>1,"") ->  | O25: =IF(Q25=1,ROUND(AVERAGE($E$7:G25),2),"") ->  | P25: =_xlfn.IFS(Q25<>1,"",SUM($Q$7:Q25)=1,1,SUM($Q$7:Q25)<>1,"") ->  | S25: =_xlfn.IFS(E25=$X$5,E25,F25=$X$5,F25,G25=$X$5,G25,$A$7=1,"") -> 0 | U25: =_xlfn.IFS(W25=$X$6,W25,X25=$X$6,X25,Y25=$X$6,Y25,$A$7=1,"") ->  | W25: =_xlfn.IFS(AND(Q25=1,COUNT($E$7:G25)>hcpng),E25+D25,$A$7=1," ") ->  | X25: =_xlfn.IFS(AND(Q25=1,COUNT($E$7:G25)>hcpng),F25+D25,$A$7=1," ") ->  | Y25: =_xlfn.IFS(AND(Q25=1,COUNT($E$7:G25)>hcpng),G25+D25,$A$7=1," ") ->  | Z25: 0 | AA25: =_xlfn.IFS(COUNTIFS(H25,"#",H24,"#"),A24,COUNTIFS(H25,2,H24,"#"),A24,$A$7=1,"") -> 
A26: 20 | B26: 2025-01-29 | C26: =_xlfn.IFS(Q26<>1,"",AND($B$4>=1,COUNT($E$7:G26)<=bkng),$B$4,P26=1,TRUNC(AVERAGE(E26:G26),0),COUNT($Q$7:Q26)=2,TRUNC(AVERAGE($E$7:G25),0),COUNT($Q$7:Q26)>=3,TRUNC(AVERAGE($E$7:G25),0)) ->  | D26: =_xlfn.IFS(Q26<>1,"",Q26=1,TRUNC((HCPB-C26)*HCPPC)) ->  | H26: =_xlfn.IFS(COUNT(E26:G26)<1,"",AND(E26>C26,F26>C26,G26>C26,COUNT($E$7:G26)>sixng),"#",AND(E26>C25,F26>C25,G26>C25,COUNT($E$7:G26)>sixng,COUNTIF(H25,"#")=1),"2",$A$7=1,"") ->  | K26: =_xlfn.IFS(Q26<>1,"",Q26=1,I26+(3*D26)) ->  | L26: =_xlfn.IFS(Q26<>1,"",COUNT($E$7:G26)<=hcpng,"",COUNT($E$7:G26)>=hcpng,K26) ->  | M26: =_xlfn.IFS(Q26=1,SUM($E$7:G26),Q26<>1,"") ->  | N26: =_xlfn.IFS(Q26=1,COUNT($E$7:G26),Q26<>1,"") ->  | O26: =IF(Q26=1,ROUND(AVERAGE($E$7:G26),2),"") ->  | P26: =_xlfn.IFS(Q26<>1,"",SUM($Q$7:Q26)=1,1,SUM($Q$7:Q26)<>1,"") ->  | S26: =_xlfn.IFS(E26=$X$5,E26,F26=$X$5,F26,G26=$X$5,G26,$A$7=1,"") -> 0 | U26: =_xlfn.IFS(W26=$X$6,W26,X26=$X$6,X26,Y26=$X$6,Y26,$A$7=1,"") ->  | W26: =_xlfn.IFS(AND(Q26=1,COUNT($E$7:G26)>hcpng),E26+D26,$A$7=1," ") ->  | X26: =_xlfn.IFS(AND(Q26=1,COUNT($E$7:G26)>hcpng),F26+D26,$A$7=1," ") ->  | Y26: =_xlfn.IFS(AND(Q26=1,COUNT($E$7:G26)>hcpng),G26+D26,$A$7=1," ") ->  | Z26: 0 | AA26: =_xlfn.IFS(COUNTIFS(H26,"#",H25,"#"),A25,COUNTIFS(H26,2,H25,"#"),A25,$A$7=1,"") ->  | AB26: You can Hide or Unhide "Sheets" by select one and right clicking on it and select hide.
A27: 21 | B27: 2025-02-05 | C27: =_xlfn.IFS(Q27<>1,"",AND($B$4>=1,COUNT($E$7:G27)<=bkng),$B$4,P27=1,TRUNC(AVERAGE(E27:G27),0),COUNT($Q$7:Q27)=2,TRUNC(AVERAGE($E$7:G26),0),COUNT($Q$7:Q27)>=3,TRUNC(AVERAGE($E$7:G26),0)) ->  | D27: =_xlfn.IFS(Q27<>1,"",Q27=1,TRUNC((HCPB-C27)*HCPPC)) ->  | H27: =_xlfn.IFS(COUNT(E27:G27)<1,"",AND(E27>C27,F27>C27,G27>C27,COUNT($E$7:G27)>sixng),"#",AND(E27>C26,F27>C26,G27>C26,COUNT($E$7:G27)>sixng,COUNTIF(H26,"#")=1),"2",$A$7=1,"") ->  | K27: =_xlfn.IFS(Q27<>1,"",Q27=1,I27+(3*D27)) ->  | L27: =_xlfn.IFS(Q27<>1,"",COUNT($E$7:G27)<=hcpng,"",COUNT($E$7:G27)>=hcpng,K27) ->  | M27: =_xlfn.IFS(Q27=1,SUM($E$7:G27),Q27<>1,"") ->  | N27: =_xlfn.IFS(Q27=1,COUNT($E$7:G27),Q27<>1,"") ->  | O27: =IF(Q27=1,ROUND(AVERAGE($E$7:G27),2),"") ->  | P27: =_xlfn.IFS(Q27<>1,"",SUM($Q$7:Q27)=1,1,SUM($Q$7:Q27)<>1,"") ->  | S27: =_xlfn.IFS(E27=$X$5,E27,F27=$X$5,F27,G27=$X$5,G27,$A$7=1,"") -> 0 | U27: =_xlfn.IFS(W27=$X$6,W27,X27=$X$6,X27,Y27=$X$6,Y27,$A$7=1,"") ->  | W27: =_xlfn.IFS(AND(Q27=1,COUNT($E$7:G27)>hcpng),E27+D27,$A$7=1," ") ->  | X27: =_xlfn.IFS(AND(Q27=1,COUNT($E$7:G27)>hcpng),F27+D27,$A$7=1," ") ->  | Y27: =_xlfn.IFS(AND(Q27=1,COUNT($E$7:G27)>hcpng),G27+D27,$A$7=1," ") ->  | Z27: 0 | AA27: =_xlfn.IFS(COUNTIFS(H27,"#",H26,"#"),A26,COUNTIFS(H27,2,H26,"#"),A26,$A$7=1,"") ->  | AB27: To unhide any sheet right click on any sheet and select unhide and pick the sheet to unhide.
A28: 22 | B28: 2025-02-12 | C28: =_xlfn.IFS(Q28<>1,"",AND($B$4>=1,COUNT($E$7:G28)<=bkng),$B$4,P28=1,TRUNC(AVERAGE(E28:G28),0),COUNT($Q$7:Q28)=2,TRUNC(AVERAGE($E$7:G27),0),COUNT($Q$7:Q28)>=3,TRUNC(AVERAGE($E$7:G27),0)) ->  | D28: =_xlfn.IFS(Q28<>1,"",Q28=1,TRUNC((HCPB-C28)*HCPPC)) ->  | H28: =_xlfn.IFS(COUNT(E28:G28)<1,"",AND(E28>C28,F28>C28,G28>C28,COUNT($E$7:G28)>sixng),"#",AND(E28>C27,F28>C27,G28>C27,COUNT($E$7:G28)>sixng,COUNTIF(H27,"#")=1),"2",$A$7=1,"") ->  | K28: =_xlfn.IFS(Q28<>1,"",Q28=1,I28+(3*D28)) ->  | L28: =_xlfn.IFS(Q28<>1,"",COUNT($E$7:G28)<=hcpng,"",COUNT($E$7:G28)>=hcpng,K28) ->  | M28: =_xlfn.IFS(Q28=1,SUM($E$7:G28),Q28<>1,"") ->  | N28: =_xlfn.IFS(Q28=1,COUNT($E$7:G28),Q28<>1,"") ->  | O28: =IF(Q28=1,ROUND(AVERAGE($E$7:G28),2),"") ->  | P28: =_xlfn.IFS(Q28<>1,"",SUM($Q$7:Q28)=1,1,SUM($Q$7:Q28)<>1,"") ->  | S28: =_xlfn.IFS(E28=$X$5,E28,F28=$X$5,F28,G28=$X$5,G28,$A$7=1,"") -> 0 | U28: =_xlfn.IFS(W28=$X$6,W28,X28=$X$6,X28,Y28=$X$6,Y28,$A$7=1,"") ->  | W28: =_xlfn.IFS(AND(Q28=1,COUNT($E$7:G28)>hcpng),E28+D28,$A$7=1," ") ->  | X28: =_xlfn.IFS(AND(Q28=1,COUNT($E$7:G28)>hcpng),F28+D28,$A$7=1," ") ->  | Y28: =_xlfn.IFS(AND(Q28=1,COUNT($E$7:G28)>hcpng),G28+D28,$A$7=1," ") ->  | Z28: 0 | AA28: =_xlfn.IFS(COUNTIFS(H28,"#",H27,"#"),A27,COUNTIFS(H28,2,H27,"#"),A27,$A$7=1,"") -> 
A29: 23 | B29: 2025-02-19 | C29: =_xlfn.IFS(Q29<>1,"",AND($B$4>=1,COUNT($E$7:G29)<=bkng),$B$4,P29=1,TRUNC(AVERAGE(E29:G29),0),COUNT($Q$7:Q29)=2,TRUNC(AVERAGE($E$7:G28),0),COUNT($Q$7:Q29)>=3,TRUNC(AVERAGE($E$7:G28),0)) ->  | D29: =_xlfn.IFS(Q29<>1,"",Q29=1,TRUNC((HCPB-C29)*HCPPC)) ->  | H29: =_xlfn.IFS(COUNT(E29:G29)<1,"",AND(E29>C29,F29>C29,G29>C29,COUNT($E$7:G29)>sixng),"#",AND(E29>C28,F29>C28,G29>C28,COUNT($E$7:G29)>sixng,COUNTIF(H28,"#")=1),"2",$A$7=1,"") ->  | K29: =_xlfn.IFS(Q29<>1,"",Q29=1,I29+(3*D29)) ->  | L29: =_xlfn.IFS(Q29<>1,"",COUNT($E$7:G29)<=hcpng,"",COUNT($E$7:G29)>=hcpng,K29) ->  | M29: =_xlfn.IFS(Q29=1,SUM($E$7:G29),Q29<>1,"") ->  | N29: =_xlfn.IFS(Q29=1,COUNT($E$7:G29),Q29<>1,"") ->  | O29: =IF(Q29=1,ROUND(AVERAGE($E$7:G29),2),"") ->  | P29: =_xlfn.IFS(Q29<>1,"",SUM($Q$7:Q29)=1,1,SUM($Q$7:Q29)<>1,"") ->  | S29: =_xlfn.IFS(E29=$X$5,E29,F29=$X$5,F29,G29=$X$5,G29,$A$7=1,"") -> 0 | U29: =_xlfn.IFS(W29=$X$6,W29,X29=$X$6,X29,Y29=$X$6,Y29,$A$7=1,"") ->  | W29: =_xlfn.IFS(AND(Q29=1,COUNT($E$7:G29)>hcpng),E29+D29,$A$7=1," ") ->  | X29: =_xlfn.IFS(AND(Q29=1,COUNT($E$7:G29)>hcpng),F29+D29,$A$7=1," ") ->  | Y29: =_xlfn.IFS(AND(Q29=1,COUNT($E$7:G29)>hcpng),G29+D29,$A$7=1," ") ->  | Z29: 0 | AA29: =_xlfn.IFS(COUNTIFS(H29,"#",H28,"#"),A28,COUNTIFS(H29,2,H28,"#"),A28,$A$7=1,"") -> 
A30: 24 | B30: 2025-02-26 | C30: =_xlfn.IFS(Q30<>1,"",AND($B$4>=1,COUNT($E$7:G30)<=bkng),$B$4,P30=1,TRUNC(AVERAGE(E30:G30),0),COUNT($Q$7:Q30)=2,TRUNC(AVERAGE($E$7:G29),0),COUNT($Q$7:Q30)>=3,TRUNC(AVERAGE($E$7:G29),0)) ->  | D30: =_xlfn.IFS(Q30<>1,"",Q30=1,TRUNC((HCPB-C30)*HCPPC)) ->  | H30: =_xlfn.IFS(COUNT(E30:G30)<1,"",AND(E30>C30,F30>C30,G30>C30,COUNT($E$7:G30)>sixng),"#",AND(E30>C29,F30>C29,G30>C29,COUNT($E$7:G30)>sixng,COUNTIF(H29,"#")=1),"2",$A$7=1,"") ->  | K30: =_xlfn.IFS(Q30<>1,"",Q30=1,I30+(3*D30)) ->  | L30: =_xlfn.IFS(Q30<>1,"",COUNT($E$7:G30)<=hcpng,"",COUNT($E$7:G30)>=hcpng,K30) ->  | M30: =_xlfn.IFS(Q30=1,SUM($E$7:G30),Q30<>1,"") ->  | N30: =_xlfn.IFS(Q30=1,COUNT($E$7:G30),Q30<>1,"") ->  | O30: =IF(Q30=1,ROUND(AVERAGE($E$7:G30),2),"") ->  | P30: =_xlfn.IFS(Q30<>1,"",SUM($Q$7:Q30)=1,1,SUM($Q$7:Q30)<>1,"") ->  | S30: =_xlfn.IFS(E30=$X$5,E30,F30=$X$5,F30,G30=$X$5,G30,$A$7=1,"") -> 0 | U30: =_xlfn.IFS(W30=$X$6,W30,X30=$X$6,X30,Y30=$X$6,Y30,$A$7=1,"") ->  | W30: =_xlfn.IFS(AND(Q30=1,COUNT($E$7:G30)>hcpng),E30+D30,$A$7=1," ") ->  | X30: =_xlfn.IFS(AND(Q30=1,COUNT($E$7:G30)>hcpng),F30+D30,$A$7=1," ") ->  | Y30: =_xlfn.IFS(AND(Q30=1,COUNT($E$7:G30)>hcpng),G30+D30,$A$7=1," ") ->  | Z30: 0 | AA30: =_xlfn.IFS(COUNTIFS(H30,"#",H29,"#"),A29,COUNTIFS(H30,2,H29,"#"),A29,$A$7=1,"") -> 
A31: 25 | B31: 2025-03-05 | C31: =_xlfn.IFS(Q31<>1,"",AND($B$4>=1,COUNT($E$7:G31)<=bkng),$B$4,P31=1,TRUNC(AVERAGE(E31:G31),0),COUNT($Q$7:Q31)=2,TRUNC(AVERAGE($E$7:G30),0),COUNT($Q$7:Q31)>=3,TRUNC(AVERAGE($E$7:G30),0)) ->  | D31: =_xlfn.IFS(Q31<>1,"",Q31=1,TRUNC((HCPB-C31)*HCPPC)) ->  | H31: =_xlfn.IFS(COUNT(E31:G31)<1,"",AND(E31>C31,F31>C31,G31>C31,COUNT($E$7:G31)>sixng),"#",AND(E31>C30,F31>C30,G31>C30,COUNT($E$7:G31)>sixng,COUNTIF(H30,"#")=1),"2",$A$7=1,"") ->  | K31: =_xlfn.IFS(Q31<>1,"",Q31=1,I31+(3*D31)) ->  | L31: =_xlfn.IFS(Q31<>1,"",COUNT($E$7:G31)<=hcpng,"",COUNT($E$7:G31)>=hcpng,K31) ->  | M31: =_xlfn.IFS(Q31=1,SUM($E$7:G31),Q31<>1,"") ->  | N31: =_xlfn.IFS(Q31=1,COUNT($E$7:G31),Q31<>1,"") ->  | O31: =IF(Q31=1,ROUND(AVERAGE($E$7:G31),2),"") ->  | P31: =_xlfn.IFS(Q31<>1,"",SUM($Q$7:Q31)=1,1,SUM($Q$7:Q31)<>1,"") ->  | S31: =_xlfn.IFS(E31=$X$5,E31,F31=$X$5,F31,G31=$X$5,G31,$A$7=1,"") -> 0 | U31: =_xlfn.IFS(W31=$X$6,W31,X31=$X$6,X31,Y31=$X$6,Y31,$A$7=1,"") ->  | W31: =_xlfn.IFS(AND(Q31=1,COUNT($E$7:G31)>hcpng),E31+D31,$A$7=1," ") ->  | X31: =_xlfn.IFS(AND(Q31=1,COUNT($E$7:G31)>hcpng),F31+D31,$A$7=1," ") ->  | Y31: =_xlfn.IFS(AND(Q31=1,COUNT($E$7:G31)>hcpng),G31+D31,$A$7=1," ") ->  | Z31: 0 | AA31: =_xlfn.IFS(COUNTIFS(H31,"#",H30,"#"),A30,COUNTIFS(H31,2,H30,"#"),A30,$A$7=1,"") -> 
A32: 26 | B32: 2025-03-12 | C32: =_xlfn.IFS(Q32<>1,"",AND($B$4>=1,COUNT($E$7:G32)<=bkng),$B$4,P32=1,TRUNC(AVERAGE(E32:G32),0),COUNT($Q$7:Q32)=2,TRUNC(AVERAGE($E$7:G31),0),COUNT($Q$7:Q32)>=3,TRUNC(AVERAGE($E$7:G31),0)) ->  | D32: =_xlfn.IFS(Q32<>1,"",Q32=1,TRUNC((HCPB-C32)*HCPPC)) ->  | H32: =_xlfn.IFS(COUNT(E32:G32)<1,"",AND(E32>C32,F32>C32,G32>C32,COUNT($E$7:G32)>sixng),"#",AND(E32>C31,F32>C31,G32>C31,COUNT($E$7:G32)>sixng,COUNTIF(H31,"#")=1),"2",$A$7=1,"") ->  | K32: =_xlfn.IFS(Q32<>1,"",Q32=1,I32+(3*D32)) ->  | L32: =_xlfn.IFS(Q32<>1,"",COUNT($E$7:G32)<=hcpng,"",COUNT($E$7:G32)>=hcpng,K32) ->  | M32: =_xlfn.IFS(Q32=1,SUM($E$7:G32),Q32<>1,"") ->  | N32: =_xlfn.IFS(Q32=1,COUNT($E$7:G32),Q32<>1,"") ->  | O32: =IF(Q32=1,ROUND(AVERAGE($E$7:G32),2),"") ->  | P32: =_xlfn.IFS(Q32<>1,"",SUM($Q$7:Q32)=1,1,SUM($Q$7:Q32)<>1,"") ->  | S32: =_xlfn.IFS(E32=$X$5,E32,F32=$X$5,F32,G32=$X$5,G32,$A$7=1,"") -> 0 | U32: =_xlfn.IFS(W32=$X$6,W32,X32=$X$6,X32,Y32=$X$6,Y32,$A$7=1,"") ->  | W32: =_xlfn.IFS(AND(Q32=1,COUNT($E$7:G32)>hcpng),E32+D32,$A$7=1," ") ->  | X32: =_xlfn.IFS(AND(Q32=1,COUNT($E$7:G32)>hcpng),F32+D32,$A$7=1," ") ->  | Y32: =_xlfn.IFS(AND(Q32=1,COUNT($E$7:G32)>hcpng),G32+D32,$A$7=1," ") ->  | Z32: 0 | AA32: =_xlfn.IFS(COUNTIFS(H32,"#",H31,"#"),A31,COUNTIFS(H32,2,H31,"#"),A31,$A$7=1,"") -> 
A33: 27 | B33: 2025-03-19 | C33: =_xlfn.IFS(Q33<>1,"",AND($B$4>=1,COUNT($E$7:G33)<=bkng),$B$4,P33=1,TRUNC(AVERAGE(E33:G33),0),COUNT($Q$7:Q33)=2,TRUNC(AVERAGE($E$7:G32),0),COUNT($Q$7:Q33)>=3,TRUNC(AVERAGE($E$7:G32),0)) ->  | D33: =_xlfn.IFS(Q33<>1,"",Q33=1,TRUNC((HCPB-C33)*HCPPC)) ->  | H33: =_xlfn.IFS(COUNT(E33:G33)<1,"",AND(E33>C33,F33>C33,G33>C33,COUNT($E$7:G33)>sixng),"#",AND(E33>C32,F33>C32,G33>C32,COUNT($E$7:G33)>sixng,COUNTIF(H32,"#")=1),"2",$A$7=1,"") ->  | K33: =_xlfn.IFS(Q33<>1,"",Q33=1,I33+(3*D33)) ->  | L33: =_xlfn.IFS(Q33<>1,"",COUNT($E$7:G33)<=hcpng,"",COUNT($E$7:G33)>=hcpng,K33) ->  | M33: =_xlfn.IFS(Q33=1,SUM($E$7:G33),Q33<>1,"") ->  | N33: =_xlfn.IFS(Q33=1,COUNT($E$7:G33),Q33<>1,"") ->  | O33: =IF(Q33=1,ROUND(AVERAGE($E$7:G33),2),"") ->  | P33: =_xlfn.IFS(Q33<>1,"",SUM($Q$7:Q33)=1,1,SUM($Q$7:Q33)<>1,"") ->  | S33: =_xlfn.IFS(E33=$X$5,E33,F33=$X$5,F33,G33=$X$5,G33,$A$7=1,"") -> 0 | U33: =_xlfn.IFS(W33=$X$6,W33,X33=$X$6,X33,Y33=$X$6,Y33,$A$7=1,"") ->  | W33: =_xlfn.IFS(AND(Q33=1,COUNT($E$7:G33)>hcpng),E33+D33,$A$7=1," ") ->  | X33: =_xlfn.IFS(AND(Q33=1,COUNT($E$7:G33)>hcpng),F33+D33,$A$7=1," ") ->  | Y33: =_xlfn.IFS(AND(Q33=1,COUNT($E$7:G33)>hcpng),G33+D33,$A$7=1," ") ->  | Z33: 0 | AA33: =_xlfn.IFS(COUNTIFS(H33,"#",H32,"#"),A32,COUNTIFS(H33,2,H32,"#"),A32,$A$7=1,"") -> 
A34: 28 | B34: 2025-03-26 | C34: =_xlfn.IFS(Q34<>1,"",AND($B$4>=1,COUNT($E$7:G34)<=bkng),$B$4,P34=1,TRUNC(AVERAGE(E34:G34),0),COUNT($Q$7:Q34)=2,TRUNC(AVERAGE($E$7:G33),0),COUNT($Q$7:Q34)>=3,TRUNC(AVERAGE($E$7:G33),0)) ->  | D34: =_xlfn.IFS(Q34<>1,"",Q34=1,TRUNC((HCPB-C34)*HCPPC)) ->  | H34: =_xlfn.IFS(COUNT(E34:G34)<1,"",AND(E34>C34,F34>C34,G34>C34,COUNT($E$7:G34)>sixng),"#",AND(E34>C33,F34>C33,G34>C33,COUNT($E$7:G34)>sixng,COUNTIF(H33,"#")=1),"2",$A$7=1,"") ->  | K34: =_xlfn.IFS(Q34<>1,"",Q34=1,I34+(3*D34)) ->  | L34: =_xlfn.IFS(Q34<>1,"",COUNT($E$7:G34)<=hcpng,"",COUNT($E$7:G34)>=hcpng,K34) ->  | M34: =_xlfn.IFS(Q34=1,SUM($E$7:G34),Q34<>1,"") ->  | N34: =_xlfn.IFS(Q34=1,COUNT($E$7:G34),Q34<>1,"") ->  | O34: =IF(Q34=1,ROUND(AVERAGE($E$7:G34),2),"") ->  | P34: =_xlfn.IFS(Q34<>1,"",SUM($Q$7:Q34)=1,1,SUM($Q$7:Q34)<>1,"") ->  | S34: =_xlfn.IFS(E34=$X$5,E34,F34=$X$5,F34,G34=$X$5,G34,$A$7=1,"") -> 0 | U34: =_xlfn.IFS(W34=$X$6,W34,X34=$X$6,X34,Y34=$X$6,Y34,$A$7=1,"") ->  | W34: =_xlfn.IFS(AND(Q34=1,COUNT($E$7:G34)>hcpng),E34+D34,$A$7=1," ") ->  | X34: =_xlfn.IFS(AND(Q34=1,COUNT($E$7:G34)>hcpng),F34+D34,$A$7=1," ") ->  | Y34: =_xlfn.IFS(AND(Q34=1,COUNT($E$7:G34)>hcpng),G34+D34,$A$7=1," ") ->  | Z34: 0 | AA34: =_xlfn.IFS(COUNTIFS(H34,"#",H33,"#"),A33,COUNTIFS(H34,2,H33,"#"),A33,$A$7=1,"") -> 
A35: 29 | B35: 2025-04-02 | C35: =_xlfn.IFS(Q35<>1,"",AND($B$4>=1,COUNT($E$7:G35)<=bkng),$B$4,P35=1,TRUNC(AVERAGE(E35:G35),0),COUNT($Q$7:Q35)=2,TRUNC(AVERAGE($E$7:G34),0),COUNT($Q$7:Q35)>=3,TRUNC(AVERAGE($E$7:G34),0)) ->  | D35: =_xlfn.IFS(Q35<>1,"",Q35=1,TRUNC((HCPB-C35)*HCPPC)) ->  | H35: =_xlfn.IFS(COUNT(E35:G35)<1,"",AND(E35>C35,F35>C35,G35>C35,COUNT($E$7:G35)>sixng),"#",AND(E35>C34,F35>C34,G35>C34,COUNT($E$7:G35)>sixng,COUNTIF(H34,"#")=1),"2",$A$7=1,"") ->  | K35: =_xlfn.IFS(Q35<>1,"",Q35=1,I35+(3*D35)) ->  | L35: =_xlfn.IFS(Q35<>1,"",COUNT($E$7:G35)<=hcpng,"",COUNT($E$7:G35)>=hcpng,K35) ->  | M35: =_xlfn.IFS(Q35=1,SUM($E$7:G35),Q35<>1,"") ->  | N35: =_xlfn.IFS(Q35=1,COUNT($E$7:G35),Q35<>1,"") ->  | O35: =IF(Q35=1,ROUND(AVERAGE($E$7:G35),2),"") ->  | P35: =_xlfn.IFS(Q35<>1,"",SUM($Q$7:Q35)=1,1,SUM($Q$7:Q35)<>1,"") ->  | S35: =_xlfn.IFS(E35=$X$5,E35,F35=$X$5,F35,G35=$X$5,G35,$A$7=1,"") -> 0 | U35: =_xlfn.IFS(W35=$X$6,W35,X35=$X$6,X35,Y35=$X$6,Y35,$A$7=1,"") ->  | W35: =_xlfn.IFS(AND(Q35=1,COUNT($E$7:G35)>hcpng),E35+D35,$A$7=1," ") ->  | X35: =_xlfn.IFS(AND(Q35=1,COUNT($E$7:G35)>hcpng),F35+D35,$A$7=1," ") ->  | Y35: =_xlfn.IFS(AND(Q35=1,COUNT($E$7:G35)>hcpng),G35+D35,$A$7=1," ") ->  | Z35: 0 | AA35: =_xlfn.IFS(COUNTIFS(H35,"#",H34,"#"),A34,COUNTIFS(H35,2,H34,"#"),A34,$A$7=1,"") -> 
A36: 30 | B36: 2025-04-09 | C36: =_xlfn.IFS(Q36<>1,"",AND($B$4>=1,COUNT($E$7:G36)<=bkng),$B$4,P36=1,TRUNC(AVERAGE(E36:G36),0),COUNT($Q$7:Q36)=2,TRUNC(AVERAGE($E$7:G35),0),COUNT($Q$7:Q36)>=3,TRUNC(AVERAGE($E$7:G35),0)) ->  | D36: =_xlfn.IFS(Q36<>1,"",Q36=1,TRUNC((HCPB-C36)*HCPPC)) ->  | H36: =_xlfn.IFS(COUNT(E36:G36)<1,"",AND(E36>C36,F36>C36,G36>C36,COUNT($E$7:G36)>sixng),"#",AND(E36>C35,F36>C35,G36>C35,COUNT($E$7:G36)>sixng,COUNTIF(H35,"#")=1),"2",$A$7=1,"") ->  | K36: =_xlfn.IFS(Q36<>1,"",Q36=1,I36+(3*D36)) ->  | L36: =_xlfn.IFS(Q36<>1,"",COUNT($E$7:G36)<=hcpng,"",COUNT($E$7:G36)>=hcpng,K36) ->  | M36: =_xlfn.IFS(Q36=1,SUM($E$7:G36),Q36<>1,"") ->  | N36: =_xlfn.IFS(Q36=1,COUNT($E$7:G36),Q36<>1,"") ->  | O36: =IF(Q36=1,ROUND(AVERAGE($E$7:G36),2),"") ->  | P36: =_xlfn.IFS(Q36<>1,"",SUM($Q$7:Q36)=1,1,SUM($Q$7:Q36)<>1,"") ->  | S36: =_xlfn.IFS(E36=$X$5,E36,F36=$X$5,F36,G36=$X$5,G36,$A$7=1,"") -> 0 | U36: =_xlfn.IFS(W36=$X$6,W36,X36=$X$6,X36,Y36=$X$6,Y36,$A$7=1,"") ->  | W36: =_xlfn.IFS(AND(Q36=1,COUNT($E$7:G36)>hcpng),E36+D36,$A$7=1," ") ->  | X36: =_xlfn.IFS(AND(Q36=1,COUNT($E$7:G36)>hcpng),F36+D36,$A$7=1," ") ->  | Y36: =_xlfn.IFS(AND(Q36=1,COUNT($E$7:G36)>hcpng),G36+D36,$A$7=1," ") ->  | Z36: 0 | AA36: =_xlfn.IFS(COUNTIFS(H36,"#",H35,"#"),A35,COUNTIFS(H36,2,H35,"#"),A35,$A$7=1,"") -> 
E37: =IF(COUNT(E7:E36)>=1,ROUND(SUM(E7:E36)/COUNT(E7:E36),2),"") ->  | F37: =IF(COUNT(F7:F36)>=1,ROUND(SUM(F7:F36)/COUNT(F7:F36),2),"") ->  | G37: =IF(COUNT(G7:G36)>=1,ROUND(SUM(G7:G36)/COUNT(G7:G36),2),"") -> 
F39: ='UTL1'!H1 -> CSCUSBC ACHIEVEMENT AWARDS 2024-2025
F40: (each award can be earned one time only)(per season)
E41: games | O41: series | AD41: 125 | AF41: 150 | AH41: 175 | AJ41: 200 | AL41: 225 | AN41: 250 | AP41: 275 | AR41: 75og | AU41: 300 | AW41: 400 | AY41: 500 | BA41: 600 | BC41: 700 | BE41: 140os
C42: 125 | D42: 150 | E42: 175 | F42: 200 | G42: 225 | I42: 250 | J42: 275 | K42: 75og | M42: 300 | N42: 400 | O42: 500 | R42: 600 | S42: 700 | T42: 140os | AC42: 125 | AD42: wk# | AE42: 150 | AF42: wk# | AG42: 175 | AH42: wk# | AI42: 200 | AJ42: wk# | AK42: 225 | AL42: wk# | AM42: 250 | AN42: wk# | AO42: 275 | AP42: wk# | AQ42: 75og | AR42: wk# | AT42: 300 | AU42: wk# | AV42: 400 | AW42: wk# | AX42: 500 | AY42: wk# | AZ42: 600 | BA42: wk# | BB42: 700 | BC42: wk# | BD42: 140os | BE42: wk#
A43: 1 | B43: =Date2 -> 2024-09-04 | C43: =IF(AC43=1,1,"") ->  | D43: =IF(AE43=1,1,"") ->  | E43: =IF(AG43=1,1,"") ->  | F43: =IF(AI43=1,1,"") ->  | G43: =IF(AK43=1,1,"") ->  | I43: =IF(AM43=1,1,"") ->  | J43: =IF(AO43=1,1,"") ->  | K43: =IF(AQ43=1,1,"") ->  | M43: =IF(AT43=1,1,"") ->  | N43: =IF(AV43=1,1,"") ->  | O43: =IF(AX43=1,1,"") ->  | R43: =IF(AZ43=1,1,"") ->  | S43: =IF(BB43=1,1,"") ->  | T43: =IF(BD43=1,1,"") ->  | AC43: =_xlfn.IFS(COUNT($E$7:$G7)<=hcpma,"",AND(OR(AND($E7>=G125L,$E7<G125U),AND($F7>=G125L,$F7<G125U),AND($G7>=G125L,$G7<G125U)),$C7<=G125AL),1,10<11,"") ->  | AD43: =IF($C43=1,$A43,"") ->  | AE43: =_xlfn.IFS(COUNT($E$7:$G7)<=hcpma,"",AND(OR(AND($E7>=G150L,$E7<G150U),AND($F7>=G150L,$F7<G150U),AND($G7>=G150L,$G7<G150U)),$C7<=G150AL),1,10<11,"") ->  | AF43: =IF($D43=1,$A43,"") ->  | AG43: =_xlfn.IFS(COUNT($E$7:$G7)<=hcpma,"",AND(OR(AND($E7>=G175L,$E7<G175U),AND($F7>=G175L,$F7<G175U),AND($G7>=G175L,$G7<G175U)),$C7<=G175AL),1,10<11,"") ->  | AH43: =IF($E43=1,$A43,"") ->  | AI43: =_xlfn.IFS(COUNT($E$7:$G7)<=hcpma,"",AND(OR(AND($E7>=G200L,$E7<G200U),AND($F7>=G200L,$F7<G200U),AND($G7>=G200L,$G7<G200U)),$C7<=G200AL),1,10<11,"") ->  | AJ43: =IF($F43=1,$A43,"") ->  | AK43: =_xlfn.IFS(COUNT($E$7:$G7)<=hcpma,"",AND(OR(AND($E7>=G225L,$E7<G225U),AND($F7>=G225L,$F7<G225U),AND($G7>=G225L,$G7<G225U)),$C7<=G225AL),1,10<11,"") ->  | AL43: =IF($G43=1,$A43,"") ->  | AM43: =_xlfn.IFS(COUNT($E$7:$G7)<=hcpma,"",AND(OR(AND($E7>=G250L,$E7<G250U),AND($F7>=G250L,$F7<G250U),AND($G7>=G250L,$G7<G250U)),$C7<=G250AL),1,10<11,"") ->  | AN43: =IF($I43=1,$A43,"") ->  | AO43: =_xlfn.IFS(COUNT($E$7:$G7)<=hcpma,"",AND(OR(AND($E7>=G275L,$E7<=G275U),AND($F7>=G275L,$F7<=G275U),AND($G7>=G275L,$G7<=G275U)),$C7<=G275AL),1,10<11,"") ->  | AP43: =IF($J43=1,$A43,"") ->  | AQ43: =_xlfn.IFS(COUNT($E7:$G7)<=0,"",AND(COUNT($E$7:$G7)>hcpma,OR($E7>=($C7+G75OV),$F7>=($C7+G75OV),$G7>=($C7+G75OV))),1,10<11,"") ->  | AR43: =IF($K43=1,$A43,"") ->  | AT43: =_xlfn.IFS(COUNT($E$7:$G7)<=hcpma,"",AND( AND($I7>=S300L,$I7<S300U), $C7<=S300AL),1,10<11,"") ->  | AU43: =IF($M43=1,$A43,"") ->  | AV43: =_xlfn.IFS(COUNT($E$7:$G7)<=hcpma,"",AND( AND($I7>=S400L,$I7<S400U), $C7<=S400AL),1,10<11,"") ->  | AW43: =IF($N43=1,$A43,"") ->  | AX43: =_xlfn.IFS(COUNT($E$7:$G7)<=hcpma,"",AND( AND($I7>=S500L,$I7<S500U), $C7<=S500AL),1,10<11,"") ->  | AY43: =IF($O43=1,$A43,"") ->  | AZ43: =_xlfn.IFS(COUNT($E$7:$G7)<=hcpma,"",AND( AND($I7>=S600L,$I7<S600U), $C7<=S600AL),1,10<11,"") ->  | BA43: =IF($R43=1,$A43,"") ->  | BB43: =_xlfn.IFS(COUNT($E$7:$G7)<=hcpma,"",AND( AND($I7>=S700L,$I7<S700U), $C7<=S700AL),1,10<11,"") ->  | BC43: =IF($S43=1,$A43,"") ->  | BD43: =_xlfn.IFS(COUNT($E$7:$G7)<=hcpma,"",SUM($E7:$G7)<1,"",$I7>=3*$C7+S140ov,1,10<11,"") ->  | BE43: =IF($T43=1,$A43,"") -> 
A44: 2 | B44: 2024-09-11 | C44: =_xlfn.IFS(AC44<>1,"",AND(AC44=1,COUNTIF($AC$43:AC43,1)>=1),0,AND(AC44=1,COUNTIF($AC$43:AC43,1)<>1),1) ->  | D44: =_xlfn.IFS(AE44<>1,"",AND(AE44=1,COUNTIF($AE$43:AE43,1)>=1),0,AND(AE44=1,COUNTIF($AE$43:AE43,1)<>1),1) ->  | E44: =_xlfn.IFS(AG44<>1,"",AND(AG44=1,COUNTIF($AG$43:AG43,1)>=1),0,AND(AG44=1,COUNTIF($AG$43:AG43,1)<>1),1) ->  | F44: =_xlfn.IFS(AI44<>1,"",AND(AI44=1,COUNTIF($AI$43:AI43,1)>=1),0,AND(AI44=1,COUNTIF($AI$43:AI43,1)<>1),1) ->  | G44: =_xlfn.IFS(AK44<>1,"",AND(AK44=1,COUNTIF($AK$43:AK43,1)>=1),0,AND(AK44=1,COUNTIF($AK$43:AK43,1)<>1),1) ->  | I44: =_xlfn.IFS(AM44<>1,"",AND(AM44=1,COUNTIF($AM$43:AM43,1)>=1),0,AND(AM44=1,COUNTIF($AM$43:AM43,1)<>1),1) ->  | J44: =_xlfn.IFS(AO44<>1,"",AND(AO44=1,COUNTIF($AO$43:AO43,1)>=1),0,AND(AO44=1,COUNTIF($AO$43:AO43,1)<>1),1) ->  | K44: =_xlfn.IFS(AQ44<>1,"",AND(AQ44=1,COUNTIF($AQ$43:AQ43,1)>=1),0,AND(AQ44=1,COUNTIF($AQ$43:AQ43,1)<>1),1) ->  | M44: =_xlfn.IFS(AT44<>1,"",AND(AT44=1,COUNTIF($AT$43:AT43,1)>=1),0,AND(AT44=1,COUNTIF($AT$43:AT43,1)<>1),1) ->  | N44: =_xlfn.IFS(AV44<>1,"",AND(AV44=1,COUNTIF($AV$43:AV43,1)>=1),0,AND(AV44=1,COUNTIF($AV$43:AV43,1)<>1),1) ->  | O44: =_xlfn.IFS(AX44<>1,"",AND(AX44=1,COUNTIF($AX$43:AX43,1)>=1),0,AND(AX44=1,COUNTIF($AX$43:AX43,1)<>1),1) ->  | R44: =_xlfn.IFS(AZ44<>1,"",AND(AZ44=1,COUNTIF($AZ$43:AZ43,1)>=1),0,AND(AZ44=1,COUNTIF($AZ$43:AZ43,1)<>1),1) ->  | S44: =_xlfn.IFS(BB44<>1,"",AND(BB44=1,COUNTIF($BB$43:BB43,1)>=1),0,AND(BB44=1,COUNTIF($BB$43:BB43,1)<>1),1) ->  | T44: =_xlfn.IFS(BD44<>1,"",AND(BD44=1,COUNTIF($BD$43:BD43,1)>=1),0,AND(BD44=1,COUNTIF($BD$43:BD43,1)<>1),1) ->  | AC44: =_xlfn.IFS(COUNT($E$7:$G8)<=hcpma,"",AND(OR(AND($E8>=G125L,$E8<G125U),AND($F8>=G125L,$F8<G125U),AND($G8>=G125L,$G8<G125U)),$C8<=G125AL),1,10<11,"") ->  | AD44: =IF($C44=1,$A44,"") ->  | AE44: =_xlfn.IFS(COUNT($E$7:$G8)<=hcpma,"",AND(OR(AND($E8>=G150L,$E8<G150U),AND($F8>=G150L,$F8<G150U),AND($G8>=G150L,$G8<G150U)),$C8<=G150AL),1,10<11,"") ->  | AF44: =IF($D44=1,$A44,"") ->  | AG44: =_xlfn.IFS(COUNT($E$7:$G8)<=hcpma,"",AND(OR(AND($E8>=G175L,$E8<G175U),AND($F8>=G175L,$F8<G175U),AND($G8>=G175L,$G8<G175U)),$C8<=G175AL),1,10<11,"") ->  | AH44: =IF($E44=1,$A44,"") ->  | AI44: =_xlfn.IFS(COUNT($E$7:$G8)<=hcpma,"",AND(OR(AND($E8>=G200L,$E8<G200U),AND($F8>=G200L,$F8<G200U),AND($G8>=G200L,$G8<G200U)),$C8<=G200AL),1,10<11,"") ->  | AJ44: =IF($F44=1,$A44,"") ->  | AK44: =_xlfn.IFS(COUNT($E$7:$G8)<=hcpma,"",AND(OR(AND($E8>=G225L,$E8<G225U),AND($F8>=G225L,$F8<G225U),AND($G8>=G225L,$G8<G225U)),$C8<=G225AL),1,10<11,"") ->  | AL44: =IF($G44=1,$A44,"") ->  | AM44: =_xlfn.IFS(COUNT($E$7:$G8)<=hcpma,"",AND(OR(AND($E8>=G250L,$E8<G250U),AND($F8>=G250L,$F8<G250U),AND($G8>=G250L,$G8<G250U)),$C8<=G250AL),1,10<11,"") ->  | AN44: =IF($I44=1,$A44,"") ->  | AO44: =_xlfn.IFS(COUNT($E$7:$G8)<=hcpma,"",AND(OR(AND($E8>=G275L,$E8<=G275U),AND($F8>=G275L,$F8<=G275U),AND($G8>=G275L,$G8<=G275U)),$C8<=G275AL),1,10<11,"") ->  | AP44: =IF($J44=1,$A44,"") ->  | AQ44: =_xlfn.IFS(COUNT($E8:$G8)<=0,"",AND(COUNT($E$7:$G8)>hcpma,OR($E8>=($C8+G75OV),$F8>=($C8+G75OV),$G8>=($C8+G75OV))),1,10<11,"") ->  | AR44: =IF($K44=1,$A44,"") ->  | AT44: =_xlfn.IFS(COUNT($E$7:$G8)<=hcpma,"",AND( AND($I8>=S300L,$I8<S300U), $C8<=S300AL),1,10<11,"") ->  | AU44: =IF($M44=1,$A44,"") ->  | AV44: =_xlfn.IFS(COUNT($E$7:$G8)<=hcpma,"",AND( AND($I8>=S400L,$I8<S400U), $C8<=S400AL),1,10<11,"") ->  | AW44: =IF($N44=1,$A44,"") ->  | AX44: =_xlfn.IFS(COUNT($E$7:$G8)<=hcpma,"",AND( AND($I8>=S500L,$I8<S500U), $C8<=S500AL),1,10<11,"") ->  | AY44: =IF($O44=1,$A44,"") ->  | AZ44: =_xlfn.IFS(COUNT($E$7:$G8)<=hcpma,"",AND( AND($I8>=S600L,$I8<S600U), $C8<=S600AL),1,10<11,"") ->  | BA44: =IF($R44=1,$A44,"") ->  | BB44: =_xlfn.IFS(COUNT($E$7:$G8)<=hcpma,"",AND( AND($I8>=S700L,$I8<S700U), $C8<=S700AL),1,10<11,"") ->  | BC44: =IF($S44=1,$A44,"") ->  | BD44: =_xlfn.IFS(COUNT($E$7:$G8)<=hcpma,"",SUM($E8:$G8)<1,"",$I8>=3*$C8+S140ov,1,10<11,"") ->  | BE44: =IF($T44=1,$A44,"") -> 
A45: 3 | B45: 2024-09-18 | C45: =_xlfn.IFS(AC45<>1,"",AND(AC45=1,COUNTIF($AC$43:AC44,1)>=1),0,AND(AC45=1,COUNTIF($AC$43:AC44,1)<>1),1) ->  | D45: =_xlfn.IFS(AE45<>1,"",AND(AE45=1,COUNTIF($AE$43:AE44,1)>=1),0,AND(AE45=1,COUNTIF($AE$43:AE44,1)<>1),1) ->  | E45: =_xlfn.IFS(AG45<>1,"",AND(AG45=1,COUNTIF($AG$43:AG44,1)>=1),0,AND(AG45=1,COUNTIF($AG$43:AG44,1)<>1),1) ->  | F45: =_xlfn.IFS(AI45<>1,"",AND(AI45=1,COUNTIF($AI$43:AI44,1)>=1),0,AND(AI45=1,COUNTIF($AI$43:AI44,1)<>1),1) ->  | G45: =_xlfn.IFS(AK45<>1,"",AND(AK45=1,COUNTIF($AK$43:AK44,1)>=1),0,AND(AK45=1,COUNTIF($AK$43:AK44,1)<>1),1) ->  | I45: =_xlfn.IFS(AM45<>1,"",AND(AM45=1,COUNTIF($AM$43:AM44,1)>=1),0,AND(AM45=1,COUNTIF($AM$43:AM44,1)<>1),1) ->  | J45: =_xlfn.IFS(AO45<>1,"",AND(AO45=1,COUNTIF($AO$43:AO44,1)>=1),0,AND(AO45=1,COUNTIF($AO$43:AO44,1)<>1),1) ->  | K45: =_xlfn.IFS(AQ45<>1,"",AND(AQ45=1,COUNTIF($AQ$43:AQ44,1)>=1),0,AND(AQ45=1,COUNTIF($AQ$43:AQ44,1)<>1),1) ->  | M45: =_xlfn.IFS(AT45<>1,"",AND(AT45=1,COUNTIF($AT$43:AT44,1)>=1),0,AND(AT45=1,COUNTIF($AT$43:AT44,1)<>1),1) ->  | N45: =_xlfn.IFS(AV45<>1,"",AND(AV45=1,COUNTIF($AV$43:AV44,1)>=1),0,AND(AV45=1,COUNTIF($AV$43:AV44,1)<>1),1) ->  | O45: =_xlfn.IFS(AX45<>1,"",AND(AX45=1,COUNTIF($AX$43:AX44,1)>=1),0,AND(AX45=1,COUNTIF($AX$43:AX44,1)<>1),1) ->  | R45: =_xlfn.IFS(AZ45<>1,"",AND(AZ45=1,COUNTIF($AZ$43:AZ44,1)>=1),0,AND(AZ45=1,COUNTIF($AZ$43:AZ44,1)<>1),1) ->  | S45: =_xlfn.IFS(BB45<>1,"",AND(BB45=1,COUNTIF($BB$43:BB44,1)>=1),0,AND(BB45=1,COUNTIF($BB$43:BB44,1)<>1),1) ->  | T45: =_xlfn.IFS(BD45<>1,"",AND(BD45=1,COUNTIF($BD$43:BD44,1)>=1),0,AND(BD45=1,COUNTIF($BD$43:BD44,1)<>1),1) ->  | AC45: =_xlfn.IFS(COUNT($E$7:$G9)<=hcpma,"",AND(OR(AND($E9>=G125L,$E9<G125U),AND($F9>=G125L,$F9<G125U),AND($G9>=G125L,$G9<G125U)),$C9<=G125AL),1,10<11,"") ->  | AE45: =_xlfn.IFS(COUNT($E$7:$G9)<=hcpma,"",AND(OR(AND($E9>=G150L,$E9<G150U),AND($F9>=G150L,$F9<G150U),AND($G9>=G150L,$G9<G150U)),$C9<=G150AL),1,10<11,"") ->  | AG45: =_xlfn.IFS(COUNT($E$7:$G9)<=hcpma,"",AND(OR(AND($E9>=G175L,$E9<G175U),AND($F9>=G175L,$F9<G175U),AND($G9>=G175L,$G9<G175U)),$C9<=G175AL),1,10<11,"") ->  | AI45: =_xlfn.IFS(COUNT($E$7:$G9)<=hcpma,"",AND(OR(AND($E9>=G200L,$E9<G200U),AND($F9>=G200L,$F9<G200U),AND($G9>=G200L,$G9<G200U)),$C9<=G200AL),1,10<11,"") ->  | AK45: =_xlfn.IFS(COUNT($E$7:$G9)<=hcpma,"",AND(OR(AND($E9>=G225L,$E9<G225U),AND($F9>=G225L,$F9<G225U),AND($G9>=G225L,$G9<G225U)),$C9<=G225AL),1,10<11,"") ->  | AM45: =_xlfn.IFS(COUNT($E$7:$G9)<=hcpma,"",AND(OR(AND($E9>=G250L,$E9<G250U),AND($F9>=G250L,$F9<G250U),AND($G9>=G250L,$G9<G250U)),$C9<=G250AL),1,10<11,"") ->  | AO45: =_xlfn.IFS(COUNT($E$7:$G9)<=hcpma,"",AND(OR(AND($E9>=G275L,$E9<=G275U),AND($F9>=G275L,$F9<=G275U),AND($G9>=G275L,$G9<=G275U)),$C9<=G275AL),1,10<11,"") ->  | AQ45: =_xlfn.IFS(COUNT($E9:$G9)<=0,"",AND(COUNT($E$7:$G9)>hcpma,OR($E9>=($C9+G75OV),$F9>=($C9+G75OV),$G9>=($C9+G75OV))),1,10<11,"") ->  | AT45: =_xlfn.IFS(COUNT($E$7:$G9)<=hcpma,"",AND( AND($I9>=S300L,$I9<S300U), $C9<=S300AL),1,10<11,"") ->  | AV45: =_xlfn.IFS(COUNT($E$7:$G9)<=hcpma,"",AND( AND($I9>=S400L,$I9<S400U), $C9<=S400AL),1,10<11,"") ->  | AX45: =_xlfn.IFS(COUNT($E$7:$G9)<=hcpma,"",AND( AND($I9>=S500L,$I9<S500U), $C9<=S500AL),1,10<11,"") ->  | AZ45: =_xlfn.IFS(COUNT($E$7:$G9)<=hcpma,"",AND( AND($I9>=S600L,$I9<S600U), $C9<=S600AL),1,10<11,"") ->  | BB45: =_xlfn.IFS(COUNT($E$7:$G9)<=hcpma,"",AND( AND($I9>=S700L,$I9<S700U), $C9<=S700AL),1,10<11,"") ->  | BD45: =_xlfn.IFS(COUNT($E$7:$G9)<=hcpma,"",SUM($E9:$G9)<1,"",$I9>=3*$C9+S140ov,1,10<11,"") -> 
A46: 4 | B46: 2024-09-25 | C46: =_xlfn.IFS(AC46<>1,"",AND(AC46=1,COUNTIF($AC$43:AC45,1)>=1),0,AND(AC46=1,COUNTIF($AC$43:AC45,1)<>1),1) ->  | D46: =_xlfn.IFS(AE46<>1,"",AND(AE46=1,COUNTIF($AE$43:AE45,1)>=1),0,AND(AE46=1,COUNTIF($AE$43:AE45,1)<>1),1) ->  | E46: =_xlfn.IFS(AG46<>1,"",AND(AG46=1,COUNTIF($AG$43:AG45,1)>=1),0,AND(AG46=1,COUNTIF($AG$43:AG45,1)<>1),1) ->  | F46: =_xlfn.IFS(AI46<>1,"",AND(AI46=1,COUNTIF($AI$43:AI45,1)>=1),0,AND(AI46=1,COUNTIF($AI$43:AI45,1)<>1),1) ->  | G46: =_xlfn.IFS(AK46<>1,"",AND(AK46=1,COUNTIF($AK$43:AK45,1)>=1),0,AND(AK46=1,COUNTIF($AK$43:AK45,1)<>1),1) ->  | I46: =_xlfn.IFS(AM46<>1,"",AND(AM46=1,COUNTIF($AM$43:AM45,1)>=1),0,AND(AM46=1,COUNTIF($AM$43:AM45,1)<>1),1) ->  | J46: =_xlfn.IFS(AO46<>1,"",AND(AO46=1,COUNTIF($AO$43:AO45,1)>=1),0,AND(AO46=1,COUNTIF($AO$43:AO45,1)<>1),1) ->  | K46: =_xlfn.IFS(AQ46<>1,"",AND(AQ46=1,COUNTIF($AQ$43:AQ45,1)>=1),0,AND(AQ46=1,COUNTIF($AQ$43:AQ45,1)<>1),1) ->  | M46: =_xlfn.IFS(AT46<>1,"",AND(AT46=1,COUNTIF($AT$43:AT45,1)>=1),0,AND(AT46=1,COUNTIF($AT$43:AT45,1)<>1),1) ->  | N46: =_xlfn.IFS(AV46<>1,"",AND(AV46=1,COUNTIF($AV$43:AV45,1)>=1),0,AND(AV46=1,COUNTIF($AV$43:AV45,1)<>1),1) ->  | O46: =_xlfn.IFS(AX46<>1,"",AND(AX46=1,COUNTIF($AX$43:AX45,1)>=1),0,AND(AX46=1,COUNTIF($AX$43:AX45,1)<>1),1) ->  | R46: =_xlfn.IFS(AZ46<>1,"",AND(AZ46=1,COUNTIF($AZ$43:AZ45,1)>=1),0,AND(AZ46=1,COUNTIF($AZ$43:AZ45,1)<>1),1) ->  | S46: =_xlfn.IFS(BB46<>1,"",AND(BB46=1,COUNTIF($BB$43:BB45,1)>=1),0,AND(BB46=1,COUNTIF($BB$43:BB45,1)<>1),1) ->  | T46: =_xlfn.IFS(BD46<>1,"",AND(BD46=1,COUNTIF($BD$43:BD45,1)>=1),0,AND(BD46=1,COUNTIF($BD$43:BD45,1)<>1),1) ->  | AC46: =_xlfn.IFS(COUNT($E$7:$G10)<=hcpma,"",AND(OR(AND($E10>=G125L,$E10<G125U),AND($F10>=G125L,$F10<G125U),AND($G10>=G125L,$G10<G125U)),$C10<=G125AL),1,10<11,"") ->  | AE46: =_xlfn.IFS(COUNT($E$7:$G10)<=hcpma,"",AND(OR(AND($E10>=G150L,$E10<G150U),AND($F10>=G150L,$F10<G150U),AND($G10>=G150L,$G10<G150U)),$C10<=G150AL),1,10<11,"") ->  | AG46: =_xlfn.IFS(COUNT($E$7:$G10)<=hcpma,"",AND(OR(AND($E10>=G175L,$E10<G175U),AND($F10>=G175L,$F10<G175U),AND($G10>=G175L,$G10<G175U)),$C10<=G175AL),1,10<11,"") ->  | AI46: =_xlfn.IFS(COUNT($E$7:$G10)<=hcpma,"",AND(OR(AND($E10>=G200L,$E10<G200U),AND($F10>=G200L,$F10<G200U),AND($G10>=G200L,$G10<G200U)),$C10<=G200AL),1,10<11,"") ->  | AK46: =_xlfn.IFS(COUNT($E$7:$G10)<=hcpma,"",AND(OR(AND($E10>=G225L,$E10<G225U),AND($F10>=G225L,$F10<G225U),AND($G10>=G225L,$G10<G225U)),$C10<=G225AL),1,10<11,"") ->  | AM46: =_xlfn.IFS(COUNT($E$7:$G10)<=hcpma,"",AND(OR(AND($E10>=G250L,$E10<G250U),AND($F10>=G250L,$F10<G250U),AND($G10>=G250L,$G10<G250U)),$C10<=G250AL),1,10<11,"") ->  | AO46: =_xlfn.IFS(COUNT($E$7:$G10)<=hcpma,"",AND(OR(AND($E10>=G275L,$E10<=G275U),AND($F10>=G275L,$F10<=G275U),AND($G10>=G275L,$G10<=G275U)),$C10<=G275AL),1,10<11,"") ->  | AQ46: =_xlfn.IFS(COUNT($E10:$G10)<=0,"",AND(COUNT($E$7:$G10)>hcpma,OR($E10>=($C10+G75OV),$F10>=($C10+G75OV),$G10>=($C10+G75OV))),1,10<11,"") ->  | AT46: =_xlfn.IFS(COUNT($E$7:$G10)<=hcpma,"",AND( AND($I10>=S300L,$I10<S300U), $C10<=S300AL),1,10<11,"") ->  | AV46: =_xlfn.IFS(COUNT($E$7:$G10)<=hcpma,"",AND( AND($I10>=S400L,$I10<S400U), $C10<=S400AL),1,10<11,"") ->  | AX46: =_xlfn.IFS(COUNT($E$7:$G10)<=hcpma,"",AND( AND($I10>=S500L,$I10<S500U), $C10<=S500AL),1,10<11,"") ->  | AZ46: =_xlfn.IFS(COUNT($E$7:$G10)<=hcpma,"",AND( AND($I10>=S600L,$I10<S600U), $C10<=S600AL),1,10<11,"") ->  | BB46: =_xlfn.IFS(COUNT($E$7:$G10)<=hcpma,"",AND( AND($I10>=S700L,$I10<S700U), $C10<=S700AL),1,10<11,"") ->  | BD46: =_xlfn.IFS(COUNT($E$7:$G10)<=hcpma,"",SUM($E10:$G10)<1,"",$I10>=3*$C10+S140ov,1,10<11,"") -> 
A47: 5 | B47: 2024-10-02 | C47: =_xlfn.IFS(AC47<>1,"",AND(AC47=1,COUNTIF($AC$43:AC46,1)>=1),0,AND(AC47=1,COUNTIF($AC$43:AC46,1)<>1),1) ->  | D47: =_xlfn.IFS(AE47<>1,"",AND(AE47=1,COUNTIF($AE$43:AE46,1)>=1),0,AND(AE47=1,COUNTIF($AE$43:AE46,1)<>1),1) ->  | E47: =_xlfn.IFS(AG47<>1,"",AND(AG47=1,COUNTIF($AG$43:AG46,1)>=1),0,AND(AG47=1,COUNTIF($AG$43:AG46,1)<>1),1) ->  | F47: =_xlfn.IFS(AI47<>1,"",AND(AI47=1,COUNTIF($AI$43:AI46,1)>=1),0,AND(AI47=1,COUNTIF($AI$43:AI46,1)<>1),1) ->  | G47: =_xlfn.IFS(AK47<>1,"",AND(AK47=1,COUNTIF($AK$43:AK46,1)>=1),0,AND(AK47=1,COUNTIF($AK$43:AK46,1)<>1),1) ->  | I47: =_xlfn.IFS(AM47<>1,"",AND(AM47=1,COUNTIF($AM$43:AM46,1)>=1),0,AND(AM47=1,COUNTIF($AM$43:AM46,1)<>1),1) ->  | J47: =_xlfn.IFS(AO47<>1,"",AND(AO47=1,COUNTIF($AO$43:AO46,1)>=1),0,AND(AO47=1,COUNTIF($AO$43:AO46,1)<>1),1) ->  | K47: =_xlfn.IFS(AQ47<>1,"",AND(AQ47=1,COUNTIF($AQ$43:AQ46,1)>=1),0,AND(AQ47=1,COUNTIF($AQ$43:AQ46,1)<>1),1) ->  | M47: =_xlfn.IFS(AT47<>1,"",AND(AT47=1,COUNTIF($AT$43:AT46,1)>=1),0,AND(AT47=1,COUNTIF($AT$43:AT46,1)<>1),1) ->  | N47: =_xlfn.IFS(AV47<>1,"",AND(AV47=1,COUNTIF($AV$43:AV46,1)>=1),0,AND(AV47=1,COUNTIF($AV$43:AV46,1)<>1),1) ->  | O47: =_xlfn.IFS(AX47<>1,"",AND(AX47=1,COUNTIF($AX$43:AX46,1)>=1),0,AND(AX47=1,COUNTIF($AX$43:AX46,1)<>1),1) ->  | R47: =_xlfn.IFS(AZ47<>1,"",AND(AZ47=1,COUNTIF($AZ$43:AZ46,1)>=1),0,AND(AZ47=1,COUNTIF($AZ$43:AZ46,1)<>1),1) ->  | S47: =_xlfn.IFS(BB47<>1,"",AND(BB47=1,COUNTIF($BB$43:BB46,1)>=1),0,AND(BB47=1,COUNTIF($BB$43:BB46,1)<>1),1) ->  | T47: =_xlfn.IFS(BD47<>1,"",AND(BD47=1,COUNTIF($BD$43:BD46,1)>=1),0,AND(BD47=1,COUNTIF($BD$43:BD46,1)<>1),1) ->  | AC47: =_xlfn.IFS(COUNT($E$7:$G11)<=hcpma,"",AND(OR(AND($E11>=G125L,$E11<G125U),AND($F11>=G125L,$F11<G125U),AND($G11>=G125L,$G11<G125U)),$C11<=G125AL),1,10<11,"") ->  | AE47: =_xlfn.IFS(COUNT($E$7:$G11)<=hcpma,"",AND(OR(AND($E11>=G150L,$E11<G150U),AND($F11>=G150L,$F11<G150U),AND($G11>=G150L,$G11<G150U)),$C11<=G150AL),1,10<11,"") ->  | AG47: =_xlfn.IFS(COUNT($E$7:$G11)<=hcpma,"",AND(OR(AND($E11>=G175L,$E11<G175U),AND($F11>=G175L,$F11<G175U),AND($G11>=G175L,$G11<G175U)),$C11<=G175AL),1,10<11,"") ->  | AI47: =_xlfn.IFS(COUNT($E$7:$G11)<=hcpma,"",AND(OR(AND($E11>=G200L,$E11<G200U),AND($F11>=G200L,$F11<G200U),AND($G11>=G200L,$G11<G200U)),$C11<=G200AL),1,10<11,"") ->  | AK47: =_xlfn.IFS(COUNT($E$7:$G11)<=hcpma,"",AND(OR(AND($E11>=G225L,$E11<G225U),AND($F11>=G225L,$F11<G225U),AND($G11>=G225L,$G11<G225U)),$C11<=G225AL),1,10<11,"") ->  | AM47: =_xlfn.IFS(COUNT($E$7:$G11)<=hcpma,"",AND(OR(AND($E11>=G250L,$E11<G250U),AND($F11>=G250L,$F11<G250U),AND($G11>=G250L,$G11<G250U)),$C11<=G250AL),1,10<11,"") ->  | AO47: =_xlfn.IFS(COUNT($E$7:$G11)<=hcpma,"",AND(OR(AND($E11>=G275L,$E11<=G275U),AND($F11>=G275L,$F11<=G275U),AND($G11>=G275L,$G11<=G275U)),$C11<=G275AL),1,10<11,"") ->  | AQ47: =_xlfn.IFS(COUNT($E11:$G11)<=0,"",AND(COUNT($E$7:$G11)>hcpma,OR($E11>=($C11+G75OV),$F11>=($C11+G75OV),$G11>=($C11+G75OV))),1,10<11,"") ->  | AT47: =_xlfn.IFS(COUNT($E$7:$G11)<=hcpma,"",AND( AND($I11>=S300L,$I11<S300U), $C11<=S300AL),1,10<11,"") ->  | AV47: =_xlfn.IFS(COUNT($E$7:$G11)<=hcpma,"",AND( AND($I11>=S400L,$I11<S400U), $C11<=S400AL),1,10<11,"") ->  | AX47: =_xlfn.IFS(COUNT($E$7:$G11)<=hcpma,"",AND( AND($I11>=S500L,$I11<S500U), $C11<=S500AL),1,10<11,"") ->  | AZ47: =_xlfn.IFS(COUNT($E$7:$G11)<=hcpma,"",AND( AND($I11>=S600L,$I11<S600U), $C11<=S600AL),1,10<11,"") ->  | BB47: =_xlfn.IFS(COUNT($E$7:$G11)<=hcpma,"",AND( AND($I11>=S700L,$I11<S700U), $C11<=S700AL),1,10<11,"") ->  | BD47: =_xlfn.IFS(COUNT($E$7:$G11)<=hcpma,"",SUM($E11:$G11)<1,"",$I11>=3*$C11+S140ov,1,10<11,"") -> 
A48: 6 | B48: 2024-10-09 | C48: =_xlfn.IFS(AC48<>1,"",AND(AC48=1,COUNTIF($AC$43:AC47,1)>=1),0,AND(AC48=1,COUNTIF($AC$43:AC47,1)<>1),1) ->  | D48: =_xlfn.IFS(AE48<>1,"",AND(AE48=1,COUNTIF($AE$43:AE47,1)>=1),0,AND(AE48=1,COUNTIF($AE$43:AE47,1)<>1),1) ->  | E48: =_xlfn.IFS(AG48<>1,"",AND(AG48=1,COUNTIF($AG$43:AG47,1)>=1),0,AND(AG48=1,COUNTIF($AG$43:AG47,1)<>1),1) ->  | F48: =_xlfn.IFS(AI48<>1,"",AND(AI48=1,COUNTIF($AI$43:AI47,1)>=1),0,AND(AI48=1,COUNTIF($AI$43:AI47,1)<>1),1) ->  | G48: =_xlfn.IFS(AK48<>1,"",AND(AK48=1,COUNTIF($AK$43:AK47,1)>=1),0,AND(AK48=1,COUNTIF($AK$43:AK47,1)<>1),1) ->  | I48: =_xlfn.IFS(AM48<>1,"",AND(AM48=1,COUNTIF($AM$43:AM47,1)>=1),0,AND(AM48=1,COUNTIF($AM$43:AM47,1)<>1),1) ->  | J48: =_xlfn.IFS(AO48<>1,"",AND(AO48=1,COUNTIF($AO$43:AO47,1)>=1),0,AND(AO48=1,COUNTIF($AO$43:AO47,1)<>1),1) ->  | K48: =_xlfn.IFS(AQ48<>1,"",AND(AQ48=1,COUNTIF($AQ$43:AQ47,1)>=1),0,AND(AQ48=1,COUNTIF($AQ$43:AQ47,1)<>1),1) ->  | M48: =_xlfn.IFS(AT48<>1,"",AND(AT48=1,COUNTIF($AT$43:AT47,1)>=1),0,AND(AT48=1,COUNTIF($AT$43:AT47,1)<>1),1) ->  | N48: =_xlfn.IFS(AV48<>1,"",AND(AV48=1,COUNTIF($AV$43:AV47,1)>=1),0,AND(AV48=1,COUNTIF($AV$43:AV47,1)<>1),1) ->  | O48: =_xlfn.IFS(AX48<>1,"",AND(AX48=1,COUNTIF($AX$43:AX47,1)>=1),0,AND(AX48=1,COUNTIF($AX$43:AX47,1)<>1),1) ->  | R48: =_xlfn.IFS(AZ48<>1,"",AND(AZ48=1,COUNTIF($AZ$43:AZ47,1)>=1),0,AND(AZ48=1,COUNTIF($AZ$43:AZ47,1)<>1),1) ->  | S48: =_xlfn.IFS(BB48<>1,"",AND(BB48=1,COUNTIF($BB$43:BB47,1)>=1),0,AND(BB48=1,COUNTIF($BB$43:BB47,1)<>1),1) ->  | T48: =_xlfn.IFS(BD48<>1,"",AND(BD48=1,COUNTIF($BD$43:BD47,1)>=1),0,AND(BD48=1,COUNTIF($BD$43:BD47,1)<>1),1) ->  | AC48: =_xlfn.IFS(COUNT($E$7:$G12)<=hcpma,"",AND(OR(AND($E12>=G125L,$E12<G125U),AND($F12>=G125L,$F12<G125U),AND($G12>=G125L,$G12<G125U)),$C12<=G125AL),1,10<11,"") ->  | AE48: =_xlfn.IFS(COUNT($E$7:$G12)<=hcpma,"",AND(OR(AND($E12>=G150L,$E12<G150U),AND($F12>=G150L,$F12<G150U),AND($G12>=G150L,$G12<G150U)),$C12<=G150AL),1,10<11,"") ->  | AG48: =_xlfn.IFS(COUNT($E$7:$G12)<=hcpma,"",AND(OR(AND($E12>=G175L,$E12<G175U),AND($F12>=G175L,$F12<G175U),AND($G12>=G175L,$G12<G175U)),$C12<=G175AL),1,10<11,"") ->  | AI48: =_xlfn.IFS(COUNT($E$7:$G12)<=hcpma,"",AND(OR(AND($E12>=G200L,$E12<G200U),AND($F12>=G200L,$F12<G200U),AND($G12>=G200L,$G12<G200U)),$C12<=G200AL),1,10<11,"") ->  | AK48: =_xlfn.IFS(COUNT($E$7:$G12)<=hcpma,"",AND(OR(AND($E12>=G225L,$E12<G225U),AND($F12>=G225L,$F12<G225U),AND($G12>=G225L,$G12<G225U)),$C12<=G225AL),1,10<11,"") ->  | AM48: =_xlfn.IFS(COUNT($E$7:$G12)<=hcpma,"",AND(OR(AND($E12>=G250L,$E12<G250U),AND($F12>=G250L,$F12<G250U),AND($G12>=G250L,$G12<G250U)),$C12<=G250AL),1,10<11,"") ->  | AO48: =_xlfn.IFS(COUNT($E$7:$G12)<=hcpma,"",AND(OR(AND($E12>=G275L,$E12<=G275U),AND($F12>=G275L,$F12<=G275U),AND($G12>=G275L,$G12<=G275U)),$C12<=G275AL),1,10<11,"") ->  | AQ48: =_xlfn.IFS(COUNT($E12:$G12)<=0,"",AND(COUNT($E$7:$G12)>hcpma,OR($E12>=($C12+G75OV),$F12>=($C12+G75OV),$G12>=($C12+G75OV))),1,10<11,"") ->  | AT48: =_xlfn.IFS(COUNT($E$7:$G12)<=hcpma,"",AND( AND($I12>=S300L,$I12<S300U), $C12<=S300AL),1,10<11,"") ->  | AV48: =_xlfn.IFS(COUNT($E$7:$G12)<=hcpma,"",AND( AND($I12>=S400L,$I12<S400U), $C12<=S400AL),1,10<11,"") ->  | AX48: =_xlfn.IFS(COUNT($E$7:$G12)<=hcpma,"",AND( AND($I12>=S500L,$I12<S500U), $C12<=S500AL),1,10<11,"") ->  | AZ48: =_xlfn.IFS(COUNT($E$7:$G12)<=hcpma,"",AND( AND($I12>=S600L,$I12<S600U), $C12<=S600AL),1,10<11,"") ->  | BB48: =_xlfn.IFS(COUNT($E$7:$G12)<=hcpma,"",AND( AND($I12>=S700L,$I12<S700U), $C12<=S700AL),1,10<11,"") ->  | BD48: =_xlfn.IFS(COUNT($E$7:$G12)<=hcpma,"",SUM($E12:$G12)<1,"",$I12>=3*$C12+S140ov,1,10<11,"") -> 
A49: 7 | B49: 2024-10-16 | C49: =_xlfn.IFS(AC49<>1,"",AND(AC49=1,COUNTIF($AC$43:AC48,1)>=1),0,AND(AC49=1,COUNTIF($AC$43:AC48,1)<>1),1) ->  | D49: =_xlfn.IFS(AE49<>1,"",AND(AE49=1,COUNTIF($AE$43:AE48,1)>=1),0,AND(AE49=1,COUNTIF($AE$43:AE48,1)<>1),1) ->  | E49: =_xlfn.IFS(AG49<>1,"",AND(AG49=1,COUNTIF($AG$43:AG48,1)>=1),0,AND(AG49=1,COUNTIF($AG$43:AG48,1)<>1),1) ->  | F49: =_xlfn.IFS(AI49<>1,"",AND(AI49=1,COUNTIF($AI$43:AI48,1)>=1),0,AND(AI49=1,COUNTIF($AI$43:AI48,1)<>1),1) ->  | G49: =_xlfn.IFS(AK49<>1,"",AND(AK49=1,COUNTIF($AK$43:AK48,1)>=1),0,AND(AK49=1,COUNTIF($AK$43:AK48,1)<>1),1) ->  | I49: =_xlfn.IFS(AM49<>1,"",AND(AM49=1,COUNTIF($AM$43:AM48,1)>=1),0,AND(AM49=1,COUNTIF($AM$43:AM48,1)<>1),1) ->  | J49: =_xlfn.IFS(AO49<>1,"",AND(AO49=1,COUNTIF($AO$43:AO48,1)>=1),0,AND(AO49=1,COUNTIF($AO$43:AO48,1)<>1),1) ->  | K49: =_xlfn.IFS(AQ49<>1,"",AND(AQ49=1,COUNTIF($AQ$43:AQ48,1)>=1),0,AND(AQ49=1,COUNTIF($AQ$43:AQ48,1)<>1),1) ->  | M49: =_xlfn.IFS(AT49<>1,"",AND(AT49=1,COUNTIF($AT$43:AT48,1)>=1),0,AND(AT49=1,COUNTIF($AT$43:AT48,1)<>1),1) ->  | N49: =_xlfn.IFS(AV49<>1,"",AND(AV49=1,COUNTIF($AV$43:AV48,1)>=1),0,AND(AV49=1,COUNTIF($AV$43:AV48,1)<>1),1) ->  | O49: =_xlfn.IFS(AX49<>1,"",AND(AX49=1,COUNTIF($AX$43:AX48,1)>=1),0,AND(AX49=1,COUNTIF($AX$43:AX48,1)<>1),1) ->  | R49: =_xlfn.IFS(AZ49<>1,"",AND(AZ49=1,COUNTIF($AZ$43:AZ48,1)>=1),0,AND(AZ49=1,COUNTIF($AZ$43:AZ48,1)<>1),1) ->  | S49: =_xlfn.IFS(BB49<>1,"",AND(BB49=1,COUNTIF($BB$43:BB48,1)>=1),0,AND(BB49=1,COUNTIF($BB$43:BB48,1)<>1),1) ->  | T49: =_xlfn.IFS(BD49<>1,"",AND(BD49=1,COUNTIF($BD$43:BD48,1)>=1),0,AND(BD49=1,COUNTIF($BD$43:BD48,1)<>1),1) ->  | AC49: =_xlfn.IFS(COUNT($E$7:$G13)<=hcpma,"",AND(OR(AND($E13>=G125L,$E13<G125U),AND($F13>=G125L,$F13<G125U),AND($G13>=G125L,$G13<G125U)),$C13<=G125AL),1,10<11,"") ->  | AE49: =_xlfn.IFS(COUNT($E$7:$G13)<=hcpma,"",AND(OR(AND($E13>=G150L,$E13<G150U),AND($F13>=G150L,$F13<G150U),AND($G13>=G150L,$G13<G150U)),$C13<=G150AL),1,10<11,"") ->  | AG49: =_xlfn.IFS(COUNT($E$7:$G13)<=hcpma,"",AND(OR(AND($E13>=G175L,$E13<G175U),AND($F13>=G175L,$F13<G175U),AND($G13>=G175L,$G13<G175U)),$C13<=G175AL),1,10<11,"") ->  | AI49: =_xlfn.IFS(COUNT($E$7:$G13)<=hcpma,"",AND(OR(AND($E13>=G200L,$E13<G200U),AND($F13>=G200L,$F13<G200U),AND($G13>=G200L,$G13<G200U)),$C13<=G200AL),1,10<11,"") ->  | AK49: =_xlfn.IFS(COUNT($E$7:$G13)<=hcpma,"",AND(OR(AND($E13>=G225L,$E13<G225U),AND($F13>=G225L,$F13<G225U),AND($G13>=G225L,$G13<G225U)),$C13<=G225AL),1,10<11,"") ->  | AM49: =_xlfn.IFS(COUNT($E$7:$G13)<=hcpma,"",AND(OR(AND($E13>=G250L,$E13<G250U),AND($F13>=G250L,$F13<G250U),AND($G13>=G250L,$G13<G250U)),$C13<=G250AL),1,10<11,"") ->  | AO49: =_xlfn.IFS(COUNT($E$7:$G13)<=hcpma,"",AND(OR(AND($E13>=G275L,$E13<=G275U),AND($F13>=G275L,$F13<=G275U),AND($G13>=G275L,$G13<=G275U)),$C13<=G275AL),1,10<11,"") ->  | AQ49: =_xlfn.IFS(COUNT($E13:$G13)<=0,"",AND(COUNT($E$7:$G13)>hcpma,OR($E13>=($C13+G75OV),$F13>=($C13+G75OV),$G13>=($C13+G75OV))),1,10<11,"") ->  | AT49: =_xlfn.IFS(COUNT($E$7:$G13)<=hcpma,"",AND( AND($I13>=S300L,$I13<S300U), $C13<=S300AL),1,10<11,"") ->  | AV49: =_xlfn.IFS(COUNT($E$7:$G13)<=hcpma,"",AND( AND($I13>=S400L,$I13<S400U), $C13<=S400AL),1,10<11,"") ->  | AX49: =_xlfn.IFS(COUNT($E$7:$G13)<=hcpma,"",AND( AND($I13>=S500L,$I13<S500U), $C13<=S500AL),1,10<11,"") ->  | AZ49: =_xlfn.IFS(COUNT($E$7:$G13)<=hcpma,"",AND( AND($I13>=S600L,$I13<S600U), $C13<=S600AL),1,10<11,"") ->  | BB49: =_xlfn.IFS(COUNT($E$7:$G13)<=hcpma,"",AND( AND($I13>=S700L,$I13<S700U), $C13<=S700AL),1,10<11,"") ->  | BD49: =_xlfn.IFS(COUNT($E$7:$G13)<=hcpma,"",SUM($E13:$G13)<1,"",$I13>=3*$C13+S140ov,1,10<11,"") -> 
A50: 8 | B50: 2024-10-23 | C50: =_xlfn.IFS(AC50<>1,"",AND(AC50=1,COUNTIF($AC$43:AC49,1)>=1),0,AND(AC50=1,COUNTIF($AC$43:AC49,1)<>1),1) ->  | D50: =_xlfn.IFS(AE50<>1,"",AND(AE50=1,COUNTIF($AE$43:AE49,1)>=1),0,AND(AE50=1,COUNTIF($AE$43:AE49,1)<>1),1) ->  | E50: =_xlfn.IFS(AG50<>1,"",AND(AG50=1,COUNTIF($AG$43:AG49,1)>=1),0,AND(AG50=1,COUNTIF($AG$43:AG49,1)<>1),1) ->  | F50: =_xlfn.IFS(AI50<>1,"",AND(AI50=1,COUNTIF($AI$43:AI49,1)>=1),0,AND(AI50=1,COUNTIF($AI$43:AI49,1)<>1),1) ->  | G50: =_xlfn.IFS(AK50<>1,"",AND(AK50=1,COUNTIF($AK$43:AK49,1)>=1),0,AND(AK50=1,COUNTIF($AK$43:AK49,1)<>1),1) ->  | I50: =_xlfn.IFS(AM50<>1,"",AND(AM50=1,COUNTIF($AM$43:AM49,1)>=1),0,AND(AM50=1,COUNTIF($AM$43:AM49,1)<>1),1) ->  | J50: =_xlfn.IFS(AO50<>1,"",AND(AO50=1,COUNTIF($AO$43:AO49,1)>=1),0,AND(AO50=1,COUNTIF($AO$43:AO49,1)<>1),1) ->  | K50: =_xlfn.IFS(AQ50<>1,"",AND(AQ50=1,COUNTIF($AQ$43:AQ49,1)>=1),0,AND(AQ50=1,COUNTIF($AQ$43:AQ49,1)<>1),1) ->  | M50: =_xlfn.IFS(AT50<>1,"",AND(AT50=1,COUNTIF($AT$43:AT49,1)>=1),0,AND(AT50=1,COUNTIF($AT$43:AT49,1)<>1),1) ->  | N50: =_xlfn.IFS(AV50<>1,"",AND(AV50=1,COUNTIF($AV$43:AV49,1)>=1),0,AND(AV50=1,COUNTIF($AV$43:AV49,1)<>1),1) ->  | O50: =_xlfn.IFS(AX50<>1,"",AND(AX50=1,COUNTIF($AX$43:AX49,1)>=1),0,AND(AX50=1,COUNTIF($AX$43:AX49,1)<>1),1) ->  | R50: =_xlfn.IFS(AZ50<>1,"",AND(AZ50=1,COUNTIF($AZ$43:AZ49,1)>=1),0,AND(AZ50=1,COUNTIF($AZ$43:AZ49,1)<>1),1) ->  | S50: =_xlfn.IFS(BB50<>1,"",AND(BB50=1,COUNTIF($BB$43:BB49,1)>=1),0,AND(BB50=1,COUNTIF($BB$43:BB49,1)<>1),1) ->  | T50: =_xlfn.IFS(BD50<>1,"",AND(BD50=1,COUNTIF($BD$43:BD49,1)>=1),0,AND(BD50=1,COUNTIF($BD$43:BD49,1)<>1),1) ->  | AC50: =_xlfn.IFS(COUNT($E$7:$G14)<=hcpma,"",AND(OR(AND($E14>=G125L,$E14<G125U),AND($F14>=G125L,$F14<G125U),AND($G14>=G125L,$G14<G125U)),$C14<=G125AL),1,10<11,"") ->  | AE50: =_xlfn.IFS(COUNT($E$7:$G14)<=hcpma,"",AND(OR(AND($E14>=G150L,$E14<G150U),AND($F14>=G150L,$F14<G150U),AND($G14>=G150L,$G14<G150U)),$C14<=G150AL),1,10<11,"") ->  | AG50: =_xlfn.IFS(COUNT($E$7:$G14)<=hcpma,"",AND(OR(AND($E14>=G175L,$E14<G175U),AND($F14>=G175L,$F14<G175U),AND($G14>=G175L,$G14<G175U)),$C14<=G175AL),1,10<11,"") ->  | AI50: =_xlfn.IFS(COUNT($E$7:$G14)<=hcpma,"",AND(OR(AND($E14>=G200L,$E14<G200U),AND($F14>=G200L,$F14<G200U),AND($G14>=G200L,$G14<G200U)),$C14<=G200AL),1,10<11,"") ->  | AK50: =_xlfn.IFS(COUNT($E$7:$G14)<=hcpma,"",AND(OR(AND($E14>=G225L,$E14<G225U),AND($F14>=G225L,$F14<G225U),AND($G14>=G225L,$G14<G225U)),$C14<=G225AL),1,10<11,"") ->  | AM50: =_xlfn.IFS(COUNT($E$7:$G14)<=hcpma,"",AND(OR(AND($E14>=G250L,$E14<G250U),AND($F14>=G250L,$F14<G250U),AND($G14>=G250L,$G14<G250U)),$C14<=G250AL),1,10<11,"") ->  | AO50: =_xlfn.IFS(COUNT($E$7:$G14)<=hcpma,"",AND(OR(AND($E14>=G275L,$E14<=G275U),AND($F14>=G275L,$F14<=G275U),AND($G14>=G275L,$G14<=G275U)),$C14<=G275AL),1,10<11,"") ->  | AQ50: =_xlfn.IFS(COUNT($E14:$G14)<=0,"",AND(COUNT($E$7:$G14)>hcpma,OR($E14>=($C14+G75OV),$F14>=($C14+G75OV),$G14>=($C14+G75OV))),1,10<11,"") ->  | AT50: =_xlfn.IFS(COUNT($E$7:$G14)<=hcpma,"",AND( AND($I14>=S300L,$I14<S300U), $C14<=S300AL),1,10<11,"") ->  | AV50: =_xlfn.IFS(COUNT($E$7:$G14)<=hcpma,"",AND( AND($I14>=S400L,$I14<S400U), $C14<=S400AL),1,10<11,"") ->  | AX50: =_xlfn.IFS(COUNT($E$7:$G14)<=hcpma,"",AND( AND($I14>=S500L,$I14<S500U), $C14<=S500AL),1,10<11,"") ->  | AZ50: =_xlfn.IFS(COUNT($E$7:$G14)<=hcpma,"",AND( AND($I14>=S600L,$I14<S600U), $C14<=S600AL),1,10<11,"") ->  | BB50: =_xlfn.IFS(COUNT($E$7:$G14)<=hcpma,"",AND( AND($I14>=S700L,$I14<S700U), $C14<=S700AL),1,10<11,"") ->  | BD50: =_xlfn.IFS(COUNT($E$7:$G14)<=hcpma,"",SUM($E14:$G14)<1,"",$I14>=3*$C14+S140ov,1,10<11,"") -> 
A51: 9 | B51: 2024-10-30 | C51: =_xlfn.IFS(AC51<>1,"",AND(AC51=1,COUNTIF($AC$43:AC50,1)>=1),0,AND(AC51=1,COUNTIF($AC$43:AC50,1)<>1),1) ->  | D51: =_xlfn.IFS(AE51<>1,"",AND(AE51=1,COUNTIF($AE$43:AE50,1)>=1),0,AND(AE51=1,COUNTIF($AE$43:AE50,1)<>1),1) ->  | E51: =_xlfn.IFS(AG51<>1,"",AND(AG51=1,COUNTIF($AG$43:AG50,1)>=1),0,AND(AG51=1,COUNTIF($AG$43:AG50,1)<>1),1) ->  | F51: =_xlfn.IFS(AI51<>1,"",AND(AI51=1,COUNTIF($AI$43:AI50,1)>=1),0,AND(AI51=1,COUNTIF($AI$43:AI50,1)<>1),1) ->  | G51: =_xlfn.IFS(AK51<>1,"",AND(AK51=1,COUNTIF($AK$43:AK50,1)>=1),0,AND(AK51=1,COUNTIF($AK$43:AK50,1)<>1),1) ->  | I51: =_xlfn.IFS(AM51<>1,"",AND(AM51=1,COUNTIF($AM$43:AM50,1)>=1),0,AND(AM51=1,COUNTIF($AM$43:AM50,1)<>1),1) ->  | J51: =_xlfn.IFS(AO51<>1,"",AND(AO51=1,COUNTIF($AO$43:AO50,1)>=1),0,AND(AO51=1,COUNTIF($AO$43:AO50,1)<>1),1) ->  | K51: =_xlfn.IFS(AQ51<>1,"",AND(AQ51=1,COUNTIF($AQ$43:AQ50,1)>=1),0,AND(AQ51=1,COUNTIF($AQ$43:AQ50,1)<>1),1) ->  | M51: =_xlfn.IFS(AT51<>1,"",AND(AT51=1,COUNTIF($AT$43:AT50,1)>=1),0,AND(AT51=1,COUNTIF($AT$43:AT50,1)<>1),1) ->  | N51: =_xlfn.IFS(AV51<>1,"",AND(AV51=1,COUNTIF($AV$43:AV50,1)>=1),0,AND(AV51=1,COUNTIF($AV$43:AV50,1)<>1),1) ->  | O51: =_xlfn.IFS(AX51<>1,"",AND(AX51=1,COUNTIF($AX$43:AX50,1)>=1),0,AND(AX51=1,COUNTIF($AX$43:AX50,1)<>1),1) ->  | R51: =_xlfn.IFS(AZ51<>1,"",AND(AZ51=1,COUNTIF($AZ$43:AZ50,1)>=1),0,AND(AZ51=1,COUNTIF($AZ$43:AZ50,1)<>1),1) ->  | S51: =_xlfn.IFS(BB51<>1,"",AND(BB51=1,COUNTIF($BB$43:BB50,1)>=1),0,AND(BB51=1,COUNTIF($BB$43:BB50,1)<>1),1) ->  | T51: =_xlfn.IFS(BD51<>1,"",AND(BD51=1,COUNTIF($BD$43:BD50,1)>=1),0,AND(BD51=1,COUNTIF($BD$43:BD50,1)<>1),1) ->  | AC51: =_xlfn.IFS(COUNT($E$7:$G15)<=hcpma,"",AND(OR(AND($E15>=G125L,$E15<G125U),AND($F15>=G125L,$F15<G125U),AND($G15>=G125L,$G15<G125U)),$C15<=G125AL),1,10<11,"") ->  | AE51: =_xlfn.IFS(COUNT($E$7:$G15)<=hcpma,"",AND(OR(AND($E15>=G150L,$E15<G150U),AND($F15>=G150L,$F15<G150U),AND($G15>=G150L,$G15<G150U)),$C15<=G150AL),1,10<11,"") ->  | AG51: =_xlfn.IFS(COUNT($E$7:$G15)<=hcpma,"",AND(OR(AND($E15>=G175L,$E15<G175U),AND($F15>=G175L,$F15<G175U),AND($G15>=G175L,$G15<G175U)),$C15<=G175AL),1,10<11,"") ->  | AI51: =_xlfn.IFS(COUNT($E$7:$G15)<=hcpma,"",AND(OR(AND($E15>=G200L,$E15<G200U),AND($F15>=G200L,$F15<G200U),AND($G15>=G200L,$G15<G200U)),$C15<=G200AL),1,10<11,"") ->  | AK51: =_xlfn.IFS(COUNT($E$7:$G15)<=hcpma,"",AND(OR(AND($E15>=G225L,$E15<G225U),AND($F15>=G225L,$F15<G225U),AND($G15>=G225L,$G15<G225U)),$C15<=G225AL),1,10<11,"") ->  | AM51: =_xlfn.IFS(COUNT($E$7:$G15)<=hcpma,"",AND(OR(AND($E15>=G250L,$E15<G250U),AND($F15>=G250L,$F15<G250U),AND($G15>=G250L,$G15<G250U)),$C15<=G250AL),1,10<11,"") ->  | AO51: =_xlfn.IFS(COUNT($E$7:$G15)<=hcpma,"",AND(OR(AND($E15>=G275L,$E15<=G275U),AND($F15>=G275L,$F15<=G275U),AND($G15>=G275L,$G15<=G275U)),$C15<=G275AL),1,10<11,"") ->  | AQ51: =_xlfn.IFS(COUNT($E15:$G15)<=0,"",AND(COUNT($E$7:$G15)>hcpma,OR($E15>=($C15+G75OV),$F15>=($C15+G75OV),$G15>=($C15+G75OV))),1,10<11,"") ->  | AT51: =_xlfn.IFS(COUNT($E$7:$G15)<=hcpma,"",AND( AND($I15>=S300L,$I15<S300U), $C15<=S300AL),1,10<11,"") ->  | AV51: =_xlfn.IFS(COUNT($E$7:$G15)<=hcpma,"",AND( AND($I15>=S400L,$I15<S400U), $C15<=S400AL),1,10<11,"") ->  | AX51: =_xlfn.IFS(COUNT($E$7:$G15)<=hcpma,"",AND( AND($I15>=S500L,$I15<S500U), $C15<=S500AL),1,10<11,"") ->  | AZ51: =_xlfn.IFS(COUNT($E$7:$G15)<=hcpma,"",AND( AND($I15>=S600L,$I15<S600U), $C15<=S600AL),1,10<11,"") ->  | BB51: =_xlfn.IFS(COUNT($E$7:$G15)<=hcpma,"",AND( AND($I15>=S700L,$I15<S700U), $C15<=S700AL),1,10<11,"") ->  | BD51: =_xlfn.IFS(COUNT($E$7:$G15)<=hcpma,"",SUM($E15:$G15)<1,"",$I15>=3*$C15+S140ov,1,10<11,"") -> 
A52: 10 | B52: 2024-11-06 | C52: =_xlfn.IFS(AC52<>1,"",AND(AC52=1,COUNTIF($AC$43:AC51,1)>=1),0,AND(AC52=1,COUNTIF($AC$43:AC51,1)<>1),1) ->  | D52: =_xlfn.IFS(AE52<>1,"",AND(AE52=1,COUNTIF($AE$43:AE51,1)>=1),0,AND(AE52=1,COUNTIF($AE$43:AE51,1)<>1),1) ->  | E52: =_xlfn.IFS(AG52<>1,"",AND(AG52=1,COUNTIF($AG$43:AG51,1)>=1),0,AND(AG52=1,COUNTIF($AG$43:AG51,1)<>1),1) ->  | F52: =_xlfn.IFS(AI52<>1,"",AND(AI52=1,COUNTIF($AI$43:AI51,1)>=1),0,AND(AI52=1,COUNTIF($AI$43:AI51,1)<>1),1) ->  | G52: =_xlfn.IFS(AK52<>1,"",AND(AK52=1,COUNTIF($AK$43:AK51,1)>=1),0,AND(AK52=1,COUNTIF($AK$43:AK51,1)<>1),1) ->  | I52: =_xlfn.IFS(AM52<>1,"",AND(AM52=1,COUNTIF($AM$43:AM51,1)>=1),0,AND(AM52=1,COUNTIF($AM$43:AM51,1)<>1),1) ->  | J52: =_xlfn.IFS(AO52<>1,"",AND(AO52=1,COUNTIF($AO$43:AO51,1)>=1),0,AND(AO52=1,COUNTIF($AO$43:AO51,1)<>1),1) ->  | K52: =_xlfn.IFS(AQ52<>1,"",AND(AQ52=1,COUNTIF($AQ$43:AQ51,1)>=1),0,AND(AQ52=1,COUNTIF($AQ$43:AQ51,1)<>1),1) ->  | M52: =_xlfn.IFS(AT52<>1,"",AND(AT52=1,COUNTIF($AT$43:AT51,1)>=1),0,AND(AT52=1,COUNTIF($AT$43:AT51,1)<>1),1) ->  | N52: =_xlfn.IFS(AV52<>1,"",AND(AV52=1,COUNTIF($AV$43:AV51,1)>=1),0,AND(AV52=1,COUNTIF($AV$43:AV51,1)<>1),1) ->  | O52: =_xlfn.IFS(AX52<>1,"",AND(AX52=1,COUNTIF($AX$43:AX51,1)>=1),0,AND(AX52=1,COUNTIF($AX$43:AX51,1)<>1),1) ->  | R52: =_xlfn.IFS(AZ52<>1,"",AND(AZ52=1,COUNTIF($AZ$43:AZ51,1)>=1),0,AND(AZ52=1,COUNTIF($AZ$43:AZ51,1)<>1),1) ->  | S52: =_xlfn.IFS(BB52<>1,"",AND(BB52=1,COUNTIF($BB$43:BB51,1)>=1),0,AND(BB52=1,COUNTIF($BB$43:BB51,1)<>1),1) ->  | T52: =_xlfn.IFS(BD52<>1,"",AND(BD52=1,COUNTIF($BD$43:BD51,1)>=1),0,AND(BD52=1,COUNTIF($BD$43:BD51,1)<>1),1) ->  | AC52: =_xlfn.IFS(COUNT($E$7:$G16)<=hcpma,"",AND(OR(AND($E16>=G125L,$E16<G125U),AND($F16>=G125L,$F16<G125U),AND($G16>=G125L,$G16<G125U)),$C16<=G125AL),1,10<11,"") ->  | AE52: =_xlfn.IFS(COUNT($E$7:$G16)<=hcpma,"",AND(OR(AND($E16>=G150L,$E16<G150U),AND($F16>=G150L,$F16<G150U),AND($G16>=G150L,$G16<G150U)),$C16<=G150AL),1,10<11,"") ->  | AG52: =_xlfn.IFS(COUNT($E$7:$G16)<=hcpma,"",AND(OR(AND($E16>=G175L,$E16<G175U),AND($F16>=G175L,$F16<G175U),AND($G16>=G175L,$G16<G175U)),$C16<=G175AL),1,10<11,"") ->  | AI52: =_xlfn.IFS(COUNT($E$7:$G16)<=hcpma,"",AND(OR(AND($E16>=G200L,$E16<G200U),AND($F16>=G200L,$F16<G200U),AND($G16>=G200L,$G16<G200U)),$C16<=G200AL),1,10<11,"") ->  | AK52: =_xlfn.IFS(COUNT($E$7:$G16)<=hcpma,"",AND(OR(AND($E16>=G225L,$E16<G225U),AND($F16>=G225L,$F16<G225U),AND($G16>=G225L,$G16<G225U)),$C16<=G225AL),1,10<11,"") ->  | AM52: =_xlfn.IFS(COUNT($E$7:$G16)<=hcpma,"",AND(OR(AND($E16>=G250L,$E16<G250U),AND($F16>=G250L,$F16<G250U),AND($G16>=G250L,$G16<G250U)),$C16<=G250AL),1,10<11,"") ->  | AO52: =_xlfn.IFS(COUNT($E$7:$G16)<=hcpma,"",AND(OR(AND($E16>=G275L,$E16<=G275U),AND($F16>=G275L,$F16<=G275U),AND($G16>=G275L,$G16<=G275U)),$C16<=G275AL),1,10<11,"") ->  | AQ52: =_xlfn.IFS(COUNT($E16:$G16)<=0,"",AND(COUNT($E$7:$G16)>hcpma,OR($E16>=($C16+G75OV),$F16>=($C16+G75OV),$G16>=($C16+G75OV))),1,10<11,"") ->  | AT52: =_xlfn.IFS(COUNT($E$7:$G16)<=hcpma,"",AND( AND($I16>=S300L,$I16<S300U), $C16<=S300AL),1,10<11,"") ->  | AV52: =_xlfn.IFS(COUNT($E$7:$G16)<=hcpma,"",AND( AND($I16>=S400L,$I16<S400U), $C16<=S400AL),1,10<11,"") ->  | AX52: =_xlfn.IFS(COUNT($E$7:$G16)<=hcpma,"",AND( AND($I16>=S500L,$I16<S500U), $C16<=S500AL),1,10<11,"") ->  | AZ52: =_xlfn.IFS(COUNT($E$7:$G16)<=hcpma,"",AND( AND($I16>=S600L,$I16<S600U), $C16<=S600AL),1,10<11,"") ->  | BB52: =_xlfn.IFS(COUNT($E$7:$G16)<=hcpma,"",AND( AND($I16>=S700L,$I16<S700U), $C16<=S700AL),1,10<11,"") ->  | BD52: =_xlfn.IFS(COUNT($E$7:$G16)<=hcpma,"",SUM($E16:$G16)<1,"",$I16>=3*$C16+S140ov,1,10<11,"") -> 
A53: 11 | B53: 2024-11-13 | C53: =_xlfn.IFS(AC53<>1,"",AND(AC53=1,COUNTIF($AC$43:AC52,1)>=1),0,AND(AC53=1,COUNTIF($AC$43:AC52,1)<>1),1) ->  | D53: =_xlfn.IFS(AE53<>1,"",AND(AE53=1,COUNTIF($AE$43:AE52,1)>=1),0,AND(AE53=1,COUNTIF($AE$43:AE52,1)<>1),1) ->  | E53: =_xlfn.IFS(AG53<>1,"",AND(AG53=1,COUNTIF($AG$43:AG52,1)>=1),0,AND(AG53=1,COUNTIF($AG$43:AG52,1)<>1),1) ->  | F53: =_xlfn.IFS(AI53<>1,"",AND(AI53=1,COUNTIF($AI$43:AI52,1)>=1),0,AND(AI53=1,COUNTIF($AI$43:AI52,1)<>1),1) ->  | G53: =_xlfn.IFS(AK53<>1,"",AND(AK53=1,COUNTIF($AK$43:AK52,1)>=1),0,AND(AK53=1,COUNTIF($AK$43:AK52,1)<>1),1) ->  | I53: =_xlfn.IFS(AM53<>1,"",AND(AM53=1,COUNTIF($AM$43:AM52,1)>=1),0,AND(AM53=1,COUNTIF($AM$43:AM52,1)<>1),1) ->  | J53: =_xlfn.IFS(AO53<>1,"",AND(AO53=1,COUNTIF($AO$43:AO52,1)>=1),0,AND(AO53=1,COUNTIF($AO$43:AO52,1)<>1),1) ->  | K53: =_xlfn.IFS(AQ53<>1,"",AND(AQ53=1,COUNTIF($AQ$43:AQ52,1)>=1),0,AND(AQ53=1,COUNTIF($AQ$43:AQ52,1)<>1),1) ->  | M53: =_xlfn.IFS(AT53<>1,"",AND(AT53=1,COUNTIF($AT$43:AT52,1)>=1),0,AND(AT53=1,COUNTIF($AT$43:AT52,1)<>1),1) ->  | N53: =_xlfn.IFS(AV53<>1,"",AND(AV53=1,COUNTIF($AV$43:AV52,1)>=1),0,AND(AV53=1,COUNTIF($AV$43:AV52,1)<>1),1) ->  | O53: =_xlfn.IFS(AX53<>1,"",AND(AX53=1,COUNTIF($AX$43:AX52,1)>=1),0,AND(AX53=1,COUNTIF($AX$43:AX52,1)<>1),1) ->  | R53: =_xlfn.IFS(AZ53<>1,"",AND(AZ53=1,COUNTIF($AZ$43:AZ52,1)>=1),0,AND(AZ53=1,COUNTIF($AZ$43:AZ52,1)<>1),1) ->  | S53: =_xlfn.IFS(BB53<>1,"",AND(BB53=1,COUNTIF($BB$43:BB52,1)>=1),0,AND(BB53=1,COUNTIF($BB$43:BB52,1)<>1),1) ->  | T53: =_xlfn.IFS(BD53<>1,"",AND(BD53=1,COUNTIF($BD$43:BD52,1)>=1),0,AND(BD53=1,COUNTIF($BD$43:BD52,1)<>1),1) ->  | AC53: =_xlfn.IFS(COUNT($E$7:$G17)<=hcpma,"",AND(OR(AND($E17>=G125L,$E17<G125U),AND($F17>=G125L,$F17<G125U),AND($G17>=G125L,$G17<G125U)),$C17<=G125AL),1,10<11,"") ->  | AE53: =_xlfn.IFS(COUNT($E$7:$G17)<=hcpma,"",AND(OR(AND($E17>=G150L,$E17<G150U),AND($F17>=G150L,$F17<G150U),AND($G17>=G150L,$G17<G150U)),$C17<=G150AL),1,10<11,"") ->  | AG53: =_xlfn.IFS(COUNT($E$7:$G17)<=hcpma,"",AND(OR(AND($E17>=G175L,$E17<G175U),AND($F17>=G175L,$F17<G175U),AND($G17>=G175L,$G17<G175U)),$C17<=G175AL),1,10<11,"") ->  | AI53: =_xlfn.IFS(COUNT($E$7:$G17)<=hcpma,"",AND(OR(AND($E17>=G200L,$E17<G200U),AND($F17>=G200L,$F17<G200U),AND($G17>=G200L,$G17<G200U)),$C17<=G200AL),1,10<11,"") ->  | AK53: =_xlfn.IFS(COUNT($E$7:$G17)<=hcpma,"",AND(OR(AND($E17>=G225L,$E17<G225U),AND($F17>=G225L,$F17<G225U),AND($G17>=G225L,$G17<G225U)),$C17<=G225AL),1,10<11,"") ->  | AM53: =_xlfn.IFS(COUNT($E$7:$G17)<=hcpma,"",AND(OR(AND($E17>=G250L,$E17<G250U),AND($F17>=G250L,$F17<G250U),AND($G17>=G250L,$G17<G250U)),$C17<=G250AL),1,10<11,"") ->  | AO53: =_xlfn.IFS(COUNT($E$7:$G17)<=hcpma,"",AND(OR(AND($E17>=G275L,$E17<=G275U),AND($F17>=G275L,$F17<=G275U),AND($G17>=G275L,$G17<=G275U)),$C17<=G275AL),1,10<11,"") ->  | AQ53: =_xlfn.IFS(COUNT($E17:$G17)<=0,"",AND(COUNT($E$7:$G17)>hcpma,OR($E17>=($C17+G75OV),$F17>=($C17+G75OV),$G17>=($C17+G75OV))),1,10<11,"") ->  | AT53: =_xlfn.IFS(COUNT($E$7:$G17)<=hcpma,"",AND( AND($I17>=S300L,$I17<S300U), $C17<=S300AL),1,10<11,"") ->  | AV53: =_xlfn.IFS(COUNT($E$7:$G17)<=hcpma,"",AND( AND($I17>=S400L,$I17<S400U), $C17<=S400AL),1,10<11,"") ->  | AX53: =_xlfn.IFS(COUNT($E$7:$G17)<=hcpma,"",AND( AND($I17>=S500L,$I17<S500U), $C17<=S500AL),1,10<11,"") ->  | AZ53: =_xlfn.IFS(COUNT($E$7:$G17)<=hcpma,"",AND( AND($I17>=S600L,$I17<S600U), $C17<=S600AL),1,10<11,"") ->  | BB53: =_xlfn.IFS(COUNT($E$7:$G17)<=hcpma,"",AND( AND($I17>=S700L,$I17<S700U), $C17<=S700AL),1,10<11,"") ->  | BD53: =_xlfn.IFS(COUNT($E$7:$G17)<=hcpma,"",SUM($E17:$G17)<1,"",$I17>=3*$C17+S140ov,1,10<11,"") -> 
A54: 12 | B54: 2024-11-20 | C54: =_xlfn.IFS(AC54<>1,"",AND(AC54=1,COUNTIF($AC$43:AC53,1)>=1),0,AND(AC54=1,COUNTIF($AC$43:AC53,1)<>1),1) ->  | D54: =_xlfn.IFS(AE54<>1,"",AND(AE54=1,COUNTIF($AE$43:AE53,1)>=1),0,AND(AE54=1,COUNTIF($AE$43:AE53,1)<>1),1) ->  | E54: =_xlfn.IFS(AG54<>1,"",AND(AG54=1,COUNTIF($AG$43:AG53,1)>=1),0,AND(AG54=1,COUNTIF($AG$43:AG53,1)<>1),1) ->  | F54: =_xlfn.IFS(AI54<>1,"",AND(AI54=1,COUNTIF($AI$43:AI53,1)>=1),0,AND(AI54=1,COUNTIF($AI$43:AI53,1)<>1),1) ->  | G54: =_xlfn.IFS(AK54<>1,"",AND(AK54=1,COUNTIF($AK$43:AK53,1)>=1),0,AND(AK54=1,COUNTIF($AK$43:AK53,1)<>1),1) ->  | I54: =_xlfn.IFS(AM54<>1,"",AND(AM54=1,COUNTIF($AM$43:AM53,1)>=1),0,AND(AM54=1,COUNTIF($AM$43:AM53,1)<>1),1) ->  | J54: =_xlfn.IFS(AO54<>1,"",AND(AO54=1,COUNTIF($AO$43:AO53,1)>=1),0,AND(AO54=1,COUNTIF($AO$43:AO53,1)<>1),1) ->  | K54: =_xlfn.IFS(AQ54<>1,"",AND(AQ54=1,COUNTIF($AQ$43:AQ53,1)>=1),0,AND(AQ54=1,COUNTIF($AQ$43:AQ53,1)<>1),1) ->  | M54: =_xlfn.IFS(AT54<>1,"",AND(AT54=1,COUNTIF($AT$43:AT53,1)>=1),0,AND(AT54=1,COUNTIF($AT$43:AT53,1)<>1),1) ->  | N54: =_xlfn.IFS(AV54<>1,"",AND(AV54=1,COUNTIF($AV$43:AV53,1)>=1),0,AND(AV54=1,COUNTIF($AV$43:AV53,1)<>1),1) ->  | O54: =_xlfn.IFS(AX54<>1,"",AND(AX54=1,COUNTIF($AX$43:AX53,1)>=1),0,AND(AX54=1,COUNTIF($AX$43:AX53,1)<>1),1) ->  | R54: =_xlfn.IFS(AZ54<>1,"",AND(AZ54=1,COUNTIF($AZ$43:AZ53,1)>=1),0,AND(AZ54=1,COUNTIF($AZ$43:AZ53,1)<>1),1) ->  | S54: =_xlfn.IFS(BB54<>1,"",AND(BB54=1,COUNTIF($BB$43:BB53,1)>=1),0,AND(BB54=1,COUNTIF($BB$43:BB53,1)<>1),1) ->  | T54: =_xlfn.IFS(BD54<>1,"",AND(BD54=1,COUNTIF($BD$43:BD53,1)>=1),0,AND(BD54=1,COUNTIF($BD$43:BD53,1)<>1),1) ->  | AC54: =_xlfn.IFS(COUNT($E$7:$G18)<=hcpma,"",AND(OR(AND($E18>=G125L,$E18<G125U),AND($F18>=G125L,$F18<G125U),AND($G18>=G125L,$G18<G125U)),$C18<=G125AL),1,10<11,"") ->  | AE54: =_xlfn.IFS(COUNT($E$7:$G18)<=hcpma,"",AND(OR(AND($E18>=G150L,$E18<G150U),AND($F18>=G150L,$F18<G150U),AND($G18>=G150L,$G18<G150U)),$C18<=G150AL),1,10<11,"") ->  | AG54: =_xlfn.IFS(COUNT($E$7:$G18)<=hcpma,"",AND(OR(AND($E18>=G175L,$E18<G175U),AND($F18>=G175L,$F18<G175U),AND($G18>=G175L,$G18<G175U)),$C18<=G175AL),1,10<11,"") ->  | AI54: =_xlfn.IFS(COUNT($E$7:$G18)<=hcpma,"",AND(OR(AND($E18>=G200L,$E18<G200U),AND($F18>=G200L,$F18<G200U),AND($G18>=G200L,$G18<G200U)),$C18<=G200AL),1,10<11,"") ->  | AK54: =_xlfn.IFS(COUNT($E$7:$G18)<=hcpma,"",AND(OR(AND($E18>=G225L,$E18<G225U),AND($F18>=G225L,$F18<G225U),AND($G18>=G225L,$G18<G225U)),$C18<=G225AL),1,10<11,"") ->  | AM54: =_xlfn.IFS(COUNT($E$7:$G18)<=hcpma,"",AND(OR(AND($E18>=G250L,$E18<G250U),AND($F18>=G250L,$F18<G250U),AND($G18>=G250L,$G18<G250U)),$C18<=G250AL),1,10<11,"") ->  | AO54: =_xlfn.IFS(COUNT($E$7:$G18)<=hcpma,"",AND(OR(AND($E18>=G275L,$E18<=G275U),AND($F18>=G275L,$F18<=G275U),AND($G18>=G275L,$G18<=G275U)),$C18<=G275AL),1,10<11,"") ->  | AQ54: =_xlfn.IFS(COUNT($E18:$G18)<=0,"",AND(COUNT($E$7:$G18)>hcpma,OR($E18>=($C18+G75OV),$F18>=($C18+G75OV),$G18>=($C18+G75OV))),1,10<11,"") ->  | AT54: =_xlfn.IFS(COUNT($E$7:$G18)<=hcpma,"",AND( AND($I18>=S300L,$I18<S300U), $C18<=S300AL),1,10<11,"") ->  | AV54: =_xlfn.IFS(COUNT($E$7:$G18)<=hcpma,"",AND( AND($I18>=S400L,$I18<S400U), $C18<=S400AL),1,10<11,"") ->  | AX54: =_xlfn.IFS(COUNT($E$7:$G18)<=hcpma,"",AND( AND($I18>=S500L,$I18<S500U), $C18<=S500AL),1,10<11,"") ->  | AZ54: =_xlfn.IFS(COUNT($E$7:$G18)<=hcpma,"",AND( AND($I18>=S600L,$I18<S600U), $C18<=S600AL),1,10<11,"") ->  | BB54: =_xlfn.IFS(COUNT($E$7:$G18)<=hcpma,"",AND( AND($I18>=S700L,$I18<S700U), $C18<=S700AL),1,10<11,"") ->  | BD54: =_xlfn.IFS(COUNT($E$7:$G18)<=hcpma,"",SUM($E18:$G18)<1,"",$I18>=3*$C18+S140ov,1,10<11,"") -> 
A55: 13 | B55: 2024-11-27 | C55: =_xlfn.IFS(AC55<>1,"",AND(AC55=1,COUNTIF($AC$43:AC54,1)>=1),0,AND(AC55=1,COUNTIF($AC$43:AC54,1)<>1),1) ->  | D55: =_xlfn.IFS(AE55<>1,"",AND(AE55=1,COUNTIF($AE$43:AE54,1)>=1),0,AND(AE55=1,COUNTIF($AE$43:AE54,1)<>1),1) ->  | E55: =_xlfn.IFS(AG55<>1,"",AND(AG55=1,COUNTIF($AG$43:AG54,1)>=1),0,AND(AG55=1,COUNTIF($AG$43:AG54,1)<>1),1) ->  | F55: =_xlfn.IFS(AI55<>1,"",AND(AI55=1,COUNTIF($AI$43:AI54,1)>=1),0,AND(AI55=1,COUNTIF($AI$43:AI54,1)<>1),1) ->  | G55: =_xlfn.IFS(AK55<>1,"",AND(AK55=1,COUNTIF($AK$43:AK54,1)>=1),0,AND(AK55=1,COUNTIF($AK$43:AK54,1)<>1),1) ->  | I55: =_xlfn.IFS(AM55<>1,"",AND(AM55=1,COUNTIF($AM$43:AM54,1)>=1),0,AND(AM55=1,COUNTIF($AM$43:AM54,1)<>1),1) ->  | J55: =_xlfn.IFS(AO55<>1,"",AND(AO55=1,COUNTIF($AO$43:AO54,1)>=1),0,AND(AO55=1,COUNTIF($AO$43:AO54,1)<>1),1) ->  | K55: =_xlfn.IFS(AQ55<>1,"",AND(AQ55=1,COUNTIF($AQ$43:AQ54,1)>=1),0,AND(AQ55=1,COUNTIF($AQ$43:AQ54,1)<>1),1) ->  | M55: =_xlfn.IFS(AT55<>1,"",AND(AT55=1,COUNTIF($AT$43:AT54,1)>=1),0,AND(AT55=1,COUNTIF($AT$43:AT54,1)<>1),1) ->  | N55: =_xlfn.IFS(AV55<>1,"",AND(AV55=1,COUNTIF($AV$43:AV54,1)>=1),0,AND(AV55=1,COUNTIF($AV$43:AV54,1)<>1),1) ->  | O55: =_xlfn.IFS(AX55<>1,"",AND(AX55=1,COUNTIF($AX$43:AX54,1)>=1),0,AND(AX55=1,COUNTIF($AX$43:AX54,1)<>1),1) ->  | R55: =_xlfn.IFS(AZ55<>1,"",AND(AZ55=1,COUNTIF($AZ$43:AZ54,1)>=1),0,AND(AZ55=1,COUNTIF($AZ$43:AZ54,1)<>1),1) ->  | S55: =_xlfn.IFS(BB55<>1,"",AND(BB55=1,COUNTIF($BB$43:BB54,1)>=1),0,AND(BB55=1,COUNTIF($BB$43:BB54,1)<>1),1) ->  | T55: =_xlfn.IFS(BD55<>1,"",AND(BD55=1,COUNTIF($BD$43:BD54,1)>=1),0,AND(BD55=1,COUNTIF($BD$43:BD54,1)<>1),1) ->  | AC55: =_xlfn.IFS(COUNT($E$7:$G19)<=hcpma,"",AND(OR(AND($E19>=G125L,$E19<G125U),AND($F19>=G125L,$F19<G125U),AND($G19>=G125L,$G19<G125U)),$C19<=G125AL),1,10<11,"") ->  | AE55: =_xlfn.IFS(COUNT($E$7:$G19)<=hcpma,"",AND(OR(AND($E19>=G150L,$E19<G150U),AND($F19>=G150L,$F19<G150U),AND($G19>=G150L,$G19<G150U)),$C19<=G150AL),1,10<11,"") ->  | AG55: =_xlfn.IFS(COUNT($E$7:$G19)<=hcpma,"",AND(OR(AND($E19>=G175L,$E19<G175U),AND($F19>=G175L,$F19<G175U),AND($G19>=G175L,$G19<G175U)),$C19<=G175AL),1,10<11,"") ->  | AI55: =_xlfn.IFS(COUNT($E$7:$G19)<=hcpma,"",AND(OR(AND($E19>=G200L,$E19<G200U),AND($F19>=G200L,$F19<G200U),AND($G19>=G200L,$G19<G200U)),$C19<=G200AL),1,10<11,"") ->  | AK55: =_xlfn.IFS(COUNT($E$7:$G19)<=hcpma,"",AND(OR(AND($E19>=G225L,$E19<G225U),AND($F19>=G225L,$F19<G225U),AND($G19>=G225L,$G19<G225U)),$C19<=G225AL),1,10<11,"") ->  | AM55: =_xlfn.IFS(COUNT($E$7:$G19)<=hcpma,"",AND(OR(AND($E19>=G250L,$E19<G250U),AND($F19>=G250L,$F19<G250U),AND($G19>=G250L,$G19<G250U)),$C19<=G250AL),1,10<11,"") ->  | AO55: =_xlfn.IFS(COUNT($E$7:$G19)<=hcpma,"",AND(OR(AND($E19>=G275L,$E19<=G275U),AND($F19>=G275L,$F19<=G275U),AND($G19>=G275L,$G19<=G275U)),$C19<=G275AL),1,10<11,"") ->  | AQ55: =_xlfn.IFS(COUNT($E19:$G19)<=0,"",AND(COUNT($E$7:$G19)>hcpma,OR($E19>=($C19+G75OV),$F19>=($C19+G75OV),$G19>=($C19+G75OV))),1,10<11,"") ->  | AT55: =_xlfn.IFS(COUNT($E$7:$G19)<=hcpma,"",AND( AND($I19>=S300L,$I19<S300U), $C19<=S300AL),1,10<11,"") ->  | AV55: =_xlfn.IFS(COUNT($E$7:$G19)<=hcpma,"",AND( AND($I19>=S400L,$I19<S400U), $C19<=S400AL),1,10<11,"") ->  | AX55: =_xlfn.IFS(COUNT($E$7:$G19)<=hcpma,"",AND( AND($I19>=S500L,$I19<S500U), $C19<=S500AL),1,10<11,"") ->  | AZ55: =_xlfn.IFS(COUNT($E$7:$G19)<=hcpma,"",AND( AND($I19>=S600L,$I19<S600U), $C19<=S600AL),1,10<11,"") ->  | BB55: =_xlfn.IFS(COUNT($E$7:$G19)<=hcpma,"",AND( AND($I19>=S700L,$I19<S700U), $C19<=S700AL),1,10<11,"") ->  | BD55: =_xlfn.IFS(COUNT($E$7:$G19)<=hcpma,"",SUM($E19:$G19)<1,"",$I19>=3*$C19+S140ov,1,10<11,"") -> 
A56: 14 | B56: 2024-12-04 | C56: =_xlfn.IFS(AC56<>1,"",AND(AC56=1,COUNTIF($AC$43:AC55,1)>=1),0,AND(AC56=1,COUNTIF($AC$43:AC55,1)<>1),1) ->  | D56: =_xlfn.IFS(AE56<>1,"",AND(AE56=1,COUNTIF($AE$43:AE55,1)>=1),0,AND(AE56=1,COUNTIF($AE$43:AE55,1)<>1),1) ->  | E56: =_xlfn.IFS(AG56<>1,"",AND(AG56=1,COUNTIF($AG$43:AG55,1)>=1),0,AND(AG56=1,COUNTIF($AG$43:AG55,1)<>1),1) ->  | F56: =_xlfn.IFS(AI56<>1,"",AND(AI56=1,COUNTIF($AI$43:AI55,1)>=1),0,AND(AI56=1,COUNTIF($AI$43:AI55,1)<>1),1) ->  | G56: =_xlfn.IFS(AK56<>1,"",AND(AK56=1,COUNTIF($AK$43:AK55,1)>=1),0,AND(AK56=1,COUNTIF($AK$43:AK55,1)<>1),1) ->  | I56: =_xlfn.IFS(AM56<>1,"",AND(AM56=1,COUNTIF($AM$43:AM55,1)>=1),0,AND(AM56=1,COUNTIF($AM$43:AM55,1)<>1),1) ->  | J56: =_xlfn.IFS(AO56<>1,"",AND(AO56=1,COUNTIF($AO$43:AO55,1)>=1),0,AND(AO56=1,COUNTIF($AO$43:AO55,1)<>1),1) ->  | K56: =_xlfn.IFS(AQ56<>1,"",AND(AQ56=1,COUNTIF($AQ$43:AQ55,1)>=1),0,AND(AQ56=1,COUNTIF($AQ$43:AQ55,1)<>1),1) ->  | M56: =_xlfn.IFS(AT56<>1,"",AND(AT56=1,COUNTIF($AT$43:AT55,1)>=1),0,AND(AT56=1,COUNTIF($AT$43:AT55,1)<>1),1) ->  | N56: =_xlfn.IFS(AV56<>1,"",AND(AV56=1,COUNTIF($AV$43:AV55,1)>=1),0,AND(AV56=1,COUNTIF($AV$43:AV55,1)<>1),1) ->  | O56: =_xlfn.IFS(AX56<>1,"",AND(AX56=1,COUNTIF($AX$43:AX55,1)>=1),0,AND(AX56=1,COUNTIF($AX$43:AX55,1)<>1),1) ->  | R56: =_xlfn.IFS(AZ56<>1,"",AND(AZ56=1,COUNTIF($AZ$43:AZ55,1)>=1),0,AND(AZ56=1,COUNTIF($AZ$43:AZ55,1)<>1),1) ->  | S56: =_xlfn.IFS(BB56<>1,"",AND(BB56=1,COUNTIF($BB$43:BB55,1)>=1),0,AND(BB56=1,COUNTIF($BB$43:BB55,1)<>1),1) ->  | T56: =_xlfn.IFS(BD56<>1,"",AND(BD56=1,COUNTIF($BD$43:BD55,1)>=1),0,AND(BD56=1,COUNTIF($BD$43:BD55,1)<>1),1) ->  | AC56: =_xlfn.IFS(COUNT($E$7:$G20)<=hcpma,"",AND(OR(AND($E20>=G125L,$E20<G125U),AND($F20>=G125L,$F20<G125U),AND($G20>=G125L,$G20<G125U)),$C20<=G125AL),1,10<11,"") ->  | AE56: =_xlfn.IFS(COUNT($E$7:$G20)<=hcpma,"",AND(OR(AND($E20>=G150L,$E20<G150U),AND($F20>=G150L,$F20<G150U),AND($G20>=G150L,$G20<G150U)),$C20<=G150AL),1,10<11,"") ->  | AG56: =_xlfn.IFS(COUNT($E$7:$G20)<=hcpma,"",AND(OR(AND($E20>=G175L,$E20<G175U),AND($F20>=G175L,$F20<G175U),AND($G20>=G175L,$G20<G175U)),$C20<=G175AL),1,10<11,"") ->  | AI56: =_xlfn.IFS(COUNT($E$7:$G20)<=hcpma,"",AND(OR(AND($E20>=G200L,$E20<G200U),AND($F20>=G200L,$F20<G200U),AND($G20>=G200L,$G20<G200U)),$C20<=G200AL),1,10<11,"") ->  | AK56: =_xlfn.IFS(COUNT($E$7:$G20)<=hcpma,"",AND(OR(AND($E20>=G225L,$E20<G225U),AND($F20>=G225L,$F20<G225U),AND($G20>=G225L,$G20<G225U)),$C20<=G225AL),1,10<11,"") ->  | AM56: =_xlfn.IFS(COUNT($E$7:$G20)<=hcpma,"",AND(OR(AND($E20>=G250L,$E20<G250U),AND($F20>=G250L,$F20<G250U),AND($G20>=G250L,$G20<G250U)),$C20<=G250AL),1,10<11,"") ->  | AO56: =_xlfn.IFS(COUNT($E$7:$G20)<=hcpma,"",AND(OR(AND($E20>=G275L,$E20<=G275U),AND($F20>=G275L,$F20<=G275U),AND($G20>=G275L,$G20<=G275U)),$C20<=G275AL),1,10<11,"") ->  | AQ56: =_xlfn.IFS(COUNT($E20:$G20)<=0,"",AND(COUNT($E$7:$G20)>hcpma,OR($E20>=($C20+G75OV),$F20>=($C20+G75OV),$G20>=($C20+G75OV))),1,10<11,"") ->  | AT56: =_xlfn.IFS(COUNT($E$7:$G20)<=hcpma,"",AND( AND($I20>=S300L,$I20<S300U), $C20<=S300AL),1,10<11,"") ->  | AV56: =_xlfn.IFS(COUNT($E$7:$G20)<=hcpma,"",AND( AND($I20>=S400L,$I20<S400U), $C20<=S400AL),1,10<11,"") ->  | AX56: =_xlfn.IFS(COUNT($E$7:$G20)<=hcpma,"",AND( AND($I20>=S500L,$I20<S500U), $C20<=S500AL),1,10<11,"") ->  | AZ56: =_xlfn.IFS(COUNT($E$7:$G20)<=hcpma,"",AND( AND($I20>=S600L,$I20<S600U), $C20<=S600AL),1,10<11,"") ->  | BB56: =_xlfn.IFS(COUNT($E$7:$G20)<=hcpma,"",AND( AND($I20>=S700L,$I20<S700U), $C20<=S700AL),1,10<11,"") ->  | BD56: =_xlfn.IFS(COUNT($E$7:$G20)<=hcpma,"",SUM($E20:$G20)<1,"",$I20>=3*$C20+S140ov,1,10<11,"") -> 
A57: 15 | B57: 2024-12-11 | C57: =_xlfn.IFS(AC57<>1,"",AND(AC57=1,COUNTIF($AC$43:AC56,1)>=1),0,AND(AC57=1,COUNTIF($AC$43:AC56,1)<>1),1) ->  | D57: =_xlfn.IFS(AE57<>1,"",AND(AE57=1,COUNTIF($AE$43:AE56,1)>=1),0,AND(AE57=1,COUNTIF($AE$43:AE56,1)<>1),1) ->  | E57: =_xlfn.IFS(AG57<>1,"",AND(AG57=1,COUNTIF($AG$43:AG56,1)>=1),0,AND(AG57=1,COUNTIF($AG$43:AG56,1)<>1),1) ->  | F57: =_xlfn.IFS(AI57<>1,"",AND(AI57=1,COUNTIF($AI$43:AI56,1)>=1),0,AND(AI57=1,COUNTIF($AI$43:AI56,1)<>1),1) ->  | G57: =_xlfn.IFS(AK57<>1,"",AND(AK57=1,COUNTIF($AK$43:AK56,1)>=1),0,AND(AK57=1,COUNTIF($AK$43:AK56,1)<>1),1) ->  | I57: =_xlfn.IFS(AM57<>1,"",AND(AM57=1,COUNTIF($AM$43:AM56,1)>=1),0,AND(AM57=1,COUNTIF($AM$43:AM56,1)<>1),1) ->  | J57: =_xlfn.IFS(AO57<>1,"",AND(AO57=1,COUNTIF($AO$43:AO56,1)>=1),0,AND(AO57=1,COUNTIF($AO$43:AO56,1)<>1),1) ->  | K57: =_xlfn.IFS(AQ57<>1,"",AND(AQ57=1,COUNTIF($AQ$43:AQ56,1)>=1),0,AND(AQ57=1,COUNTIF($AQ$43:AQ56,1)<>1),1) ->  | M57: =_xlfn.IFS(AT57<>1,"",AND(AT57=1,COUNTIF($AT$43:AT56,1)>=1),0,AND(AT57=1,COUNTIF($AT$43:AT56,1)<>1),1) ->  | N57: =_xlfn.IFS(AV57<>1,"",AND(AV57=1,COUNTIF($AV$43:AV56,1)>=1),0,AND(AV57=1,COUNTIF($AV$43:AV56,1)<>1),1) ->  | O57: =_xlfn.IFS(AX57<>1,"",AND(AX57=1,COUNTIF($AX$43:AX56,1)>=1),0,AND(AX57=1,COUNTIF($AX$43:AX56,1)<>1),1) ->  | R57: =_xlfn.IFS(AZ57<>1,"",AND(AZ57=1,COUNTIF($AZ$43:AZ56,1)>=1),0,AND(AZ57=1,COUNTIF($AZ$43:AZ56,1)<>1),1) ->  | S57: =_xlfn.IFS(BB57<>1,"",AND(BB57=1,COUNTIF($BB$43:BB56,1)>=1),0,AND(BB57=1,COUNTIF($BB$43:BB56,1)<>1),1) ->  | T57: =_xlfn.IFS(BD57<>1,"",AND(BD57=1,COUNTIF($BD$43:BD56,1)>=1),0,AND(BD57=1,COUNTIF($BD$43:BD56,1)<>1),1) ->  | AC57: =_xlfn.IFS(COUNT($E$7:$G21)<=hcpma,"",AND(OR(AND($E21>=G125L,$E21<G125U),AND($F21>=G125L,$F21<G125U),AND($G21>=G125L,$G21<G125U)),$C21<=G125AL),1,10<11,"") ->  | AE57: =_xlfn.IFS(COUNT($E$7:$G21)<=hcpma,"",AND(OR(AND($E21>=G150L,$E21<G150U),AND($F21>=G150L,$F21<G150U),AND($G21>=G150L,$G21<G150U)),$C21<=G150AL),1,10<11,"") ->  | AG57: =_xlfn.IFS(COUNT($E$7:$G21)<=hcpma,"",AND(OR(AND($E21>=G175L,$E21<G175U),AND($F21>=G175L,$F21<G175U),AND($G21>=G175L,$G21<G175U)),$C21<=G175AL),1,10<11,"") ->  | AI57: =_xlfn.IFS(COUNT($E$7:$G21)<=hcpma,"",AND(OR(AND($E21>=G200L,$E21<G200U),AND($F21>=G200L,$F21<G200U),AND($G21>=G200L,$G21<G200U)),$C21<=G200AL),1,10<11,"") ->  | AK57: =_xlfn.IFS(COUNT($E$7:$G21)<=hcpma,"",AND(OR(AND($E21>=G225L,$E21<G225U),AND($F21>=G225L,$F21<G225U),AND($G21>=G225L,$G21<G225U)),$C21<=G225AL),1,10<11,"") ->  | AM57: =_xlfn.IFS(COUNT($E$7:$G21)<=hcpma,"",AND(OR(AND($E21>=G250L,$E21<G250U),AND($F21>=G250L,$F21<G250U),AND($G21>=G250L,$G21<G250U)),$C21<=G250AL),1,10<11,"") ->  | AO57: =_xlfn.IFS(COUNT($E$7:$G21)<=hcpma,"",AND(OR(AND($E21>=G275L,$E21<=G275U),AND($F21>=G275L,$F21<=G275U),AND($G21>=G275L,$G21<=G275U)),$C21<=G275AL),1,10<11,"") ->  | AQ57: =_xlfn.IFS(COUNT($E21:$G21)<=0,"",AND(COUNT($E$7:$G21)>hcpma,OR($E21>=($C21+G75OV),$F21>=($C21+G75OV),$G21>=($C21+G75OV))),1,10<11,"") ->  | AT57: =_xlfn.IFS(COUNT($E$7:$G21)<=hcpma,"",AND( AND($I21>=S300L,$I21<S300U), $C21<=S300AL),1,10<11,"") ->  | AV57: =_xlfn.IFS(COUNT($E$7:$G21)<=hcpma,"",AND( AND($I21>=S400L,$I21<S400U), $C21<=S400AL),1,10<11,"") ->  | AX57: =_xlfn.IFS(COUNT($E$7:$G21)<=hcpma,"",AND( AND($I21>=S500L,$I21<S500U), $C21<=S500AL),1,10<11,"") ->  | AZ57: =_xlfn.IFS(COUNT($E$7:$G21)<=hcpma,"",AND( AND($I21>=S600L,$I21<S600U), $C21<=S600AL),1,10<11,"") ->  | BB57: =_xlfn.IFS(COUNT($E$7:$G21)<=hcpma,"",AND( AND($I21>=S700L,$I21<S700U), $C21<=S700AL),1,10<11,"") ->  | BD57: =_xlfn.IFS(COUNT($E$7:$G21)<=hcpma,"",SUM($E21:$G21)<1,"",$I21>=3*$C21+S140ov,1,10<11,"") -> 
A58: 16 | B58: 2024-12-18 | C58: =_xlfn.IFS(AC58<>1,"",AND(AC58=1,COUNTIF($AC$43:AC57,1)>=1),0,AND(AC58=1,COUNTIF($AC$43:AC57,1)<>1),1) ->  | D58: =_xlfn.IFS(AE58<>1,"",AND(AE58=1,COUNTIF($AE$43:AE57,1)>=1),0,AND(AE58=1,COUNTIF($AE$43:AE57,1)<>1),1) ->  | E58: =_xlfn.IFS(AG58<>1,"",AND(AG58=1,COUNTIF($AG$43:AG57,1)>=1),0,AND(AG58=1,COUNTIF($AG$43:AG57,1)<>1),1) ->  | F58: =_xlfn.IFS(AI58<>1,"",AND(AI58=1,COUNTIF($AI$43:AI57,1)>=1),0,AND(AI58=1,COUNTIF($AI$43:AI57,1)<>1),1) ->  | G58: =_xlfn.IFS(AK58<>1,"",AND(AK58=1,COUNTIF($AK$43:AK57,1)>=1),0,AND(AK58=1,COUNTIF($AK$43:AK57,1)<>1),1) ->  | I58: =_xlfn.IFS(AM58<>1,"",AND(AM58=1,COUNTIF($AM$43:AM57,1)>=1),0,AND(AM58=1,COUNTIF($AM$43:AM57,1)<>1),1) ->  | J58: =_xlfn.IFS(AO58<>1,"",AND(AO58=1,COUNTIF($AO$43:AO57,1)>=1),0,AND(AO58=1,COUNTIF($AO$43:AO57,1)<>1),1) ->  | K58: =_xlfn.IFS(AQ58<>1,"",AND(AQ58=1,COUNTIF($AQ$43:AQ57,1)>=1),0,AND(AQ58=1,COUNTIF($AQ$43:AQ57,1)<>1),1) ->  | M58: =_xlfn.IFS(AT58<>1,"",AND(AT58=1,COUNTIF($AT$43:AT57,1)>=1),0,AND(AT58=1,COUNTIF($AT$43:AT57,1)<>1),1) ->  | N58: =_xlfn.IFS(AV58<>1,"",AND(AV58=1,COUNTIF($AV$43:AV57,1)>=1),0,AND(AV58=1,COUNTIF($AV$43:AV57,1)<>1),1) ->  | O58: =_xlfn.IFS(AX58<>1,"",AND(AX58=1,COUNTIF($AX$43:AX57,1)>=1),0,AND(AX58=1,COUNTIF($AX$43:AX57,1)<>1),1) ->  | R58: =_xlfn.IFS(AZ58<>1,"",AND(AZ58=1,COUNTIF($AZ$43:AZ57,1)>=1),0,AND(AZ58=1,COUNTIF($AZ$43:AZ57,1)<>1),1) ->  | S58: =_xlfn.IFS(BB58<>1,"",AND(BB58=1,COUNTIF($BB$43:BB57,1)>=1),0,AND(BB58=1,COUNTIF($BB$43:BB57,1)<>1),1) ->  | T58: =_xlfn.IFS(BD58<>1,"",AND(BD58=1,COUNTIF($BD$43:BD57,1)>=1),0,AND(BD58=1,COUNTIF($BD$43:BD57,1)<>1),1) ->  | AC58: =_xlfn.IFS(COUNT($E$7:$G22)<=hcpma,"",AND(OR(AND($E22>=G125L,$E22<G125U),AND($F22>=G125L,$F22<G125U),AND($G22>=G125L,$G22<G125U)),$C22<=G125AL),1,10<11,"") ->  | AE58: =_xlfn.IFS(COUNT($E$7:$G22)<=hcpma,"",AND(OR(AND($E22>=G150L,$E22<G150U),AND($F22>=G150L,$F22<G150U),AND($G22>=G150L,$G22<G150U)),$C22<=G150AL),1,10<11,"") ->  | AG58: =_xlfn.IFS(COUNT($E$7:$G22)<=hcpma,"",AND(OR(AND($E22>=G175L,$E22<G175U),AND($F22>=G175L,$F22<G175U),AND($G22>=G175L,$G22<G175U)),$C22<=G175AL),1,10<11,"") ->  | AI58: =_xlfn.IFS(COUNT($E$7:$G22)<=hcpma,"",AND(OR(AND($E22>=G200L,$E22<G200U),AND($F22>=G200L,$F22<G200U),AND($G22>=G200L,$G22<G200U)),$C22<=G200AL),1,10<11,"") ->  | AK58: =_xlfn.IFS(COUNT($E$7:$G22)<=hcpma,"",AND(OR(AND($E22>=G225L,$E22<G225U),AND($F22>=G225L,$F22<G225U),AND($G22>=G225L,$G22<G225U)),$C22<=G225AL),1,10<11,"") ->  | AM58: =_xlfn.IFS(COUNT($E$7:$G22)<=hcpma,"",AND(OR(AND($E22>=G250L,$E22<G250U),AND($F22>=G250L,$F22<G250U),AND($G22>=G250L,$G22<G250U)),$C22<=G250AL),1,10<11,"") ->  | AO58: =_xlfn.IFS(COUNT($E$7:$G22)<=hcpma,"",AND(OR(AND($E22>=G275L,$E22<=G275U),AND($F22>=G275L,$F22<=G275U),AND($G22>=G275L,$G22<=G275U)),$C22<=G275AL),1,10<11,"") ->  | AQ58: =_xlfn.IFS(COUNT($E22:$G22)<=0,"",AND(COUNT($E$7:$G22)>hcpma,OR($E22>=($C22+G75OV),$F22>=($C22+G75OV),$G22>=($C22+G75OV))),1,10<11,"") ->  | AT58: =_xlfn.IFS(COUNT($E$7:$G22)<=hcpma,"",AND( AND($I22>=S300L,$I22<S300U), $C22<=S300AL),1,10<11,"") ->  | AV58: =_xlfn.IFS(COUNT($E$7:$G22)<=hcpma,"",AND( AND($I22>=S400L,$I22<S400U), $C22<=S400AL),1,10<11,"") ->  | AX58: =_xlfn.IFS(COUNT($E$7:$G22)<=hcpma,"",AND( AND($I22>=S500L,$I22<S500U), $C22<=S500AL),1,10<11,"") ->  | AZ58: =_xlfn.IFS(COUNT($E$7:$G22)<=hcpma,"",AND( AND($I22>=S600L,$I22<S600U), $C22<=S600AL),1,10<11,"") ->  | BB58: =_xlfn.IFS(COUNT($E$7:$G22)<=hcpma,"",AND( AND($I22>=S700L,$I22<S700U), $C22<=S700AL),1,10<11,"") ->  | BD58: =_xlfn.IFS(COUNT($E$7:$G22)<=hcpma,"",SUM($E22:$G22)<1,"",$I22>=3*$C22+S140ov,1,10<11,"") -> 
A59: 17 | B59: 2025-01-08 | C59: =_xlfn.IFS(AC59<>1,"",AND(AC59=1,COUNTIF($AC$43:AC58,1)>=1),0,AND(AC59=1,COUNTIF($AC$43:AC58,1)<>1),1) ->  | D59: =_xlfn.IFS(AE59<>1,"",AND(AE59=1,COUNTIF($AE$43:AE58,1)>=1),0,AND(AE59=1,COUNTIF($AE$43:AE58,1)<>1),1) ->  | E59: =_xlfn.IFS(AG59<>1,"",AND(AG59=1,COUNTIF($AG$43:AG58,1)>=1),0,AND(AG59=1,COUNTIF($AG$43:AG58,1)<>1),1) ->  | F59: =_xlfn.IFS(AI59<>1,"",AND(AI59=1,COUNTIF($AI$43:AI58,1)>=1),0,AND(AI59=1,COUNTIF($AI$43:AI58,1)<>1),1) ->  | G59: =_xlfn.IFS(AK59<>1,"",AND(AK59=1,COUNTIF($AK$43:AK58,1)>=1),0,AND(AK59=1,COUNTIF($AK$43:AK58,1)<>1),1) ->  | I59: =_xlfn.IFS(AM59<>1,"",AND(AM59=1,COUNTIF($AM$43:AM58,1)>=1),0,AND(AM59=1,COUNTIF($AM$43:AM58,1)<>1),1) ->  | J59: =_xlfn.IFS(AO59<>1,"",AND(AO59=1,COUNTIF($AO$43:AO58,1)>=1),0,AND(AO59=1,COUNTIF($AO$43:AO58,1)<>1),1) ->  | K59: =_xlfn.IFS(AQ59<>1,"",AND(AQ59=1,COUNTIF($AQ$43:AQ58,1)>=1),0,AND(AQ59=1,COUNTIF($AQ$43:AQ58,1)<>1),1) ->  | M59: =_xlfn.IFS(AT59<>1,"",AND(AT59=1,COUNTIF($AT$43:AT58,1)>=1),0,AND(AT59=1,COUNTIF($AT$43:AT58,1)<>1),1) ->  | N59: =_xlfn.IFS(AV59<>1,"",AND(AV59=1,COUNTIF($AV$43:AV58,1)>=1),0,AND(AV59=1,COUNTIF($AV$43:AV58,1)<>1),1) ->  | O59: =_xlfn.IFS(AX59<>1,"",AND(AX59=1,COUNTIF($AX$43:AX58,1)>=1),0,AND(AX59=1,COUNTIF($AX$43:AX58,1)<>1),1) ->  | R59: =_xlfn.IFS(AZ59<>1,"",AND(AZ59=1,COUNTIF($AZ$43:AZ58,1)>=1),0,AND(AZ59=1,COUNTIF($AZ$43:AZ58,1)<>1),1) ->  | S59: =_xlfn.IFS(BB59<>1,"",AND(BB59=1,COUNTIF($BB$43:BB58,1)>=1),0,AND(BB59=1,COUNTIF($BB$43:BB58,1)<>1),1) ->  | T59: =_xlfn.IFS(BD59<>1,"",AND(BD59=1,COUNTIF($BD$43:BD58,1)>=1),0,AND(BD59=1,COUNTIF($BD$43:BD58,1)<>1),1) ->  | AC59: =_xlfn.IFS(COUNT($E$7:$G23)<=hcpma,"",AND(OR(AND($E23>=G125L,$E23<G125U),AND($F23>=G125L,$F23<G125U),AND($G23>=G125L,$G23<G125U)),$C23<=G125AL),1,10<11,"") ->  | AE59: =_xlfn.IFS(COUNT($E$7:$G23)<=hcpma,"",AND(OR(AND($E23>=G150L,$E23<G150U),AND($F23>=G150L,$F23<G150U),AND($G23>=G150L,$G23<G150U)),$C23<=G150AL),1,10<11,"") ->  | AG59: =_xlfn.IFS(COUNT($E$7:$G23)<=hcpma,"",AND(OR(AND($E23>=G175L,$E23<G175U),AND($F23>=G175L,$F23<G175U),AND($G23>=G175L,$G23<G175U)),$C23<=G175AL),1,10<11,"") ->  | AI59: =_xlfn.IFS(COUNT($E$7:$G23)<=hcpma,"",AND(OR(AND($E23>=G200L,$E23<G200U),AND($F23>=G200L,$F23<G200U),AND($G23>=G200L,$G23<G200U)),$C23<=G200AL),1,10<11,"") ->  | AK59: =_xlfn.IFS(COUNT($E$7:$G23)<=hcpma,"",AND(OR(AND($E23>=G225L,$E23<G225U),AND($F23>=G225L,$F23<G225U),AND($G23>=G225L,$G23<G225U)),$C23<=G225AL),1,10<11,"") ->  | AM59: =_xlfn.IFS(COUNT($E$7:$G23)<=hcpma,"",AND(OR(AND($E23>=G250L,$E23<G250U),AND($F23>=G250L,$F23<G250U),AND($G23>=G250L,$G23<G250U)),$C23<=G250AL),1,10<11,"") ->  | AO59: =_xlfn.IFS(COUNT($E$7:$G23)<=hcpma,"",AND(OR(AND($E23>=G275L,$E23<=G275U),AND($F23>=G275L,$F23<=G275U),AND($G23>=G275L,$G23<=G275U)),$C23<=G275AL),1,10<11,"") ->  | AQ59: =_xlfn.IFS(COUNT($E23:$G23)<=0,"",AND(COUNT($E$7:$G23)>hcpma,OR($E23>=($C23+G75OV),$F23>=($C23+G75OV),$G23>=($C23+G75OV))),1,10<11,"") ->  | AT59: =_xlfn.IFS(COUNT($E$7:$G23)<=hcpma,"",AND( AND($I23>=S300L,$I23<S300U), $C23<=S300AL),1,10<11,"") ->  | AV59: =_xlfn.IFS(COUNT($E$7:$G23)<=hcpma,"",AND( AND($I23>=S400L,$I23<S400U), $C23<=S400AL),1,10<11,"") ->  | AX59: =_xlfn.IFS(COUNT($E$7:$G23)<=hcpma,"",AND( AND($I23>=S500L,$I23<S500U), $C23<=S500AL),1,10<11,"") ->  | AZ59: =_xlfn.IFS(COUNT($E$7:$G23)<=hcpma,"",AND( AND($I23>=S600L,$I23<S600U), $C23<=S600AL),1,10<11,"") ->  | BB59: =_xlfn.IFS(COUNT($E$7:$G23)<=hcpma,"",AND( AND($I23>=S700L,$I23<S700U), $C23<=S700AL),1,10<11,"") ->  | BD59: =_xlfn.IFS(COUNT($E$7:$G23)<=hcpma,"",SUM($E23:$G23)<1,"",$I23>=3*$C23+S140ov,1,10<11,"") -> 
A60: 18 | B60: 2025-01-15 | C60: =_xlfn.IFS(AC60<>1,"",AND(AC60=1,COUNTIF($AC$43:AC59,1)>=1),0,AND(AC60=1,COUNTIF($AC$43:AC59,1)<>1),1) ->  | D60: =_xlfn.IFS(AE60<>1,"",AND(AE60=1,COUNTIF($AE$43:AE59,1)>=1),0,AND(AE60=1,COUNTIF($AE$43:AE59,1)<>1),1) ->  | E60: =_xlfn.IFS(AG60<>1,"",AND(AG60=1,COUNTIF($AG$43:AG59,1)>=1),0,AND(AG60=1,COUNTIF($AG$43:AG59,1)<>1),1) ->  | F60: =_xlfn.IFS(AI60<>1,"",AND(AI60=1,COUNTIF($AI$43:AI59,1)>=1),0,AND(AI60=1,COUNTIF($AI$43:AI59,1)<>1),1) ->  | G60: =_xlfn.IFS(AK60<>1,"",AND(AK60=1,COUNTIF($AK$43:AK59,1)>=1),0,AND(AK60=1,COUNTIF($AK$43:AK59,1)<>1),1) ->  | I60: =_xlfn.IFS(AM60<>1,"",AND(AM60=1,COUNTIF($AM$43:AM59,1)>=1),0,AND(AM60=1,COUNTIF($AM$43:AM59,1)<>1),1) ->  | J60: =_xlfn.IFS(AO60<>1,"",AND(AO60=1,COUNTIF($AO$43:AO59,1)>=1),0,AND(AO60=1,COUNTIF($AO$43:AO59,1)<>1),1) ->  | K60: =_xlfn.IFS(AQ60<>1,"",AND(AQ60=1,COUNTIF($AQ$43:AQ59,1)>=1),0,AND(AQ60=1,COUNTIF($AQ$43:AQ59,1)<>1),1) ->  | M60: =_xlfn.IFS(AT60<>1,"",AND(AT60=1,COUNTIF($AT$43:AT59,1)>=1),0,AND(AT60=1,COUNTIF($AT$43:AT59,1)<>1),1) ->  | N60: =_xlfn.IFS(AV60<>1,"",AND(AV60=1,COUNTIF($AV$43:AV59,1)>=1),0,AND(AV60=1,COUNTIF($AV$43:AV59,1)<>1),1) ->  | O60: =_xlfn.IFS(AX60<>1,"",AND(AX60=1,COUNTIF($AX$43:AX59,1)>=1),0,AND(AX60=1,COUNTIF($AX$43:AX59,1)<>1),1) ->  | R60: =_xlfn.IFS(AZ60<>1,"",AND(AZ60=1,COUNTIF($AZ$43:AZ59,1)>=1),0,AND(AZ60=1,COUNTIF($AZ$43:AZ59,1)<>1),1) ->  | S60: =_xlfn.IFS(BB60<>1,"",AND(BB60=1,COUNTIF($BB$43:BB59,1)>=1),0,AND(BB60=1,COUNTIF($BB$43:BB59,1)<>1),1) ->  | T60: =_xlfn.IFS(BD60<>1,"",AND(BD60=1,COUNTIF($BD$43:BD59,1)>=1),0,AND(BD60=1,COUNTIF($BD$43:BD59,1)<>1),1) ->  | AC60: =_xlfn.IFS(COUNT($E$7:$G24)<=hcpma,"",AND(OR(AND($E24>=G125L,$E24<G125U),AND($F24>=G125L,$F24<G125U),AND($G24>=G125L,$G24<G125U)),$C24<=G125AL),1,10<11,"") ->  | AE60: =_xlfn.IFS(COUNT($E$7:$G24)<=hcpma,"",AND(OR(AND($E24>=G150L,$E24<G150U),AND($F24>=G150L,$F24<G150U),AND($G24>=G150L,$G24<G150U)),$C24<=G150AL),1,10<11,"") ->  | AG60: =_xlfn.IFS(COUNT($E$7:$G24)<=hcpma,"",AND(OR(AND($E24>=G175L,$E24<G175U),AND($F24>=G175L,$F24<G175U),AND($G24>=G175L,$G24<G175U)),$C24<=G175AL),1,10<11,"") ->  | AI60: =_xlfn.IFS(COUNT($E$7:$G24)<=hcpma,"",AND(OR(AND($E24>=G200L,$E24<G200U),AND($F24>=G200L,$F24<G200U),AND($G24>=G200L,$G24<G200U)),$C24<=G200AL),1,10<11,"") ->  | AK60: =_xlfn.IFS(COUNT($E$7:$G24)<=hcpma,"",AND(OR(AND($E24>=G225L,$E24<G225U),AND($F24>=G225L,$F24<G225U),AND($G24>=G225L,$G24<G225U)),$C24<=G225AL),1,10<11,"") ->  | AM60: =_xlfn.IFS(COUNT($E$7:$G24)<=hcpma,"",AND(OR(AND($E24>=G250L,$E24<G250U),AND($F24>=G250L,$F24<G250U),AND($G24>=G250L,$G24<G250U)),$C24<=G250AL),1,10<11,"") ->  | AO60: =_xlfn.IFS(COUNT($E$7:$G24)<=hcpma,"",AND(OR(AND($E24>=G275L,$E24<=G275U),AND($F24>=G275L,$F24<=G275U),AND($G24>=G275L,$G24<=G275U)),$C24<=G275AL),1,10<11,"") ->  | AQ60: =_xlfn.IFS(COUNT($E24:$G24)<=0,"",AND(COUNT($E$7:$G24)>hcpma,OR($E24>=($C24+G75OV),$F24>=($C24+G75OV),$G24>=($C24+G75OV))),1,10<11,"") ->  | AT60: =_xlfn.IFS(COUNT($E$7:$G24)<=hcpma,"",AND( AND($I24>=S300L,$I24<S300U), $C24<=S300AL),1,10<11,"") ->  | AV60: =_xlfn.IFS(COUNT($E$7:$G24)<=hcpma,"",AND( AND($I24>=S400L,$I24<S400U), $C24<=S400AL),1,10<11,"") ->  | AX60: =_xlfn.IFS(COUNT($E$7:$G24)<=hcpma,"",AND( AND($I24>=S500L,$I24<S500U), $C24<=S500AL),1,10<11,"") ->  | AZ60: =_xlfn.IFS(COUNT($E$7:$G24)<=hcpma,"",AND( AND($I24>=S600L,$I24<S600U), $C24<=S600AL),1,10<11,"") ->  | BB60: =_xlfn.IFS(COUNT($E$7:$G24)<=hcpma,"",AND( AND($I24>=S700L,$I24<S700U), $C24<=S700AL),1,10<11,"") ->  | BD60: =_xlfn.IFS(COUNT($E$7:$G24)<=hcpma,"",SUM($E24:$G24)<1,"",$I24>=3*$C24+S140ov,1,10<11,"") -> 
A61: 19 | B61: 2025-01-22 | C61: =_xlfn.IFS(AC61<>1,"",AND(AC61=1,COUNTIF($AC$43:AC60,1)>=1),0,AND(AC61=1,COUNTIF($AC$43:AC60,1)<>1),1) ->  | D61: =_xlfn.IFS(AE61<>1,"",AND(AE61=1,COUNTIF($AE$43:AE60,1)>=1),0,AND(AE61=1,COUNTIF($AE$43:AE60,1)<>1),1) ->  | E61: =_xlfn.IFS(AG61<>1,"",AND(AG61=1,COUNTIF($AG$43:AG60,1)>=1),0,AND(AG61=1,COUNTIF($AG$43:AG60,1)<>1),1) ->  | F61: =_xlfn.IFS(AI61<>1,"",AND(AI61=1,COUNTIF($AI$43:AI60,1)>=1),0,AND(AI61=1,COUNTIF($AI$43:AI60,1)<>1),1) ->  | G61: =_xlfn.IFS(AK61<>1,"",AND(AK61=1,COUNTIF($AK$43:AK60,1)>=1),0,AND(AK61=1,COUNTIF($AK$43:AK60,1)<>1),1) ->  | I61: =_xlfn.IFS(AM61<>1,"",AND(AM61=1,COUNTIF($AM$43:AM60,1)>=1),0,AND(AM61=1,COUNTIF($AM$43:AM60,1)<>1),1) ->  | J61: =_xlfn.IFS(AO61<>1,"",AND(AO61=1,COUNTIF($AO$43:AO60,1)>=1),0,AND(AO61=1,COUNTIF($AO$43:AO60,1)<>1),1) ->  | K61: =_xlfn.IFS(AQ61<>1,"",AND(AQ61=1,COUNTIF($AQ$43:AQ60,1)>=1),0,AND(AQ61=1,COUNTIF($AQ$43:AQ60,1)<>1),1) ->  | M61: =_xlfn.IFS(AT61<>1,"",AND(AT61=1,COUNTIF($AT$43:AT60,1)>=1),0,AND(AT61=1,COUNTIF($AT$43:AT60,1)<>1),1) ->  | N61: =_xlfn.IFS(AV61<>1,"",AND(AV61=1,COUNTIF($AV$43:AV60,1)>=1),0,AND(AV61=1,COUNTIF($AV$43:AV60,1)<>1),1) ->  | O61: =_xlfn.IFS(AX61<>1,"",AND(AX61=1,COUNTIF($AX$43:AX60,1)>=1),0,AND(AX61=1,COUNTIF($AX$43:AX60,1)<>1),1) ->  | R61: =_xlfn.IFS(AZ61<>1,"",AND(AZ61=1,COUNTIF($AZ$43:AZ60,1)>=1),0,AND(AZ61=1,COUNTIF($AZ$43:AZ60,1)<>1),1) ->  | S61: =_xlfn.IFS(BB61<>1,"",AND(BB61=1,COUNTIF($BB$43:BB60,1)>=1),0,AND(BB61=1,COUNTIF($BB$43:BB60,1)<>1),1) ->  | T61: =_xlfn.IFS(BD61<>1,"",AND(BD61=1,COUNTIF($BD$43:BD60,1)>=1),0,AND(BD61=1,COUNTIF($BD$43:BD60,1)<>1),1) ->  | AC61: =_xlfn.IFS(COUNT($E$7:$G25)<=hcpma,"",AND(OR(AND($E25>=G125L,$E25<G125U),AND($F25>=G125L,$F25<G125U),AND($G25>=G125L,$G25<G125U)),$C25<=G125AL),1,10<11,"") ->  | AE61: =_xlfn.IFS(COUNT($E$7:$G25)<=hcpma,"",AND(OR(AND($E25>=G150L,$E25<G150U),AND($F25>=G150L,$F25<G150U),AND($G25>=G150L,$G25<G150U)),$C25<=G150AL),1,10<11,"") ->  | AG61: =_xlfn.IFS(COUNT($E$7:$G25)<=hcpma,"",AND(OR(AND($E25>=G175L,$E25<G175U),AND($F25>=G175L,$F25<G175U),AND($G25>=G175L,$G25<G175U)),$C25<=G175AL),1,10<11,"") ->  | AI61: =_xlfn.IFS(COUNT($E$7:$G25)<=hcpma,"",AND(OR(AND($E25>=G200L,$E25<G200U),AND($F25>=G200L,$F25<G200U),AND($G25>=G200L,$G25<G200U)),$C25<=G200AL),1,10<11,"") ->  | AK61: =_xlfn.IFS(COUNT($E$7:$G25)<=hcpma,"",AND(OR(AND($E25>=G225L,$E25<G225U),AND($F25>=G225L,$F25<G225U),AND($G25>=G225L,$G25<G225U)),$C25<=G225AL),1,10<11,"") ->  | AM61: =_xlfn.IFS(COUNT($E$7:$G25)<=hcpma,"",AND(OR(AND($E25>=G250L,$E25<G250U),AND($F25>=G250L,$F25<G250U),AND($G25>=G250L,$G25<G250U)),$C25<=G250AL),1,10<11,"") ->  | AO61: =_xlfn.IFS(COUNT($E$7:$G25)<=hcpma,"",AND(OR(AND($E25>=G275L,$E25<=G275U),AND($F25>=G275L,$F25<=G275U),AND($G25>=G275L,$G25<=G275U)),$C25<=G275AL),1,10<11,"") ->  | AQ61: =_xlfn.IFS(COUNT($E25:$G25)<=0,"",AND(COUNT($E$7:$G25)>hcpma,OR($E25>=($C25+G75OV),$F25>=($C25+G75OV),$G25>=($C25+G75OV))),1,10<11,"") ->  | AT61: =_xlfn.IFS(COUNT($E$7:$G25)<=hcpma,"",AND( AND($I25>=S300L,$I25<S300U), $C25<=S300AL),1,10<11,"") ->  | AV61: =_xlfn.IFS(COUNT($E$7:$G25)<=hcpma,"",AND( AND($I25>=S400L,$I25<S400U), $C25<=S400AL),1,10<11,"") ->  | AX61: =_xlfn.IFS(COUNT($E$7:$G25)<=hcpma,"",AND( AND($I25>=S500L,$I25<S500U), $C25<=S500AL),1,10<11,"") ->  | AZ61: =_xlfn.IFS(COUNT($E$7:$G25)<=hcpma,"",AND( AND($I25>=S600L,$I25<S600U), $C25<=S600AL),1,10<11,"") ->  | BB61: =_xlfn.IFS(COUNT($E$7:$G25)<=hcpma,"",AND( AND($I25>=S700L,$I25<S700U), $C25<=S700AL),1,10<11,"") ->  | BD61: =_xlfn.IFS(COUNT($E$7:$G25)<=hcpma,"",SUM($E25:$G25)<1,"",$I25>=3*$C25+S140ov,1,10<11,"") -> 
A62: 20 | B62: 2025-01-29 | C62: =_xlfn.IFS(AC62<>1,"",AND(AC62=1,COUNTIF($AC$43:AC61,1)>=1),0,AND(AC62=1,COUNTIF($AC$43:AC61,1)<>1),1) ->  | D62: =_xlfn.IFS(AE62<>1,"",AND(AE62=1,COUNTIF($AE$43:AE61,1)>=1),0,AND(AE62=1,COUNTIF($AE$43:AE61,1)<>1),1) ->  | E62: =_xlfn.IFS(AG62<>1,"",AND(AG62=1,COUNTIF($AG$43:AG61,1)>=1),0,AND(AG62=1,COUNTIF($AG$43:AG61,1)<>1),1) ->  | F62: =_xlfn.IFS(AI62<>1,"",AND(AI62=1,COUNTIF($AI$43:AI61,1)>=1),0,AND(AI62=1,COUNTIF($AI$43:AI61,1)<>1),1) ->  | G62: =_xlfn.IFS(AK62<>1,"",AND(AK62=1,COUNTIF($AK$43:AK61,1)>=1),0,AND(AK62=1,COUNTIF($AK$43:AK61,1)<>1),1) ->  | I62: =_xlfn.IFS(AM62<>1,"",AND(AM62=1,COUNTIF($AM$43:AM61,1)>=1),0,AND(AM62=1,COUNTIF($AM$43:AM61,1)<>1),1) ->  | J62: =_xlfn.IFS(AO62<>1,"",AND(AO62=1,COUNTIF($AO$43:AO61,1)>=1),0,AND(AO62=1,COUNTIF($AO$43:AO61,1)<>1),1) ->  | K62: =_xlfn.IFS(AQ62<>1,"",AND(AQ62=1,COUNTIF($AQ$43:AQ61,1)>=1),0,AND(AQ62=1,COUNTIF($AQ$43:AQ61,1)<>1),1) ->  | M62: =_xlfn.IFS(AT62<>1,"",AND(AT62=1,COUNTIF($AT$43:AT61,1)>=1),0,AND(AT62=1,COUNTIF($AT$43:AT61,1)<>1),1) ->  | N62: =_xlfn.IFS(AV62<>1,"",AND(AV62=1,COUNTIF($AV$43:AV61,1)>=1),0,AND(AV62=1,COUNTIF($AV$43:AV61,1)<>1),1) ->  | O62: =_xlfn.IFS(AX62<>1,"",AND(AX62=1,COUNTIF($AX$43:AX61,1)>=1),0,AND(AX62=1,COUNTIF($AX$43:AX61,1)<>1),1) ->  | R62: =_xlfn.IFS(AZ62<>1,"",AND(AZ62=1,COUNTIF($AZ$43:AZ61,1)>=1),0,AND(AZ62=1,COUNTIF($AZ$43:AZ61,1)<>1),1) ->  | S62: =_xlfn.IFS(BB62<>1,"",AND(BB62=1,COUNTIF($BB$43:BB61,1)>=1),0,AND(BB62=1,COUNTIF($BB$43:BB61,1)<>1),1) ->  | T62: =_xlfn.IFS(BD62<>1,"",AND(BD62=1,COUNTIF($BD$43:BD61,1)>=1),0,AND(BD62=1,COUNTIF($BD$43:BD61,1)<>1),1) ->  | AC62: =_xlfn.IFS(COUNT($E$7:$G26)<=hcpma,"",AND(OR(AND($E26>=G125L,$E26<G125U),AND($F26>=G125L,$F26<G125U),AND($G26>=G125L,$G26<G125U)),$C26<=G125AL),1,10<11,"") ->  | AE62: =_xlfn.IFS(COUNT($E$7:$G26)<=hcpma,"",AND(OR(AND($E26>=G150L,$E26<G150U),AND($F26>=G150L,$F26<G150U),AND($G26>=G150L,$G26<G150U)),$C26<=G150AL),1,10<11,"") ->  | AG62: =_xlfn.IFS(COUNT($E$7:$G26)<=hcpma,"",AND(OR(AND($E26>=G175L,$E26<G175U),AND($F26>=G175L,$F26<G175U),AND($G26>=G175L,$G26<G175U)),$C26<=G175AL),1,10<11,"") ->  | AI62: =_xlfn.IFS(COUNT($E$7:$G26)<=hcpma,"",AND(OR(AND($E26>=G200L,$E26<G200U),AND($F26>=G200L,$F26<G200U),AND($G26>=G200L,$G26<G200U)),$C26<=G200AL),1,10<11,"") ->  | AK62: =_xlfn.IFS(COUNT($E$7:$G26)<=hcpma,"",AND(OR(AND($E26>=G225L,$E26<G225U),AND($F26>=G225L,$F26<G225U),AND($G26>=G225L,$G26<G225U)),$C26<=G225AL),1,10<11,"") ->  | AM62: =_xlfn.IFS(COUNT($E$7:$G26)<=hcpma,"",AND(OR(AND($E26>=G250L,$E26<G250U),AND($F26>=G250L,$F26<G250U),AND($G26>=G250L,$G26<G250U)),$C26<=G250AL),1,10<11,"") ->  | AO62: =_xlfn.IFS(COUNT($E$7:$G26)<=hcpma,"",AND(OR(AND($E26>=G275L,$E26<=G275U),AND($F26>=G275L,$F26<=G275U),AND($G26>=G275L,$G26<=G275U)),$C26<=G275AL),1,10<11,"") ->  | AQ62: =_xlfn.IFS(COUNT($E26:$G26)<=0,"",AND(COUNT($E$7:$G26)>hcpma,OR($E26>=($C26+G75OV),$F26>=($C26+G75OV),$G26>=($C26+G75OV))),1,10<11,"") ->  | AT62: =_xlfn.IFS(COUNT($E$7:$G26)<=hcpma,"",AND( AND($I26>=S300L,$I26<S300U), $C26<=S300AL),1,10<11,"") ->  | AV62: =_xlfn.IFS(COUNT($E$7:$G26)<=hcpma,"",AND( AND($I26>=S400L,$I26<S400U), $C26<=S400AL),1,10<11,"") ->  | AX62: =_xlfn.IFS(COUNT($E$7:$G26)<=hcpma,"",AND( AND($I26>=S500L,$I26<S500U), $C26<=S500AL),1,10<11,"") ->  | AZ62: =_xlfn.IFS(COUNT($E$7:$G26)<=hcpma,"",AND( AND($I26>=S600L,$I26<S600U), $C26<=S600AL),1,10<11,"") ->  | BB62: =_xlfn.IFS(COUNT($E$7:$G26)<=hcpma,"",AND( AND($I26>=S700L,$I26<S700U), $C26<=S700AL),1,10<11,"") ->  | BD62: =_xlfn.IFS(COUNT($E$7:$G26)<=hcpma,"",SUM($E26:$G26)<1,"",$I26>=3*$C26+S140ov,1,10<11,"") -> 
A63: 21 | B63: 2025-02-05 | C63: =_xlfn.IFS(AC63<>1,"",AND(AC63=1,COUNTIF($AC$43:AC62,1)>=1),0,AND(AC63=1,COUNTIF($AC$43:AC62,1)<>1),1) ->  | D63: =_xlfn.IFS(AE63<>1,"",AND(AE63=1,COUNTIF($AE$43:AE62,1)>=1),0,AND(AE63=1,COUNTIF($AE$43:AE62,1)<>1),1) ->  | E63: =_xlfn.IFS(AG63<>1,"",AND(AG63=1,COUNTIF($AG$43:AG62,1)>=1),0,AND(AG63=1,COUNTIF($AG$43:AG62,1)<>1),1) ->  | F63: =_xlfn.IFS(AI63<>1,"",AND(AI63=1,COUNTIF($AI$43:AI62,1)>=1),0,AND(AI63=1,COUNTIF($AI$43:AI62,1)<>1),1) ->  | G63: =_xlfn.IFS(AK63<>1,"",AND(AK63=1,COUNTIF($AK$43:AK62,1)>=1),0,AND(AK63=1,COUNTIF($AK$43:AK62,1)<>1),1) ->  | I63: =_xlfn.IFS(AM63<>1,"",AND(AM63=1,COUNTIF($AM$43:AM62,1)>=1),0,AND(AM63=1,COUNTIF($AM$43:AM62,1)<>1),1) ->  | J63: =_xlfn.IFS(AO63<>1,"",AND(AO63=1,COUNTIF($AO$43:AO62,1)>=1),0,AND(AO63=1,COUNTIF($AO$43:AO62,1)<>1),1) ->  | K63: =_xlfn.IFS(AQ63<>1,"",AND(AQ63=1,COUNTIF($AQ$43:AQ62,1)>=1),0,AND(AQ63=1,COUNTIF($AQ$43:AQ62,1)<>1),1) ->  | M63: =_xlfn.IFS(AT63<>1,"",AND(AT63=1,COUNTIF($AT$43:AT62,1)>=1),0,AND(AT63=1,COUNTIF($AT$43:AT62,1)<>1),1) ->  | N63: =_xlfn.IFS(AV63<>1,"",AND(AV63=1,COUNTIF($AV$43:AV62,1)>=1),0,AND(AV63=1,COUNTIF($AV$43:AV62,1)<>1),1) ->  | O63: =_xlfn.IFS(AX63<>1,"",AND(AX63=1,COUNTIF($AX$43:AX62,1)>=1),0,AND(AX63=1,COUNTIF($AX$43:AX62,1)<>1),1) ->  | R63: =_xlfn.IFS(AZ63<>1,"",AND(AZ63=1,COUNTIF($AZ$43:AZ62,1)>=1),0,AND(AZ63=1,COUNTIF($AZ$43:AZ62,1)<>1),1) ->  | S63: =_xlfn.IFS(BB63<>1,"",AND(BB63=1,COUNTIF($BB$43:BB62,1)>=1),0,AND(BB63=1,COUNTIF($BB$43:BB62,1)<>1),1) ->  | T63: =_xlfn.IFS(BD63<>1,"",AND(BD63=1,COUNTIF($BD$43:BD62,1)>=1),0,AND(BD63=1,COUNTIF($BD$43:BD62,1)<>1),1) ->  | AC63: =_xlfn.IFS(COUNT($E$7:$G27)<=hcpma,"",AND(OR(AND($E27>=G125L,$E27<G125U),AND($F27>=G125L,$F27<G125U),AND($G27>=G125L,$G27<G125U)),$C27<=G125AL),1,10<11,"") ->  | AE63: =_xlfn.IFS(COUNT($E$7:$G27)<=hcpma,"",AND(OR(AND($E27>=G150L,$E27<G150U),AND($F27>=G150L,$F27<G150U),AND($G27>=G150L,$G27<G150U)),$C27<=G150AL),1,10<11,"") ->  | AG63: =_xlfn.IFS(COUNT($E$7:$G27)<=hcpma,"",AND(OR(AND($E27>=G175L,$E27<G175U),AND($F27>=G175L,$F27<G175U),AND($G27>=G175L,$G27<G175U)),$C27<=G175AL),1,10<11,"") ->  | AI63: =_xlfn.IFS(COUNT($E$7:$G27)<=hcpma,"",AND(OR(AND($E27>=G200L,$E27<G200U),AND($F27>=G200L,$F27<G200U),AND($G27>=G200L,$G27<G200U)),$C27<=G200AL),1,10<11,"") ->  | AK63: =_xlfn.IFS(COUNT($E$7:$G27)<=hcpma,"",AND(OR(AND($E27>=G225L,$E27<G225U),AND($F27>=G225L,$F27<G225U),AND($G27>=G225L,$G27<G225U)),$C27<=G225AL),1,10<11,"") ->  | AM63: =_xlfn.IFS(COUNT($E$7:$G27)<=hcpma,"",AND(OR(AND($E27>=G250L,$E27<G250U),AND($F27>=G250L,$F27<G250U),AND($G27>=G250L,$G27<G250U)),$C27<=G250AL),1,10<11,"") ->  | AO63: =_xlfn.IFS(COUNT($E$7:$G27)<=hcpma,"",AND(OR(AND($E27>=G275L,$E27<=G275U),AND($F27>=G275L,$F27<=G275U),AND($G27>=G275L,$G27<=G275U)),$C27<=G275AL),1,10<11,"") ->  | AQ63: =_xlfn.IFS(COUNT($E27:$G27)<=0,"",AND(COUNT($E$7:$G27)>hcpma,OR($E27>=($C27+G75OV),$F27>=($C27+G75OV),$G27>=($C27+G75OV))),1,10<11,"") ->  | AT63: =_xlfn.IFS(COUNT($E$7:$G27)<=hcpma,"",AND( AND($I27>=S300L,$I27<S300U), $C27<=S300AL),1,10<11,"") ->  | AV63: =_xlfn.IFS(COUNT($E$7:$G27)<=hcpma,"",AND( AND($I27>=S400L,$I27<S400U), $C27<=S400AL),1,10<11,"") ->  | AX63: =_xlfn.IFS(COUNT($E$7:$G27)<=hcpma,"",AND( AND($I27>=S500L,$I27<S500U), $C27<=S500AL),1,10<11,"") ->  | AZ63: =_xlfn.IFS(COUNT($E$7:$G27)<=hcpma,"",AND( AND($I27>=S600L,$I27<S600U), $C27<=S600AL),1,10<11,"") ->  | BB63: =_xlfn.IFS(COUNT($E$7:$G27)<=hcpma,"",AND( AND($I27>=S700L,$I27<S700U), $C27<=S700AL),1,10<11,"") ->  | BD63: =_xlfn.IFS(COUNT($E$7:$G27)<=hcpma,"",SUM($E27:$G27)<1,"",$I27>=3*$C27+S140ov,1,10<11,"") -> 
A64: 22 | B64: 2025-02-12 | C64: =_xlfn.IFS(AC64<>1,"",AND(AC64=1,COUNTIF($AC$43:AC63,1)>=1),0,AND(AC64=1,COUNTIF($AC$43:AC63,1)<>1),1) ->  | D64: =_xlfn.IFS(AE64<>1,"",AND(AE64=1,COUNTIF($AE$43:AE63,1)>=1),0,AND(AE64=1,COUNTIF($AE$43:AE63,1)<>1),1) ->  | E64: =_xlfn.IFS(AG64<>1,"",AND(AG64=1,COUNTIF($AG$43:AG63,1)>=1),0,AND(AG64=1,COUNTIF($AG$43:AG63,1)<>1),1) ->  | F64: =_xlfn.IFS(AI64<>1,"",AND(AI64=1,COUNTIF($AI$43:AI63,1)>=1),0,AND(AI64=1,COUNTIF($AI$43:AI63,1)<>1),1) ->  | G64: =_xlfn.IFS(AK64<>1,"",AND(AK64=1,COUNTIF($AK$43:AK63,1)>=1),0,AND(AK64=1,COUNTIF($AK$43:AK63,1)<>1),1) ->  | I64: =_xlfn.IFS(AM64<>1,"",AND(AM64=1,COUNTIF($AM$43:AM63,1)>=1),0,AND(AM64=1,COUNTIF($AM$43:AM63,1)<>1),1) ->  | J64: =_xlfn.IFS(AO64<>1,"",AND(AO64=1,COUNTIF($AO$43:AO63,1)>=1),0,AND(AO64=1,COUNTIF($AO$43:AO63,1)<>1),1) ->  | K64: =_xlfn.IFS(AQ64<>1,"",AND(AQ64=1,COUNTIF($AQ$43:AQ63,1)>=1),0,AND(AQ64=1,COUNTIF($AQ$43:AQ63,1)<>1),1) ->  | M64: =_xlfn.IFS(AT64<>1,"",AND(AT64=1,COUNTIF($AT$43:AT63,1)>=1),0,AND(AT64=1,COUNTIF($AT$43:AT63,1)<>1),1) ->  | N64: =_xlfn.IFS(AV64<>1,"",AND(AV64=1,COUNTIF($AV$43:AV63,1)>=1),0,AND(AV64=1,COUNTIF($AV$43:AV63,1)<>1),1) ->  | O64: =_xlfn.IFS(AX64<>1,"",AND(AX64=1,COUNTIF($AX$43:AX63,1)>=1),0,AND(AX64=1,COUNTIF($AX$43:AX63,1)<>1),1) ->  | R64: =_xlfn.IFS(AZ64<>1,"",AND(AZ64=1,COUNTIF($AZ$43:AZ63,1)>=1),0,AND(AZ64=1,COUNTIF($AZ$43:AZ63,1)<>1),1) ->  | S64: =_xlfn.IFS(BB64<>1,"",AND(BB64=1,COUNTIF($BB$43:BB63,1)>=1),0,AND(BB64=1,COUNTIF($BB$43:BB63,1)<>1),1) ->  | T64: =_xlfn.IFS(BD64<>1,"",AND(BD64=1,COUNTIF($BD$43:BD63,1)>=1),0,AND(BD64=1,COUNTIF($BD$43:BD63,1)<>1),1) ->  | AC64: =_xlfn.IFS(COUNT($E$7:$G28)<=hcpma,"",AND(OR(AND($E28>=G125L,$E28<G125U),AND($F28>=G125L,$F28<G125U),AND($G28>=G125L,$G28<G125U)),$C28<=G125AL),1,10<11,"") ->  | AE64: =_xlfn.IFS(COUNT($E$7:$G28)<=hcpma,"",AND(OR(AND($E28>=G150L,$E28<G150U),AND($F28>=G150L,$F28<G150U),AND($G28>=G150L,$G28<G150U)),$C28<=G150AL),1,10<11,"") ->  | AG64: =_xlfn.IFS(COUNT($E$7:$G28)<=hcpma,"",AND(OR(AND($E28>=G175L,$E28<G175U),AND($F28>=G175L,$F28<G175U),AND($G28>=G175L,$G28<G175U)),$C28<=G175AL),1,10<11,"") ->  | AI64: =_xlfn.IFS(COUNT($E$7:$G28)<=hcpma,"",AND(OR(AND($E28>=G200L,$E28<G200U),AND($F28>=G200L,$F28<G200U),AND($G28>=G200L,$G28<G200U)),$C28<=G200AL),1,10<11,"") ->  | AK64: =_xlfn.IFS(COUNT($E$7:$G28)<=hcpma,"",AND(OR(AND($E28>=G225L,$E28<G225U),AND($F28>=G225L,$F28<G225U),AND($G28>=G225L,$G28<G225U)),$C28<=G225AL),1,10<11,"") ->  | AM64: =_xlfn.IFS(COUNT($E$7:$G28)<=hcpma,"",AND(OR(AND($E28>=G250L,$E28<G250U),AND($F28>=G250L,$F28<G250U),AND($G28>=G250L,$G28<G250U)),$C28<=G250AL),1,10<11,"") ->  | AO64: =_xlfn.IFS(COUNT($E$7:$G28)<=hcpma,"",AND(OR(AND($E28>=G275L,$E28<=G275U),AND($F28>=G275L,$F28<=G275U),AND($G28>=G275L,$G28<=G275U)),$C28<=G275AL),1,10<11,"") ->  | AQ64: =_xlfn.IFS(COUNT($E28:$G28)<=0,"",AND(COUNT($E$7:$G28)>hcpma,OR($E28>=($C28+G75OV),$F28>=($C28+G75OV),$G28>=($C28+G75OV))),1,10<11,"") ->  | AT64: =_xlfn.IFS(COUNT($E$7:$G28)<=hcpma,"",AND( AND($I28>=S300L,$I28<S300U), $C28<=S300AL),1,10<11,"") ->  | AV64: =_xlfn.IFS(COUNT($E$7:$G28)<=hcpma,"",AND( AND($I28>=S400L,$I28<S400U), $C28<=S400AL),1,10<11,"") ->  | AX64: =_xlfn.IFS(COUNT($E$7:$G28)<=hcpma,"",AND( AND($I28>=S500L,$I28<S500U), $C28<=S500AL),1,10<11,"") ->  | AZ64: =_xlfn.IFS(COUNT($E$7:$G28)<=hcpma,"",AND( AND($I28>=S600L,$I28<S600U), $C28<=S600AL),1,10<11,"") ->  | BB64: =_xlfn.IFS(COUNT($E$7:$G28)<=hcpma,"",AND( AND($I28>=S700L,$I28<S700U), $C28<=S700AL),1,10<11,"") ->  | BD64: =_xlfn.IFS(COUNT($E$7:$G28)<=hcpma,"",SUM($E28:$G28)<1,"",$I28>=3*$C28+S140ov,1,10<11,"") -> 
A65: 23 | B65: 2025-02-19 | C65: =_xlfn.IFS(AC65<>1,"",AND(AC65=1,COUNTIF($AC$43:AC64,1)>=1),0,AND(AC65=1,COUNTIF($AC$43:AC64,1)<>1),1) ->  | D65: =_xlfn.IFS(AE65<>1,"",AND(AE65=1,COUNTIF($AE$43:AE64,1)>=1),0,AND(AE65=1,COUNTIF($AE$43:AE64,1)<>1),1) ->  | E65: =_xlfn.IFS(AG65<>1,"",AND(AG65=1,COUNTIF($AG$43:AG64,1)>=1),0,AND(AG65=1,COUNTIF($AG$43:AG64,1)<>1),1) ->  | F65: =_xlfn.IFS(AI65<>1,"",AND(AI65=1,COUNTIF($AI$43:AI64,1)>=1),0,AND(AI65=1,COUNTIF($AI$43:AI64,1)<>1),1) ->  | G65: =_xlfn.IFS(AK65<>1,"",AND(AK65=1,COUNTIF($AK$43:AK64,1)>=1),0,AND(AK65=1,COUNTIF($AK$43:AK64,1)<>1),1) ->  | I65: =_xlfn.IFS(AM65<>1,"",AND(AM65=1,COUNTIF($AM$43:AM64,1)>=1),0,AND(AM65=1,COUNTIF($AM$43:AM64,1)<>1),1) ->  | J65: =_xlfn.IFS(AO65<>1,"",AND(AO65=1,COUNTIF($AO$43:AO64,1)>=1),0,AND(AO65=1,COUNTIF($AO$43:AO64,1)<>1),1) ->  | K65: =_xlfn.IFS(AQ65<>1,"",AND(AQ65=1,COUNTIF($AQ$43:AQ64,1)>=1),0,AND(AQ65=1,COUNTIF($AQ$43:AQ64,1)<>1),1) ->  | M65: =_xlfn.IFS(AT65<>1,"",AND(AT65=1,COUNTIF($AT$43:AT64,1)>=1),0,AND(AT65=1,COUNTIF($AT$43:AT64,1)<>1),1) ->  | N65: =_xlfn.IFS(AV65<>1,"",AND(AV65=1,COUNTIF($AV$43:AV64,1)>=1),0,AND(AV65=1,COUNTIF($AV$43:AV64,1)<>1),1) ->  | O65: =_xlfn.IFS(AX65<>1,"",AND(AX65=1,COUNTIF($AX$43:AX64,1)>=1),0,AND(AX65=1,COUNTIF($AX$43:AX64,1)<>1),1) ->  | R65: =_xlfn.IFS(AZ65<>1,"",AND(AZ65=1,COUNTIF($AZ$43:AZ64,1)>=1),0,AND(AZ65=1,COUNTIF($AZ$43:AZ64,1)<>1),1) ->  | S65: =_xlfn.IFS(BB65<>1,"",AND(BB65=1,COUNTIF($BB$43:BB64,1)>=1),0,AND(BB65=1,COUNTIF($BB$43:BB64,1)<>1),1) ->  | T65: =_xlfn.IFS(BD65<>1,"",AND(BD65=1,COUNTIF($BD$43:BD64,1)>=1),0,AND(BD65=1,COUNTIF($BD$43:BD64,1)<>1),1) ->  | AC65: =_xlfn.IFS(COUNT($E$7:$G29)<=hcpma,"",AND(OR(AND($E29>=G125L,$E29<G125U),AND($F29>=G125L,$F29<G125U),AND($G29>=G125L,$G29<G125U)),$C29<=G125AL),1,10<11,"") ->  | AE65: =_xlfn.IFS(COUNT($E$7:$G29)<=hcpma,"",AND(OR(AND($E29>=G150L,$E29<G150U),AND($F29>=G150L,$F29<G150U),AND($G29>=G150L,$G29<G150U)),$C29<=G150AL),1,10<11,"") ->  | AG65: =_xlfn.IFS(COUNT($E$7:$G29)<=hcpma,"",AND(OR(AND($E29>=G175L,$E29<G175U),AND($F29>=G175L,$F29<G175U),AND($G29>=G175L,$G29<G175U)),$C29<=G175AL),1,10<11,"") ->  | AI65: =_xlfn.IFS(COUNT($E$7:$G29)<=hcpma,"",AND(OR(AND($E29>=G200L,$E29<G200U),AND($F29>=G200L,$F29<G200U),AND($G29>=G200L,$G29<G200U)),$C29<=G200AL),1,10<11,"") ->  | AK65: =_xlfn.IFS(COUNT($E$7:$G29)<=hcpma,"",AND(OR(AND($E29>=G225L,$E29<G225U),AND($F29>=G225L,$F29<G225U),AND($G29>=G225L,$G29<G225U)),$C29<=G225AL),1,10<11,"") ->  | AM65: =_xlfn.IFS(COUNT($E$7:$G29)<=hcpma,"",AND(OR(AND($E29>=G250L,$E29<G250U),AND($F29>=G250L,$F29<G250U),AND($G29>=G250L,$G29<G250U)),$C29<=G250AL),1,10<11,"") ->  | AO65: =_xlfn.IFS(COUNT($E$7:$G29)<=hcpma,"",AND(OR(AND($E29>=G275L,$E29<=G275U),AND($F29>=G275L,$F29<=G275U),AND($G29>=G275L,$G29<=G275U)),$C29<=G275AL),1,10<11,"") ->  | AQ65: =_xlfn.IFS(COUNT($E29:$G29)<=0,"",AND(COUNT($E$7:$G29)>hcpma,OR($E29>=($C29+G75OV),$F29>=($C29+G75OV),$G29>=($C29+G75OV))),1,10<11,"") ->  | AT65: =_xlfn.IFS(COUNT($E$7:$G29)<=hcpma,"",AND( AND($I29>=S300L,$I29<S300U), $C29<=S300AL),1,10<11,"") ->  | AV65: =_xlfn.IFS(COUNT($E$7:$G29)<=hcpma,"",AND( AND($I29>=S400L,$I29<S400U), $C29<=S400AL),1,10<11,"") ->  | AX65: =_xlfn.IFS(COUNT($E$7:$G29)<=hcpma,"",AND( AND($I29>=S500L,$I29<S500U), $C29<=S500AL),1,10<11,"") ->  | AZ65: =_xlfn.IFS(COUNT($E$7:$G29)<=hcpma,"",AND( AND($I29>=S600L,$I29<S600U), $C29<=S600AL),1,10<11,"") ->  | BB65: =_xlfn.IFS(COUNT($E$7:$G29)<=hcpma,"",AND( AND($I29>=S700L,$I29<S700U), $C29<=S700AL),1,10<11,"") ->  | BD65: =_xlfn.IFS(COUNT($E$7:$G29)<=hcpma,"",SUM($E29:$G29)<1,"",$I29>=3*$C29+S140ov,1,10<11,"") -> 
A66: 24 | B66: 2025-02-26 | C66: =_xlfn.IFS(AC66<>1,"",AND(AC66=1,COUNTIF($AC$43:AC65,1)>=1),0,AND(AC66=1,COUNTIF($AC$43:AC65,1)<>1),1) ->  | D66: =_xlfn.IFS(AE66<>1,"",AND(AE66=1,COUNTIF($AE$43:AE65,1)>=1),0,AND(AE66=1,COUNTIF($AE$43:AE65,1)<>1),1) ->  | E66: =_xlfn.IFS(AG66<>1,"",AND(AG66=1,COUNTIF($AG$43:AG65,1)>=1),0,AND(AG66=1,COUNTIF($AG$43:AG65,1)<>1),1) ->  | F66: =_xlfn.IFS(AI66<>1,"",AND(AI66=1,COUNTIF($AI$43:AI65,1)>=1),0,AND(AI66=1,COUNTIF($AI$43:AI65,1)<>1),1) ->  | G66: =_xlfn.IFS(AK66<>1,"",AND(AK66=1,COUNTIF($AK$43:AK65,1)>=1),0,AND(AK66=1,COUNTIF($AK$43:AK65,1)<>1),1) ->  | I66: =_xlfn.IFS(AM66<>1,"",AND(AM66=1,COUNTIF($AM$43:AM65,1)>=1),0,AND(AM66=1,COUNTIF($AM$43:AM65,1)<>1),1) ->  | J66: =_xlfn.IFS(AO66<>1,"",AND(AO66=1,COUNTIF($AO$43:AO65,1)>=1),0,AND(AO66=1,COUNTIF($AO$43:AO65,1)<>1),1) ->  | K66: =_xlfn.IFS(AQ66<>1,"",AND(AQ66=1,COUNTIF($AQ$43:AQ65,1)>=1),0,AND(AQ66=1,COUNTIF($AQ$43:AQ65,1)<>1),1) ->  | M66: =_xlfn.IFS(AT66<>1,"",AND(AT66=1,COUNTIF($AT$43:AT65,1)>=1),0,AND(AT66=1,COUNTIF($AT$43:AT65,1)<>1),1) ->  | N66: =_xlfn.IFS(AV66<>1,"",AND(AV66=1,COUNTIF($AV$43:AV65,1)>=1),0,AND(AV66=1,COUNTIF($AV$43:AV65,1)<>1),1) ->  | O66: =_xlfn.IFS(AX66<>1,"",AND(AX66=1,COUNTIF($AX$43:AX65,1)>=1),0,AND(AX66=1,COUNTIF($AX$43:AX65,1)<>1),1) ->  | R66: =_xlfn.IFS(AZ66<>1,"",AND(AZ66=1,COUNTIF($AZ$43:AZ65,1)>=1),0,AND(AZ66=1,COUNTIF($AZ$43:AZ65,1)<>1),1) ->  | S66: =_xlfn.IFS(BB66<>1,"",AND(BB66=1,COUNTIF($BB$43:BB65,1)>=1),0,AND(BB66=1,COUNTIF($BB$43:BB65,1)<>1),1) ->  | T66: =_xlfn.IFS(BD66<>1,"",AND(BD66=1,COUNTIF($BD$43:BD65,1)>=1),0,AND(BD66=1,COUNTIF($BD$43:BD65,1)<>1),1) ->  | AC66: =_xlfn.IFS(COUNT($E$7:$G30)<=hcpma,"",AND(OR(AND($E30>=G125L,$E30<G125U),AND($F30>=G125L,$F30<G125U),AND($G30>=G125L,$G30<G125U)),$C30<=G125AL),1,10<11,"") ->  | AE66: =_xlfn.IFS(COUNT($E$7:$G30)<=hcpma,"",AND(OR(AND($E30>=G150L,$E30<G150U),AND($F30>=G150L,$F30<G150U),AND($G30>=G150L,$G30<G150U)),$C30<=G150AL),1,10<11,"") ->  | AG66: =_xlfn.IFS(COUNT($E$7:$G30)<=hcpma,"",AND(OR(AND($E30>=G175L,$E30<G175U),AND($F30>=G175L,$F30<G175U),AND($G30>=G175L,$G30<G175U)),$C30<=G175AL),1,10<11,"") ->  | AI66: =_xlfn.IFS(COUNT($E$7:$G30)<=hcpma,"",AND(OR(AND($E30>=G200L,$E30<G200U),AND($F30>=G200L,$F30<G200U),AND($G30>=G200L,$G30<G200U)),$C30<=G200AL),1,10<11,"") ->  | AK66: =_xlfn.IFS(COUNT($E$7:$G30)<=hcpma,"",AND(OR(AND($E30>=G225L,$E30<G225U),AND($F30>=G225L,$F30<G225U),AND($G30>=G225L,$G30<G225U)),$C30<=G225AL),1,10<11,"") ->  | AM66: =_xlfn.IFS(COUNT($E$7:$G30)<=hcpma,"",AND(OR(AND($E30>=G250L,$E30<G250U),AND($F30>=G250L,$F30<G250U),AND($G30>=G250L,$G30<G250U)),$C30<=G250AL),1,10<11,"") ->  | AO66: =_xlfn.IFS(COUNT($E$7:$G30)<=hcpma,"",AND(OR(AND($E30>=G275L,$E30<=G275U),AND($F30>=G275L,$F30<=G275U),AND($G30>=G275L,$G30<=G275U)),$C30<=G275AL),1,10<11,"") ->  | AQ66: =_xlfn.IFS(COUNT($E30:$G30)<=0,"",AND(COUNT($E$7:$G30)>hcpma,OR($E30>=($C30+G75OV),$F30>=($C30+G75OV),$G30>=($C30+G75OV))),1,10<11,"") ->  | AT66: =_xlfn.IFS(COUNT($E$7:$G30)<=hcpma,"",AND( AND($I30>=S300L,$I30<S300U), $C30<=S300AL),1,10<11,"") ->  | AV66: =_xlfn.IFS(COUNT($E$7:$G30)<=hcpma,"",AND( AND($I30>=S400L,$I30<S400U), $C30<=S400AL),1,10<11,"") ->  | AX66: =_xlfn.IFS(COUNT($E$7:$G30)<=hcpma,"",AND( AND($I30>=S500L,$I30<S500U), $C30<=S500AL),1,10<11,"") ->  | AZ66: =_xlfn.IFS(COUNT($E$7:$G30)<=hcpma,"",AND( AND($I30>=S600L,$I30<S600U), $C30<=S600AL),1,10<11,"") ->  | BB66: =_xlfn.IFS(COUNT($E$7:$G30)<=hcpma,"",AND( AND($I30>=S700L,$I30<S700U), $C30<=S700AL),1,10<11,"") ->  | BD66: =_xlfn.IFS(COUNT($E$7:$G30)<=hcpma,"",SUM($E30:$G30)<1,"",$I30>=3*$C30+S140ov,1,10<11,"") -> 
A67: 25 | B67: 2025-03-05 | C67: =_xlfn.IFS(AC67<>1,"",AND(AC67=1,COUNTIF($AC$43:AC66,1)>=1),0,AND(AC67=1,COUNTIF($AC$43:AC66,1)<>1),1) ->  | D67: =_xlfn.IFS(AE67<>1,"",AND(AE67=1,COUNTIF($AE$43:AE66,1)>=1),0,AND(AE67=1,COUNTIF($AE$43:AE66,1)<>1),1) ->  | E67: =_xlfn.IFS(AG67<>1,"",AND(AG67=1,COUNTIF($AG$43:AG66,1)>=1),0,AND(AG67=1,COUNTIF($AG$43:AG66,1)<>1),1) ->  | F67: =_xlfn.IFS(AI67<>1,"",AND(AI67=1,COUNTIF($AI$43:AI66,1)>=1),0,AND(AI67=1,COUNTIF($AI$43:AI66,1)<>1),1) ->  | G67: =_xlfn.IFS(AK67<>1,"",AND(AK67=1,COUNTIF($AK$43:AK66,1)>=1),0,AND(AK67=1,COUNTIF($AK$43:AK66,1)<>1),1) ->  | I67: =_xlfn.IFS(AM67<>1,"",AND(AM67=1,COUNTIF($AM$43:AM66,1)>=1),0,AND(AM67=1,COUNTIF($AM$43:AM66,1)<>1),1) ->  | J67: =_xlfn.IFS(AO67<>1,"",AND(AO67=1,COUNTIF($AO$43:AO66,1)>=1),0,AND(AO67=1,COUNTIF($AO$43:AO66,1)<>1),1) ->  | K67: =_xlfn.IFS(AQ67<>1,"",AND(AQ67=1,COUNTIF($AQ$43:AQ66,1)>=1),0,AND(AQ67=1,COUNTIF($AQ$43:AQ66,1)<>1),1) ->  | M67: =_xlfn.IFS(AT67<>1,"",AND(AT67=1,COUNTIF($AT$43:AT66,1)>=1),0,AND(AT67=1,COUNTIF($AT$43:AT66,1)<>1),1) ->  | N67: =_xlfn.IFS(AV67<>1,"",AND(AV67=1,COUNTIF($AV$43:AV66,1)>=1),0,AND(AV67=1,COUNTIF($AV$43:AV66,1)<>1),1) ->  | O67: =_xlfn.IFS(AX67<>1,"",AND(AX67=1,COUNTIF($AX$43:AX66,1)>=1),0,AND(AX67=1,COUNTIF($AX$43:AX66,1)<>1),1) ->  | R67: =_xlfn.IFS(AZ67<>1,"",AND(AZ67=1,COUNTIF($AZ$43:AZ66,1)>=1),0,AND(AZ67=1,COUNTIF($AZ$43:AZ66,1)<>1),1) ->  | S67: =_xlfn.IFS(BB67<>1,"",AND(BB67=1,COUNTIF($BB$43:BB66,1)>=1),0,AND(BB67=1,COUNTIF($BB$43:BB66,1)<>1),1) ->  | T67: =_xlfn.IFS(BD67<>1,"",AND(BD67=1,COUNTIF($BD$43:BD66,1)>=1),0,AND(BD67=1,COUNTIF($BD$43:BD66,1)<>1),1) ->  | AC67: =_xlfn.IFS(COUNT($E$7:$G31)<=hcpma,"",AND(OR(AND($E31>=G125L,$E31<G125U),AND($F31>=G125L,$F31<G125U),AND($G31>=G125L,$G31<G125U)),$C31<=G125AL),1,10<11,"") ->  | AE67: =_xlfn.IFS(COUNT($E$7:$G31)<=hcpma,"",AND(OR(AND($E31>=G150L,$E31<G150U),AND($F31>=G150L,$F31<G150U),AND($G31>=G150L,$G31<G150U)),$C31<=G150AL),1,10<11,"") ->  | AG67: =_xlfn.IFS(COUNT($E$7:$G31)<=hcpma,"",AND(OR(AND($E31>=G175L,$E31<G175U),AND($F31>=G175L,$F31<G175U),AND($G31>=G175L,$G31<G175U)),$C31<=G175AL),1,10<11,"") ->  | AI67: =_xlfn.IFS(COUNT($E$7:$G31)<=hcpma,"",AND(OR(AND($E31>=G200L,$E31<G200U),AND($F31>=G200L,$F31<G200U),AND($G31>=G200L,$G31<G200U)),$C31<=G200AL),1,10<11,"") ->  | AK67: =_xlfn.IFS(COUNT($E$7:$G31)<=hcpma,"",AND(OR(AND($E31>=G225L,$E31<G225U),AND($F31>=G225L,$F31<G225U),AND($G31>=G225L,$G31<G225U)),$C31<=G225AL),1,10<11,"") ->  | AM67: =_xlfn.IFS(COUNT($E$7:$G31)<=hcpma,"",AND(OR(AND($E31>=G250L,$E31<G250U),AND($F31>=G250L,$F31<G250U),AND($G31>=G250L,$G31<G250U)),$C31<=G250AL),1,10<11,"") ->  | AO67: =_xlfn.IFS(COUNT($E$7:$G31)<=hcpma,"",AND(OR(AND($E31>=G275L,$E31<=G275U),AND($F31>=G275L,$F31<=G275U),AND($G31>=G275L,$G31<=G275U)),$C31<=G275AL),1,10<11,"") ->  | AQ67: =_xlfn.IFS(COUNT($E31:$G31)<=0,"",AND(COUNT($E$7:$G31)>hcpma,OR($E31>=($C31+G75OV),$F31>=($C31+G75OV),$G31>=($C31+G75OV))),1,10<11,"") ->  | AT67: =_xlfn.IFS(COUNT($E$7:$G31)<=hcpma,"",AND( AND($I31>=S300L,$I31<S300U), $C31<=S300AL),1,10<11,"") ->  | AV67: =_xlfn.IFS(COUNT($E$7:$G31)<=hcpma,"",AND( AND($I31>=S400L,$I31<S400U), $C31<=S400AL),1,10<11,"") ->  | AX67: =_xlfn.IFS(COUNT($E$7:$G31)<=hcpma,"",AND( AND($I31>=S500L,$I31<S500U), $C31<=S500AL),1,10<11,"") ->  | AZ67: =_xlfn.IFS(COUNT($E$7:$G31)<=hcpma,"",AND( AND($I31>=S600L,$I31<S600U), $C31<=S600AL),1,10<11,"") ->  | BB67: =_xlfn.IFS(COUNT($E$7:$G31)<=hcpma,"",AND( AND($I31>=S700L,$I31<S700U), $C31<=S700AL),1,10<11,"") ->  | BD67: =_xlfn.IFS(COUNT($E$7:$G31)<=hcpma,"",SUM($E31:$G31)<1,"",$I31>=3*$C31+S140ov,1,10<11,"") -> 
A68: 26 | B68: 2025-03-12 | C68: =_xlfn.IFS(AC68<>1,"",AND(AC68=1,COUNTIF($AC$43:AC67,1)>=1),0,AND(AC68=1,COUNTIF($AC$43:AC67,1)<>1),1) ->  | D68: =_xlfn.IFS(AE68<>1,"",AND(AE68=1,COUNTIF($AE$43:AE67,1)>=1),0,AND(AE68=1,COUNTIF($AE$43:AE67,1)<>1),1) ->  | E68: =_xlfn.IFS(AG68<>1,"",AND(AG68=1,COUNTIF($AG$43:AG67,1)>=1),0,AND(AG68=1,COUNTIF($AG$43:AG67,1)<>1),1) ->  | F68: =_xlfn.IFS(AI68<>1,"",AND(AI68=1,COUNTIF($AI$43:AI67,1)>=1),0,AND(AI68=1,COUNTIF($AI$43:AI67,1)<>1),1) ->  | G68: =_xlfn.IFS(AK68<>1,"",AND(AK68=1,COUNTIF($AK$43:AK67,1)>=1),0,AND(AK68=1,COUNTIF($AK$43:AK67,1)<>1),1) ->  | I68: =_xlfn.IFS(AM68<>1,"",AND(AM68=1,COUNTIF($AM$43:AM67,1)>=1),0,AND(AM68=1,COUNTIF($AM$43:AM67,1)<>1),1) ->  | J68: =_xlfn.IFS(AO68<>1,"",AND(AO68=1,COUNTIF($AO$43:AO67,1)>=1),0,AND(AO68=1,COUNTIF($AO$43:AO67,1)<>1),1) ->  | K68: =_xlfn.IFS(AQ68<>1,"",AND(AQ68=1,COUNTIF($AQ$43:AQ67,1)>=1),0,AND(AQ68=1,COUNTIF($AQ$43:AQ67,1)<>1),1) ->  | M68: =_xlfn.IFS(AT68<>1,"",AND(AT68=1,COUNTIF($AT$43:AT67,1)>=1),0,AND(AT68=1,COUNTIF($AT$43:AT67,1)<>1),1) ->  | N68: =_xlfn.IFS(AV68<>1,"",AND(AV68=1,COUNTIF($AV$43:AV67,1)>=1),0,AND(AV68=1,COUNTIF($AV$43:AV67,1)<>1),1) ->  | O68: =_xlfn.IFS(AX68<>1,"",AND(AX68=1,COUNTIF($AX$43:AX67,1)>=1),0,AND(AX68=1,COUNTIF($AX$43:AX67,1)<>1),1) ->  | R68: =_xlfn.IFS(AZ68<>1,"",AND(AZ68=1,COUNTIF($AZ$43:AZ67,1)>=1),0,AND(AZ68=1,COUNTIF($AZ$43:AZ67,1)<>1),1) ->  | S68: =_xlfn.IFS(BB68<>1,"",AND(BB68=1,COUNTIF($BB$43:BB67,1)>=1),0,AND(BB68=1,COUNTIF($BB$43:BB67,1)<>1),1) ->  | T68: =_xlfn.IFS(BD68<>1,"",AND(BD68=1,COUNTIF($BD$43:BD67,1)>=1),0,AND(BD68=1,COUNTIF($BD$43:BD67,1)<>1),1) ->  | AC68: =_xlfn.IFS(COUNT($E$7:$G32)<=hcpma,"",AND(OR(AND($E32>=G125L,$E32<G125U),AND($F32>=G125L,$F32<G125U),AND($G32>=G125L,$G32<G125U)),$C32<=G125AL),1,10<11,"") ->  | AE68: =_xlfn.IFS(COUNT($E$7:$G32)<=hcpma,"",AND(OR(AND($E32>=G150L,$E32<G150U),AND($F32>=G150L,$F32<G150U),AND($G32>=G150L,$G32<G150U)),$C32<=G150AL),1,10<11,"") ->  | AG68: =_xlfn.IFS(COUNT($E$7:$G32)<=hcpma,"",AND(OR(AND($E32>=G175L,$E32<G175U),AND($F32>=G175L,$F32<G175U),AND($G32>=G175L,$G32<G175U)),$C32<=G175AL),1,10<11,"") ->  | AI68: =_xlfn.IFS(COUNT($E$7:$G32)<=hcpma,"",AND(OR(AND($E32>=G200L,$E32<G200U),AND($F32>=G200L,$F32<G200U),AND($G32>=G200L,$G32<G200U)),$C32<=G200AL),1,10<11,"") ->  | AK68: =_xlfn.IFS(COUNT($E$7:$G32)<=hcpma,"",AND(OR(AND($E32>=G225L,$E32<G225U),AND($F32>=G225L,$F32<G225U),AND($G32>=G225L,$G32<G225U)),$C32<=G225AL),1,10<11,"") ->  | AM68: =_xlfn.IFS(COUNT($E$7:$G32)<=hcpma,"",AND(OR(AND($E32>=G250L,$E32<G250U),AND($F32>=G250L,$F32<G250U),AND($G32>=G250L,$G32<G250U)),$C32<=G250AL),1,10<11,"") ->  | AO68: =_xlfn.IFS(COUNT($E$7:$G32)<=hcpma,"",AND(OR(AND($E32>=G275L,$E32<=G275U),AND($F32>=G275L,$F32<=G275U),AND($G32>=G275L,$G32<=G275U)),$C32<=G275AL),1,10<11,"") ->  | AQ68: =_xlfn.IFS(COUNT($E32:$G32)<=0,"",AND(COUNT($E$7:$G32)>hcpma,OR($E32>=($C32+G75OV),$F32>=($C32+G75OV),$G32>=($C32+G75OV))),1,10<11,"") ->  | AT68: =_xlfn.IFS(COUNT($E$7:$G32)<=hcpma,"",AND( AND($I32>=S300L,$I32<S300U), $C32<=S300AL),1,10<11,"") ->  | AV68: =_xlfn.IFS(COUNT($E$7:$G32)<=hcpma,"",AND( AND($I32>=S400L,$I32<S400U), $C32<=S400AL),1,10<11,"") ->  | AX68: =_xlfn.IFS(COUNT($E$7:$G32)<=hcpma,"",AND( AND($I32>=S500L,$I32<S500U), $C32<=S500AL),1,10<11,"") ->  | AZ68: =_xlfn.IFS(COUNT($E$7:$G32)<=hcpma,"",AND( AND($I32>=S600L,$I32<S600U), $C32<=S600AL),1,10<11,"") ->  | BB68: =_xlfn.IFS(COUNT($E$7:$G32)<=hcpma,"",AND( AND($I32>=S700L,$I32<S700U), $C32<=S700AL),1,10<11,"") ->  | BD68: =_xlfn.IFS(COUNT($E$7:$G32)<=hcpma,"",SUM($E32:$G32)<1,"",$I32>=3*$C32+S140ov,1,10<11,"") -> 
A69: 27 | B69: 2025-03-19 | C69: =_xlfn.IFS(AC69<>1,"",AND(AC69=1,COUNTIF($AC$43:AC68,1)>=1),0,AND(AC69=1,COUNTIF($AC$43:AC68,1)<>1),1) ->  | D69: =_xlfn.IFS(AE69<>1,"",AND(AE69=1,COUNTIF($AE$43:AE68,1)>=1),0,AND(AE69=1,COUNTIF($AE$43:AE68,1)<>1),1) ->  | E69: =_xlfn.IFS(AG69<>1,"",AND(AG69=1,COUNTIF($AG$43:AG68,1)>=1),0,AND(AG69=1,COUNTIF($AG$43:AG68,1)<>1),1) ->  | F69: =_xlfn.IFS(AI69<>1,"",AND(AI69=1,COUNTIF($AI$43:AI68,1)>=1),0,AND(AI69=1,COUNTIF($AI$43:AI68,1)<>1),1) ->  | G69: =_xlfn.IFS(AK69<>1,"",AND(AK69=1,COUNTIF($AK$43:AK68,1)>=1),0,AND(AK69=1,COUNTIF($AK$43:AK68,1)<>1),1) ->  | I69: =_xlfn.IFS(AM69<>1,"",AND(AM69=1,COUNTIF($AM$43:AM68,1)>=1),0,AND(AM69=1,COUNTIF($AM$43:AM68,1)<>1),1) ->  | J69: =_xlfn.IFS(AO69<>1,"",AND(AO69=1,COUNTIF($AO$43:AO68,1)>=1),0,AND(AO69=1,COUNTIF($AO$43:AO68,1)<>1),1) ->  | K69: =_xlfn.IFS(AQ69<>1,"",AND(AQ69=1,COUNTIF($AQ$43:AQ68,1)>=1),0,AND(AQ69=1,COUNTIF($AQ$43:AQ68,1)<>1),1) ->  | M69: =_xlfn.IFS(AT69<>1,"",AND(AT69=1,COUNTIF($AT$43:AT68,1)>=1),0,AND(AT69=1,COUNTIF($AT$43:AT68,1)<>1),1) ->  | N69: =_xlfn.IFS(AV69<>1,"",AND(AV69=1,COUNTIF($AV$43:AV68,1)>=1),0,AND(AV69=1,COUNTIF($AV$43:AV68,1)<>1),1) ->  | O69: =_xlfn.IFS(AX69<>1,"",AND(AX69=1,COUNTIF($AX$43:AX68,1)>=1),0,AND(AX69=1,COUNTIF($AX$43:AX68,1)<>1),1) ->  | R69: =_xlfn.IFS(AZ69<>1,"",AND(AZ69=1,COUNTIF($AZ$43:AZ68,1)>=1),0,AND(AZ69=1,COUNTIF($AZ$43:AZ68,1)<>1),1) ->  | S69: =_xlfn.IFS(BB69<>1,"",AND(BB69=1,COUNTIF($BB$43:BB68,1)>=1),0,AND(BB69=1,COUNTIF($BB$43:BB68,1)<>1),1) ->  | T69: =_xlfn.IFS(BD69<>1,"",AND(BD69=1,COUNTIF($BD$43:BD68,1)>=1),0,AND(BD69=1,COUNTIF($BD$43:BD68,1)<>1),1) ->  | AC69: =_xlfn.IFS(COUNT($E$7:$G33)<=hcpma,"",AND(OR(AND($E33>=G125L,$E33<G125U),AND($F33>=G125L,$F33<G125U),AND($G33>=G125L,$G33<G125U)),$C33<=G125AL),1,10<11,"") ->  | AE69: =_xlfn.IFS(COUNT($E$7:$G33)<=hcpma,"",AND(OR(AND($E33>=G150L,$E33<G150U),AND($F33>=G150L,$F33<G150U),AND($G33>=G150L,$G33<G150U)),$C33<=G150AL),1,10<11,"") ->  | AG69: =_xlfn.IFS(COUNT($E$7:$G33)<=hcpma,"",AND(OR(AND($E33>=G175L,$E33<G175U),AND($F33>=G175L,$F33<G175U),AND($G33>=G175L,$G33<G175U)),$C33<=G175AL),1,10<11,"") ->  | AI69: =_xlfn.IFS(COUNT($E$7:$G33)<=hcpma,"",AND(OR(AND($E33>=G200L,$E33<G200U),AND($F33>=G200L,$F33<G200U),AND($G33>=G200L,$G33<G200U)),$C33<=G200AL),1,10<11,"") ->  | AK69: =_xlfn.IFS(COUNT($E$7:$G33)<=hcpma,"",AND(OR(AND($E33>=G225L,$E33<G225U),AND($F33>=G225L,$F33<G225U),AND($G33>=G225L,$G33<G225U)),$C33<=G225AL),1,10<11,"") ->  | AM69: =_xlfn.IFS(COUNT($E$7:$G33)<=hcpma,"",AND(OR(AND($E33>=G250L,$E33<G250U),AND($F33>=G250L,$F33<G250U),AND($G33>=G250L,$G33<G250U)),$C33<=G250AL),1,10<11,"") ->  | AO69: =_xlfn.IFS(COUNT($E$7:$G33)<=hcpma,"",AND(OR(AND($E33>=G275L,$E33<=G275U),AND($F33>=G275L,$F33<=G275U),AND($G33>=G275L,$G33<=G275U)),$C33<=G275AL),1,10<11,"") ->  | AQ69: =_xlfn.IFS(COUNT($E33:$G33)<=0,"",AND(COUNT($E$7:$G33)>hcpma,OR($E33>=($C33+G75OV),$F33>=($C33+G75OV),$G33>=($C33+G75OV))),1,10<11,"") ->  | AT69: =_xlfn.IFS(COUNT($E$7:$G33)<=hcpma,"",AND( AND($I33>=S300L,$I33<S300U), $C33<=S300AL),1,10<11,"") ->  | AV69: =_xlfn.IFS(COUNT($E$7:$G33)<=hcpma,"",AND( AND($I33>=S400L,$I33<S400U), $C33<=S400AL),1,10<11,"") ->  | AX69: =_xlfn.IFS(COUNT($E$7:$G33)<=hcpma,"",AND( AND($I33>=S500L,$I33<S500U), $C33<=S500AL),1,10<11,"") ->  | AZ69: =_xlfn.IFS(COUNT($E$7:$G33)<=hcpma,"",AND( AND($I33>=S600L,$I33<S600U), $C33<=S600AL),1,10<11,"") ->  | BB69: =_xlfn.IFS(COUNT($E$7:$G33)<=hcpma,"",AND( AND($I33>=S700L,$I33<S700U), $C33<=S700AL),1,10<11,"") ->  | BD69: =_xlfn.IFS(COUNT($E$7:$G33)<=hcpma,"",SUM($E33:$G33)<1,"",$I33>=3*$C33+S140ov,1,10<11,"") -> 
A70: 28 | B70: 2025-03-26 | C70: =_xlfn.IFS(AC70<>1,"",AND(AC70=1,COUNTIF($AC$43:AC69,1)>=1),0,AND(AC70=1,COUNTIF($AC$43:AC69,1)<>1),1) ->  | D70: =_xlfn.IFS(AE70<>1,"",AND(AE70=1,COUNTIF($AE$43:AE69,1)>=1),0,AND(AE70=1,COUNTIF($AE$43:AE69,1)<>1),1) ->  | E70: =_xlfn.IFS(AG70<>1,"",AND(AG70=1,COUNTIF($AG$43:AG69,1)>=1),0,AND(AG70=1,COUNTIF($AG$43:AG69,1)<>1),1) ->  | F70: =_xlfn.IFS(AI70<>1,"",AND(AI70=1,COUNTIF($AI$43:AI69,1)>=1),0,AND(AI70=1,COUNTIF($AI$43:AI69,1)<>1),1) ->  | G70: =_xlfn.IFS(AK70<>1,"",AND(AK70=1,COUNTIF($AK$43:AK69,1)>=1),0,AND(AK70=1,COUNTIF($AK$43:AK69,1)<>1),1) ->  | I70: =_xlfn.IFS(AM70<>1,"",AND(AM70=1,COUNTIF($AM$43:AM69,1)>=1),0,AND(AM70=1,COUNTIF($AM$43:AM69,1)<>1),1) ->  | J70: =_xlfn.IFS(AO70<>1,"",AND(AO70=1,COUNTIF($AO$43:AO69,1)>=1),0,AND(AO70=1,COUNTIF($AO$43:AO69,1)<>1),1) ->  | K70: =_xlfn.IFS(AQ70<>1,"",AND(AQ70=1,COUNTIF($AQ$43:AQ69,1)>=1),0,AND(AQ70=1,COUNTIF($AQ$43:AQ69,1)<>1),1) ->  | M70: =_xlfn.IFS(AT70<>1,"",AND(AT70=1,COUNTIF($AT$43:AT69,1)>=1),0,AND(AT70=1,COUNTIF($AT$43:AT69,1)<>1),1) ->  | N70: =_xlfn.IFS(AV70<>1,"",AND(AV70=1,COUNTIF($AV$43:AV69,1)>=1),0,AND(AV70=1,COUNTIF($AV$43:AV69,1)<>1),1) ->  | O70: =_xlfn.IFS(AX70<>1,"",AND(AX70=1,COUNTIF($AX$43:AX69,1)>=1),0,AND(AX70=1,COUNTIF($AX$43:AX69,1)<>1),1) ->  | R70: =_xlfn.IFS(AZ70<>1,"",AND(AZ70=1,COUNTIF($AZ$43:AZ69,1)>=1),0,AND(AZ70=1,COUNTIF($AZ$43:AZ69,1)<>1),1) ->  | S70: =_xlfn.IFS(BB70<>1,"",AND(BB70=1,COUNTIF($BB$43:BB69,1)>=1),0,AND(BB70=1,COUNTIF($BB$43:BB69,1)<>1),1) ->  | T70: =_xlfn.IFS(BD70<>1,"",AND(BD70=1,COUNTIF($BD$43:BD69,1)>=1),0,AND(BD70=1,COUNTIF($BD$43:BD69,1)<>1),1) ->  | AC70: =_xlfn.IFS(COUNT($E$7:$G34)<=hcpma,"",AND(OR(AND($E34>=G125L,$E34<G125U),AND($F34>=G125L,$F34<G125U),AND($G34>=G125L,$G34<G125U)),$C34<=G125AL),1,10<11,"") ->  | AE70: =_xlfn.IFS(COUNT($E$7:$G34)<=hcpma,"",AND(OR(AND($E34>=G150L,$E34<G150U),AND($F34>=G150L,$F34<G150U),AND($G34>=G150L,$G34<G150U)),$C34<=G150AL),1,10<11,"") ->  | AG70: =_xlfn.IFS(COUNT($E$7:$G34)<=hcpma,"",AND(OR(AND($E34>=G175L,$E34<G175U),AND($F34>=G175L,$F34<G175U),AND($G34>=G175L,$G34<G175U)),$C34<=G175AL),1,10<11,"") ->  | AI70: =_xlfn.IFS(COUNT($E$7:$G34)<=hcpma,"",AND(OR(AND($E34>=G200L,$E34<G200U),AND($F34>=G200L,$F34<G200U),AND($G34>=G200L,$G34<G200U)),$C34<=G200AL),1,10<11,"") ->  | AK70: =_xlfn.IFS(COUNT($E$7:$G34)<=hcpma,"",AND(OR(AND($E34>=G225L,$E34<G225U),AND($F34>=G225L,$F34<G225U),AND($G34>=G225L,$G34<G225U)),$C34<=G225AL),1,10<11,"") ->  | AM70: =_xlfn.IFS(COUNT($E$7:$G34)<=hcpma,"",AND(OR(AND($E34>=G250L,$E34<G250U),AND($F34>=G250L,$F34<G250U),AND($G34>=G250L,$G34<G250U)),$C34<=G250AL),1,10<11,"") ->  | AO70: =_xlfn.IFS(COUNT($E$7:$G34)<=hcpma,"",AND(OR(AND($E34>=G275L,$E34<=G275U),AND($F34>=G275L,$F34<=G275U),AND($G34>=G275L,$G34<=G275U)),$C34<=G275AL),1,10<11,"") ->  | AQ70: =_xlfn.IFS(COUNT($E34:$G34)<=0,"",AND(COUNT($E$7:$G34)>hcpma,OR($E34>=($C34+G75OV),$F34>=($C34+G75OV),$G34>=($C34+G75OV))),1,10<11,"") ->  | AT70: =_xlfn.IFS(COUNT($E$7:$G34)<=hcpma,"",AND( AND($I34>=S300L,$I34<S300U), $C34<=S300AL),1,10<11,"") ->  | AV70: =_xlfn.IFS(COUNT($E$7:$G34)<=hcpma,"",AND( AND($I34>=S400L,$I34<S400U), $C34<=S400AL),1,10<11,"") ->  | AX70: =_xlfn.IFS(COUNT($E$7:$G34)<=hcpma,"",AND( AND($I34>=S500L,$I34<S500U), $C34<=S500AL),1,10<11,"") ->  | AZ70: =_xlfn.IFS(COUNT($E$7:$G34)<=hcpma,"",AND( AND($I34>=S600L,$I34<S600U), $C34<=S600AL),1,10<11,"") ->  | BB70: =_xlfn.IFS(COUNT($E$7:$G34)<=hcpma,"",AND( AND($I34>=S700L,$I34<S700U), $C34<=S700AL),1,10<11,"") ->  | BD70: =_xlfn.IFS(COUNT($E$7:$G34)<=hcpma,"",SUM($E34:$G34)<1,"",$I34>=3*$C34+S140ov,1,10<11,"") -> 
A71: 29 | B71: 2025-04-02 | C71: =_xlfn.IFS(AC71<>1,"",AND(AC71=1,COUNTIF($AC$43:AC70,1)>=1),0,AND(AC71=1,COUNTIF($AC$43:AC70,1)<>1),1) ->  | D71: =_xlfn.IFS(AE71<>1,"",AND(AE71=1,COUNTIF($AE$43:AE70,1)>=1),0,AND(AE71=1,COUNTIF($AE$43:AE70,1)<>1),1) ->  | E71: =_xlfn.IFS(AG71<>1,"",AND(AG71=1,COUNTIF($AG$43:AG70,1)>=1),0,AND(AG71=1,COUNTIF($AG$43:AG70,1)<>1),1) ->  | F71: =_xlfn.IFS(AI71<>1,"",AND(AI71=1,COUNTIF($AI$43:AI70,1)>=1),0,AND(AI71=1,COUNTIF($AI$43:AI70,1)<>1),1) ->  | G71: =_xlfn.IFS(AK71<>1,"",AND(AK71=1,COUNTIF($AK$43:AK70,1)>=1),0,AND(AK71=1,COUNTIF($AK$43:AK70,1)<>1),1) ->  | I71: =_xlfn.IFS(AM71<>1,"",AND(AM71=1,COUNTIF($AM$43:AM70,1)>=1),0,AND(AM71=1,COUNTIF($AM$43:AM70,1)<>1),1) ->  | J71: =_xlfn.IFS(AO71<>1,"",AND(AO71=1,COUNTIF($AO$43:AO70,1)>=1),0,AND(AO71=1,COUNTIF($AO$43:AO70,1)<>1),1) ->  | K71: =_xlfn.IFS(AQ71<>1,"",AND(AQ71=1,COUNTIF($AQ$43:AQ70,1)>=1),0,AND(AQ71=1,COUNTIF($AQ$43:AQ70,1)<>1),1) ->  | M71: =_xlfn.IFS(AT71<>1,"",AND(AT71=1,COUNTIF($AT$43:AT70,1)>=1),0,AND(AT71=1,COUNTIF($AT$43:AT70,1)<>1),1) ->  | N71: =_xlfn.IFS(AV71<>1,"",AND(AV71=1,COUNTIF($AV$43:AV70,1)>=1),0,AND(AV71=1,COUNTIF($AV$43:AV70,1)<>1),1) ->  | O71: =_xlfn.IFS(AX71<>1,"",AND(AX71=1,COUNTIF($AX$43:AX70,1)>=1),0,AND(AX71=1,COUNTIF($AX$43:AX70,1)<>1),1) ->  | R71: =_xlfn.IFS(AZ71<>1,"",AND(AZ71=1,COUNTIF($AZ$43:AZ70,1)>=1),0,AND(AZ71=1,COUNTIF($AZ$43:AZ70,1)<>1),1) ->  | S71: =_xlfn.IFS(BB71<>1,"",AND(BB71=1,COUNTIF($BB$43:BB70,1)>=1),0,AND(BB71=1,COUNTIF($BB$43:BB70,1)<>1),1) ->  | T71: =_xlfn.IFS(BD71<>1,"",AND(BD71=1,COUNTIF($BD$43:BD70,1)>=1),0,AND(BD71=1,COUNTIF($BD$43:BD70,1)<>1),1) ->  | AC71: =_xlfn.IFS(COUNT($E$7:$G35)<=hcpma,"",AND(OR(AND($E35>=G125L,$E35<G125U),AND($F35>=G125L,$F35<G125U),AND($G35>=G125L,$G35<G125U)),$C35<=G125AL),1,10<11,"") ->  | AE71: =_xlfn.IFS(COUNT($E$7:$G35)<=hcpma,"",AND(OR(AND($E35>=G150L,$E35<G150U),AND($F35>=G150L,$F35<G150U),AND($G35>=G150L,$G35<G150U)),$C35<=G150AL),1,10<11,"") ->  | AG71: =_xlfn.IFS(COUNT($E$7:$G35)<=hcpma,"",AND(OR(AND($E35>=G175L,$E35<G175U),AND($F35>=G175L,$F35<G175U),AND($G35>=G175L,$G35<G175U)),$C35<=G175AL),1,10<11,"") ->  | AI71: =_xlfn.IFS(COUNT($E$7:$G35)<=hcpma,"",AND(OR(AND($E35>=G200L,$E35<G200U),AND($F35>=G200L,$F35<G200U),AND($G35>=G200L,$G35<G200U)),$C35<=G200AL),1,10<11,"") ->  | AK71: =_xlfn.IFS(COUNT($E$7:$G35)<=hcpma,"",AND(OR(AND($E35>=G225L,$E35<G225U),AND($F35>=G225L,$F35<G225U),AND($G35>=G225L,$G35<G225U)),$C35<=G225AL),1,10<11,"") ->  | AM71: =_xlfn.IFS(COUNT($E$7:$G35)<=hcpma,"",AND(OR(AND($E35>=G250L,$E35<G250U),AND($F35>=G250L,$F35<G250U),AND($G35>=G250L,$G35<G250U)),$C35<=G250AL),1,10<11,"") ->  | AO71: =_xlfn.IFS(COUNT($E$7:$G35)<=hcpma,"",AND(OR(AND($E35>=G275L,$E35<=G275U),AND($F35>=G275L,$F35<=G275U),AND($G35>=G275L,$G35<=G275U)),$C35<=G275AL),1,10<11,"") ->  | AQ71: =_xlfn.IFS(COUNT($E35:$G35)<=0,"",AND(COUNT($E$7:$G35)>hcpma,OR($E35>=($C35+G75OV),$F35>=($C35+G75OV),$G35>=($C35+G75OV))),1,10<11,"") ->  | AT71: =_xlfn.IFS(COUNT($E$7:$G35)<=hcpma,"",AND( AND($I35>=S300L,$I35<S300U), $C35<=S300AL),1,10<11,"") ->  | AV71: =_xlfn.IFS(COUNT($E$7:$G35)<=hcpma,"",AND( AND($I35>=S400L,$I35<S400U), $C35<=S400AL),1,10<11,"") ->  | AX71: =_xlfn.IFS(COUNT($E$7:$G35)<=hcpma,"",AND( AND($I35>=S500L,$I35<S500U), $C35<=S500AL),1,10<11,"") ->  | AZ71: =_xlfn.IFS(COUNT($E$7:$G35)<=hcpma,"",AND( AND($I35>=S600L,$I35<S600U), $C35<=S600AL),1,10<11,"") ->  | BB71: =_xlfn.IFS(COUNT($E$7:$G35)<=hcpma,"",AND( AND($I35>=S700L,$I35<S700U), $C35<=S700AL),1,10<11,"") ->  | BD71: =_xlfn.IFS(COUNT($E$7:$G35)<=hcpma,"",SUM($E35:$G35)<1,"",$I35>=3*$C35+S140ov,1,10<11,"") -> 
